Workbook

Sheet Enable Macros (hidden)
A1: Enable Macros
A2: Your Macros are not Enabled. Locate the Version of Excel you are running below for Specific Instructions on how to Activate this Workbook:
A8: Excel 2003:
A22: Excel 2007:
A36: Excel 2010:

Sheet Summary
A1: ='Test Info'!A1 -> Samudra MFP High B0
A2: ='Test Info'!A2 -> Release: | B2: 0.123.0
A3: Test Duration: | B3: =CONCATENATE(TEXT('Test Info'!B3, "m/d/yyyy"), " - ", TEXT(EndDate, "m/d/yyyy")) -> 9/11/2017 - 13/11/2017
A4: ='Test Info'!A4 -> Benchmark: | B4: Samudra MFP high
A6: Summary | E6: Benchmark Data | G6: Test Device Data | I6: Test Device vs. Benchmark | M6: Color Key
E7: From predecessor program | F7: From Marketing spec | G7: Enter Product information here | N7: Equal to or faster than BM
D8: S/w release | E8: =#REF! ->  | F8: Enter spec version | G8: ='Test Info'!B9 -> 0.123.0 | H8: ='Test Info'!B9 -> 0.123.0 | J8: CQ Number | N8: < 10% slower than BM
B9: Category | C9: Averaged results | D9: Jobs to Use | E9: Target/BM Data | F9: Marketing spec value | G9: Test Data - 1st Cycle | H9: Test Data - 2nd Cycle | I9: Delta | N9: 10% or more slower than BM
B10: Print to Default Tray Subset | C10: FPOT Default Driver Letter (seconds) | D10: All 11 Jobs | E10: =AVERAGE('Print To Default Tray Subset'!AC10:AC20) ->  | F10: NA | G10: =AVERAGE('Print To Default Tray Subset'!L10:L20) ->  | I10: =IF(ISERROR((G10-E10)/E10), N/A, (G10-E10)/E10) -> 
C11: FPOT Alternative Driver Letter (seconds) | D11: All 8 Jobs | E11: =AVERAGE('Print To Default Tray Subset'!AC21:AC28) ->  | F11: NA | G11: =AVERAGE('Print To Default Tray Subset'!L21:L28) ->  | I11: =IF(ISERROR((G11-E11)/E11), N/A, (G11-E11)/E11) -> 
C12: FPOT Default Driver A4 (seconds) | D12: All 4 jobs | E12: =AVERAGE('Print To Default Tray Subset'!AC29:AC32) ->  | F12: NA | G12: =AVERAGE('Print To Default Tray Subset'!L29:L32) ->  | I12: =IF(ISERROR((G12-E12)/E12), N/A, (G12-E12)/E12) ->  | M12: UCST (Unique Copy Set Throughput) Results -A (Letter)
C13: FPOT banner PRN-Alternative (seconds) | D13: 1 jobs | E13: ='Print To Default Tray Subset'!AC39 -> 0 | F13: NA | G13: ='Print To Default Tray Subset'!L39 -> 0 | I13: =IF(ISERROR((G13-E13)/E13), N/A, (G13-E13)/E13) -> 
C14: Consecutive files FPOT PRN-Default (seconds) | D14: 10 Jobs | E14: ='Print To Default Tray Subset'!AC38 -> 0 | F14: NA | G14: ='Print To Default Tray Subset'!L38 -> 0 | I14: =IF(ISERROR((G14-E14)/E14), N/A, (G14-E14)/E14) ->  | M14: Simplex
C15: FPOT Default & Alternative 14 and 17 inch (seconds) | D15: 4 jobs | E15: =AVERAGE('Print To Default Tray Subset'!AC33:AC36) ->  | F15: NA | G15: =AVERAGE('Print To Default Tray Subset'!L33:L36) ->  | I15: =IF(ISERROR((G15-E15)/E15), N/A, (G15-E15)/E15) ->  | N15: Time (seconds) | O15: UCST (IPM)
C16: 2-N Default Driver Letter (% rated Speed) | D16: All 11 Jobs | E16: =AVERAGE('Print To Default Tray Subset'!AF10:AF20) ->  | F16: NA | G16: =AVERAGE('Print To Default Tray Subset'!O10:O20) ->  | I16: =IF(ISERROR((E16-G16)/E16), N/A, (E16-G16)/E16) ->  | M16: Color | N16: ='ISO Copier -A'!I5 -> 0 | O16: ='ISO Copier -A'!J5 -> 
C17: 2-N Alternative Driver Letter (% rated Speed) | D17: All 8 Jobs | E17: =AVERAGE('Print To Default Tray Subset'!AF21:AF28) ->  | F17: NA | G17: =AVERAGE('Print To Default Tray Subset'!O21:O28) ->  | I17: =IF(ISERROR((E17-G17)/E17), N/A, (E17-G17)/E17) ->  | M17: Mono | N17: ='ISO Copier -A'!I12 -> 0 | O17: ='ISO Copier -A'!J12 -> 
C18: 2-N Default Driver A4 (% rated Speed) | D18: All 4 jobs | E18: =AVERAGE('Print To Default Tray Subset'!AF29:AF32) ->  | F18: NA | G18: =AVERAGE('Print To Default Tray Subset'!O29:O32) ->  | I18: =IF(ISERROR((E18-G18)/E18), N/A, (E18-G18)/E18) -> 
C19: 2-N Banner PRN- Alternative (% rated Speed) | D19: 1 jobs | E19: ='Print To Default Tray Subset'!AF39 ->  | F19: NA | G19: ='Print To Default Tray Subset'!O39 ->  | I19: =IF(ISERROR((E19-G19)/E19), N/A, (E19-G19)/E19) ->  | M19: Duplex | N19: 4 pages orginal ->2 sheets output 1 side ->2 sides copy
C20: Consecutive files 2-N Default Driver (% rated speed) | D20: 10 Jobs | E20: ='Print To Default Tray Subset'!AF38 ->  | F20: NA | G20: ='Print To Default Tray Subset'!O38 ->  | I20: =IF(ISERROR((E20-G20)/E20), N/A, (E20-G20)/E20) ->  | N20: Time (seconds) | O20: UCST (IPM)
C21: 2-N Default & Alternative 14 and 17 inch (% rated speed) | D21: 4 jobs | E21: =AVERAGE('Print To Default Tray Subset'!AF33:AF36) ->  | F21: NA | G21: =AVERAGE('Print To Default Tray Subset'!O33:O36) ->  | I21: =IF(ISERROR((E21-G21)/E21), N/A, (E21-G21)/E21) ->  | M21: Color | N21: ='ISO Copier -A'!I6 -> 0 | O21: ='ISO Copier -A'!J6 -> 
B22: Print to Default Tray - Full | C22: FPOT PS (seconds) | D22: All FFDS 33 Jobs | E22: =AVERAGE(E146:E149) ->  | F22: NA | G22: =AVERAGE(F146:F149) ->  | I22: =IF(ISERROR((G22-E22)/E22), N/A, (G22-E22)/E22) ->  | M22: Mono | N22: ='ISO Copier -A'!I13 -> 0 | O22: ='ISO Copier -A'!J13 -> 
C23: FPOT PCL6 (seconds) | D23: All FFDS 33 Jobs | E23: =AVERAGE(E150:E153) ->  | F23: NA | G23: =AVERAGE(F150:F153) ->  | I23: =IF(ISERROR((G23-E23)/E23), N/A, (G23-E23)/E23) -> 
C24: FPOT Default Driver A4 (seconds) | D24: All 4 jobs | E24: ='Print to Default Tray Full'!T379 ->  | F24: NA | G24: ='Print to Default Tray Full'!F379 ->  | I24: =IF(ISERROR((G24-E24)/E24), N/A, (G24-E24)/E24) ->  | M24: UCST (Unique Copy Set Throughput) Results - A4
C25: FPOT banner PS and PCL (seconds) | D25: FFDS 16 jobs | E25: =AVERAGE(E155:E162) ->  | F25: NA | G25: =AVERAGE(F155:F162) ->  | I25: =IF(ISERROR((G25-E25)/E25), N/A, (G25-E25)/E25) -> 
C26: Consecutive files FPOT PS and PCL (seconds) | D26: 5, 10, 30 jobs | E26: =AVERAGE(E521:E526) ->  | F26: NA | G26: =AVERAGE(F521:F526) ->  | I26: =IF(ISERROR((G26-E26)/E26), N/A, (G26-E26)/E26) ->  | M26: Simplex
C27: FPOT PS and PCL 14 and 17 inch (seconds) | D27: 24 jobs | E27: =AVERAGE(E226:E233) ->  | F27: NA | G27: =AVERAGE(F226:F233) ->  | I27: =IF(ISERROR((G27-E27)/E27), N/A, (G27-E27)/E27) ->  | N27: Time (seconds) | O27: UCST (IPM)
C28: FPOT banner PS and PCL 14 and 17 inch (seconds) | D28: 12 jobs | E28: =AVERAGE(E251:E254) ->  | F28: NA | G28: =AVERAGE(F251:F254) ->  | I28: =IF(ISERROR((G28-E28)/E28), N/A, (G28-E28)/E28) ->  | M28: Color | N28: ='ISO Copier -A4'!I5 -> 0 | O28: ='ISO Copier -A4'!J5 -> 
C29: 2-N PS (% rated Speed) | D29: All FFDS 33 Jobs | E29: =AVERAGE(E164:E167) ->  | F29: NA | G29: =AVERAGE(F164:F167) ->  | I29: =IF(ISERROR((E29-G29)/E29), N/A, (E29-G29)/E29) ->  | M29: Mono | N29: ='ISO Copier -A4'!I12 -> 0 | O29: ='ISO Copier -A4'!J12 -> 
C30: 2-N PCL6 (% rated Speed) | D30: All FFDS 33 Jobs | E30: =AVERAGE(E168:E171) ->  | F30: NA | G30: =AVERAGE(F168:F171) ->  | I30: =IF(ISERROR((E30-G30)/E30), N/A, (E30-G30)/E30) -> 
C31: 2-N Default Driver A4 (% rated Speed) | D31: All 4 jobs | E31: ='Print to Default Tray Full'!W379 ->  | F31: NA | G31: ='Print to Default Tray Full'!I379 ->  | I31: =IF(ISERROR((E31-G31)/E31), N/A, (E31-G31)/E31) ->  | M31: Duplex | N31: 4 pages orginal ->2 sheets output 1 side ->2 sides copy
C32: 2-N Banner PS and PCL (% rated Speed) | D32: FFDS 16 jobs | E32: =AVERAGE(E173:E180) ->  | F32: NA | G32: =AVERAGE(F173:F180) ->  | I32: =IF(ISERROR((E32-G32)/E32), N/A, (E32-G32)/E32) ->  | N32: Time (seconds) | O32: UCST (IPM)
C33: Consecutive files 2-N PS and PCL (% rated speed) | D33: 5, 10, 30 jobs | E33: =AVERAGE(E527:E532) ->  | F33: NA | G33: =AVERAGE(F527:F532) ->  | I33: =IF(ISERROR((E33-G33)/E33), N/A, (E33-G33)/E33) ->  | M33: Color | N33: ='ISO Copier -A4'!I6 -> 0 | O33: ='ISO Copier -A4'!J6 -> 
C34: 2-N PS and PCL 14 and 17 inch (% rated speed) | D34: 24 jobs | E34: =AVERAGE(E234:E241) ->  | F34: NA | G34: =AVERAGE(F234:F241) ->  | I34: =IF(ISERROR((E34-G34)/E34), N/A, (E34-G34)/E34) ->  | M34: Mono | N34: ='ISO Copier -A4'!I13 -> 0 | O34: ='ISO Copier -A4'!J13 -> 
C35: 2-N banner PS and PCL 14 and 17 inch (% rated speed) | D35: 12 jobs | E35: =AVERAGE(E255:E258) ->  | F35: NA | G35: =AVERAGE(F255:F258) ->  | I35: =IF(ISERROR((E35-G35)/E35), N/A, (E35-G35)/E35) -> 
B36: Copy | C36: FCOT Platen (seconds) | D36: All 4 color modes | E36: =AVERAGE(E327:E330) ->  | F36: NA | G36: =AVERAGE(F327:F330) ->  | I36: =IF(ISERROR((G36-E36)/E36), N/A, (G36-E36)/E36) -> 
C37: FCOT DADF (seconds) | D37: All 4 color modes | E37: =AVERAGE(E331:E334) ->  | F37: NA | G37: =AVERAGE(F331:F334) ->  | I37: =IF(ISERROR((G37-E37)/E37), N/A, (G37-E37)/E37) -> 
C38: FCOT DADF Duplex (seconds) | D38: All 4 color modes | E38: =AVERAGE(E335:E338) ->  | F38: NA | G38: =AVERAGE(F335:F338) ->  | I38: =IF(ISERROR((G38-E38)/E38), N/A, (G38-E38)/E38) -> 
B39: Scan to Server | C39: Scan PDF File Size (KB) | D39: 12 job types | E39: =AVERAGE(E409:E420) ->  | F39: NA | G39: =AVERAGE(F409:F420) ->  | I39: =IF(ISERROR((G39-E39)/E39), N/A, (G39-E39)/E39) -> 
C40: Scan OCR File Size (KB) | D40: 4 job types | E40: =AVERAGE(E421:E424) ->  | F40: NA | G40: =AVERAGE(F421:F424) ->  | I40: =IF(ISERROR((G40-E40)/E40), N/A, (G40-E40)/E40) -> 
C41: Scan MTIFF File Size (KB) | D41: 7 job types | E41: =AVERAGE(E425:E431) ->  | F41: NA | G41: =AVERAGE(F425:F431) ->  | I41: =IF(ISERROR((G41-E41)/E41), N/A, (G41-E41)/E41) -> 
C42: Scan JPG File Size (KB) | D42: 3 job types | E42: =AVERAGE(E432:E434) ->  | F42: NA | G42: =AVERAGE(F432:F434) ->  | I42: =IF(ISERROR((G42-E42)/E42), N/A, (G42-E42)/E42) -> 
C43: Scan PDF Job Time (seconds) | D43: 12 job types | E43: =AVERAGE(E436:E447) ->  | F43: NA | G43: =AVERAGE(F436:F447) ->  | I43: =IF(ISERROR((G43-E43)/E43), N/A, (G43-E43)/E43) -> 
C44: Scan OCR Job Time (seconds) | D44: 4 job types | E44: =AVERAGE(E448:E451) ->  | F44: NA | G44: =AVERAGE(F448:F451) ->  | I44: =IF(ISERROR((G44-E44)/E44), N/A, (G44-E44)/E44) -> 
C45: Scan MTIFF Job Time (seconds) | D45: 7 job types | E45: =AVERAGE(E452:E458) ->  | F45: NA | G45: =AVERAGE(F452:F458) ->  | I45: =IF(ISERROR((G45-E45)/E45), N/A, (G45-E45)/E45) -> 
C46: Scan JPG Job Time (seconds) | D46: 3 job types | E46: =AVERAGE(E459:E461) ->  | F46: NA | G46: =AVERAGE(F459:F461) ->  | I46: =IF(ISERROR((G46-E46)/E46), N/A, (G46-E46)/E46) -> 
B47: Scan to Non server | C47: From Platen - Click to File Displayed (seconds) | D47: 3 Jobs | E47: =AVERAGE(E463:E465) -> 12.71 | F47: NA | G47: =AVERAGE(F463:F465) -> 11.75 | I47: =IF(ISERROR((G47-E47)/E47), N/A, (G47-E47)/E47) -> -0.07553107789
C48: From DADF - Click to File Displayed (seconds) | D48: 3 Jobs | E48: =AVERAGE(E467:E469) -> 24.6 | F48: NA | G48: =AVERAGE(F467:F469) -> 24.97 | I48: =IF(ISERROR((G48-E48)/E48), N/A, (G48-E48)/E48) -> 0.01504065041
C49: DADF Speed (PPM) | D49: 4 jobs | E49: =AVERAGE(E471:E474) -> 49.52629346 | F49: NA | G49: =AVERAGE(F471:F474) -> 52.9448333 | I49: =IF(ISERROR((E49-G49)/E49), N/A, (E49-G49)/E49) -> -0.06902474631
C50: From Platen - File Size (Bytes) | D50: 4 jobs | E50: =AVERAGE(E476:E479) -> 450740.3333 | F50: NA | G50: =AVERAGE(F476:F479) -> 402102.5 | I50: =IF(ISERROR((G50-E50)/E50), N/A, (G50-E50)/E50) -> -0.1079065478
C51: From DADF - File Size (Bytes) | D51: 4 jobs | E51: =AVERAGE(E481:E484) -> 3968760.333 | F51: NA | G51: =AVERAGE(F481:F484) -> 3829694 | I51: =IF(ISERROR((G51-E51)/E51), N/A, (G51-E51)/E51) -> -0.03504024472
B52: Power | C52: Cold Boot (Seconds) | D52: Power Up | E52: =E495 ->  | F52: NA | G52: =F495 ->  | I52: =IF(ISERROR((G52-E52)/E52), N/A, (G52-E52)/E52) -> 
C53: Warm Boot (seconds) | D53: Power up | E53: =E496 ->  | F53: NA | G53: =F496 ->  | I53: =IF(ISERROR((G53-E53)/E53), N/A, (G53-E53)/E53) -> 
C54: Power Down (seconds) | D54: Power down | E54: =E501 ->  | F54: NA | G54: =F501 ->  | I54: =IF(ISERROR((G54-E54)/E54), N/A, (G54-E54)/E54) -> 
C55: Wake up Sleep (seconds) | D55: Exit Sleep mode | E55: =E499 ->  | F55: NA | G55: =F499 ->  | I55: =IF(ISERROR((G55-E55)/E55), N/A, (G55-E55)/E55) -> 
B56: Complex Print Jobs (Default Driver) | C56: Default Resolution FPOT w/ Default Driver (seconds) | D56: 7 jobs | E56: =E533 -> 27.20714286 | F56: NA | G56: =F533 -> 24.63857143 | I56: =IF(ISERROR((G56-E56)/E56), N/A, (G56-E56)/E56) -> -0.0944079811
C57: Default Resolution 2-N ppm (Default Driver) | D57: 7 jobs | E57: 14.83508449 | F57: NA | G57: 18.03758109 | I57: =IF(ISERROR((E57-G57)/E57), N/A, (E57-G57)/E57) -> -0.215873162
C58: Default Resolution C-C w/ Default Driver (seconds) | D58: 7 jobs | E58: 80.498 | F58: NA | G58: 72.414 | I58: =IF(ISERROR((G58-E58)/E58), N/A, (G58-E58)/E58) -> -0.1004248553
C59: Hi Resolution FPOT w/ Default Driver (seconds) | D59: 7 jobs | E59: 27.19142857 | F59: NA | G59: 25.62142857 | I59: =IF(ISERROR((G59-E59)/E59), N/A, (G59-E59)/E59) -> -0.05773878323
C60: Hi Resolution 2-N ppm (Default Driver) | D60: 7 jobs | E60: 11.58434131 | F60: NA | G60: 12.02895061 | I60: =IF(ISERROR((E60-G60)/E60), N/A, (E60-G60)/E60) -> -0.03838019663
C61: Hi Resolution C-C w/ Default Driver (seconds) | D61: 7 jobs | E61: 93.04 | F61: NA | G61: 88.598 | I61: =IF(ISERROR((G61-E61)/E61), N/A, (G61-E61)/E61) -> -0.04774290628
B62: Marketing (Ready mode) | C62: Color FPOT (Default Driver) | D62: 3 readings | E62: 5.12 | F62: Enter Spec. | G62: ='Mkt FPOT-FCOT'!G14 -> 5.196666667 | I62: =IF(ISERROR((G62-E62)/E62), N/A, (G62-E62)/E62) -> 0.01497395833
C63: Mono FPOT (Default Driver) | D63: 3 readings | E63: 4.72 | F63: Enter Spec. | G63: ='Mkt FPOT-FCOT'!G18 -> 4.67 | I63: =IF(ISERROR((G63-E63)/E63), N/A, (G63-E63)/E63) -> -0.01059322034
C64: Color FCOT (Platen) | D64: 3 readings | E64: 6.47 | F64: Enter Spec. | G64: ='Mkt FPOT-FCOT'!M14 -> 5.646666667 | I64: =IF(ISERROR((G64-E64)/E64), N/A, (G64-E64)/E64) -> -0.1272539928
C65: Mono FCOT (Platen) | D65: 3 readings | E65: 4.78 | F65: Enter Spec. | G65: ='Mkt FPOT-FCOT'!M18 -> 4.386666667 | I65: =IF(ISERROR((G65-E65)/E65), N/A, (G65-E65)/E65) -> -0.08228730823
C66: Color FCOT (DADF) | D66: 3 readings | E66: 6.7 | F66: Enter Spec. | G66: ='Mkt FPOT-FCOT'!N14 -> 6.736666667 | I66: =IF(ISERROR((G66-E66)/E66), N/A, (G66-E66)/E66) -> 0.005472636816
C67: Mono FCOT (DADF) | D67: 3 readings | E67: 6.09 | F67: Enter Spec. | G67: ='Mkt FPOT-FCOT'!N18 -> 6.206666667 | I67: =IF(ISERROR((G67-E67)/E67), N/A, (G67-E67)/E67) -> 0.01915708812
B68: Marketing (Low-Power mode) | C68: Color FPOT (Default Driver) | D68: 3 readings | E68: 7.42 | F68: Enter Spec. | G68: ='Mkt FPOT-FCOT'!G23 -> 7.18 | I68: =IF(ISERROR((G68-E68)/E68), N/A, (G68-E68)/E68) -> -0.03234501348
C69: Mono FPOT (Default Driver) | D69: 3 readings | E69: 6.91 | F69: Enter Spec. | G69: ='Mkt FPOT-FCOT'!G27 -> 7.09 | I69: =IF(ISERROR((G69-E69)/E69), N/A, (G69-E69)/E69) -> 0.02604920405
C70: Color FCOT (Platen) | D70: 3 readings | E70: NA | F70: Enter Spec. | G70: ='Mkt FPOT-FCOT'!M23 ->  | I70: =IF(ISERROR((G70-E70)/E70), N/A, (G70-E70)/E70) -> 
C71: Mono FCOT (Platen) | D71: 3 readings | E71: NA | F71: Enter Spec. | G71: ='Mkt FPOT-FCOT'!M27 ->  | I71: =IF(ISERROR((G71-E71)/E71), N/A, (G71-E71)/E71) -> 
C72: Color FCOT (DADF) | D72: 3 readings | E72: NA | F72: Enter Spec. | G72: ='Mkt FPOT-FCOT'!N23 ->  | I72: =IF(ISERROR((G72-E72)/E72), N/A, (G72-E72)/E72) -> 
C73: Mono FCOT (DADF) | D73: 3 readings | E73: NA | F73: Enter Spec. | G73: ='Mkt FPOT-FCOT'!N27 ->  | I73: =IF(ISERROR((G73-E73)/E73), N/A, (G73-E73)/E73) -> 
B74: Marketing (Sleep mode) | C74: Color FPOT (Default Driver) | D74: 3 readings | E74: 14.8 | F74: Enter Spec. | G74: ='Mkt FPOT-FCOT'!G32 -> 14.18 | I74: =IF(ISERROR((G74-E74)/E74), N/A, (G74-E74)/E74) -> -0.04189189189
C75: Mono FPOT (Default Driver) | D75: 3 readings | E75: 14.04 | F75: Enter Spec. | G75: ='Mkt FPOT-FCOT'!G36 -> 13.89 | I75: =IF(ISERROR((G75-E75)/E75), N/A, (G75-E75)/E75) -> -0.01068376068
C76: Color FCOT (Platen) | D76: 3 readings | F76: Enter Spec. | G76: ='Mkt FPOT-FCOT'!M32 ->  | I76: =IF(ISERROR((G76-E76)/E76), N/A, (G76-E76)/E76) -> 
C77: Mono FCOT (Platen) | D77: 3 readings | F77: Enter Spec. | G77: ='Mkt FPOT-FCOT'!M36 ->  | I77: =IF(ISERROR((G77-E77)/E77), N/A, (G77-E77)/E77) -> 
C78: Color FCOT (DADF) | D78: 3 readings | F78: Enter Spec. | G78: ='Mkt FPOT-FCOT'!N32 ->  | I78: =IF(ISERROR((G78-E78)/E78), N/A, (G78-E78)/E78) -> 
C79: Mono FCOT (DADF) | D79: 3 readings | F79: Enter Spec. | G79: ='Mkt FPOT-FCOT'!N36 ->  | I79: =IF(ISERROR((G79-E79)/E79), N/A, (G79-E79)/E79) -> 
B80: ISO - Letter | C80: Color Simplex Print ESAT (ipm) aka: 2N PPM | D80: 3 jobs N times | F80: ='Test Info'!$I$6 -> 0 | G80: ='ISO Summary Report - A'!C8 ->  | I80: =IF(ISERROR((E80-G80)/E80), N/A, (E80-G80)/E80) -> 
C81: Color Duplex Print ESAT (ipm) | D81: 3 jobs N times | F81: Enter Spec. | G81: ='ISO Summary Report - A'!C9 ->  | I81: =IF(ISERROR((E81-G81)/E81), N/A, (E81-G81)/E81) -> 
C82: Mono Simplex Print ESAT (ipm) aka: 2N PPM | D82: 3 jobs N times | F82: ='Test Info'!$J$6 -> 0 | G82: ='ISO Summary Report - A'!C10 ->  | I82: =IF(ISERROR((E82-G82)/E82), N/A, (E82-G82)/E82) -> 
C83: Mono Duplex Print ESAT (ipm) | D83: 3 jobs N times | F83: Enter Spec. | G83: ='ISO Summary Report - A'!C11 ->  | I83: =IF(ISERROR((E83-G83)/E83), N/A, (E83-G83)/E83) -> 
C84: Color Simplex Copy ESAT (ipm) aka: 2N PPM | D84: 1 job N times | F84: ='Test Info'!$I$6 -> 0 | G84: ='ISO Summary Report - A'!C59 ->  | I84: =IF(ISERROR((E84-G84)/E84), N/A, (E84-G84)/E84) -> 
C85: Color 1:2 Copy ESAT (ipm) | D85: 1 job N times | F85: Enter Spec. | G85: ='ISO Summary Report - A'!C60 ->  | I85: =IF(ISERROR((E85-G85)/E85), N/A, (E85-G85)/E85) -> 
C86: Color 2:2 Copy ESAT (ipm) | D86: 1 job N times | F86: Enter Spec. | G86: ='ISO Summary Report - A'!C61 ->  | I86: =IF(ISERROR((E86-G86)/E86), N/A, (E86-G86)/E86) -> 
C87: Mono Simplex Copy ESAT (ipm) aka: 2N PPM | D87: 1 job N times | F87: ='Test Info'!$J$6 -> 0 | G87: ='ISO Summary Report - A'!C62 ->  | I87: =IF(ISERROR((E87-G87)/E87), N/A, (E87-G87)/E87) -> 
C88: Mono 1:2 Copy ESAT (ipm) | D88: 1 job N times | F88: Enter Spec. | G88: ='ISO Summary Report - A'!C63 ->  | I88: =IF(ISERROR((E88-G88)/E88), N/A, (E88-G88)/E88) -> 
C89: Mono 2:2 Copy ESAT (ipm) | D89: 1 job N times | F89: Enter Spec. | G89: ='ISO Summary Report - A'!C64 ->  | I89: =IF(ISERROR((E89-G89)/E89), N/A, (E89-G89)/E89) -> 
B90: ISO - A4 | C90: Color Simplex Print ESAT (ipm) aka: 2N PPM | D90: 3 jobs N times | F90: Enter Spec. | G90: ='ISO Summary Report - A4'!C8 ->  | I90: =IF(ISERROR((E90-G90)/E90), N/A, (E90-G90)/E90) -> 
C91: Color Duplex Print ESAT (ipm) | D91: 3 jobs N times | F91: Enter Spec. | G91: ='ISO Summary Report - A4'!C9 ->  | I91: =IF(ISERROR((E91-G91)/E91), N/A, (E91-G91)/E91) -> 
C92: Mono Simplex Print ESAT (ipm) aka: 2N PPM | D92: 3 jobs N times | F92: Enter Spec. | G92: ='ISO Summary Report - A4'!C10 ->  | I92: =IF(ISERROR((E92-G92)/E92), N/A, (E92-G92)/E92) -> 
C93: Mono Duplex Print ESAT (ipm) | D93: 3 jobs N times | F93: Enter Spec. | G93: ='ISO Summary Report - A4'!C11 ->  | I93: =IF(ISERROR((E93-G93)/E93), N/A, (E93-G93)/E93) -> 
C94: Color Simplex Copy ESAT (ipm) aka: 2N PPM | D94: 1 job N times | F94: Enter Spec. | G94: ='ISO Summary Report - A4'!C59 ->  | I94: =IF(ISERROR((E94-G94)/E94), N/A, (E94-G94)/E94) -> 
C95: Color 1:2 Copy ESAT (ipm) | D95: 1 job N times | F95: Enter Spec. | G95: ='ISO Summary Report - A4'!C60 ->  | I95: =IF(ISERROR((E95-G95)/E95), N/A, (E95-G95)/E95) -> 
C96: Color 2:2 Copy ESAT (ipm) | D96: 1 job N times | F96: Enter Spec. | G96: ='ISO Summary Report - A4'!C61 ->  | I96: =IF(ISERROR((E96-G96)/E96), N/A, (E96-G96)/E96) -> 
C97: Mono Simplex Copy ESAT (ipm) aka: 2N PPM | D97: 1 job N times | F97: Enter Spec. | G97: ='ISO Summary Report - A4'!C62 ->  | I97: =IF(ISERROR((E97-G97)/E97), N/A, (E97-G97)/E97) -> 
C98: Mono 1:2 Copy ESAT (ipm) | D98: 1 job N times | F98: Enter Spec. | G98: ='ISO Summary Report - A4'!C63 ->  | I98: =IF(ISERROR((E98-G98)/E98), N/A, (E98-G98)/E98) -> 
C99: Mono 2:2 Copy ESAT (ipm) | D99: 1 job N times | F99: Enter Spec. | G99: ='ISO Summary Report - A4'!C64 ->  | I99: =IF(ISERROR((E99-G99)/E99), N/A, (E99-G99)/E99) -> 
B100: Finisher 1 | C100: Job Stream % Rated Speed | D100: 60 jobs | E100: =AVERAGE(E308:E311) ->  | F100: NA | G100: =AVERAGE(F308:F311) ->  | I100: =IF(ISERROR((E100-G100)/E100), N/A, (E100-G100)/E100) -> 
C101: FPOT (seconds) | D101: 16 jobs | E101: =AVERAGE(E264:E267) ->  | F101: NA | G101: =AVERAGE(F264:F267) ->  | I101: =IF(ISERROR((G101-E101)/E101), N/A, (G101-E101)/E101) -> 
C102: Print 2N (% Rated Speed) | D102: 16 jobs | E102: =AVERAGE(E274:E277) ->  | F102: NA | G102: =AVERAGE(F274:F277) ->  | I102: =IF(ISERROR((E102-G102)/E102), N/A, (E102-G102)/E102) -> 
C103: FCOT (seconds) | D103: 24 jobs | E103: =AVERAGE(E317:E320) ->  | F103: NA | G103: =AVERAGE(F317:F320) ->  | I103: =IF(ISERROR((G103-E103)/E103), N/A, (G103-E103)/E103) -> 
B104: Finisher 2 | C104: Job Stream % Rated Speed | D104: 60 jobs | E104: =AVERAGE(E312:E315) ->  | F104: NA | G104: =AVERAGE(F312:F315) ->  | I104: =IF(ISERROR((E104-G104)/E104), N/A, (E104-G104)/E104) -> 
C105: FPOT (seconds) | D105: 16 jobs | E105: =AVERAGE(E269:E272) ->  | F105: NA | G105: =AVERAGE(F269:F272) ->  | I105: =IF(ISERROR((G105-E105)/E105), N/A, (G105-E105)/E105) -> 
C106: 2N (% rated Speed) | D106: 16 jobs | E106: =AVERAGE(E279:E282) ->  | F106: NA | G106: =AVERAGE(F279:F282) ->  | I106: =IF(ISERROR((E106-G106)/E106), N/A, (E106-G106)/E106) -> 
C107: FCOT (seconds) | D107: 24 jobs | E107: =AVERAGE(E322:E325) ->  | F107: NA | G107: =AVERAGE(F322:F325) ->  | I107: =IF(ISERROR((G107-E107)/E107), N/A, (G107-E107)/E107) -> 
B108: XPS Driver | C108: FPOT (seconds) | D108: 10 jobs | E108: =XPS!R13 ->  | F108: NA | G108: =XPS!F13 ->  | I108: =IF(ISERROR((G108-E108)/E108), N/A, (G108-E108)/E108) -> 
C109: 2-N (% Rated Speed) | D109: 10 jobs | E109: =XPS!T13 ->  | F109: NA | G109: =XPS!I13 ->  | I109: =IF(ISERROR((E109-G109)/E109), N/A, (E109-G109)/E109) -> 
B110: Pre-BLI | C110: Buyers Laboratory Copy Productivity/Efficiency Ratings: Auto Color | D110: 1:1 Simplex mode | E110: =preBLI!E15 ->  | F110: Enter Spec. | G110: =preBLI!H15 ->  | I110: =G110-E110 -> 
D111: 1:2 Duplex mode | E111: =preBLI!E21 ->  | F111: Enter Spec. | G111: =preBLI!H21 ->  | I111: =G111-E111 -> 
D112: 2:2 Duplex Mode | E112: =preBLI!E27 ->  | F112: Enter Spec. | G112: =preBLI!H27 ->  | I112: =G112-E113 -> 
C113: Buyers Laboratory Copy Productivity/Efficiency Ratings: Black | D113: 1:1 Simplex mode | E113: =preBLI!E38 ->  | F113: Enter Spec. | G113: =preBLI!H38 -> 
D114: 1:2 Duplex mode | E114: =preBLI!E44 ->  | F114: Enter Spec. | G114: =preBLI!H44 -> 
D115: 2:2 Duplex Mode | E115: =preBLI!E50 ->  | F115: Enter Spec. | G115: =preBLI!H50 -> 
C116: Buyers Laboratory Print Productivity/Efficiency Ratings: Auto Color | D116: 1:1 Simplex mode | E116: =preBLI!E62 ->  | F116: Enter Spec. | G116: =preBLI!H62 -> 
D117: 1:2 Duplex mode | E117: =preBLI!E68 ->  | F117: Enter Spec. | G117: =preBLI!H68 -> 
C118: Buyers Laboratory Print Productivity/Efficiency Ratings: Black | D118: 1:1 Simplex mode | E118: =preBLI!E80 ->  | F118: Enter Spec. | G118: =preBLI!H80 -> 
D119: 1:2 Duplex mode | E119: =preBLI!E86 ->  | F119: Enter Spec. | G119: =preBLI!H86 ->  | I119: =G119-#REF! -> 
B120: Concurrency - Print | C120: C-C print time of Sisters.cdr 12 pgs | D120: Solo Time in Seconds | E120: =E486 ->  | F120: NA | G120: =F486 -> 
C121: C-C print time while copying America 15 pgs | D121: Added Delta in Percent | F121: NA
C122: C-C print time while scanning Pscan10 10pgs | D122: Added Delta in Percent | E122: =E488 ->  | F122: NA
B123: Concurrency - Scan | C123: C-C scan time for PScan10 10 pgs | D123: Solo Time in Seconds | F123: NA
C124: C-C scan time while copying America 15 pgs | D124: Added Delta in Percent | F124: NA
C125: C-C scan time while printing Sisters.cdr 12 pgs | D125: Added Delta in Percent | F125: NA
B126: Concurrency - Copy | C126: C-C copy time of America 15 pgs | D126: Solo Time in Seconds | F126: NA
C127: C-C copy time while printing Sisters.cdr 12 pgs | D127: Added Delta in Percent | F127: NA
B128: UI Response | C128: Feature Access First time after reboot (seconds) | D128: 8 jobs | E128: =E540 ->  | F128: NA | G128: =F540 ->  | I128: =IF(ISERROR((G128-E128)/E128), N/A, (G128-E128)/E128) -> 
C129: Feature Access from Ready (seconds) | D129: 8 jobs | E129: =E541 ->  | F129: NA | G129: =F541 ->  | I129: =IF(ISERROR((G129-E129)/E129), N/A, (G129-E129)/E129) -> 
C130: Feature Access While printing (seconds) | D130: 8 jobs | E130: =E542 ->  | F130: NA | G130: =F542 ->  | I130: =IF(ISERROR((G130-E130)/E130), N/A, (G130-E130)/E130) -> 
C131: Button (seconds) | D131: 18 jobs | E131: =AVERAGE(E543:E548) ->  | F131: NA | G131: =AVERAGE(F543:F548) ->  | I131: =IF(ISERROR((G131-E131)/E131), N/A, (G131-E131)/E131) -> 
C132: Pop Up (seconds) | D132: 4 jobs | E132: =E549 ->  | F132: NA | G132: =F549 ->  | I132: =IF(ISERROR((G132-E132)/E132), N/A, (G132-E132)/E132) -> 
C133: Keyboard (seconds) | D133: 1 job | E133: =E551 -> 0 | F133: NA | G133: =F551 ->  | I133: =IF(ISERROR((G133-E133)/E133), N/A, (G133-E133)/E133) -> 
C134: Machine Status (seconds) | D134: 3 jobs | E134: =E553 -> 0 | F134: NA | G134: =F553 ->  | I134: =IF(ISERROR((G134-E134)/E134), N/A, (G134-E134)/E134) -> 
B135: WIFI Print | C135: FPOT Wireless vs Wired (%) | D135: 6 jobs | E135: =IF(ISERROR(WIFI!Z16/WIFI!Z17*100),"",WIFI!Z16/WIFI!Z17*100) ->  | F135: NA | G135: =IF(ISERROR(WIFI!J16/WIFI!J17*100),"",WIFI!J16/WIFI!J17*100) ->  | I135: =IF(ISERROR((E135-G135)/E135), N/A, (E135-G135)/E135) -> 
C136: C-C print time Wireless vs Wired (%) | D136: 6 jobs | E136: =IF(ISERROR(WIFI!AA16/WIFI!AA17*100),"",WIFI!AA16/WIFI!AA17*100) ->  | F136: NA | G136: =IF(ISERROR(WIFI!K16/WIFI!K17*100),"",WIFI!K16/WIFI!K17*100) ->  | I136: =IF(ISERROR((E136-G136)/E136), N/A, (E136-G136)/E136) -> 
B137: WIFI Scan | C137: Scan C-C Wireless vs Wired (%) | D137: 5 jobs | E137: =IF(ISERROR(WIFI!X34/WIFI!X35*100),"",WIFI!X34/WIFI!X35*100) ->  | F137: NA | G137: =IF(ISERROR(WIFI!H34/WIFI!H35*100),"",WIFI!H34/WIFI!H35*100) ->  | I137: =IF(ISERROR((E137-G137)/E137), N/A, (E137-G137)/E137) -> 
E142: Benchmark Data | F142: Test Device Data
A143: Complete Test Results | E143: Enter Product | F143: =G7 -> Enter Product information here
D144: =D8 -> S/w release | E144: =E8 ->  | F144: =G8 -> 0.123.0 | H144: Test Device vs. Benchmark | I144: CQ Number
A145: Jobs to Use | B145: # Jobs | C145: Print to Default Tray FPOT No Banner | D145: Measured in | E145: Benchmark | F145: =$G$8 -> 0.123.0 | H145: Delta
A146: FFDS Office Color | B146: 11 | C146: FPOT PS- Office Color | D146: Seconds | E146: ='Print to Default Tray Full'!T25 ->  | F146: ='Print to Default Tray Full'!F25 ->  | H146: =IF(ISERROR((F146-E146)/E146), N/A, (F146-E146)/E146) -> 
A147: FFDS Office Mono | B147: 7 | C147: FPOT PS- Office Mono | D147: Seconds | E147: ='Print to Default Tray Full'!T35 ->  | F147: ='Print to Default Tray Full'!F35 ->  | H147: =IF(ISERROR((F147-E147)/E147), N/A, (F147-E147)/E147) -> 
A148: FFDS Graphic | B148: 11 | C148: FPOT PS- Graphic | D148: Seconds | E148: ='Print to Default Tray Full'!T49 ->  | F148: ='Print to Default Tray Full'!F49 ->  | H148: =IF(ISERROR((F148-E148)/E148), N/A, (F148-E148)/E148) -> 
A149: FFDS Stress | B149: 4 | C149: FPOT PS- Stress | D149: Seconds | E149: ='Print to Default Tray Full'!T56 ->  | F149: ='Print to Default Tray Full'!F56 ->  | H149: =IF(ISERROR((F149-E149)/E149), N/A, (F149-E149)/E149) -> 
A150: FFDS Office Color | B150: 11 | C150: FPOT PCL6- Office Color | D150: Seconds | E150: ='Print to Default Tray Full'!T72 ->  | F150: ='Print to Default Tray Full'!F72 ->  | H150: =IF(ISERROR((F150-E150)/E150), N/A, (F150-E150)/E150) -> 
A151: FFDS Office Mono | B151: 7 | C151: FPOT PCL6- Office Mono | D151: Seconds | E151: ='Print to Default Tray Full'!T82 ->  | F151: ='Print to Default Tray Full'!F82 ->  | H151: =IF(ISERROR((F151-E151)/E151), N/A, (F151-E151)/E151) -> 
A152: FFDS Graphic | B152: 11 | C152: FPOT PCL6- Graphic | D152: Seconds | E152: ='Print to Default Tray Full'!T96 ->  | F152: ='Print to Default Tray Full'!F96 ->  | H152: =IF(ISERROR((F152-E152)/E152), N/A, (F152-E152)/E152) -> 
A153: FFDS Stress | B153: 4 | C153: FPOT PCL6- Stress | D153: Seconds | E153: ='Print to Default Tray Full'!T103 ->  | F153: ='Print to Default Tray Full'!F103 ->  | H153: =IF(ISERROR((F153-E153)/E153), N/A, (F153-E153)/E153) -> 
A154: Jobs to Use | B154: # Jobs | C154: Print to Default Tray FPOT with Banner | D154: Measured in | E154: Benchmark | F154: =$G$8 -> 0.123.0 | H154: Delta
A155: FFDS Office Color (Subset) | B155: 4 | C155: FPOT PS- Office Color | D155: Seconds | E155: ='Print to Default Tray Full'!T114 ->  | F155: ='Print to Default Tray Full'!F114 ->  | H155: =IF(ISERROR((F155-E155)/E155), N/A, (F155-E155)/E155) -> 
A156: FFDS Office Mono (Subset) | B156: 4 | C156: FPOT PS- Office Mono | D156: Seconds | E156: ='Print to Default Tray Full'!T121 ->  | F156: ='Print to Default Tray Full'!F121 ->  | H156: =IF(ISERROR((F156-E156)/E156), N/A, (F156-E156)/E156) -> 
A157: FFDS Graphic (Subset) | B157: 4 | C157: FPOT PS- Graphic | D157: Seconds | E157: ='Print to Default Tray Full'!T128 ->  | F157: ='Print to Default Tray Full'!F128 ->  | H157: =IF(ISERROR((F157-E157)/E157), N/A, (F157-E157)/E157) -> 
A158: FFDS Stress | B158: 4 | C158: FPOT PS- Stress | D158: Seconds | E158: ='Print to Default Tray Full'!T135 ->  | F158: ='Print to Default Tray Full'!F135 ->  | H158: =IF(ISERROR((F158-E158)/E158), N/A, (F158-E158)/E158) -> 
A159: FFDS Office Color (Subset) | B159: 4 | C159: FPOT PCL6- Office Color | D159: Seconds | E159: ='Print to Default Tray Full'!T144 ->  | F159: ='Print to Default Tray Full'!F144 ->  | H159: =IF(ISERROR((F159-E159)/E159), N/A, (F159-E159)/E159) -> 
A160: FFDS Office Mono (Subset) | B160: 4 | C160: FPOT PCL6- Office Mono | D160: Seconds | E160: ='Print to Default Tray Full'!T151 ->  | F160: ='Print to Default Tray Full'!F151 ->  | H160: =IF(ISERROR((F160-E160)/E160), N/A, (F160-E160)/E160) -> 
A161: FFDS Graphic (Subset) | B161: 4 | C161: FPOT PCL6- Graphic | D161: Seconds | E161: ='Print to Default Tray Full'!T159 ->  | F161: ='Print to Default Tray Full'!F159 ->  | H161: =IF(ISERROR((F161-E161)/E161), N/A, (F161-E161)/E161) -> 
A162: FFDS Stress | B162: 4 | C162: FPOT PCL6- Stress | D162: Seconds | E162: ='Print to Default Tray Full'!T166 ->  | F162: ='Print to Default Tray Full'!F166 ->  | H162: =IF(ISERROR((F162-E162)/E162), N/A, (F162-E162)/E162) -> 
A163: Jobs to Use | B163: # Jobs | C163: Print to Default Tray 2-N No Banner | D163: Measured in | E163: Benchmark | F163: =$G$8 -> 0.123.0 | H163: Delta
A164: FFDS Office Color | B164: 11 | C164: 2-N PS- Office Color | D164: % Rated Speed | E164: ='Print to Default Tray Full'!W25 ->  | F164: ='Print to Default Tray Full'!I25 ->  | H164: =IF(ISERROR((E164-F164)/E164), N/A, (E164-F164)/E164) -> 
A165: FFDS Office Mono | B165: 7 | C165: 2-N PS- Office Mono | D165: % Rated Speed | E165: ='Print to Default Tray Full'!W35 ->  | F165: ='Print to Default Tray Full'!I35 ->  | H165: =IF(ISERROR((E165-F165)/E165), N/A, (E165-F165)/E165) -> 
A166: FFDS Graphic | B166: 11 | C166: 2-N PS- Graphic | D166: % Rated Speed | E166: ='Print to Default Tray Full'!W49 ->  | F166: ='Print to Default Tray Full'!I49 ->  | H166: =IF(ISERROR((E166-F166)/E166), N/A, (E166-F166)/E166) -> 
A167: FFDS Stress | B167: 4 | C167: 2-N PS- Stress | D167: % Rated Speed | E167: ='Print to Default Tray Full'!W56 ->  | F167: ='Print to Default Tray Full'!I56 ->  | H167: =IF(ISERROR((E167-F167)/E167), N/A, (E167-F167)/E167) -> 
A168: FFDS Office Color | B168: 11 | C168: 2-N PCL6- Office Color | D168: % Rated Speed | E168: ='Print to Default Tray Full'!W72 ->  | F168: ='Print to Default Tray Full'!I72 ->  | H168: =IF(ISERROR((E168-F168)/E168), N/A, (E168-F168)/E168) -> 
A169: FFDS Office Mono | B169: 7 | C169: 2-N PCL6- Office Mono | D169: % Rated Speed | E169: ='Print to Default Tray Full'!W82 ->  | F169: ='Print to Default Tray Full'!I82 ->  | H169: =IF(ISERROR((E169-F169)/E169), N/A, (E169-F169)/E169) -> 
A170: FFDS Graphic | B170: 11 | C170: 2-N PCL6- Graphic | D170: % Rated Speed | E170: ='Print to Default Tray Full'!W96 ->  | F170: ='Print to Default Tray Full'!I96 ->  | H170: =IF(ISERROR((E170-F170)/E170), N/A, (E170-F170)/E170) -> 
A171: FFDS Stress | B171: 4 | C171: 2-N PCL6- Stress | D171: % Rated Speed | E171: ='Print to Default Tray Full'!W103 ->  | F171: ='Print to Default Tray Full'!I103 ->  | H171: =IF(ISERROR((E171-F171)/E171), N/A, (E171-F171)/E171) -> 
A172: Jobs to Use | B172: # Jobs | C172: Print to default tray 2-N with banner | D172: Measured in | E172: Benchmark | F172: =$G$8 -> 0.123.0 | H172: Delta
A173: FFDS Office Color (Subset) | B173: 4 | C173: 2-N PS- Office Color | D173: % Rated Speed | E173: ='Print to Default Tray Full'!W114 ->  | F173: ='Print to Default Tray Full'!I114 ->  | H173: =IF(ISERROR((E173-F173)/E173), N/A, (E173-F173)/E173) -> 
A174: FFDS Office Mono (Subset) | B174: 4 | C174: 2-N PS- Office Mono | D174: % Rated Speed | E174: ='Print to Default Tray Full'!W121 ->  | F174: ='Print to Default Tray Full'!I121 ->  | H174: =IF(ISERROR((E174-F174)/E174), N/A, (E174-F174)/E174) -> 
A175: FFDS Graphic (Subset) | B175: 4 | C175: 2-N PS- Graphic | D175: % Rated Speed | E175: ='Print to Default Tray Full'!W128 ->  | F175: ='Print to Default Tray Full'!I128 ->  | H175: =IF(ISERROR((E175-F175)/E175), N/A, (E175-F175)/E175) -> 
A176: FFDS Stress | B176: 4 | C176: 2-N PS- Stress | D176: % Rated Speed | E176: ='Print to Default Tray Full'!W135 ->  | F176: ='Print to Default Tray Full'!I135 ->  | H176: =IF(ISERROR((E176-F176)/E176), N/A, (E176-F176)/E176) -> 
A177: FFDS Office Color (Subset) | B177: 4 | C177: 2-N PCL6- Office Color | D177: % Rated Speed | E177: ='Print to Default Tray Full'!W144 ->  | F177: ='Print to Default Tray Full'!I144 ->  | H177: =IF(ISERROR((E177-F177)/E177), N/A, (E177-F177)/E177) -> 
A178: FFDS Office Mono (Subset) | B178: 4 | C178: 2-N PCL6- Office Mono | D178: % Rated Speed | E178: ='Print to Default Tray Full'!W151 ->  | F178: ='Print to Default Tray Full'!I151 ->  | H178: =IF(ISERROR((E178-F178)/E178), N/A, (E178-F178)/E178) -> 
A179: FFDS Graphic (Subset) | B179: 4 | C179: 2-N PCL6- Graphic | D179: % Rated Speed | E179: ='Print to Default Tray Full'!W159 ->  | F179: ='Print to Default Tray Full'!I159 ->  | H179: =IF(ISERROR((E179-F179)/E179), N/A, (E179-F179)/E179) -> 
A180: FFDS Stress | B180: 4 | C180: 2-N PCL6- Stress | D180: % Rated Speed | E180: ='Print to Default Tray Full'!W166 ->  | F180: ='Print to Default Tray Full'!I166 ->  | H180: =IF(ISERROR((E180-F180)/E180), N/A, (E180-F180)/E180) -> 
A181: Jobs to Use | B181: # Jobs | C181: Print to Default Tray C-C No Banner | D181: Measured in | E181: Benchmark | F181: =$G$8 -> 0.123.0 | H181: Delta
A182: FFDS Office Color | B182: 11 | C182: C-C PS- Office Color | D182: % Rated Speed | E182: ='Print to Default Tray Full'!X25 ->  | F182: ='Print to Default Tray Full'!J25 ->  | H182: =IF(ISERROR((E182-F182)/E182), N/A, (E182-F182)/E182) -> 
A183: FFDS Office Mono | B183: 7 | C183: C-C PS- Office Mono | D183: % Rated Speed | E183: ='Print to Default Tray Full'!X35 ->  | F183: ='Print to Default Tray Full'!J35 ->  | H183: =IF(ISERROR((E183-F183)/E183), N/A, (E183-F183)/E183) -> 
A184: FFDS Graphic | B184: 11 | C184: C-C PS- Graphic | D184: % Rated Speed | E184: ='Print to Default Tray Full'!X49 ->  | F184: ='Print to Default Tray Full'!J49 ->  | H184: =IF(ISERROR((E184-F184)/E184), N/A, (E184-F184)/E184) -> 
A185: FFDS Stress | B185: 4 | C185: C-C PS- Stress | D185: % Rated Speed | E185: ='Print to Default Tray Full'!X56 ->  | F185: ='Print to Default Tray Full'!J56 ->  | H185: =IF(ISERROR((E185-F185)/E185), N/A, (E185-F185)/E185) -> 
A186: FFDS Office Color | B186: 11 | C186: C-C PCL6- Office Color | D186: % Rated Speed | E186: ='Print to Default Tray Full'!X72 ->  | F186: ='Print to Default Tray Full'!J72 ->  | H186: =IF(ISERROR((E186-F186)/E186), N/A, (E186-F186)/E186) -> 
A187: FFDS Office Mono | B187: 7 | C187: C-C PCL6- Office Mono | D187: % Rated Speed | E187: ='Print to Default Tray Full'!X82 ->  | F187: ='Print to Default Tray Full'!J82 ->  | H187: =IF(ISERROR((E187-F187)/E187), N/A, (E187-F187)/E187) -> 
A188: FFDS Graphic | B188: 11 | C188: C-C PCL6- Graphic | D188: % Rated Speed | E188: ='Print to Default Tray Full'!X96 ->  | F188: ='Print to Default Tray Full'!J96 ->  | H188: =IF(ISERROR((E188-F188)/E188), N/A, (E188-F188)/E188) -> 
A189: FFDS Stress | B189: 4 | C189: C-C PCL6- Stress | D189: % Rated Speed | E189: ='Print to Default Tray Full'!X103 ->  | F189: ='Print to Default Tray Full'!J103 ->  | H189: =IF(ISERROR((E189-F189)/E189), N/A, (E189-F189)/E189) -> 
A190: Jobs to Use | B190: # Jobs | C190: Print to Default Tray C-C with Banner | D190: Measured in | E190: Benchmark | F190: =$G$8 -> 0.123.0 | H190: Delta
A191: FFDS Office Color (Subset) | B191: 4 | C191: C-C PS- Office Color | D191: % Rated Speed | E191: ='Print to Default Tray Full'!X114 ->  | F191: ='Print to Default Tray Full'!J114 ->  | H191: =IF(ISERROR((E191-F191)/E191), N/A, (E191-F191)/E191) -> 
A192: FFDS Office Mono (Subset) | B192: 4 | C192: C-C PS- Office Mono | D192: % Rated Speed | E192: ='Print to Default Tray Full'!X121 ->  | F192: ='Print to Default Tray Full'!J121 ->  | H192: =IF(ISERROR((E192-F192)/E192), N/A, (E192-F192)/E192) -> 
A193: FFDS Graphic (Subset) | B193: 4 | C193: C-C PS- Graphic | D193: % Rated Speed | E193: ='Print to Default Tray Full'!X128 ->  | F193: ='Print to Default Tray Full'!J128 ->  | H193: =IF(ISERROR((E193-F193)/E193), N/A, (E193-F193)/E193) -> 
A194: FFDS Stress | B194: 4 | C194: C-C PS- Stress | D194: % Rated Speed | E194: ='Print to Default Tray Full'!X135 ->  | F194: ='Print to Default Tray Full'!J135 ->  | H194: =IF(ISERROR((E194-F194)/E194), N/A, (E194-F194)/E194) -> 
A195: FFDS Office Color (Subset) | B195: 4 | C195: C-C PCL6- Office Color | D195: % Rated Speed | E195: ='Print to Default Tray Full'!X144 ->  | F195: ='Print to Default Tray Full'!J144 ->  | H195: =IF(ISERROR((E195-F195)/E195), N/A, (E195-F195)/E195) -> 
A196: FFDS Office Mono (Subset) | B196: 4 | C196: C-C PCL6- Office Mono | D196: % Rated Speed | E196: ='Print to Default Tray Full'!X151 ->  | F196: ='Print to Default Tray Full'!J151 ->  | H196: =IF(ISERROR((E196-F196)/E196), N/A, (E196-F196)/E196) -> 
A197: FFDS Graphic (Subset) | B197: 4 | C197: C-C PCL6- Graphic | D197: % Rated Speed | E197: ='Print to Default Tray Full'!X159 ->  | F197: ='Print to Default Tray Full'!J159 ->  | H197: =IF(ISERROR((E197-F197)/E197), N/A, (E197-F197)/E197) -> 
A198: FFDS Stress | B198: 4 | C198: C-C PCL6- Stress | D198: % Rated Speed | E198: ='Print to Default Tray Full'!X166 ->  | F198: ='Print to Default Tray Full'!J166 ->  | H198: =IF(ISERROR((E198-F198)/E198), N/A, (E198-F198)/E198) -> 
A199: Jobs to Use | B199: # Jobs | C199: Print Web Submission to Default Tray No Banner | D199: Measured in | E199: Benchmark | F199: =$G$8 -> 0.123.0 | H199: Delta
A200: Web Submission PDF | B200: 2 | C200: FPOT PDF Color | D200: Seconds | E200: ='Print to Default Tray Full'!T339 ->  | F200: ='Print to Default Tray Full'!F339 ->  | H200: =IF(ISERROR((F200-E200)/E200), N/A, (F200-E200)/E200) -> 
A201: Web Submission PDF | B201: 2 | C201: FPOT PDF Mono | D201: Seconds | E201: ='Print to Default Tray Full'!T344 ->  | F201: ='Print to Default Tray Full'!F344 ->  | H201: =IF(ISERROR((F201-E201)/E201), N/A, (F201-E201)/E201) -> 
A202: Web Submission PRN | B202: 2 | C202: FPOT PS PRN Color | D202: Seconds | E202: ='Print to Default Tray Full'!T353 ->  | F202: ='Print to Default Tray Full'!F353 ->  | H202: =IF(ISERROR((F202-E202)/E202), N/A, (F202-E202)/E202) -> 
A203: Web Submission PRN | B203: 2 | C203: FPOT PS PRN Mono | D203: Seconds | E203: ='Print to Default Tray Full'!T358 ->  | F203: ='Print to Default Tray Full'!F358 ->  | H203: =IF(ISERROR((F203-E203)/E203), N/A, (F203-E203)/E203) -> 
A204: Web Submission PDF | B204: 2 | C204: 2-N PDF Color | D204: % Rated Speed | E204: ='Print to Default Tray Full'!W339 ->  | F204: ='Print to Default Tray Full'!I339 ->  | H204: =IF(ISERROR((E204-F204)/E204), N/A, (E204-F204)/E204) -> 
A205: Web Submission PDF | B205: 2 | C205: 2-N PDF Mono | D205: % Rated Speed | E205: ='Print to Default Tray Full'!W344 ->  | F205: ='Print to Default Tray Full'!I344 ->  | H205: =IF(ISERROR((E205-F205)/E205), N/A, (E205-F205)/E205) -> 
... 357 more rows

Sheet Test Info
A1: Samudra MFP High B0 | AA1: Data Enteries for Lists
A2: Release: | B2: 0.123.0
A3: Test Start Date: | B3: 2017-09-11 | D3: Test End Date: | F3: 13/11/2017 | I3: Test Device | L3: Benchmark
A4: Benchmark: | B4: Samudra Low MFP | I4: Engine Speed | L4: Engine Speed
A5: Benchmark Start Date: | B5: Enter | D5: Benchmark End Date: | F5: Enter at End of Test | I5: Color | J5: Mono | L5: Color | M5: Mono
A7: Template Version 1 | I7: NOTE: Verify all possible options on test device config sheet are set to equal config sheet of benchmark device.
A8: Test Device | B8: Samudra MFP High | I8: SETUP CHECKLIST
A9: System Software: | B9: 0.123.0 | I9: Check the following items and set to Required Test Setting if applicable. | AA9: Select
A10: PS Driver Version: | B10: 5.588.0.0N | I10: Heading | K10: Item | N10: Required Test Setting | P10: ✔ | Q10: N/A | AA10: T1=N/A
A11: PCL6 Driver Version: | B11: 5.588.0.0n | I11: Check on Device (See Configuration Report) | AA11: T1=Empty
A12: Finisher 1 type | B12: NA | I12: Raw IP Printing | K12: Port 9100 Bidirectional | N12: Disabled | P12: 2 | Q12: =P12 -> 2 | AA12: T1=17" SEF
A13: Finisher 2 type | B13: NA | I13: Security | K13: Image overwrite:Immediate | N13: Installed/Disabled | P13: 1 | Q13: =P13 -> 1 | AA13: T1=14" SEF
A14: Tray Configuration: | B14: T1=11" LEF 14" SEF 17" SEF A4 LEF | C14: T2=Empty | D14: T3=Empty | E14: T4=Empty | F14: T5=N/A | G14: T6=N/A | I14: Security | K14: FIPS 140-2 | N14: Installed/Disabled | P14: 0 | Q14: =P14 -> 0 | AA14: T1=11" LEF
I15: Security | K15: User Data Encryption | N15: Installed/Enabled | P15: 0 | Q15: =P15 -> 0 | AA15: T1=11" SEF
A16: Benchmark Device | B16: Samudra Low MFP | I16: Check on Device (LocalUI) | AA16: Not Listed: See Notes
A17: System Software: | B17: V 1.10.4N | I17: Energy Saver | K17: Low Power Mode | N17: Enter time | P17: 0 | Q17: =P17 -> 0
A18: PS Driver Version: | B18: 5.528.2.0N | I18: Energy Saver | K18: Sleep Mode | N18: Enter time | P18: 0 | Q18: =P18 -> 0 | AA18: Select
A19: PCL6 Driver Version: | B19: 5.528.2.0N | I19: Solid Ink Jet Products Note: Make sure to disable both options for "Automatic Light Lines Fix" in Troubleshooting Menu on Local UI. | P19: 0 | Q19: =P19 -> 0 | AA19: T2=N/A
A20: Finisher 1 type | B20: NA | AA20: T2=Empty
A21: Finisher 2 type | B21: NA | I21: Check PS Driver | AA21: T2=17" SEF
A22: Tray Configuration: | B22: T1=11" LEF 14" SEF 17" SEF A4 LEF | C22: T2=Empty | D22: T3=Empty | E22: T4=Empty | F22: T5=N/A | G22: T6=N/A | I22: Paper/Output Tab | K22: Paper: Size | N22: Letter (8.5 x 11") | P22: 0 | Q22: =P22 -> 0 | AA22: T2=14" SEF
A23: Test Engineer | B23: Mythra.B | I23: Paper/Output Tab | K23: Paper: Color | N23: White | P23: 0 | Q23: 0 | AA23: T2=11" LEF
A24: Test Location | B24: ETA 3 LAB1 R6 | I24: Paper/Output Tab | K24: Paper: Type | N24: Printer Default Type | P24: 0 | Q24: 0 | AA24: T2=11" SEF
I25: Paper/Output Tab | K25: Paper: Tray | N25: Automatically Select | P25: 0 | Q25: 0 | AA25: Not Listed: See Notes
A26: TEST PURPOSE/ NOTES | I26: Paper/Output Tab | K26: 2-Sided Printing | N26: 1-Sided Print | P26: 0 | Q26: 0
A27: e.g. TEST PURPOSE: Routine SPT, SPT to test changed/new features (give specifics)... e.g. NOTES: Tray Configuration different from above setup, mono device, no Fax, only 1 Finisher… ***Note if device is being tested in Metric or Inches*** | I27: Color Options Tab | K27: Color Options | N27: Automatic Color | P27: 0 | Q27: 0 | AA27: Select
I28: Advanced Tab: Paper/Output | K28: Job Identification (Banner Sheet) | N28: Disable Job ID (Off) | P28: 0 | Q28: =P28 -> 0 | AA28: T3=N/A
I29: Check PCL6 Driver | AA29: T3=Empty
A30: Enter | I30: Paper/Output Tab | K30: Paper: Size | N30: Letter (8.5 x 11") | P30: 0 | Q30: =P30 -> 0 | AA30: T3=17" SEF
I31: Paper/Output Tab | K31: Paper: Color | N31: White | P31: 0 | Q31: 0 | AA31: T3=14" SEF
I32: Paper/Output Tab | K32: Paper: Type | N32: Printer Default Type | P32: 0 | Q32: 0 | AA32: T3=11" LEF
I33: Paper/Output Tab | K33: Paper: Tray | N33: Automatically Select | P33: 0 | Q33: 0 | AA33: T3=11" SEF
I34: Paper/Output Tab | K34: 2-Sided Printing | N34: 1-Sided Print | P34: 0 | Q34: =P34 -> 0 | AA34: Not Listed: See Notes
I35: Color Options Tab | K35: Color Options | N35: Color | P35: 0 | Q35: =P35 -> 0
I36: Advanced Tab: Paper/Output | K36: Job Identification (Banner Sheet) | N36: Disable Job ID (Off) | P36: 0 | Q36: 0 | AA36: Select
I37: Load Paper in Device | AA37: T4=N/A
I38: Load paper in device to reflect the Tray Configuration specified in the chart to the left (Cells B14:G14). All trays shall be configured for [size]/ Plain/ White. Only make changes to the selections if the specified configuration is not possible. | P38: 0 | AA38: T4=Empty
AA39: T4=17" SEF
AA40: T4=14" SEF
I41: SPT Config Sheet Tab | AA41: T4=11" LEF
I42: Attach Config Sheet: With device setup per above settings, print a new Configuration Report, scan (all sides and sheets) and attach PDF object to last tab of this SPT (Config Sheet Tab). | P42: 0 | AA42: T4=11" SEF
AA43: Not Listed: See Notes
I44: Attach Screenshot of Driver About Window: With Drivers setup per the settings above, take a screenshot (alt+Print Screen) of About Window (only needed from 1 driver; unless they are different). Paste this on the last tab of this SPT (Config Sheet Tab). | P44: 0
AA45: Select
AA46: T5=N/A
I47: SPT Excel Workbook Naming Convention | AA47: T5=Empty
I48: Rename this workbook: [Product Name] [Last 5 digits of Release] SPT Results (e.g. Northwood Hi 20700 SPT Results). If there is something special about the test put that in the name as well (special BM, different Hardware, different settings…) | P48: 0 | AA48: T5=17" SEF
AA49: T5=14" SEF
AA50: T5=11" LEF
I51: Browse to "SPT Data Collection Files" Folder | AA51: T5=11" SEF
I52: Select the "Browse" button to set the root folder path for test files (i.e. "D:\SPT Data Collection Files") | AA52: Not Listed: See Notes
I53: Selected Root Folder Path: | K53: D:\SPT Data Collection Files
AA55: T6=17" SEF
AA56: T6=14" SEF
AA57: T6=11" LEF
AA58: T6=11" SEF
AA59: Not Listed: See Notes

Sheet Print to Default Tray Full (hidden)
A1: ='Test Info'!A1 -> Samudra MFP High B0 | O1: ='Test Info'!B16 -> Samudra Low MFP
A2: ='Test Info'!A2 -> Release: | C2: ='Test Info'!B2 -> 0.123.0 | O2: Release | Q2: ='Test Info'!B17 -> V 1.10.4N
A3: Test Duration: | C3: =CONCATENATE(TEXT('Test Info'!B3, "m/d/yyyy"), " - ", TEXT(EndDate, "m/d/yyyy")) -> 9/11/2017 - 13/11/2017 | O3: Test Duration: | Q3: =CONCATENATE(TEXT('Test Info'!B5, "d/m/yyyy"),"-", TEXT('Test Info'!F5,"d/m/yyyy")) -> Enter-Enter at End of Test
J4: Time Conversion Tool
A5: Note: Both Color & Mono jobs need to be printed on Mono device. | J5: Enter | K5: Enter | L5: Calculated
J6: Minutes | K6: Seconds | L6: Seconds
A7: Print to Default Tray | L7: =J7*60+K7 -> 0 | O7: Print to Default Tray
A8: Print 11 inch Output | O8: Print 11 inch Output
A10: FFDS | O10: FFDS
A11: PS- No Banner | O11: PS- No Banner
A12: Office Color- No Banner | O12: Office Color- No Banner
A13: Type | B13: Mode | C13: Job | D13: Application | E13: Pages | F13: FPOT Measured in Seconds | G13: C-C Measured in Seconds | H13: 2-N PPM Calculated | I13: 2-N % Rated Speed Calculated | J13: C-C % Rated Speed Calculated | O13: Type | P13: Mode | Q13: Job | R13: Application | S13: Pages | T13: FPOT Measured in Seconds | U13: C-C Measured in Seconds | V13: 2-N PPM Calculated | W13: 2-N % Rated Speed Calculated | X13: C-C % Rated Speed Calculated
A14: PS | B14: Color | C14: Jewelry | D14: Powerpoint | E14: 12 | H14: =IF(OR(G14="NA", G14="FAILED"), G14, (IF(ISERROR((E14-1)/(G14-F14)*60), "", (E14-1)/(G14-F14)*60))) ->  | I14: =IF(OR(G14="NA", G14="FAILED"), G14, (IF(ISERROR(H14/'Test Info'!$I$6*100), "", H14/'Test Info'!$I$6*100))) ->  | J14: =IF(OR(G14="NA", G14="FAILED"), G14, (IF(ISERROR(E14/G14/'Test Info'!$I$6*6000), "", E14/G14/'Test Info'!$I$6*6000))) ->  | O14: PS | P14: Color | Q14: Jewelry | R14: Powerpoint | S14: 12 | V14: =IF(OR(U14="NA", U14="FAILED"), U14, (IF(ISERROR((S14-1)/(U14-T14)*60), "", (S14-1)/(U14-T14)*60))) ->  | W14: =IF(OR(U14="NA", U14="FAILED"), U14, (IF(ISERROR(V14/'Test Info'!$I$6*100), "", V14/'Test Info'!$I$6*100))) ->  | X14: =IF(OR(U14="NA", U14="FAILED"), U14, (IF(ISERROR(S14/U14/'Test Info'!$I$6*6000), "", S14/U14/'Test Info'!$I$6*6000))) -> 
A15: PS | B15: Color | C15: Inpatient | D15: Excel | E15: 3 | H15: =IF(OR(G15="NA", G15="FAILED"), G15, (IF(ISERROR((E15-1)/(G15-F15)*60), "", (E15-1)/(G15-F15)*60))) ->  | I15: =IF(OR(G15="NA", G15="FAILED"), G15, (IF(ISERROR(H15/'Test Info'!$I$6*100), "", H15/'Test Info'!$I$6*100))) ->  | J15: =IF(OR(G15="NA", G15="FAILED"), G15, (IF(ISERROR(E15/G15/'Test Info'!$I$6*6000), "", E15/G15/'Test Info'!$I$6*6000))) ->  | O15: PS | P15: Color | Q15: Inpatient | R15: Excel | S15: 3 | V15: =IF(OR(U15="NA", U15="FAILED"), U15, (IF(ISERROR((S15-1)/(U15-T15)*60), "", (S15-1)/(U15-T15)*60))) ->  | W15: =IF(OR(U15="NA", U15="FAILED"), U15, (IF(ISERROR(V15/'Test Info'!$I$6*100), "", V15/'Test Info'!$I$6*100))) ->  | X15: =IF(OR(U15="NA", U15="FAILED"), U15, (IF(ISERROR(S15/U15/'Test Info'!$I$6*6000), "", S15/U15/'Test Info'!$I$6*6000))) -> 
A16: PS | B16: Color | C16: Rain year | D16: Excel | E16: 2 | I16: =IF(OR(G16="NA", G16="FAILED"), G16, (IF(ISERROR(H16/'Test Info'!$I$6*100), "", H16/'Test Info'!$I$6*100))) ->  | J16: =IF(OR(G16="NA", G16="FAILED"), G16, (IF(ISERROR(E16/G16/'Test Info'!$I$6*6000), "", E16/G16/'Test Info'!$I$6*6000))) ->  | O16: PS | P16: Color | Q16: Rain year | R16: Excel | S16: 2 | W16: =IF(OR(U16="NA", U16="FAILED"), U16, (IF(ISERROR(V16/'Test Info'!$I$6*100), "", V16/'Test Info'!$I$6*100))) ->  | X16: =IF(OR(U16="NA", U16="FAILED"), U16, (IF(ISERROR(S16/U16/'Test Info'!$I$6*6000), "", S16/U16/'Test Info'!$I$6*6000))) -> 
A17: PS | B17: Color | C17: Troutman | D17: Quark | E17: 4 | I17: =IF(OR(G17="NA", G17="FAILED"), G17, (IF(ISERROR(H17/'Test Info'!$I$6*100), "", H17/'Test Info'!$I$6*100))) ->  | J17: =IF(OR(G17="NA", G17="FAILED"), G17, (IF(ISERROR(E17/G17/'Test Info'!$I$6*6000), "", E17/G17/'Test Info'!$I$6*6000))) ->  | O17: PS | P17: Color | Q17: Troutman | R17: Quark | S17: 4 | W17: =IF(OR(U17="NA", U17="FAILED"), U17, (IF(ISERROR(V17/'Test Info'!$I$6*100), "", V17/'Test Info'!$I$6*100))) ->  | X17: =IF(OR(U17="NA", U17="FAILED"), U17, (IF(ISERROR(S17/U17/'Test Info'!$I$6*6000), "", S17/U17/'Test Info'!$I$6*6000))) -> 
A18: PS | B18: Color | C18: Volcanoes | D18: Access | E18: 7 | I18: =IF(OR(G18="NA", G18="FAILED"), G18, (IF(ISERROR(H18/'Test Info'!$I$6*100), "", H18/'Test Info'!$I$6*100))) ->  | J18: =IF(OR(G18="NA", G18="FAILED"), G18, (IF(ISERROR(E18/G18/'Test Info'!$I$6*6000), "", E18/G18/'Test Info'!$I$6*6000))) ->  | O18: PS | P18: Color | Q18: Volcanoes | R18: Access | S18: 7 | W18: =IF(OR(U18="NA", U18="FAILED"), U18, (IF(ISERROR(V18/'Test Info'!$I$6*100), "", V18/'Test Info'!$I$6*100))) ->  | X18: =IF(OR(U18="NA", U18="FAILED"), U18, (IF(ISERROR(S18/U18/'Test Info'!$I$6*6000), "", S18/U18/'Test Info'!$I$6*6000))) -> 
A19: PS | B19: Color | C19: Progress | D19: Powerpoint | E19: 4 | I19: =IF(OR(G19="NA", G19="FAILED"), G19, (IF(ISERROR(H19/'Test Info'!$I$6*100), "", H19/'Test Info'!$I$6*100))) ->  | J19: =IF(OR(G19="NA", G19="FAILED"), G19, (IF(ISERROR(E19/G19/'Test Info'!$I$6*6000), "", E19/G19/'Test Info'!$I$6*6000))) ->  | O19: PS | P19: Color | Q19: Progress | R19: Powerpoint | S19: 4 | W19: =IF(OR(U19="NA", U19="FAILED"), U19, (IF(ISERROR(V19/'Test Info'!$I$6*100), "", V19/'Test Info'!$I$6*100))) ->  | X19: =IF(OR(U19="NA", U19="FAILED"), U19, (IF(ISERROR(S19/U19/'Test Info'!$I$6*6000), "", S19/U19/'Test Info'!$I$6*6000))) -> 
A20: PS | B20: Color | C20: Contents | D20: Word | E20: 12 | I20: =IF(OR(G20="NA", G20="FAILED"), G20, (IF(ISERROR(H20/'Test Info'!$I$6*100), "", H20/'Test Info'!$I$6*100))) ->  | J20: =IF(OR(G20="NA", G20="FAILED"), G20, (IF(ISERROR(E20/G20/'Test Info'!$I$6*6000), "", E20/G20/'Test Info'!$I$6*6000))) ->  | O20: PS | P20: Color | Q20: Contents | R20: Word | S20: 12 | W20: =IF(OR(U20="NA", U20="FAILED"), U20, (IF(ISERROR(V20/'Test Info'!$I$6*100), "", V20/'Test Info'!$I$6*100))) ->  | X20: =IF(OR(U20="NA", U20="FAILED"), U20, (IF(ISERROR(S20/U20/'Test Info'!$I$6*6000), "", S20/U20/'Test Info'!$I$6*6000))) -> 
A21: PS | B21: Color | C21: Blue sky | D21: Quark | E21: 12 | H21: =IF(OR(G21="NA", G21="FAILED"), G21, (IF(ISERROR((E21-1)/(G21-F21)*60), "", (E21-1)/(G21-F21)*60))) ->  | I21: =IF(OR(G21="NA", G21="FAILED"), G21, (IF(ISERROR(H21/'Test Info'!$I$6*100), "", H21/'Test Info'!$I$6*100))) ->  | J21: =IF(OR(G21="NA", G21="FAILED"), G21, (IF(ISERROR(E21/G21/'Test Info'!$I$6*6000), "", E21/G21/'Test Info'!$I$6*6000))) ->  | O21: PS | P21: Color | Q21: Blue sky | R21: Quark | S21: 12 | V21: =IF(OR(U21="NA", U21="FAILED"), U21, (IF(ISERROR((S21-1)/(U21-T21)*60), "", (S21-1)/(U21-T21)*60))) ->  | W21: =IF(OR(U21="NA", U21="FAILED"), U21, (IF(ISERROR(V21/'Test Info'!$I$6*100), "", V21/'Test Info'!$I$6*100))) ->  | X21: =IF(OR(U21="NA", U21="FAILED"), U21, (IF(ISERROR(S21/U21/'Test Info'!$I$6*6000), "", S21/U21/'Test Info'!$I$6*6000))) -> 
A22: PS | B22: Color | C22: The blue fairy book 4 | D22: Corel Draw | E22: 4 | H22: =IF(OR(G22="NA", G22="FAILED"), G22, (IF(ISERROR((E22-1)/(G22-F22)*60), "", (E22-1)/(G22-F22)*60))) ->  | I22: =IF(OR(G22="NA", G22="FAILED"), G22, (IF(ISERROR(H22/'Test Info'!$I$6*100), "", H22/'Test Info'!$I$6*100))) ->  | J22: =IF(OR(G22="NA", G22="FAILED"), G22, (IF(ISERROR(E22/G22/'Test Info'!$I$6*6000), "", E22/G22/'Test Info'!$I$6*6000))) ->  | O22: PS | P22: Color | Q22: The blue fairy book 4 | R22: Corel Draw | S22: 4 | V22: =IF(OR(U22="NA", U22="FAILED"), U22, (IF(ISERROR((S22-1)/(U22-T22)*60), "", (S22-1)/(U22-T22)*60))) ->  | W22: =IF(OR(U22="NA", U22="FAILED"), U22, (IF(ISERROR(V22/'Test Info'!$I$6*100), "", V22/'Test Info'!$I$6*100))) ->  | X22: =IF(OR(U22="NA", U22="FAILED"), U22, (IF(ISERROR(S22/U22/'Test Info'!$I$6*6000), "", S22/U22/'Test Info'!$I$6*6000))) -> 
A23: PS | B23: Color | C23: Salary | D23: Excel | E23: 12 | I23: =IF(OR(G23="NA", G23="FAILED"), G23, (IF(ISERROR(H23/'Test Info'!$I$6*100), "", H23/'Test Info'!$I$6*100))) ->  | J23: =IF(OR(G23="NA", G23="FAILED"), G23, (IF(ISERROR(E23/G23/'Test Info'!$I$6*6000), "", E23/G23/'Test Info'!$I$6*6000))) ->  | O23: PS | P23: Color | Q23: Salary | R23: Excel | S23: 12 | V23: =IF(OR(U23="NA", U23="FAILED"), U23, (IF(ISERROR((S23-1)/(U23-T23)*60), "", (S23-1)/(U23-T23)*60))) ->  | W23: =IF(OR(U23="NA", U23="FAILED"), U23, (IF(ISERROR(V23/'Test Info'!$I$6*100), "", V23/'Test Info'!$I$6*100))) ->  | X23: =IF(OR(U23="NA", U23="FAILED"), U23, (IF(ISERROR(S23/U23/'Test Info'!$I$6*6000), "", S23/U23/'Test Info'!$I$6*6000))) -> 
A24: PS | B24: Color | C24: Puzzle | D24: Powerpoint | E24: 4 | I24: =IF(OR(G24="NA", G24="FAILED"), G24, (IF(ISERROR(H24/'Test Info'!$I$6*100), "", H24/'Test Info'!$I$6*100))) ->  | J24: =IF(OR(G24="NA", G24="FAILED"), G24, (IF(ISERROR(E24/G24/'Test Info'!$I$6*6000), "", E24/G24/'Test Info'!$I$6*6000))) ->  | O24: PS | P24: Color | Q24: Puzzle | R24: Powerpoint | S24: 4 | V24: =IF(OR(U24="NA", U24="FAILED"), U24, (IF(ISERROR((S24-1)/(U24-T24)*60), "", (S24-1)/(U24-T24)*60))) ->  | W24: =IF(OR(U24="NA", U24="FAILED"), U24, (IF(ISERROR(V24/'Test Info'!$I$6*100), "", V24/'Test Info'!$I$6*100))) ->  | X24: =IF(OR(U24="NA", U24="FAILED"), U24, (IF(ISERROR(S24/U24/'Test Info'!$I$6*6000), "", S24/U24/'Test Info'!$I$6*6000))) -> 
D25: Average | E25: =AVERAGE(E14:E24) -> 6.909090909 | F25: =IF(F24="NA", F24, (IF(ISERROR(AVERAGE(F14:F24)), "", AVERAGE(F14:F24)))) ->  | G25: =IF(G24="NA", G24, (IF(ISERROR(AVERAGE(G14:G24)), "", AVERAGE(G14:G24)))) ->  | H25: =IF(H24="NA", H24, (IF(ISERROR(AVERAGE(H14:H24)), "", AVERAGE(H14:H24)))) ->  | I25: =IF(I24="NA", I24, (IF(ISERROR(AVERAGE(I14:I24)), "", AVERAGE(I14:I24)))) ->  | J25: =IF(J24="NA", J24, (IF(ISERROR(AVERAGE(J14:J24)), "", AVERAGE(J14:J24)))) ->  | R25: Average | S25: =AVERAGE(S14:S24) -> 6.909090909 | T25: =IF(T24="NA", T24, (IF(ISERROR(AVERAGE(T14:T24)), "", AVERAGE(T14:T24)))) ->  | U25: =IF(U24="NA", U24, (IF(ISERROR(AVERAGE(U14:U24)), "", AVERAGE(U14:U24)))) ->  | V25: =IF(V24="NA", V24, (IF(ISERROR(AVERAGE(V14:V24)), "", AVERAGE(V14:V24)))) ->  | W25: =IF(W24="NA", W24, (IF(ISERROR(AVERAGE(W14:W24)), "", AVERAGE(W14:W24)))) ->  | X25: =IF(X24="NA", X24, (IF(ISERROR(AVERAGE(X14:X24)), "", AVERAGE(X14:X24)))) -> 
A27: Office Mono- No Banner | O27: Office Mono- No Banner
A28: PS | B28: Mono | C28: Classifieds | D28: Chrome | E28: 13 | H28: =IF(OR(G28="NA",G28="FAILED"),G28,(IF(ISERROR((E28-1)/(G28-F28)*60),"",(E28-1)/(G28-F28)*60))) ->  | I28: =IF(OR(G28="NA",G28="FAILED"),G28, (IF(ISERROR(H28/'Test Info'!$J$6*100), "", H28/'Test Info'!$J$6*100))) ->  | J28: =IF(OR(G28="NA",G28="FAILED"),G28, (IF(ISERROR(E28/G28/'Test Info'!$J$6*6000), "", E28/G28/'Test Info'!$J$6*6000))) ->  | O28: PS | P28: Mono | Q28: Classifieds | R28: Chrome | S28: 13 | V28: =IF(OR(U28="NA",U28="FAILED"),U28,(IF(ISERROR((S28-1)/(U28-T28)*60),"",(S28-1)/(U28-T28)*60))) ->  | W28: =IF(OR(U28="NA",U28="FAILED"),U28, (IF(ISERROR(V28/'Test Info'!$J$6*100), "", V28/'Test Info'!$J$6*100))) ->  | X28: =IF(OR(U28="NA",U28="FAILED"),U28, (IF(ISERROR(S28/U28/'Test Info'!$J$6*6000), "", S28/U28/'Test Info'!$J$6*6000))) -> 
A29: PS | B29: Mono | C29: Gold | D29: Powerpoint | E29: 8 | H29: =IF(OR(G29="NA",G29="FAILED"),G29,(IF(ISERROR((E29-1)/(G29-F29)*60),"",(E29-1)/(G29-F29)*60))) ->  | I29: =IF(OR(G29="NA",G29="FAILED"),G29, (IF(ISERROR(H29/'Test Info'!$J$6*100), "", H29/'Test Info'!$J$6*100))) ->  | J29: =IF(OR(G29="NA",G29="FAILED"),G29, (IF(ISERROR(E29/G29/'Test Info'!$J$6*6000), "", E29/G29/'Test Info'!$J$6*6000))) ->  | O29: PS | P29: Mono | Q29: Gold | R29: Powerpoint | S29: 8 | V29: =IF(OR(U29="NA",U29="FAILED"),U29,(IF(ISERROR((S29-1)/(U29-T29)*60),"",(S29-1)/(U29-T29)*60))) ->  | W29: =IF(OR(U29="NA",U29="FAILED"),U29, (IF(ISERROR(V29/'Test Info'!$J$6*100), "", V29/'Test Info'!$J$6*100))) ->  | X29: =IF(OR(U29="NA",U29="FAILED"),U29, (IF(ISERROR(S29/U29/'Test Info'!$J$6*6000), "", S29/U29/'Test Info'!$J$6*6000))) -> 
A30: PS | B30: Mono | C30: Pain at the pump | D30: Chrome | E30: 3 | H30: =IF(OR(G30="NA",G30="FAILED"),G30,(IF(ISERROR((E30-1)/(G30-F30)*60),"",(E30-1)/(G30-F30)*60))) ->  | I30: =IF(OR(G30="NA",G30="FAILED"),G30, (IF(ISERROR(H30/'Test Info'!$J$6*100), "", H30/'Test Info'!$J$6*100))) ->  | J30: =IF(OR(G30="NA",G30="FAILED"),G30, (IF(ISERROR(E30/G30/'Test Info'!$J$6*6000), "", E30/G30/'Test Info'!$J$6*6000))) ->  | O30: PS | P30: Mono | Q30: Pain at the pump | R30: Chrome | S30: 3 | V30: =IF(OR(U30="NA",U30="FAILED"),U30,(IF(ISERROR((S30-1)/(U30-T30)*60),"",(S30-1)/(U30-T30)*60))) ->  | W30: =IF(OR(U30="NA",U30="FAILED"),U30, (IF(ISERROR(V30/'Test Info'!$J$6*100), "", V30/'Test Info'!$J$6*100))) ->  | X30: =IF(OR(U30="NA",U30="FAILED"),U30, (IF(ISERROR(S30/U30/'Test Info'!$J$6*6000), "", S30/U30/'Test Info'!$J$6*6000))) -> 
A31: PS | B31: Mono | C31: Lincoln 2 | D31: Word | E31: 2 | H31: =IF(OR(G31="NA",G31="FAILED"),G31,(IF(ISERROR((E31-1)/(G31-F31)*60),"",(E31-1)/(G31-F31)*60))) ->  | I31: =IF(OR(G31="NA",G31="FAILED"),G31, (IF(ISERROR(H31/'Test Info'!$J$6*100), "", H31/'Test Info'!$J$6*100))) ->  | J31: =IF(OR(G31="NA",G31="FAILED"),G31, (IF(ISERROR(E31/G31/'Test Info'!$J$6*6000), "", E31/G31/'Test Info'!$J$6*6000))) ->  | O31: PS | P31: Mono | Q31: Lincoln 2 | R31: Word | S31: 2 | V31: =IF(OR(U31="NA",U31="FAILED"),U31,(IF(ISERROR((S31-1)/(U31-T31)*60),"",(S31-1)/(U31-T31)*60))) ->  | W31: =IF(OR(U31="NA",U31="FAILED"),U31, (IF(ISERROR(V31/'Test Info'!$J$6*100), "", V31/'Test Info'!$J$6*100))) ->  | X31: =IF(OR(U31="NA",U31="FAILED"),U31, (IF(ISERROR(S31/U31/'Test Info'!$J$6*6000), "", S31/U31/'Test Info'!$J$6*6000))) -> 
A32: PS | B32: Mono | C32: Mountains | D32: Word | E32: 25 | H32: =IF(OR(G32="NA",G32="FAILED"),G32,(IF(ISERROR((E32-1)/(G32-F32)*60),"",(E32-1)/(G32-F32)*60))) ->  | I32: =IF(OR(G32="NA",G32="FAILED"),G32, (IF(ISERROR(H32/'Test Info'!$J$6*100), "", H32/'Test Info'!$J$6*100))) ->  | J32: =IF(OR(G32="NA",G32="FAILED"),G32, (IF(ISERROR(E32/G32/'Test Info'!$J$6*6000), "", E32/G32/'Test Info'!$J$6*6000))) ->  | O32: PS | P32: Mono | Q32: Mountains | R32: Word | S32: 25 | V32: =IF(OR(U32="NA",U32="FAILED"),U32,(IF(ISERROR((S32-1)/(U32-T32)*60),"",(S32-1)/(U32-T32)*60))) ->  | W32: =IF(OR(U32="NA",U32="FAILED"),U32, (IF(ISERROR(V32/'Test Info'!$J$6*100), "", V32/'Test Info'!$J$6*100))) ->  | X32: =IF(OR(U32="NA",U32="FAILED"),U32, (IF(ISERROR(S32/U32/'Test Info'!$J$6*6000), "", S32/U32/'Test Info'!$J$6*6000))) -> 
A33: PS | B33: Mono | C33: Oberan 1 | D33: Illustrator | E33: 1 | J33: =IF(OR(G33="NA",G33="FAILED"),G33, (IF(ISERROR(E33/G33/'Test Info'!$J$6*6000), "", E33/G33/'Test Info'!$J$6*6000))) ->  | O33: PS | P33: Mono | Q33: Oberan 1 | R33: Illustrator | S33: 1 | X33: =IF(OR(U33="NA",U33="FAILED"),U33, (IF(ISERROR(S33/U33/'Test Info'!$J$6*6000), "", S33/U33/'Test Info'!$J$6*6000))) -> 
A34: PS | B34: Mono | C34: Budget | D34: Excel | E34: 1 | J34: =IF(OR(G34="NA",G34="FAILED"),G34, (IF(ISERROR(E34/G34/'Test Info'!$J$6*6000), "", E34/G34/'Test Info'!$J$6*6000))) ->  | O34: PS | P34: Mono | Q34: Budget | R34: Excel | S34: 1 | X34: =IF(OR(U34="NA",U34="FAILED"),U34, (IF(ISERROR(S34/U34/'Test Info'!$J$6*6000), "", S34/U34/'Test Info'!$J$6*6000))) -> 
D35: Average | E35: =AVERAGE(E28:E34) -> 7.571428571 | F35: =IF(F34="NA", F34, (IF(ISERROR(AVERAGE(F28:F34)), "", AVERAGE(F28:F34)))) ->  | G35: =IF(G34="NA", G34, (IF(ISERROR(AVERAGE(G28:G34)), "", AVERAGE(G28:G34)))) ->  | H35: =IF(G34="NA", G34, (IF(ISERROR(AVERAGE(H28:H34)), "", AVERAGE(H28:H34)))) ->  | I35: =IF(G34="NA", G34, (IF(ISERROR(AVERAGE(I28:I34)), "", AVERAGE(I28:I34)))) ->  | J35: =IF(J34="NA", J34, (IF(ISERROR(AVERAGE(J28:J34)), "", AVERAGE(J28:J34)))) ->  | R35: Average | S35: =AVERAGE(S28:S34) -> 7.571428571 | T35: =IF(T34="NA", T34, (IF(ISERROR(AVERAGE(T28:T34)), "", AVERAGE(T28:T34)))) ->  | U35: =IF(U34="NA", U34, (IF(ISERROR(AVERAGE(U28:U34)), "", AVERAGE(U28:U34)))) ->  | V35: =IF(U34="NA", U34, (IF(ISERROR(AVERAGE(V28:V34)), "", AVERAGE(V28:V34)))) ->  | W35: =IF(U34="NA", U34, (IF(ISERROR(AVERAGE(W28:W34)), "", AVERAGE(W28:W34)))) ->  | X35: =IF(X34="NA", X34, (IF(ISERROR(AVERAGE(X28:X34)), "", AVERAGE(X28:X34)))) -> 
A37: Graphic- No Banner | O37: Graphic- No Banner
A38: PS | B38: Color | C38: Join MSA us | D38: Acrobat | E38: 5 | H38: =IF(OR(G38="NA", G38="FAILED"), G38, (IF(ISERROR((E38-1)/(G38-F38)*60), "", (E38-1)/(G38-F38)*60))) ->  | I38: =IF(OR(G38="NA", G38="FAILED"), G38, (IF(ISERROR(H38/'Test Info'!$I$6*100), "", H38/'Test Info'!$I$6*100))) ->  | J38: =IF(OR(G38="NA", G38="FAILED"), G38, (IF(ISERROR(E38/G38/'Test Info'!$I$6*6000), "", E38/G38/'Test Info'!$I$6*6000))) ->  | O38: PS | P38: Color | Q38: Join MSA us | R38: Acrobat | S38: 5 | V38: =IF(OR(U38="NA", U38="FAILED"), U38, (IF(ISERROR((S38-1)/(U38-T38)*60), "", (S38-1)/(U38-T38)*60))) ->  | W38: =IF(OR(U38="NA", U38="FAILED"), U38, (IF(ISERROR(V38/'Test Info'!$I$6*100), "", V38/'Test Info'!$I$6*100))) ->  | X38: =IF(OR(U38="NA", U38="FAILED"), U38, (IF(ISERROR(S38/U38/'Test Info'!$I$6*6000), "", S38/U38/'Test Info'!$I$6*6000))) -> 
A39: PS | B39: Color | C39: Oberan 4 | D39: Illustrator | E39: 4 | H39: =IF(OR(G39="NA", G39="FAILED"), G39, (IF(ISERROR((E39-1)/(G39-F39)*60), "", (E39-1)/(G39-F39)*60))) ->  | I39: =IF(OR(G39="NA", G39="FAILED"), G39, (IF(ISERROR(H39/'Test Info'!$I$6*100), "", H39/'Test Info'!$I$6*100))) ->  | J39: =IF(OR(G39="NA", G39="FAILED"), G39, (IF(ISERROR(E39/G39/'Test Info'!$I$6*6000), "", E39/G39/'Test Info'!$I$6*6000))) ->  | O39: PS | P39: Color | Q39: Oberan 4 | R39: Illustrator | S39: 4 | V39: =IF(OR(U39="NA", U39="FAILED"), U39, (IF(ISERROR((S39-1)/(U39-T39)*60), "", (S39-1)/(U39-T39)*60))) ->  | W39: =IF(OR(U39="NA", U39="FAILED"), U39, (IF(ISERROR(V39/'Test Info'!$I$6*100), "", V39/'Test Info'!$I$6*100))) ->  | X39: =IF(OR(U39="NA", U39="FAILED"), U39, (IF(ISERROR(S39/U39/'Test Info'!$I$6*6000), "", S39/U39/'Test Info'!$I$6*6000))) -> 
A40: PS | B40: Color | C40: Moorpark | D40: Acrobat | E40: 4 | H40: =IF(OR(G40="NA", G40="FAILED"), G40, (IF(ISERROR((E40-1)/(G40-F40)*60), "", (E40-1)/(G40-F40)*60))) ->  | I40: =IF(OR(G40="NA", G40="FAILED"), G40, (IF(ISERROR(H40/'Test Info'!$I$6*100), "", H40/'Test Info'!$I$6*100))) ->  | J40: =IF(OR(G40="NA", G40="FAILED"), G40, (IF(ISERROR(E40/G40/'Test Info'!$I$6*6000), "", E40/G40/'Test Info'!$I$6*6000))) ->  | O40: PS | P40: Color | Q40: Moorpark | R40: Acrobat | S40: 4 | V40: =IF(OR(U40="NA", U40="FAILED"), U40, (IF(ISERROR((S40-1)/(U40-T40)*60), "", (S40-1)/(U40-T40)*60))) ->  | W40: =IF(OR(U40="NA", U40="FAILED"), U40, (IF(ISERROR(V40/'Test Info'!$I$6*100), "", V40/'Test Info'!$I$6*100))) ->  | X40: =IF(OR(U40="NA", U40="FAILED"), U40, (IF(ISERROR(S40/U40/'Test Info'!$I$6*6000), "", S40/U40/'Test Info'!$I$6*6000))) -> 
A41: PS | B41: Color | C41: MSA | D41: Acrobat | E41: 3 | H41: =IF(OR(G41="NA", G41="FAILED"), G41, (IF(ISERROR((E41-1)/(G41-F41)*60), "", (E41-1)/(G41-F41)*60))) ->  | I41: =IF(OR(G41="NA", G41="FAILED"), G41, (IF(ISERROR(H41/'Test Info'!$I$6*100), "", H41/'Test Info'!$I$6*100))) ->  | J41: =IF(OR(G41="NA", G41="FAILED"), G41, (IF(ISERROR(E41/G41/'Test Info'!$I$6*6000), "", E41/G41/'Test Info'!$I$6*6000))) ->  | O41: PS | P41: Color | Q41: MSA | R41: Acrobat | S41: 3 | V41: =IF(OR(U41="NA", U41="FAILED"), U41, (IF(ISERROR((S41-1)/(U41-T41)*60), "", (S41-1)/(U41-T41)*60))) ->  | W41: =IF(OR(U41="NA", U41="FAILED"), U41, (IF(ISERROR(V41/'Test Info'!$I$6*100), "", V41/'Test Info'!$I$6*100))) ->  | X41: =IF(OR(U41="NA", U41="FAILED"), U41, (IF(ISERROR(S41/U41/'Test Info'!$I$6*6000), "", S41/U41/'Test Info'!$I$6*6000))) -> 
A42: PS | B42: Color | C42: Calendar | D42: Publisher | E42: 12 | H42: =IF(OR(G42="NA", G42="FAILED"), G42, (IF(ISERROR((E42-1)/(G42-F42)*60), "", (E42-1)/(G42-F42)*60))) ->  | I42: =IF(OR(G42="NA", G42="FAILED"), G42, (IF(ISERROR(H42/'Test Info'!$I$6*100), "", H42/'Test Info'!$I$6*100))) ->  | J42: =IF(OR(G42="NA", G42="FAILED"), G42, (IF(ISERROR(E42/G42/'Test Info'!$I$6*6000), "", E42/G42/'Test Info'!$I$6*6000))) ->  | O42: PS | P42: Color | Q42: Calendar | R42: Publisher | S42: 12 | V42: =IF(OR(U42="NA", U42="FAILED"), U42, (IF(ISERROR((S42-1)/(U42-T42)*60), "", (S42-1)/(U42-T42)*60))) ->  | W42: =IF(OR(U42="NA", U42="FAILED"), U42, (IF(ISERROR(V42/'Test Info'!$I$6*100), "", V42/'Test Info'!$I$6*100))) ->  | X42: =IF(OR(U42="NA", U42="FAILED"), U42, (IF(ISERROR(S42/U42/'Test Info'!$I$6*6000), "", S42/U42/'Test Info'!$I$6*6000))) -> 
A43: PS | B43: Color | C43: BWW | D43: Publisher | E43: 4 | H43: =IF(OR(G43="NA", G43="FAILED"), G43, (IF(ISERROR((E43-1)/(G43-F43)*60), "", (E43-1)/(G43-F43)*60))) ->  | I43: =IF(OR(G43="NA", G43="FAILED"), G43, (IF(ISERROR(H43/'Test Info'!$I$6*100), "", H43/'Test Info'!$I$6*100))) ->  | J43: =IF(OR(G43="NA", G43="FAILED"), G43, (IF(ISERROR(E43/G43/'Test Info'!$I$6*6000), "", E43/G43/'Test Info'!$I$6*6000))) ->  | O43: PS | P43: Color | Q43: BWW | R43: Publisher | S43: 4 | V43: =IF(OR(U43="NA", U43="FAILED"), U43, (IF(ISERROR((S43-1)/(U43-T43)*60), "", (S43-1)/(U43-T43)*60))) ->  | W43: =IF(OR(U43="NA", U43="FAILED"), U43, (IF(ISERROR(V43/'Test Info'!$I$6*100), "", V43/'Test Info'!$I$6*100))) ->  | X43: =IF(OR(U43="NA", U43="FAILED"), U43, (IF(ISERROR(S43/U43/'Test Info'!$I$6*6000), "", S43/U43/'Test Info'!$I$6*6000))) -> 
A44: PS | B44: Color | C44: Architectural | D44: Chrome | E44: 5 | I44: =IF(OR(G44="NA", G44="FAILED"), G44, (IF(ISERROR(H44/'Test Info'!$I$6*100), "", H44/'Test Info'!$I$6*100))) ->  | J44: =IF(OR(G44="NA", G44="FAILED"), G44, (IF(ISERROR(E44/G44/'Test Info'!$I$6*6000), "", E44/G44/'Test Info'!$I$6*6000))) ->  | O44: PS | P44: Color | Q44: Architectural | R44: Chrome | S44: 5 | W44: =IF(OR(U44="NA", U44="FAILED"), U44, (IF(ISERROR(V44/'Test Info'!$I$6*100), "", V44/'Test Info'!$I$6*100))) ->  | X44: =IF(OR(U44="NA", U44="FAILED"), U44, (IF(ISERROR(S44/U44/'Test Info'!$I$6*6000), "", S44/U44/'Test Info'!$I$6*6000))) -> 
A45: PS | B45: Color | C45: Outcast | D45: Acrobat | E45: 12 | I45: =IF(OR(G45="NA", G45="FAILED"), G45, (IF(ISERROR(H45/'Test Info'!$I$6*100), "", H45/'Test Info'!$I$6*100))) ->  | J45: =IF(OR(G45="NA", G45="FAILED"), G45, (IF(ISERROR(E45/G45/'Test Info'!$I$6*6000), "", E45/G45/'Test Info'!$I$6*6000))) ->  | O45: PS | P45: Color | Q45: Outcast | R45: Acrobat | S45: 12 | W45: =IF(OR(U45="NA", U45="FAILED"), U45, (IF(ISERROR(V45/'Test Info'!$I$6*100), "", V45/'Test Info'!$I$6*100))) ->  | X45: =IF(OR(U45="NA", U45="FAILED"), U45, (IF(ISERROR(S45/U45/'Test Info'!$I$6*6000), "", S45/U45/'Test Info'!$I$6*6000))) -> 
A46: PS | B46: Color | C46: Valentines day | D46: Powerpoint | E46: 40 | I46: =IF(OR(G46="NA", G46="FAILED"), G46, (IF(ISERROR(H46/'Test Info'!$I$6*100), "", H46/'Test Info'!$I$6*100))) ->  | J46: =IF(OR(G46="NA", G46="FAILED"), G46, (IF(ISERROR(E46/G46/'Test Info'!$I$6*6000), "", E46/G46/'Test Info'!$I$6*6000))) ->  | O46: PS | P46: Color | Q46: Valentines day | R46: Powerpoint | S46: 40 | W46: =IF(OR(U46="NA", U46="FAILED"), U46, (IF(ISERROR(V46/'Test Info'!$I$6*100), "", V46/'Test Info'!$I$6*100))) ->  | X46: =IF(OR(U46="NA", U46="FAILED"), U46, (IF(ISERROR(S46/U46/'Test Info'!$I$6*6000), "", S46/U46/'Test Info'!$I$6*6000))) -> 
A47: PS | B47: Color | C47: Rainfall | D47: Excel | E47: 7 | I47: =IF(OR(G47="NA", G47="FAILED"), G47, (IF(ISERROR(H47/'Test Info'!$I$6*100), "", H47/'Test Info'!$I$6*100))) ->  | J47: =IF(OR(G47="NA", G47="FAILED"), G47, (IF(ISERROR(E47/G47/'Test Info'!$I$6*6000), "", E47/G47/'Test Info'!$I$6*6000))) ->  | O47: PS | P47: Color | Q47: Rainfall | R47: Excel | S47: 7 | W47: =IF(OR(U47="NA", U47="FAILED"), U47, (IF(ISERROR(V47/'Test Info'!$I$6*100), "", V47/'Test Info'!$I$6*100))) ->  | X47: =IF(OR(U47="NA", U47="FAILED"), U47, (IF(ISERROR(S47/U47/'Test Info'!$I$6*6000), "", S47/U47/'Test Info'!$I$6*6000))) -> 
A48: PS | B48: Color | C48: The blue fairy book 40 | D48: Corel Draw | E48: 40 | I48: =IF(OR(G48="NA", G48="FAILED"), G48, (IF(ISERROR(H48/'Test Info'!$I$6*100), "", H48/'Test Info'!$I$6*100))) ->  | J48: =IF(OR(G48="NA", G48="FAILED"), G48, (IF(ISERROR(E48/G48/'Test Info'!$I$6*6000), "", E48/G48/'Test Info'!$I$6*6000))) ->  | O48: PS | P48: Color | Q48: The blue fairy book 40 | R48: Corel Draw | S48: 40 | W48: =IF(OR(U48="NA", U48="FAILED"), U48, (IF(ISERROR(V48/'Test Info'!$I$6*100), "", V48/'Test Info'!$I$6*100))) ->  | X48: =IF(OR(U48="NA", U48="FAILED"), U48, (IF(ISERROR(S48/U48/'Test Info'!$I$6*6000), "", S48/U48/'Test Info'!$I$6*6000))) -> 
D49: Average | E49: =AVERAGE(E38:E48) -> 12.36363636 | F49: =IF(F48="NA", F48, (IF(ISERROR(AVERAGE(F38:F48)), "", AVERAGE(F38:F48)))) ->  | G49: =IF(G48="NA", G48, (IF(ISERROR(AVERAGE(G38:G48)), "", AVERAGE(G38:G48)))) ->  | H49: =IF(H48="NA", H48, (IF(ISERROR(AVERAGE(H38:H48)), "", AVERAGE(H38:H48)))) ->  | I49: =IF(I48="NA", I48, (IF(ISERROR(AVERAGE(I38:I48)), "", AVERAGE(I38:I48)))) ->  | J49: =IF(J48="NA", J48, (IF(ISERROR(AVERAGE(J38:J48)), "", AVERAGE(J38:J48)))) ->  | R49: Average | S49: =AVERAGE(S38:S48) -> 12.36363636 | T49: =IF(T48="NA", T48, (IF(ISERROR(AVERAGE(T38:T48)), "", AVERAGE(T38:T48)))) ->  | U49: =IF(U48="NA", U48, (IF(ISERROR(AVERAGE(U38:U48)), "", AVERAGE(U38:U48)))) ->  | V49: =IF(V48="NA", V48, (IF(ISERROR(AVERAGE(V38:V48)), "", AVERAGE(V38:V48)))) ->  | W49: =IF(W48="NA", W48, (IF(ISERROR(AVERAGE(W38:W48)), "", AVERAGE(W38:W48)))) ->  | X49: =IF(X48="NA", X48, (IF(ISERROR(AVERAGE(X38:X48)), "", AVERAGE(X38:X48)))) -> 
A51: Stress- No Banner | O51: Stress- No Banner
A52: PS | B52: Color | C52: Begin with things | D52: Corel Draw | E52: 4 | H52: =IF(OR(G52="NA", G52="FAILED"), G52, (IF(ISERROR((E52-1)/(G52-F52)*60), "", (E52-1)/(G52-F52)*60))) ->  | I52: =IF(OR(G52="NA", G52="FAILED"), G52, (IF(ISERROR(H52/'Test Info'!$I$6*100), "", H52/'Test Info'!$I$6*100))) ->  | J52: =IF(OR(G52="NA", G52="FAILED"), G52, (IF(ISERROR(E52/G52/'Test Info'!$I$6*6000), "", E52/G52/'Test Info'!$I$6*6000))) ->  | O52: PS | P52: Color | Q52: Begin with things | R52: Corel Draw | S52: 4 | V52: =IF(OR(U52="NA", U52="FAILED"), U52, (IF(ISERROR((S52-1)/(U52-T52)*60), "", (S52-1)/(U52-T52)*60))) ->  | W52: =IF(OR(U52="NA", U52="FAILED"), U52, (IF(ISERROR(V52/'Test Info'!$I$6*100), "", V52/'Test Info'!$I$6*100))) ->  | X52: =IF(OR(U52="NA", U52="FAILED"), U52, (IF(ISERROR(S52/U52/'Test Info'!$I$6*6000), "", S52/U52/'Test Info'!$I$6*6000))) -> 
A53: PS | B53: Color | C53: Lincoln 6 | D53: Word | E53: 6 | H53: =IF(OR(G53="NA", G53="FAILED"), G53, (IF(ISERROR((E53-1)/(G53-F53)*60), "", (E53-1)/(G53-F53)*60))) ->  | I53: =IF(OR(G53="NA", G53="FAILED"), G53, (IF(ISERROR(H53/'Test Info'!$I$6*100), "", H53/'Test Info'!$I$6*100))) ->  | J53: =IF(OR(G53="NA", G53="FAILED"), G53, (IF(ISERROR(E53/G53/'Test Info'!$I$6*6000), "", E53/G53/'Test Info'!$I$6*6000))) ->  | O53: PS | P53: Color | Q53: Lincoln 6 | R53: Word | S53: 6 | V53: =IF(OR(U53="NA", U53="FAILED"), U53, (IF(ISERROR((S53-1)/(U53-T53)*60), "", (S53-1)/(U53-T53)*60))) ->  | W53: =IF(OR(U53="NA", U53="FAILED"), U53, (IF(ISERROR(V53/'Test Info'!$I$6*100), "", V53/'Test Info'!$I$6*100))) ->  | X53: =IF(OR(U53="NA", U53="FAILED"), U53, (IF(ISERROR(S53/U53/'Test Info'!$I$6*6000), "", S53/U53/'Test Info'!$I$6*6000))) -> 
A54: PS | B54: Color | C54: Sisters | D54: Corel Draw | E54: 12 | H54: =IF(OR(G54="NA", G54="FAILED"), G54, (IF(ISERROR((E54-1)/(G54-F54)*60), "", (E54-1)/(G54-F54)*60))) ->  | I54: =IF(OR(G54="NA", G54="FAILED"), G54, (IF(ISERROR(H54/'Test Info'!$I$6*100), "", H54/'Test Info'!$I$6*100))) ->  | J54: =IF(OR(G54="NA", G54="FAILED"), G54, (IF(ISERROR(E54/G54/'Test Info'!$I$6*6000), "", E54/G54/'Test Info'!$I$6*6000))) ->  | O54: PS | P54: Color | Q54: Sisters | R54: Corel Draw | S54: 12 | V54: =IF(OR(U54="NA", U54="FAILED"), U54, (IF(ISERROR((S54-1)/(U54-T54)*60), "", (S54-1)/(U54-T54)*60))) ->  | W54: =IF(OR(U54="NA", U54="FAILED"), U54, (IF(ISERROR(V54/'Test Info'!$I$6*100), "", V54/'Test Info'!$I$6*100))) ->  | X54: =IF(OR(U54="NA", U54="FAILED"), U54, (IF(ISERROR(S54/U54/'Test Info'!$I$6*6000), "", S54/U54/'Test Info'!$I$6*6000))) -> 
A55: PS | B55: Color | C55: Turtle Island | D55: Photoshop | E55: 1 | J55: =IF(OR(G55="NA", G55="FAILED"), G55, (IF(ISERROR(E55/G55/'Test Info'!$I$6*6000), "", E55/G55/'Test Info'!$I$6*6000))) ->  | O55: PS | P55: Color | Q55: Turtle Island | R55: Photoshop | S55: 1 | X55: =IF(OR(U55="NA", U55="FAILED"), U55, (IF(ISERROR(S55/U55/'Test Info'!$I$6*6000), "", S55/U55/'Test Info'!$I$6*6000))) -> 
D56: Average | E56: =AVERAGE(E52:E55) -> 5.75 | F56: =IF(F55="NA", F55, (IF(ISERROR(AVERAGE(F52:F55)), "", AVERAGE(F52:F55)))) ->  | G56: =IF(G55="NA", G55, (IF(ISERROR(AVERAGE(G52:G55)), "", AVERAGE(G52:G55)))) ->  | H56: =IF(H55="NA", H55, (IF(ISERROR(AVERAGE(H52:H55)), "", AVERAGE(H52:H55)))) ->  | I56: =IF(I55="NA", I55, (IF(ISERROR(AVERAGE(I52:I55)), "", AVERAGE(I52:I55)))) ->  | J56: =IF(J55="NA", J55, (IF(ISERROR(AVERAGE(J52:J55)), "", AVERAGE(J52:J55)))) ->  | R56: Average | S56: =AVERAGE(S52:S55) -> 5.75 | T56: =IF(T55="NA", T55, (IF(ISERROR(AVERAGE(T52:T55)), "", AVERAGE(T52:T55)))) ->  | U56: =IF(U55="NA", U55, (IF(ISERROR(AVERAGE(U52:U55)), "", AVERAGE(U52:U55)))) ->  | V56: =IF(V55="NA", V55, (IF(ISERROR(AVERAGE(V52:V55)), "", AVERAGE(V52:V55)))) ->  | W56: =IF(W55="NA", W55, (IF(ISERROR(AVERAGE(W52:W55)), "", AVERAGE(W52:W55)))) ->  | X56: =IF(X55="NA", X55, (IF(ISERROR(AVERAGE(X52:X55)), "", AVERAGE(X52:X55)))) -> 
A58: PCL6- No Banner | O58: PCL6- No Banner
A59: Office Color- No Banner | O59: Office Color- No Banner
A60: Type | B60: Mode | C60: Job | D60: Application | E60: Pages | F60: FPOT Measured in Seconds | G60: C-C Measured in Seconds | H60: 2-N PPM Calculated | I60: 2-N % Rated Speed Calculated | J60: C-C % Rated Speed Calculated | O60: Type | P60: Mode | Q60: Job | R60: Application | S60: Pages | T60: FPOT Measured in Seconds | U60: C-C Measured in Seconds | V60: 2-N PPM Calculated | W60: 2-N % Rated Speed Calculated | X60: C-C % Rated Speed Calculated
A61: PCL6 | B61: Color | C61: Jewelry | D61: Powerpoint | E61: 12 | H61: =IF(OR(G61="NA", G61="FAILED"), G61, (IF(ISERROR((E61-1)/(G61-F61)*60), "", (E61-1)/(G61-F61)*60))) ->  | I61: =IF(OR(G61="NA", G61="FAILED"), G61, (IF(ISERROR(H61/'Test Info'!$I$6*100), "", H61/'Test Info'!$I$6*100))) ->  | J61: =IF(OR(G61="NA", G61="FAILED"), G61, (IF(ISERROR(E61/G61/'Test Info'!$I$6*6000), "", E61/G61/'Test Info'!$I$6*6000))) ->  | O61: PCL6 | P61: Color | Q61: Jewelry | R61: Powerpoint | S61: 12 | V61: =IF(OR(U61="NA", U61="FAILED"), U61, (IF(ISERROR((S61-1)/(U61-T61)*60), "", (S61-1)/(U61-T61)*60))) ->  | W61: =IF(OR(U61="NA", U61="FAILED"), U61, (IF(ISERROR(V61/'Test Info'!$I$6*100), "", V61/'Test Info'!$I$6*100))) ->  | X61: =IF(OR(U61="NA", U61="FAILED"), U61, (IF(ISERROR(S61/U61/'Test Info'!$I$6*6000), "", S61/U61/'Test Info'!$I$6*6000))) -> 
A62: PCL6 | B62: Color | C62: Inpatient | D62: Excel | E62: 3 | H62: =IF(OR(G62="NA", G62="FAILED"), G62, (IF(ISERROR((E62-1)/(G62-F62)*60), "", (E62-1)/(G62-F62)*60))) ->  | I62: =IF(OR(G62="NA", G62="FAILED"), G62, (IF(ISERROR(H62/'Test Info'!$I$6*100), "", H62/'Test Info'!$I$6*100))) ->  | J62: =IF(OR(G62="NA", G62="FAILED"), G62, (IF(ISERROR(E62/G62/'Test Info'!$I$6*6000), "", E62/G62/'Test Info'!$I$6*6000))) ->  | O62: PCL6 | P62: Color | Q62: Inpatient | R62: Excel | S62: 3 | V62: =IF(OR(U62="NA", U62="FAILED"), U62, (IF(ISERROR((S62-1)/(U62-T62)*60), "", (S62-1)/(U62-T62)*60))) ->  | W62: =IF(OR(U62="NA", U62="FAILED"), U62, (IF(ISERROR(V62/'Test Info'!$I$6*100), "", V62/'Test Info'!$I$6*100))) ->  | X62: =IF(OR(U62="NA", U62="FAILED"), U62, (IF(ISERROR(S62/U62/'Test Info'!$I$6*6000), "", S62/U62/'Test Info'!$I$6*6000))) -> 
A63: PCL6 | B63: Color | C63: Rain year | D63: Excel | E63: 2 | I63: =IF(OR(G63="NA", G63="FAILED"), G63, (IF(ISERROR(H63/'Test Info'!$I$6*100), "", H63/'Test Info'!$I$6*100))) ->  | J63: =IF(OR(G63="NA", G63="FAILED"), G63, (IF(ISERROR(E63/G63/'Test Info'!$I$6*6000), "", E63/G63/'Test Info'!$I$6*6000))) ->  | O63: PCL6 | P63: Color | Q63: Rain year | R63: Excel | S63: 2 | W63: =IF(OR(U63="NA", U63="FAILED"), U63, (IF(ISERROR(V63/'Test Info'!$I$6*100), "", V63/'Test Info'!$I$6*100))) ->  | X63: =IF(OR(U63="NA", U63="FAILED"), U63, (IF(ISERROR(S63/U63/'Test Info'!$I$6*6000), "", S63/U63/'Test Info'!$I$6*6000))) -> 
A64: PCL6 | B64: Color | C64: Troutman | D64: Quark | E64: 4 | I64: =IF(OR(G64="NA", G64="FAILED"), G64, (IF(ISERROR(H64/'Test Info'!$I$6*100), "", H64/'Test Info'!$I$6*100))) ->  | J64: =IF(OR(G64="NA", G64="FAILED"), G64, (IF(ISERROR(E64/G64/'Test Info'!$I$6*6000), "", E64/G64/'Test Info'!$I$6*6000))) ->  | O64: PCL6 | P64: Color | Q64: Troutman | R64: Quark | S64: 4 | W64: =IF(OR(U64="NA", U64="FAILED"), U64, (IF(ISERROR(V64/'Test Info'!$I$6*100), "", V64/'Test Info'!$I$6*100))) ->  | X64: =IF(OR(U64="NA", U64="FAILED"), U64, (IF(ISERROR(S64/U64/'Test Info'!$I$6*6000), "", S64/U64/'Test Info'!$I$6*6000))) -> 
A65: PCL6 | B65: Color | C65: Volcanoes | D65: Access | E65: 7 | I65: =IF(OR(G65="NA", G65="FAILED"), G65, (IF(ISERROR(H65/'Test Info'!$I$6*100), "", H65/'Test Info'!$I$6*100))) ->  | J65: =IF(OR(G65="NA", G65="FAILED"), G65, (IF(ISERROR(E65/G65/'Test Info'!$I$6*6000), "", E65/G65/'Test Info'!$I$6*6000))) ->  | O65: PCL6 | P65: Color | Q65: Volcanoes | R65: Access | S65: 7 | W65: =IF(OR(U65="NA", U65="FAILED"), U65, (IF(ISERROR(V65/'Test Info'!$I$6*100), "", V65/'Test Info'!$I$6*100))) ->  | X65: =IF(OR(U65="NA", U65="FAILED"), U65, (IF(ISERROR(S65/U65/'Test Info'!$I$6*6000), "", S65/U65/'Test Info'!$I$6*6000))) -> 
A66: PCL6 | B66: Color | C66: Progress | D66: Powerpoint | E66: 4 | I66: =IF(OR(G66="NA", G66="FAILED"), G66, (IF(ISERROR(H66/'Test Info'!$I$6*100), "", H66/'Test Info'!$I$6*100))) ->  | J66: =IF(OR(G66="NA", G66="FAILED"), G66, (IF(ISERROR(E66/G66/'Test Info'!$I$6*6000), "", E66/G66/'Test Info'!$I$6*6000))) ->  | O66: PCL6 | P66: Color | Q66: Progress | R66: Powerpoint | S66: 4 | W66: =IF(OR(U66="NA", U66="FAILED"), U66, (IF(ISERROR(V66/'Test Info'!$I$6*100), "", V66/'Test Info'!$I$6*100))) ->  | X66: =IF(OR(U66="NA", U66="FAILED"), U66, (IF(ISERROR(S66/U66/'Test Info'!$I$6*6000), "", S66/U66/'Test Info'!$I$6*6000))) -> 
A67: PCL6 | B67: Color | C67: Contents | D67: Word | E67: 12 | I67: =IF(OR(G67="NA", G67="FAILED"), G67, (IF(ISERROR(H67/'Test Info'!$I$6*100), "", H67/'Test Info'!$I$6*100))) ->  | J67: =IF(OR(G67="NA", G67="FAILED"), G67, (IF(ISERROR(E67/G67/'Test Info'!$I$6*6000), "", E67/G67/'Test Info'!$I$6*6000))) ->  | O67: PCL6 | P67: Color | Q67: Contents | R67: Word | S67: 12 | W67: =IF(OR(U67="NA", U67="FAILED"), U67, (IF(ISERROR(V67/'Test Info'!$I$6*100), "", V67/'Test Info'!$I$6*100))) ->  | X67: =IF(OR(U67="NA", U67="FAILED"), U67, (IF(ISERROR(S67/U67/'Test Info'!$I$6*6000), "", S67/U67/'Test Info'!$I$6*6000))) -> 
A68: PCL6 | B68: Color | C68: Blue sky | D68: Quark | E68: 12 | I68: =IF(OR(G68="NA", G68="FAILED"), G68, (IF(ISERROR(H68/'Test Info'!$I$6*100), "", H68/'Test Info'!$I$6*100))) ->  | J68: =IF(OR(G68="NA", G68="FAILED"), G68, (IF(ISERROR(E68/G68/'Test Info'!$I$6*6000), "", E68/G68/'Test Info'!$I$6*6000))) ->  | O68: PCL6 | P68: Color | Q68: Blue sky | R68: Quark | S68: 12 | W68: =IF(OR(U68="NA", U68="FAILED"), U68, (IF(ISERROR(V68/'Test Info'!$I$6*100), "", V68/'Test Info'!$I$6*100))) ->  | X68: =IF(OR(U68="NA", U68="FAILED"), U68, (IF(ISERROR(S68/U68/'Test Info'!$I$6*6000), "", S68/U68/'Test Info'!$I$6*6000))) -> 
A69: PCL6 | B69: Color | C69: The blue fairy book 4 | D69: Corel Draw | E69: 4 | H69: =IF(OR(G69="NA", G69="FAILED"), G69, (IF(ISERROR((E69-1)/(G69-F69)*60), "", (E69-1)/(G69-F69)*60))) ->  | I69: =IF(OR(G69="NA", G69="FAILED"), G69, (IF(ISERROR(H69/'Test Info'!$I$6*100), "", H69/'Test Info'!$I$6*100))) ->  | J69: =IF(OR(G69="NA", G69="FAILED"), G69, (IF(ISERROR(E69/G69/'Test Info'!$I$6*6000), "", E69/G69/'Test Info'!$I$6*6000))) ->  | O69: PCL6 | P69: Color | Q69: The blue fairy book 4 | R69: Corel Draw | S69: 4 | V69: =IF(OR(U69="NA", U69="FAILED"), U69, (IF(ISERROR((S69-1)/(U69-T69)*60), "", (S69-1)/(U69-T69)*60))) ->  | W69: =IF(OR(U69="NA", U69="FAILED"), U69, (IF(ISERROR(V69/'Test Info'!$I$6*100), "", V69/'Test Info'!$I$6*100))) ->  | X69: =IF(OR(U69="NA", U69="FAILED"), U69, (IF(ISERROR(S69/U69/'Test Info'!$I$6*6000), "", S69/U69/'Test Info'!$I$6*6000))) -> 
A70: PCL6 | B70: Color | C70: Salary | D70: Excel | E70: 12 | H70: =IF(OR(G70="NA", G70="FAILED"), G70, (IF(ISERROR((E70-1)/(G70-F70)*60), "", (E70-1)/(G70-F70)*60))) ->  | I70: =IF(OR(G70="NA", G70="FAILED"), G70, (IF(ISERROR(H70/'Test Info'!$I$6*100), "", H70/'Test Info'!$I$6*100))) ->  | J70: =IF(OR(G70="NA", G70="FAILED"), G70, (IF(ISERROR(E70/G70/'Test Info'!$I$6*6000), "", E70/G70/'Test Info'!$I$6*6000))) ->  | O70: PCL6 | P70: Color | Q70: Salary | R70: Excel | S70: 12 | V70: =IF(OR(U70="NA", U70="FAILED"), U70, (IF(ISERROR((S70-1)/(U70-T70)*60), "", (S70-1)/(U70-T70)*60))) ->  | W70: =IF(OR(U70="NA", U70="FAILED"), U70, (IF(ISERROR(V70/'Test Info'!$I$6*100), "", V70/'Test Info'!$I$6*100))) ->  | X70: =IF(OR(U70="NA", U70="FAILED"), U70, (IF(ISERROR(S70/U70/'Test Info'!$I$6*6000), "", S70/U70/'Test Info'!$I$6*6000))) -> 
A71: PCL6 | B71: Color | C71: Puzzle | D71: Powerpoint | E71: 4 | H71: =IF(OR(G71="NA", G71="FAILED"), G71, (IF(ISERROR((E71-1)/(G71-F71)*60), "", (E71-1)/(G71-F71)*60))) ->  | I71: =IF(OR(G71="NA", G71="FAILED"), G71, (IF(ISERROR(H71/'Test Info'!$I$6*100), "", H71/'Test Info'!$I$6*100))) ->  | J71: =IF(OR(G71="NA", G71="FAILED"), G71, (IF(ISERROR(E71/G71/'Test Info'!$I$6*6000), "", E71/G71/'Test Info'!$I$6*6000))) ->  | O71: PCL6 | P71: Color | Q71: Puzzle | R71: Powerpoint | S71: 4 | V71: =IF(OR(U71="NA", U71="FAILED"), U71, (IF(ISERROR((S71-1)/(U71-T71)*60), "", (S71-1)/(U71-T71)*60))) ->  | W71: =IF(OR(U71="NA", U71="FAILED"), U71, (IF(ISERROR(V71/'Test Info'!$I$6*100), "", V71/'Test Info'!$I$6*100))) ->  | X71: =IF(OR(U71="NA", U71="FAILED"), U71, (IF(ISERROR(S71/U71/'Test Info'!$I$6*6000), "", S71/U71/'Test Info'!$I$6*6000))) -> 
D72: Average | E72: =AVERAGE(E61:E71) -> 6.909090909 | F72: =IF(F71="NA", F71, (IF(ISERROR(AVERAGE(F61:F71)), "", AVERAGE(F61:F71)))) ->  | G72: =IF(G71="NA", G71, (IF(ISERROR(AVERAGE(G61:G71)), "", AVERAGE(G61:G71)))) ->  | H72: =IF(H71="NA", H71, (IF(ISERROR(AVERAGE(H61:H71)), "", AVERAGE(H61:H71)))) ->  | I72: =IF(I71="NA", I71, (IF(ISERROR(AVERAGE(I61:I71)), "", AVERAGE(I61:I71)))) ->  | J72: =IF(J71="NA", J71, (IF(ISERROR(AVERAGE(J61:J71)), "", AVERAGE(J61:J71)))) ->  | R72: Average | S72: =AVERAGE(S61:S71) -> 6.909090909 | T72: =IF(T71="NA", T71, (IF(ISERROR(AVERAGE(T61:T71)), "", AVERAGE(T61:T71)))) ->  | U72: =IF(U71="NA", U71, (IF(ISERROR(AVERAGE(U61:U71)), "", AVERAGE(U61:U71)))) ->  | V72: =IF(V71="NA", V71, (IF(ISERROR(AVERAGE(V61:V71)), "", AVERAGE(V61:V71)))) ->  | W72: =IF(W71="NA", W71, (IF(ISERROR(AVERAGE(W61:W71)), "", AVERAGE(W61:W71)))) ->  | X72: =IF(X71="NA", X71, (IF(ISERROR(AVERAGE(X61:X71)), "", AVERAGE(X61:X71)))) -> 
A74: Office Mono- No Banner | O74: Office Mono- No Banner
A75: PCL6 | B75: Mono | C75: Classifieds | D75: Chrome | E75: 13 | H75: =IF(OR(G75="NA",G75="FAILED"),G75,(IF(ISERROR((E75-1)/(G75-F75)*60),"",(E75-1)/(G75-F75)*60))) ->  | I75: =IF(OR(G75="NA",G75="FAILED"),G75, (IF(ISERROR(H75/'Test Info'!$J$6*100), "", H75/'Test Info'!$J$6*100))) ->  | J75: =IF(OR(G75="NA",G75="FAILED"),G75, (IF(ISERROR(E75/G75/'Test Info'!$J$6*6000), "", E75/G75/'Test Info'!$J$6*6000))) ->  | O75: PCL6 | P75: Mono | Q75: Classifieds | R75: Chrome | S75: 13 | V75: =IF(OR(U75="NA",U75="FAILED"),U75,(IF(ISERROR((S75-1)/(U75-T75)*60),"",(S75-1)/(U75-T75)*60))) ->  | W75: =IF(OR(U75="NA",U75="FAILED"),U75, (IF(ISERROR(V75/'Test Info'!$J$6*100), "", V75/'Test Info'!$J$6*100))) ->  | X75: =IF(OR(U75="NA",U75="FAILED"),U75, (IF(ISERROR(S75/U75/'Test Info'!$J$6*6000), "", S75/U75/'Test Info'!$J$6*6000))) -> 
A76: PCL6 | B76: Mono | C76: Gold | D76: Powerpoint | E76: 8 | H76: =IF(OR(G76="NA",G76="FAILED"),G76,(IF(ISERROR((E76-1)/(G76-F76)*60),"",(E76-1)/(G76-F76)*60))) ->  | I76: =IF(OR(G76="NA",G76="FAILED"),G76, (IF(ISERROR(H76/'Test Info'!$J$6*100), "", H76/'Test Info'!$J$6*100))) ->  | J76: =IF(OR(G76="NA",G76="FAILED"),G76, (IF(ISERROR(E76/G76/'Test Info'!$J$6*6000), "", E76/G76/'Test Info'!$J$6*6000))) ->  | O76: PCL6 | P76: Mono | Q76: Gold | R76: Powerpoint | S76: 8 | V76: =IF(OR(U76="NA",U76="FAILED"),U76,(IF(ISERROR((S76-1)/(U76-T76)*60),"",(S76-1)/(U76-T76)*60))) ->  | W76: =IF(OR(U76="NA",U76="FAILED"),U76, (IF(ISERROR(V76/'Test Info'!$J$6*100), "", V76/'Test Info'!$J$6*100))) ->  | X76: =IF(OR(U76="NA",U76="FAILED"),U76, (IF(ISERROR(S76/U76/'Test Info'!$J$6*6000), "", S76/U76/'Test Info'!$J$6*6000))) -> 
A77: PCL6 | B77: Mono | C77: Pain at the pump | D77: Chrome | E77: 3 | H77: =IF(OR(G77="NA",G77="FAILED"),G77,(IF(ISERROR((E77-1)/(G77-F77)*60),"",(E77-1)/(G77-F77)*60))) ->  | I77: =IF(OR(G77="NA",G77="FAILED"),G77, (IF(ISERROR(H77/'Test Info'!$J$6*100), "", H77/'Test Info'!$J$6*100))) ->  | J77: =IF(OR(G77="NA",G77="FAILED"),G77, (IF(ISERROR(E77/G77/'Test Info'!$J$6*6000), "", E77/G77/'Test Info'!$J$6*6000))) ->  | O77: PCL6 | P77: Mono | Q77: Pain at the pump | R77: Chrome | S77: 3 | V77: =IF(OR(U77="NA",U77="FAILED"),U77,(IF(ISERROR((S77-1)/(U77-T77)*60),"",(S77-1)/(U77-T77)*60))) ->  | W77: =IF(OR(U77="NA",U77="FAILED"),U77, (IF(ISERROR(V77/'Test Info'!$J$6*100), "", V77/'Test Info'!$J$6*100))) ->  | X77: =IF(OR(U77="NA",U77="FAILED"),U77, (IF(ISERROR(S77/U77/'Test Info'!$J$6*6000), "", S77/U77/'Test Info'!$J$6*6000))) -> 
A78: PCL6 | B78: Mono | C78: Lincoln 2 | D78: Word | E78: 2 | H78: =IF(OR(G78="NA",G78="FAILED"),G78,(IF(ISERROR((E78-1)/(G78-F78)*60),"",(E78-1)/(G78-F78)*60))) ->  | I78: =IF(OR(G78="NA",G78="FAILED"),G78, (IF(ISERROR(H78/'Test Info'!$J$6*100), "", H78/'Test Info'!$J$6*100))) ->  | J78: =IF(OR(G78="NA",G78="FAILED"),G78, (IF(ISERROR(E78/G78/'Test Info'!$J$6*6000), "", E78/G78/'Test Info'!$J$6*6000))) ->  | O78: PCL6 | P78: Mono | Q78: Lincoln 2 | R78: Word | S78: 2 | V78: =IF(OR(U78="NA",U78="FAILED"),U78,(IF(ISERROR((S78-1)/(U78-T78)*60),"",(S78-1)/(U78-T78)*60))) ->  | W78: =IF(OR(U78="NA",U78="FAILED"),U78, (IF(ISERROR(V78/'Test Info'!$J$6*100), "", V78/'Test Info'!$J$6*100))) ->  | X78: =IF(OR(U78="NA",U78="FAILED"),U78, (IF(ISERROR(S78/U78/'Test Info'!$J$6*6000), "", S78/U78/'Test Info'!$J$6*6000))) -> 
A79: PCL6 | B79: Mono | C79: Mountains | D79: Word | E79: 25 | H79: =IF(OR(G79="NA",G79="FAILED"),G79,(IF(ISERROR((E79-1)/(G79-F79)*60),"",(E79-1)/(G79-F79)*60))) ->  | I79: =IF(OR(G79="NA",G79="FAILED"),G79, (IF(ISERROR(H79/'Test Info'!$J$6*100), "", H79/'Test Info'!$J$6*100))) ->  | J79: =IF(OR(G79="NA",G79="FAILED"),G79, (IF(ISERROR(E79/G79/'Test Info'!$J$6*6000), "", E79/G79/'Test Info'!$J$6*6000))) ->  | O79: PCL6 | P79: Mono | Q79: Mountains | R79: Word | S79: 25 | V79: =IF(OR(U79="NA",U79="FAILED"),U79,(IF(ISERROR((S79-1)/(U79-T79)*60),"",(S79-1)/(U79-T79)*60))) ->  | W79: =IF(OR(U79="NA",U79="FAILED"),U79, (IF(ISERROR(V79/'Test Info'!$J$6*100), "", V79/'Test Info'!$J$6*100))) ->  | X79: =IF(OR(U79="NA",U79="FAILED"),U79, (IF(ISERROR(S79/U79/'Test Info'!$J$6*6000), "", S79/U79/'Test Info'!$J$6*6000))) -> 
A80: PCL6 | B80: Mono | C80: Oberan 1 | D80: Illustrator | E80: 1 | J80: =IF(OR(G80="NA",G80="FAILED"),G80, (IF(ISERROR(E80/G80/'Test Info'!$J$6*6000), "", E80/G80/'Test Info'!$J$6*6000))) ->  | O80: PCL6 | P80: Mono | Q80: Oberan 1 | R80: Illustrator | S80: 1 | X80: =IF(OR(U80="NA",U80="FAILED"),U80, (IF(ISERROR(S80/U80/'Test Info'!$J$6*6000), "", S80/U80/'Test Info'!$J$6*6000))) -> 
A81: PCL6 | B81: Mono | C81: Budget | D81: Excel | E81: 1 | J81: =IF(OR(G81="NA",G81="FAILED"),G81, (IF(ISERROR(E81/G81/'Test Info'!$J$6*6000), "", E81/G81/'Test Info'!$J$6*6000))) ->  | O81: PCL6 | P81: Mono | Q81: Budget | R81: Excel | S81: 1 | X81: =IF(OR(U81="NA",U81="FAILED"),U81, (IF(ISERROR(S81/U81/'Test Info'!$J$6*6000), "", S81/U81/'Test Info'!$J$6*6000))) -> 
D82: Average | E82: =AVERAGE(E75:E81) -> 7.571428571 | F82: =IF(F81="NA", F81, (IF(ISERROR(AVERAGE(F75:F81)), "", AVERAGE(F75:F81)))) ->  | G82: =IF(G81="NA", G81, (IF(ISERROR(AVERAGE(G75:G81)), "", AVERAGE(G75:G81)))) ->  | H82: =IF(G81="NA", G81, (IF(ISERROR(AVERAGE(H75:H81)), "", AVERAGE(H75:H81)))) ->  | I82: =IF(G81="NA", G81, (IF(ISERROR(AVERAGE(I75:I81)), "", AVERAGE(I75:I81)))) ->  | J82: =IF(J81="NA", J81, (IF(ISERROR(AVERAGE(J75:J81)), "", AVERAGE(J75:J81)))) ->  | R82: Average | S82: =AVERAGE(S75:S81) -> 7.571428571 | T82: =IF(T81="NA", T81, (IF(ISERROR(AVERAGE(T75:T81)), "", AVERAGE(T75:T81)))) ->  | U82: =IF(U81="NA", U81, (IF(ISERROR(AVERAGE(U75:U81)), "", AVERAGE(U75:U81)))) ->  | V82: =IF(U81="NA", U81, (IF(ISERROR(AVERAGE(V75:V81)), "", AVERAGE(V75:V81)))) ->  | W82: =IF(U81="NA", U81, (IF(ISERROR(AVERAGE(W75:W81)), "", AVERAGE(W75:W81)))) ->  | X82: =IF(X81="NA", X81, (IF(ISERROR(AVERAGE(X75:X81)), "", AVERAGE(X75:X81)))) -> 
A84: Graphic- No Banner | O84: Graphic- No Banner
A85: PCL6 | B85: Color | C85: Join MSA us | D85: Acrobat | E85: 5 | H85: =IF(OR(G85="NA", G85="FAILED"), G85, (IF(ISERROR((E85-1)/(G85-F85)*60), "", (E85-1)/(G85-F85)*60))) ->  | I85: =IF(OR(G85="NA", G85="FAILED"), G85, (IF(ISERROR(H85/'Test Info'!$I$6*100), "", H85/'Test Info'!$I$6*100))) ->  | J85: =IF(OR(G85="NA", G85="FAILED"), G85, (IF(ISERROR(E85/G85/'Test Info'!$I$6*6000), "", E85/G85/'Test Info'!$I$6*6000))) ->  | O85: PCL6 | P85: Color | Q85: Join MSA us | R85: Acrobat | S85: 5 | V85: =IF(OR(U85="NA", U85="FAILED"), U85, (IF(ISERROR((S85-1)/(U85-T85)*60), "", (S85-1)/(U85-T85)*60))) ->  | W85: =IF(OR(U85="NA", U85="FAILED"), U85, (IF(ISERROR(V85/'Test Info'!$I$6*100), "", V85/'Test Info'!$I$6*100))) ->  | X85: =IF(OR(U85="NA", U85="FAILED"), U85, (IF(ISERROR(S85/U85/'Test Info'!$I$6*6000), "", S85/U85/'Test Info'!$I$6*6000))) -> 
A86: PCL6 | B86: Color | C86: Oberan 4 | D86: Illustrator | E86: 4 | H86: =IF(OR(G86="NA", G86="FAILED"), G86, (IF(ISERROR((E86-1)/(G86-F86)*60), "", (E86-1)/(G86-F86)*60))) ->  | I86: =IF(OR(G86="NA", G86="FAILED"), G86, (IF(ISERROR(H86/'Test Info'!$I$6*100), "", H86/'Test Info'!$I$6*100))) ->  | J86: =IF(OR(G86="NA", G86="FAILED"), G86, (IF(ISERROR(E86/G86/'Test Info'!$I$6*6000), "", E86/G86/'Test Info'!$I$6*6000))) ->  | O86: PCL6 | P86: Color | Q86: Oberan 4 | R86: Illustrator | S86: 4 | V86: =IF(OR(U86="NA", U86="FAILED"), U86, (IF(ISERROR((S86-1)/(U86-T86)*60), "", (S86-1)/(U86-T86)*60))) ->  | W86: =IF(OR(U86="NA", U86="FAILED"), U86, (IF(ISERROR(V86/'Test Info'!$I$6*100), "", V86/'Test Info'!$I$6*100))) ->  | X86: =IF(OR(U86="NA", U86="FAILED"), U86, (IF(ISERROR(S86/U86/'Test Info'!$I$6*6000), "", S86/U86/'Test Info'!$I$6*6000))) -> 
A87: PCL6 | B87: Color | C87: Moorpark | D87: Acrobat | E87: 4 | H87: =IF(OR(G87="NA", G87="FAILED"), G87, (IF(ISERROR((E87-1)/(G87-F87)*60), "", (E87-1)/(G87-F87)*60))) ->  | I87: =IF(OR(G87="NA", G87="FAILED"), G87, (IF(ISERROR(H87/'Test Info'!$I$6*100), "", H87/'Test Info'!$I$6*100))) ->  | J87: =IF(OR(G87="NA", G87="FAILED"), G87, (IF(ISERROR(E87/G87/'Test Info'!$I$6*6000), "", E87/G87/'Test Info'!$I$6*6000))) ->  | O87: PCL6 | P87: Color | Q87: Moorpark | R87: Acrobat | S87: 4 | V87: =IF(OR(U87="NA", U87="FAILED"), U87, (IF(ISERROR((S87-1)/(U87-T87)*60), "", (S87-1)/(U87-T87)*60))) ->  | W87: =IF(OR(U87="NA", U87="FAILED"), U87, (IF(ISERROR(V87/'Test Info'!$I$6*100), "", V87/'Test Info'!$I$6*100))) ->  | X87: =IF(OR(U87="NA", U87="FAILED"), U87, (IF(ISERROR(S87/U87/'Test Info'!$I$6*6000), "", S87/U87/'Test Info'!$I$6*6000))) -> 
A88: PCL6 | B88: Color | C88: MSA | D88: Acrobat | E88: 3 | H88: =IF(OR(G88="NA", G88="FAILED"), G88, (IF(ISERROR((E88-1)/(G88-F88)*60), "", (E88-1)/(G88-F88)*60))) ->  | I88: =IF(OR(G88="NA", G88="FAILED"), G88, (IF(ISERROR(H88/'Test Info'!$I$6*100), "", H88/'Test Info'!$I$6*100))) ->  | J88: =IF(OR(G88="NA", G88="FAILED"), G88, (IF(ISERROR(E88/G88/'Test Info'!$I$6*6000), "", E88/G88/'Test Info'!$I$6*6000))) ->  | O88: PCL6 | P88: Color | Q88: MSA | R88: Acrobat | S88: 3 | V88: =IF(OR(U88="NA", U88="FAILED"), U88, (IF(ISERROR((S88-1)/(U88-T88)*60), "", (S88-1)/(U88-T88)*60))) ->  | W88: =IF(OR(U88="NA", U88="FAILED"), U88, (IF(ISERROR(V88/'Test Info'!$I$6*100), "", V88/'Test Info'!$I$6*100))) ->  | X88: =IF(OR(U88="NA", U88="FAILED"), U88, (IF(ISERROR(S88/U88/'Test Info'!$I$6*6000), "", S88/U88/'Test Info'!$I$6*6000))) -> 
A89: PCL6 | B89: Color | C89: Calendar | D89: Publisher | E89: 12 | H89: =IF(OR(G89="NA", G89="FAILED"), G89, (IF(ISERROR((E89-1)/(G89-F89)*60), "", (E89-1)/(G89-F89)*60))) ->  | I89: =IF(OR(G89="NA", G89="FAILED"), G89, (IF(ISERROR(H89/'Test Info'!$I$6*100), "", H89/'Test Info'!$I$6*100))) ->  | J89: =IF(OR(G89="NA", G89="FAILED"), G89, (IF(ISERROR(E89/G89/'Test Info'!$I$6*6000), "", E89/G89/'Test Info'!$I$6*6000))) ->  | O89: PCL6 | P89: Color | Q89: Calendar | R89: Publisher | S89: 12 | V89: =IF(OR(U89="NA", U89="FAILED"), U89, (IF(ISERROR((S89-1)/(U89-T89)*60), "", (S89-1)/(U89-T89)*60))) ->  | W89: =IF(OR(U89="NA", U89="FAILED"), U89, (IF(ISERROR(V89/'Test Info'!$I$6*100), "", V89/'Test Info'!$I$6*100))) ->  | X89: =IF(OR(U89="NA", U89="FAILED"), U89, (IF(ISERROR(S89/U89/'Test Info'!$I$6*6000), "", S89/U89/'Test Info'!$I$6*6000))) -> 
A90: PCL6 | B90: Color | C90: BWW | D90: Publisher | E90: 4 | H90: =IF(OR(G90="NA", G90="FAILED"), G90, (IF(ISERROR((E90-1)/(G90-F90)*60), "", (E90-1)/(G90-F90)*60))) ->  | I90: =IF(OR(G90="NA", G90="FAILED"), G90, (IF(ISERROR(H90/'Test Info'!$I$6*100), "", H90/'Test Info'!$I$6*100))) ->  | J90: =IF(OR(G90="NA", G90="FAILED"), G90, (IF(ISERROR(E90/G90/'Test Info'!$I$6*6000), "", E90/G90/'Test Info'!$I$6*6000))) ->  | O90: PCL6 | P90: Color | Q90: BWW | R90: Publisher | S90: 4 | V90: =IF(OR(U90="NA", U90="FAILED"), U90, (IF(ISERROR((S90-1)/(U90-T90)*60), "", (S90-1)/(U90-T90)*60))) ->  | W90: =IF(OR(U90="NA", U90="FAILED"), U90, (IF(ISERROR(V90/'Test Info'!$I$6*100), "", V90/'Test Info'!$I$6*100))) ->  | X90: =IF(OR(U90="NA", U90="FAILED"), U90, (IF(ISERROR(S90/U90/'Test Info'!$I$6*6000), "", S90/U90/'Test Info'!$I$6*6000))) -> 
A91: PCL6 | B91: Color | C91: Architectural | D91: Chrome | E91: 5 | I91: =IF(OR(G91="NA", G91="FAILED"), G91, (IF(ISERROR(H91/'Test Info'!$I$6*100), "", H91/'Test Info'!$I$6*100))) ->  | J91: =IF(OR(G91="NA", G91="FAILED"), G91, (IF(ISERROR(E91/G91/'Test Info'!$I$6*6000), "", E91/G91/'Test Info'!$I$6*6000))) ->  | O91: PCL6 | P91: Color | Q91: Architectural | R91: Chrome | S91: 5 | W91: =IF(OR(U91="NA", U91="FAILED"), U91, (IF(ISERROR(V91/'Test Info'!$I$6*100), "", V91/'Test Info'!$I$6*100))) ->  | X91: =IF(OR(U91="NA", U91="FAILED"), U91, (IF(ISERROR(S91/U91/'Test Info'!$I$6*6000), "", S91/U91/'Test Info'!$I$6*6000))) -> 
A92: PCL6 | B92: Color | C92: Outcast | D92: Acrobat | E92: 12 | I92: =IF(OR(G92="NA", G92="FAILED"), G92, (IF(ISERROR(H92/'Test Info'!$I$6*100), "", H92/'Test Info'!$I$6*100))) ->  | J92: =IF(OR(G92="NA", G92="FAILED"), G92, (IF(ISERROR(E92/G92/'Test Info'!$I$6*6000), "", E92/G92/'Test Info'!$I$6*6000))) ->  | O92: PCL6 | P92: Color | Q92: Outcast | R92: Acrobat | S92: 12 | W92: =IF(OR(U92="NA", U92="FAILED"), U92, (IF(ISERROR(V92/'Test Info'!$I$6*100), "", V92/'Test Info'!$I$6*100))) ->  | X92: =IF(OR(U92="NA", U92="FAILED"), U92, (IF(ISERROR(S92/U92/'Test Info'!$I$6*6000), "", S92/U92/'Test Info'!$I$6*6000))) -> 
A93: PCL6 | B93: Color | C93: Valentines day | D93: Powerpoint | E93: 40 | I93: =IF(OR(G93="NA", G93="FAILED"), G93, (IF(ISERROR(H93/'Test Info'!$I$6*100), "", H93/'Test Info'!$I$6*100))) ->  | J93: =IF(OR(G93="NA", G93="FAILED"), G93, (IF(ISERROR(E93/G93/'Test Info'!$I$6*6000), "", E93/G93/'Test Info'!$I$6*6000))) ->  | O93: PCL6 | P93: Color | Q93: Valentines day | R93: Powerpoint | S93: 40 | W93: =IF(OR(U93="NA", U93="FAILED"), U93, (IF(ISERROR(V93/'Test Info'!$I$6*100), "", V93/'Test Info'!$I$6*100))) ->  | X93: =IF(OR(U93="NA", U93="FAILED"), U93, (IF(ISERROR(S93/U93/'Test Info'!$I$6*6000), "", S93/U93/'Test Info'!$I$6*6000))) -> 
A94: PCL6 | B94: Color | C94: Rainfall | D94: Excel | E94: 7 | I94: =IF(OR(G94="NA", G94="FAILED"), G94, (IF(ISERROR(H94/'Test Info'!$I$6*100), "", H94/'Test Info'!$I$6*100))) ->  | J94: =IF(OR(G94="NA", G94="FAILED"), G94, (IF(ISERROR(E94/G94/'Test Info'!$I$6*6000), "", E94/G94/'Test Info'!$I$6*6000))) ->  | O94: PCL6 | P94: Color | Q94: Rainfall | R94: Excel | S94: 7 | W94: =IF(OR(U94="NA", U94="FAILED"), U94, (IF(ISERROR(V94/'Test Info'!$I$6*100), "", V94/'Test Info'!$I$6*100))) ->  | X94: =IF(OR(U94="NA", U94="FAILED"), U94, (IF(ISERROR(S94/U94/'Test Info'!$I$6*6000), "", S94/U94/'Test Info'!$I$6*6000))) -> 
A95: PCL6 | B95: Color | C95: The blue fairy book 40 | D95: Corel Draw | E95: 40 | I95: =IF(OR(G95="NA", G95="FAILED"), G95, (IF(ISERROR(H95/'Test Info'!$I$6*100), "", H95/'Test Info'!$I$6*100))) ->  | J95: =IF(OR(G95="NA", G95="FAILED"), G95, (IF(ISERROR(E95/G95/'Test Info'!$I$6*6000), "", E95/G95/'Test Info'!$I$6*6000))) ->  | O95: PCL6 | P95: Color | Q95: The blue fairy book 40 | R95: Corel Draw | S95: 40 | W95: =IF(OR(U95="NA", U95="FAILED"), U95, (IF(ISERROR(V95/'Test Info'!$I$6*100), "", V95/'Test Info'!$I$6*100))) ->  | X95: =IF(OR(U95="NA", U95="FAILED"), U95, (IF(ISERROR(S95/U95/'Test Info'!$I$6*6000), "", S95/U95/'Test Info'!$I$6*6000))) -> 
D96: Average | E96: =AVERAGE(E85:E95) -> 12.36363636 | F96: =IF(F95="NA", F95, (IF(ISERROR(AVERAGE(F85:F95)), "", AVERAGE(F85:F95)))) ->  | G96: =IF(G95="NA", G95, (IF(ISERROR(AVERAGE(G85:G95)), "", AVERAGE(G85:G95)))) ->  | H96: =IF(H95="NA", H95, (IF(ISERROR(AVERAGE(H85:H95)), "", AVERAGE(H85:H95)))) ->  | I96: =IF(I95="NA", I95, (IF(ISERROR(AVERAGE(I85:I95)), "", AVERAGE(I85:I95)))) ->  | J96: =IF(J95="NA", J95, (IF(ISERROR(AVERAGE(J85:J95)), "", AVERAGE(J85:J95)))) ->  | R96: Average | S96: =AVERAGE(S85:S95) -> 12.36363636 | T96: =IF(T95="NA", T95, (IF(ISERROR(AVERAGE(T85:T95)), "", AVERAGE(T85:T95)))) ->  | U96: =IF(U95="NA", U95, (IF(ISERROR(AVERAGE(U85:U95)), "", AVERAGE(U85:U95)))) ->  | V96: =IF(V95="NA", V95, (IF(ISERROR(AVERAGE(V85:V95)), "", AVERAGE(V85:V95)))) ->  | W96: =IF(W95="NA", W95, (IF(ISERROR(AVERAGE(W85:W95)), "", AVERAGE(W85:W95)))) ->  | X96: =IF(X95="NA", X95, (IF(ISERROR(AVERAGE(X85:X95)), "", AVERAGE(X85:X95)))) -> 
A98: Stress- No Banner | O98: Stress- No Banner
A99: PCL6 | B99: Color | C99: Begin with things | D99: Corel Draw | E99: 4 | H99: =IF(OR(G99="NA", G99="FAILED"), G99, (IF(ISERROR((E99-1)/(G99-F99)*60), "", (E99-1)/(G99-F99)*60))) ->  | I99: =IF(OR(G99="NA", G99="FAILED"), G99, (IF(ISERROR(H99/'Test Info'!$I$6*100), "", H99/'Test Info'!$I$6*100))) ->  | J99: =IF(OR(G99="NA", G99="FAILED"), G99, (IF(ISERROR(E99/G99/'Test Info'!$I$6*6000), "", E99/G99/'Test Info'!$I$6*6000))) ->  | O99: PCL6 | P99: Color | Q99: Begin with things | R99: Corel Draw | S99: 4 | V99: =IF(OR(U99="NA", U99="FAILED"), U99, (IF(ISERROR((S99-1)/(U99-T99)*60), "", (S99-1)/(U99-T99)*60))) ->  | W99: =IF(OR(U99="NA", U99="FAILED"), U99, (IF(ISERROR(V99/'Test Info'!$I$6*100), "", V99/'Test Info'!$I$6*100))) ->  | X99: =IF(OR(U99="NA", U99="FAILED"), U99, (IF(ISERROR(S99/U99/'Test Info'!$I$6*6000), "", S99/U99/'Test Info'!$I$6*6000))) -> 
A100: PCL6 | B100: Color | C100: Lincoln 6 | D100: Word | E100: 6 | H100: =IF(OR(G100="NA", G100="FAILED"), G100, (IF(ISERROR((E100-1)/(G100-F100)*60), "", (E100-1)/(G100-F100)*60))) ->  | I100: =IF(OR(G100="NA", G100="FAILED"), G100, (IF(ISERROR(H100/'Test Info'!$I$6*100), "", H100/'Test Info'!$I$6*100))) ->  | J100: =IF(OR(G100="NA", G100="FAILED"), G100, (IF(ISERROR(E100/G100/'Test Info'!$I$6*6000), "", E100/G100/'Test Info'!$I$6*6000))) ->  | O100: PCL6 | P100: Color | Q100: Lincoln 6 | R100: Word | S100: 6 | V100: =IF(OR(U100="NA", U100="FAILED"), U100, (IF(ISERROR((S100-1)/(U100-T100)*60), "", (S100-1)/(U100-T100)*60))) ->  | W100: =IF(OR(U100="NA", U100="FAILED"), U100, (IF(ISERROR(V100/'Test Info'!$I$6*100), "", V100/'Test Info'!$I$6*100))) ->  | X100: =IF(OR(U100="NA", U100="FAILED"), U100, (IF(ISERROR(S100/U100/'Test Info'!$I$6*6000), "", S100/U100/'Test Info'!$I$6*6000))) -> 
A101: PCL6 | B101: Color | C101: Sisters | D101: Corel Draw | E101: 12 | H101: =IF(OR(G101="NA", G101="FAILED"), G101, (IF(ISERROR((E101-1)/(G101-F101)*60), "", (E101-1)/(G101-F101)*60))) ->  | I101: =IF(OR(G101="NA", G101="FAILED"), G101, (IF(ISERROR(H101/'Test Info'!$I$6*100), "", H101/'Test Info'!$I$6*100))) ->  | J101: =IF(OR(G101="NA", G101="FAILED"), G101, (IF(ISERROR(E101/G101/'Test Info'!$I$6*6000), "", E101/G101/'Test Info'!$I$6*6000))) ->  | O101: PCL6 | P101: Color | Q101: Sisters | R101: Corel Draw | S101: 12 | V101: =IF(OR(U101="NA", U101="FAILED"), U101, (IF(ISERROR((S101-1)/(U101-T101)*60), "", (S101-1)/(U101-T101)*60))) ->  | W101: =IF(OR(U101="NA", U101="FAILED"), U101, (IF(ISERROR(V101/'Test Info'!$I$6*100), "", V101/'Test Info'!$I$6*100))) ->  | X101: =IF(OR(U101="NA", U101="FAILED"), U101, (IF(ISERROR(S101/U101/'Test Info'!$I$6*6000), "", S101/U101/'Test Info'!$I$6*6000))) -> 
A102: PCL6 | B102: Color | C102: Turtle Island | D102: Photoshop | E102: 1 | J102: =IF(OR(G102="NA", G102="FAILED"), G102, (IF(ISERROR(E102/G102/'Test Info'!$I$6*6000), "", E102/G102/'Test Info'!$I$6*6000))) ->  | O102: PCL6 | P102: Color | Q102: Turtle Island | R102: Photoshop | S102: 1 | X102: =IF(OR(U102="NA", U102="FAILED"), U102, (IF(ISERROR(S102/U102/'Test Info'!$I$6*6000), "", S102/U102/'Test Info'!$I$6*6000))) -> 
D103: Average | E103: =AVERAGE(E99:E102) -> 5.75 | F103: =IF(F102="NA", F102, (IF(ISERROR(AVERAGE(F99:F102)), "", AVERAGE(F99:F102)))) ->  | G103: =IF(G102="NA", G102, (IF(ISERROR(AVERAGE(G99:G102)), "", AVERAGE(G99:G102)))) ->  | H103: =IF(H102="NA", H102, (IF(ISERROR(AVERAGE(H99:H102)), "", AVERAGE(H99:H102)))) ->  | I103: =IF(I102="NA", I102, (IF(ISERROR(AVERAGE(I99:I102)), "", AVERAGE(I99:I102)))) ->  | J103: =IF(J102="NA", J102, (IF(ISERROR(AVERAGE(J99:J102)), "", AVERAGE(J99:J102)))) ->  | R103: Average | S103: =AVERAGE(S99:S102) -> 5.75 | T103: =IF(T102="NA", T102, (IF(ISERROR(AVERAGE(T99:T102)), "", AVERAGE(T99:T102)))) ->  | U103: =IF(U102="NA", U102, (IF(ISERROR(AVERAGE(U99:U102)), "", AVERAGE(U99:U102)))) ->  | V103: =IF(V102="NA", V102, (IF(ISERROR(AVERAGE(V99:V102)), "", AVERAGE(V99:V102)))) ->  | W103: =IF(W102="NA", W102, (IF(ISERROR(AVERAGE(W99:W102)), "", AVERAGE(W99:W102)))) ->  | X103: =IF(X102="NA", X102, (IF(ISERROR(AVERAGE(X99:X102)), "", AVERAGE(X99:X102)))) -> 
A107: PS- Banner | O107: PS- Banner
A108: Office Color- Banner | O108: Office Color- Banner
A109: Type | B109: Mode | C109: Job | D109: Application | E109: Pages | F109: FPOT Measured in Seconds | G109: C-C Measured in Seconds | H109: 2-N PPM Calculated | I109: 2-N % Rated Speed Calculated | J109: C-C % Rated Speed Calculated | O109: Type | P109: Mode | Q109: Job | R109: Application | S109: Pages | T109: FPOT Measured in Seconds | U109: C-C Measured in Seconds | V109: 2-N PPM Calculated | W109: 2-N % Rated Speed Calculated | X109: C-C % Rated Speed Calculated
A110: PS | B110: Color | C110: The blue fairy book 4 | D110: Corel Draw | E110: 5 | H110: =IF(OR(G110="NA", G110="FAILED"), G110, (IF(ISERROR((E110-1)/(G110-F110)*60), "", (E110-1)/(G110-F110)*60))) ->  | I110: =IF(OR(G110="NA", G110="FAILED"), G110, (IF(ISERROR(H110/'Test Info'!$I$6*100), "", H110/'Test Info'!$I$6*100))) ->  | J110: =IF(OR(G110="NA", G110="FAILED"), G110, (IF(ISERROR(E110/G110/'Test Info'!$I$6*6000), "", E110/G110/'Test Info'!$I$6*6000))) ->  | O110: PS | P110: Color | Q110: The blue fairy book 4 | R110: Corel Draw | S110: 5 | V110: =IF(OR(U110="NA", U110="FAILED"), U110, (IF(ISERROR((S110-1)/(U110-T110)*60), "", (S110-1)/(U110-T110)*60))) ->  | W110: =IF(OR(U110="NA", U110="FAILED"), U110, (IF(ISERROR(V110/'Test Info'!$I$6*100), "", V110/'Test Info'!$I$6*100))) ->  | X110: =IF(OR(U110="NA", U110="FAILED"), U110, (IF(ISERROR(S110/U110/'Test Info'!$I$6*6000), "", S110/U110/'Test Info'!$I$6*6000))) -> 
A111: PS | B111: Color | C111: Contents | D111: Word | E111: 13 | H111: =IF(OR(G111="NA", G111="FAILED"), G111, (IF(ISERROR((E111-1)/(G111-F111)*60), "", (E111-1)/(G111-F111)*60))) ->  | I111: =IF(OR(G111="NA", G111="FAILED"), G111, (IF(ISERROR(H111/'Test Info'!$I$6*100), "", H111/'Test Info'!$I$6*100))) ->  | J111: =IF(OR(G111="NA", G111="FAILED"), G111, (IF(ISERROR(E111/G111/'Test Info'!$I$6*6000), "", E111/G111/'Test Info'!$I$6*6000))) ->  | O111: PS | P111: Color | Q111: Contents | R111: Word | S111: 13 | V111: =IF(OR(U111="NA", U111="FAILED"), U111, (IF(ISERROR((S111-1)/(U111-T111)*60), "", (S111-1)/(U111-T111)*60))) ->  | W111: =IF(OR(U111="NA", U111="FAILED"), U111, (IF(ISERROR(V111/'Test Info'!$I$6*100), "", V111/'Test Info'!$I$6*100))) ->  | X111: =IF(OR(U111="NA", U111="FAILED"), U111, (IF(ISERROR(S111/U111/'Test Info'!$I$6*6000), "", S111/U111/'Test Info'!$I$6*6000))) -> 
A112: PS | B112: Color | C112: Jewelry | D112: Powerpoint | E112: 13 | H112: =IF(OR(G112="NA", G112="FAILED"), G112, (IF(ISERROR((E112-1)/(G112-F112)*60), "", (E112-1)/(G112-F112)*60))) ->  | I112: =IF(OR(G112="NA", G112="FAILED"), G112, (IF(ISERROR(H112/'Test Info'!$I$6*100), "", H112/'Test Info'!$I$6*100))) ->  | J112: =IF(OR(G112="NA", G112="FAILED"), G112, (IF(ISERROR(E112/G112/'Test Info'!$I$6*6000), "", E112/G112/'Test Info'!$I$6*6000))) ->  | O112: PS | P112: Color | Q112: Jewelry | R112: Powerpoint | S112: 13 | V112: =IF(OR(U112="NA", U112="FAILED"), U112, (IF(ISERROR((S112-1)/(U112-T112)*60), "", (S112-1)/(U112-T112)*60))) ->  | W112: =IF(OR(U112="NA", U112="FAILED"), U112, (IF(ISERROR(V112/'Test Info'!$I$6*100), "", V112/'Test Info'!$I$6*100))) ->  | X112: =IF(OR(U112="NA", U112="FAILED"), U112, (IF(ISERROR(S112/U112/'Test Info'!$I$6*6000), "", S112/U112/'Test Info'!$I$6*6000))) -> 
A113: PS | B113: Color | C113: Rain year | D113: Excel | E113: 3 | H113: =IF(OR(G113="NA", G113="FAILED"), G113, (IF(ISERROR((E113-1)/(G113-F113)*60), "", (E113-1)/(G113-F113)*60))) ->  | I113: =IF(OR(G113="NA", G113="FAILED"), G113, (IF(ISERROR(H113/'Test Info'!$I$6*100), "", H113/'Test Info'!$I$6*100))) ->  | J113: =IF(OR(G113="NA", G113="FAILED"), G113, (IF(ISERROR(E113/G113/'Test Info'!$I$6*6000), "", E113/G113/'Test Info'!$I$6*6000))) ->  | O113: PS | P113: Color | Q113: Rain year | R113: Excel | S113: 3 | V113: =IF(OR(U113="NA", U113="FAILED"), U113, (IF(ISERROR((S113-1)/(U113-T113)*60), "", (S113-1)/(U113-T113)*60))) ->  | W113: =IF(OR(U113="NA", U113="FAILED"), U113, (IF(ISERROR(V113/'Test Info'!$I$6*100), "", V113/'Test Info'!$I$6*100))) ->  | X113: =IF(OR(U113="NA", U113="FAILED"), U113, (IF(ISERROR(S113/U113/'Test Info'!$I$6*6000), "", S113/U113/'Test Info'!$I$6*6000))) -> 
D114: Average | E114: =AVERAGE(E110:E113) -> 8.5 | F114: =IF(F113="NA", F113, (IF(ISERROR(AVERAGE(F110:F113)), "", AVERAGE(F110:F113)))) ->  | G114: =IF(G113="NA", G113, (IF(ISERROR(AVERAGE(G110:G113)), "", AVERAGE(G110:G113)))) ->  | H114: =IF(H113="NA", H113, (IF(ISERROR(AVERAGE(H110:H113)), "", AVERAGE(H110:H113)))) ->  | I114: =IF(I113="NA", I113, (IF(ISERROR(AVERAGE(I110:I113)), "", AVERAGE(I110:I113)))) ->  | J114: =IF(J113="NA", J113, (IF(ISERROR(AVERAGE(J110:J113)), "", AVERAGE(J110:J113)))) ->  | R114: Average | S114: =AVERAGE(S110:S113) -> 8.5 | T114: =IF(T113="NA", T113, (IF(ISERROR(AVERAGE(T110:T113)), "", AVERAGE(T110:T113)))) ->  | U114: =IF(U113="NA", U113, (IF(ISERROR(AVERAGE(U110:U113)), "", AVERAGE(U110:U113)))) ->  | V114: =IF(V113="NA", V113, (IF(ISERROR(AVERAGE(V110:V113)), "", AVERAGE(V110:V113)))) ->  | W114: =IF(W113="NA", W113, (IF(ISERROR(AVERAGE(W110:W113)), "", AVERAGE(W110:W113)))) ->  | X114: =IF(X113="NA", X113, (IF(ISERROR(AVERAGE(X110:X113)), "", AVERAGE(X110:X113)))) -> 
A116: Office Mono- Banner | O116: Office Mono- Banner
A117: PS | B117: Mono | C117: Gold | D117: Powerpoint | E117: 9 | H117: =IF(OR(G117="NA",G117="FAILED"),G117,(IF(ISERROR((E117-1)/(G117-F117)*60),"",(E117-1)/(G117-F117)*60))) ->  | I117: =IF(OR(G117="NA",G117="FAILED"),G117, (IF(ISERROR(H117/'Test Info'!$J$6*100), "", H117/'Test Info'!$J$6*100))) ->  | J117: =IF(OR(G117="NA",G117="FAILED"),G117, (IF(ISERROR(E117/G117/'Test Info'!$J$6*6000), "", E117/G117/'Test Info'!$J$6*6000))) ->  | O117: PS | P117: Mono | Q117: Gold | R117: Powerpoint | S117: 9 | V117: =IF(OR(U117="NA",U117="FAILED"),U117,(IF(ISERROR((S117-1)/(U117-T117)*60),"",(S117-1)/(U117-T117)*60))) ->  | W117: =IF(OR(U117="NA",U117="FAILED"),U117, (IF(ISERROR(V117/'Test Info'!$J$6*100), "", V117/'Test Info'!$J$6*100))) ->  | X117: =IF(OR(U117="NA",U117="FAILED"),U117, (IF(ISERROR(S117/U117/'Test Info'!$J$6*6000), "", S117/U117/'Test Info'!$J$6*6000))) -> 
A118: PS | B118: Mono | C118: Pain at the pump | D118: Chrome | E118: 4 | H118: =IF(OR(G118="NA",G118="FAILED"),G118,(IF(ISERROR((E118-1)/(G118-F118)*60),"",(E118-1)/(G118-F118)*60))) ->  | I118: =IF(OR(G118="NA",G118="FAILED"),G118, (IF(ISERROR(H118/'Test Info'!$J$6*100), "", H118/'Test Info'!$J$6*100))) ->  | J118: =IF(OR(G118="NA",G118="FAILED"),G118, (IF(ISERROR(E118/G118/'Test Info'!$J$6*6000), "", E118/G118/'Test Info'!$J$6*6000))) ->  | O118: PS | P118: Mono | Q118: Pain at the pump | R118: Chrome | S118: 4 | V118: =IF(OR(U118="NA",U118="FAILED"),U118,(IF(ISERROR((S118-1)/(U118-T118)*60),"",(S118-1)/(U118-T118)*60))) ->  | W118: =IF(OR(U118="NA",U118="FAILED"),U118, (IF(ISERROR(V118/'Test Info'!$J$6*100), "", V118/'Test Info'!$J$6*100))) ->  | X118: =IF(OR(U118="NA",U118="FAILED"),U118, (IF(ISERROR(S118/U118/'Test Info'!$J$6*6000), "", S118/U118/'Test Info'!$J$6*6000))) -> 
A119: PS | B119: Mono | C119: Lincoln 2 | D119: Word | E119: 3 | H119: =IF(OR(G119="NA",G119="FAILED"),G119,(IF(ISERROR((E119-1)/(G119-F119)*60),"",(E119-1)/(G119-F119)*60))) ->  | I119: =IF(OR(G119="NA",G119="FAILED"),G119, (IF(ISERROR(H119/'Test Info'!$J$6*100), "", H119/'Test Info'!$J$6*100))) ->  | J119: =IF(OR(G119="NA",G119="FAILED"),G119, (IF(ISERROR(E119/G119/'Test Info'!$J$6*6000), "", E119/G119/'Test Info'!$J$6*6000))) ->  | O119: PS | P119: Mono | Q119: Lincoln 2 | R119: Word | S119: 3 | V119: =IF(OR(U119="NA",U119="FAILED"),U119,(IF(ISERROR((S119-1)/(U119-T119)*60),"",(S119-1)/(U119-T119)*60))) ->  | W119: =IF(OR(U119="NA",U119="FAILED"),U119, (IF(ISERROR(V119/'Test Info'!$J$6*100), "", V119/'Test Info'!$J$6*100))) ->  | X119: =IF(OR(U119="NA",U119="FAILED"),U119, (IF(ISERROR(S119/U119/'Test Info'!$J$6*6000), "", S119/U119/'Test Info'!$J$6*6000))) -> 
A120: PS | B120: Mono | C120: Budget | D120: Excel | E120: 2 | H120: =IF(OR(G120="NA",G120="FAILED"),G120,(IF(ISERROR((E120-1)/(G120-F120)*60),"",(E120-1)/(G120-F120)*60))) ->  | I120: =IF(OR(G120="NA",G120="FAILED"),G120, (IF(ISERROR(H120/'Test Info'!$J$6*100), "", H120/'Test Info'!$J$6*100))) ->  | J120: =IF(OR(G120="NA",G120="FAILED"),G120, (IF(ISERROR(E120/G120/'Test Info'!$J$6*6000), "", E120/G120/'Test Info'!$J$6*6000))) ->  | O120: PS | P120: Mono | Q120: Budget | R120: Excel | S120: 2 | V120: =IF(OR(U120="NA",U120="FAILED"),U120,(IF(ISERROR((S120-1)/(U120-T120)*60),"",(S120-1)/(U120-T120)*60))) ->  | W120: =IF(OR(U120="NA",U120="FAILED"),U120, (IF(ISERROR(V120/'Test Info'!$J$6*100), "", V120/'Test Info'!$J$6*100))) ->  | X120: =IF(OR(U120="NA",U120="FAILED"),U120, (IF(ISERROR(S120/U120/'Test Info'!$J$6*6000), "", S120/U120/'Test Info'!$J$6*6000))) -> 
D121: Average | E121: =AVERAGE(E117:E120) -> 4.5 | F121: =IF(F120="NA", F120, (IF(ISERROR(AVERAGE(F117:F120)), "", AVERAGE(F117:F120)))) ->  | G121: =IF(G120="NA", G120, (IF(ISERROR(AVERAGE(G117:G120)), "", AVERAGE(G117:G120)))) ->  | H121: =IF(H120="NA", H120, (IF(ISERROR(AVERAGE(H117:H120)), "", AVERAGE(H117:H120)))) ->  | I121: =IF(I120="NA", I120, (IF(ISERROR(AVERAGE(I117:I120)), "", AVERAGE(I117:I120)))) ->  | J121: =IF(J120="NA", J120, (IF(ISERROR(AVERAGE(J117:J120)), "", AVERAGE(J117:J120)))) ->  | R121: Average | S121: =AVERAGE(S117:S120) -> 4.5 | T121: =IF(T120="NA", T120, (IF(ISERROR(AVERAGE(T117:T120)), "", AVERAGE(T117:T120)))) ->  | U121: =IF(U120="NA", U120, (IF(ISERROR(AVERAGE(U117:U120)), "", AVERAGE(U117:U120)))) ->  | V121: =IF(V120="NA", V120, (IF(ISERROR(AVERAGE(V117:V120)), "", AVERAGE(V117:V120)))) ->  | W121: =IF(W120="NA", W120, (IF(ISERROR(AVERAGE(W117:W120)), "", AVERAGE(W117:W120)))) ->  | X121: =IF(X120="NA", X120, (IF(ISERROR(AVERAGE(X117:X120)), "", AVERAGE(X117:X120)))) -> 
A123: Graphic- Banner | O123: Graphic- Banner
A124: PS | B124: Color | C124: Architectural | D124: Chrome | E124: 6 | H124: =IF(OR(G124="NA", G124="FAILED"), G124, (IF(ISERROR((E124-1)/(G124-F124)*60), "", (E124-1)/(G124-F124)*60))) ->  | I124: =IF(OR(G124="NA", G124="FAILED"), G124, (IF(ISERROR(H124/'Test Info'!$I$6*100), "", H124/'Test Info'!$I$6*100))) ->  | J124: =IF(OR(G124="NA", G124="FAILED"), G124, (IF(ISERROR(E124/G124/'Test Info'!$I$6*6000), "", E124/G124/'Test Info'!$I$6*6000))) ->  | O124: PS | P124: Color | Q124: Architectural | R124: Chrome | S124: 6 | V124: =IF(OR(U124="NA", U124="FAILED"), U124, (IF(ISERROR((S124-1)/(U124-T124)*60), "", (S124-1)/(U124-T124)*60))) ->  | W124: =IF(OR(U124="NA", U124="FAILED"), U124, (IF(ISERROR(V124/'Test Info'!$I$6*100), "", V124/'Test Info'!$I$6*100))) ->  | X124: =IF(OR(U124="NA", U124="FAILED"), U124, (IF(ISERROR(S124/U124/'Test Info'!$I$6*6000), "", S124/U124/'Test Info'!$I$6*6000))) -> 
A125: PS | B125: Color | C125: Outcast | D125: Acrobat | E125: 13 | H125: =IF(OR(G125="NA", G125="FAILED"), G125, (IF(ISERROR((E125-1)/(G125-F125)*60), "", (E125-1)/(G125-F125)*60))) ->  | I125: =IF(OR(G125="NA", G125="FAILED"), G125, (IF(ISERROR(H125/'Test Info'!$I$6*100), "", H125/'Test Info'!$I$6*100))) ->  | J125: =IF(OR(G125="NA", G125="FAILED"), G125, (IF(ISERROR(E125/G125/'Test Info'!$I$6*6000), "", E125/G125/'Test Info'!$I$6*6000))) ->  | O125: PS | P125: Color | Q125: Outcast | R125: Acrobat | S125: 13 | V125: =IF(OR(U125="NA", U125="FAILED"), U125, (IF(ISERROR((S125-1)/(U125-T125)*60), "", (S125-1)/(U125-T125)*60))) ->  | W125: =IF(OR(U125="NA", U125="FAILED"), U125, (IF(ISERROR(V125/'Test Info'!$I$6*100), "", V125/'Test Info'!$I$6*100))) ->  | X125: =IF(OR(U125="NA", U125="FAILED"), U125, (IF(ISERROR(S125/U125/'Test Info'!$I$6*6000), "", S125/U125/'Test Info'!$I$6*6000))) -> 
A126: PS | B126: Color | C126: Valentines day | D126: Powerpoint | E126: 41 | H126: =IF(OR(G126="NA", G126="FAILED"), G126, (IF(ISERROR((E126-1)/(G126-F126)*60), "", (E126-1)/(G126-F126)*60))) ->  | I126: =IF(OR(G126="NA", G126="FAILED"), G126, (IF(ISERROR(H126/'Test Info'!$I$6*100), "", H126/'Test Info'!$I$6*100))) ->  | J126: =IF(OR(G126="NA", G126="FAILED"), G126, (IF(ISERROR(E126/G126/'Test Info'!$I$6*6000), "", E126/G126/'Test Info'!$I$6*6000))) ->  | O126: PS | P126: Color | Q126: Valentines day | R126: Powerpoint | S126: 41 | V126: =IF(OR(U126="NA", U126="FAILED"), U126, (IF(ISERROR((S126-1)/(U126-T126)*60), "", (S126-1)/(U126-T126)*60))) ->  | W126: =IF(OR(U126="NA", U126="FAILED"), U126, (IF(ISERROR(V126/'Test Info'!$I$6*100), "", V126/'Test Info'!$I$6*100))) ->  | X126: =IF(OR(U126="NA", U126="FAILED"), U126, (IF(ISERROR(S126/U126/'Test Info'!$I$6*6000), "", S126/U126/'Test Info'!$I$6*6000))) -> 
A127: PS | B127: Color | C127: Rainfall | D127: Excel | E127: 8 | H127: =IF(OR(G127="NA", G127="FAILED"), G127, (IF(ISERROR((E127-1)/(G127-F127)*60), "", (E127-1)/(G127-F127)*60))) ->  | I127: =IF(OR(G127="NA", G127="FAILED"), G127, (IF(ISERROR(H127/'Test Info'!$I$6*100), "", H127/'Test Info'!$I$6*100))) ->  | J127: =IF(OR(G127="NA", G127="FAILED"), G127, (IF(ISERROR(E127/G127/'Test Info'!$I$6*6000), "", E127/G127/'Test Info'!$I$6*6000))) ->  | O127: PS | P127: Color | Q127: Rainfall | R127: Excel | S127: 8 | V127: =IF(OR(U127="NA", U127="FAILED"), U127, (IF(ISERROR((S127-1)/(U127-T127)*60), "", (S127-1)/(U127-T127)*60))) ->  | W127: =IF(OR(U127="NA", U127="FAILED"), U127, (IF(ISERROR(V127/'Test Info'!$I$6*100), "", V127/'Test Info'!$I$6*100))) ->  | X127: =IF(OR(U127="NA", U127="FAILED"), U127, (IF(ISERROR(S127/U127/'Test Info'!$I$6*6000), "", S127/U127/'Test Info'!$I$6*6000))) -> 
D128: Average | E128: =AVERAGE(E124:E127) -> 17 | F128: =IF(F127="NA", F127, (IF(ISERROR(AVERAGE(F124:F127)), "", AVERAGE(F124:F127)))) ->  | G128: =IF(G127="NA", G127, (IF(ISERROR(AVERAGE(G124:G127)), "", AVERAGE(G124:G127)))) ->  | H128: =IF(H127="NA", H127, (IF(ISERROR(AVERAGE(H124:H127)), "", AVERAGE(H124:H127)))) ->  | I128: =IF(I127="NA", I127, (IF(ISERROR(AVERAGE(I124:I127)), "", AVERAGE(I124:I127)))) ->  | J128: =IF(J127="NA", J127, (IF(ISERROR(AVERAGE(J124:J127)), "", AVERAGE(J124:J127)))) ->  | R128: Average | S128: =AVERAGE(S124:S127) -> 17 | T128: =IF(T127="NA", T127, (IF(ISERROR(AVERAGE(T124:T127)), "", AVERAGE(T124:T127)))) ->  | U128: =IF(U127="NA", U127, (IF(ISERROR(AVERAGE(U124:U127)), "", AVERAGE(U124:U127)))) ->  | V128: =IF(V127="NA", V127, (IF(ISERROR(AVERAGE(V124:V127)), "", AVERAGE(V124:V127)))) ->  | W128: =IF(W127="NA", W127, (IF(ISERROR(AVERAGE(W124:W127)), "", AVERAGE(W124:W127)))) ->  | X128: =IF(X127="NA", X127, (IF(ISERROR(AVERAGE(X124:X127)), "", AVERAGE(X124:X127)))) -> 
A130: Stress- Banner | O130: Stress- Banner
A131: PS | B131: Color | C131: Begin with things | D131: Corel Draw | E131: 5 | H131: =IF(OR(G131="NA", G131="FAILED"), G131, (IF(ISERROR((E131-1)/(G131-F131)*60), "", (E131-1)/(G131-F131)*60))) ->  | I131: =IF(OR(G131="NA", G131="FAILED"), G131, (IF(ISERROR(H131/'Test Info'!$I$6*100), "", H131/'Test Info'!$I$6*100))) ->  | J131: =IF(OR(G131="NA", G131="FAILED"), G131, (IF(ISERROR(E131/G131/'Test Info'!$I$6*6000), "", E131/G131/'Test Info'!$I$6*6000))) ->  | O131: PS | P131: Color | Q131: Begin with things | R131: Corel Draw | S131: 5 | V131: =IF(OR(U131="NA", U131="FAILED"), U131, (IF(ISERROR((S131-1)/(U131-T131)*60), "", (S131-1)/(U131-T131)*60))) ->  | W131: =IF(OR(U131="NA", U131="FAILED"), U131, (IF(ISERROR(V131/'Test Info'!$I$6*100), "", V131/'Test Info'!$I$6*100))) ->  | X131: =IF(OR(U131="NA", U131="FAILED"), U131, (IF(ISERROR(S131/U131/'Test Info'!$I$6*6000), "", S131/U131/'Test Info'!$I$6*6000))) -> 
A132: PS | B132: Color | C132: Lincoln 6 | D132: Word | E132: 7 | H132: =IF(OR(G132="NA", G132="FAILED"), G132, (IF(ISERROR((E132-1)/(G132-F132)*60), "", (E132-1)/(G132-F132)*60))) ->  | I132: =IF(OR(G132="NA", G132="FAILED"), G132, (IF(ISERROR(H132/'Test Info'!$I$6*100), "", H132/'Test Info'!$I$6*100))) ->  | J132: =IF(OR(G132="NA", G132="FAILED"), G132, (IF(ISERROR(E132/G132/'Test Info'!$I$6*6000), "", E132/G132/'Test Info'!$I$6*6000))) ->  | O132: PS | P132: Color | Q132: Lincoln 6 | R132: Word | S132: 7 | V132: =IF(OR(U132="NA", U132="FAILED"), U132, (IF(ISERROR((S132-1)/(U132-T132)*60), "", (S132-1)/(U132-T132)*60))) ->  | W132: =IF(OR(U132="NA", U132="FAILED"), U132, (IF(ISERROR(V132/'Test Info'!$I$6*100), "", V132/'Test Info'!$I$6*100))) ->  | X132: =IF(OR(U132="NA", U132="FAILED"), U132, (IF(ISERROR(S132/U132/'Test Info'!$I$6*6000), "", S132/U132/'Test Info'!$I$6*6000))) -> 
A133: PS | B133: Color | C133: Sisters | D133: Corel Draw | E133: 13 | H133: =IF(OR(G133="NA", G133="FAILED"), G133, (IF(ISERROR((E133-1)/(G133-F133)*60), "", (E133-1)/(G133-F133)*60))) ->  | I133: =IF(OR(G133="NA", G133="FAILED"), G133, (IF(ISERROR(H133/'Test Info'!$I$6*100), "", H133/'Test Info'!$I$6*100))) ->  | J133: =IF(OR(G133="NA", G133="FAILED"), G133, (IF(ISERROR(E133/G133/'Test Info'!$I$6*6000), "", E133/G133/'Test Info'!$I$6*6000))) ->  | O133: PS | P133: Color | Q133: Sisters | R133: Corel Draw | S133: 13 | V133: =IF(OR(U133="NA", U133="FAILED"), U133, (IF(ISERROR((S133-1)/(U133-T133)*60), "", (S133-1)/(U133-T133)*60))) ->  | W133: =IF(OR(U133="NA", U133="FAILED"), U133, (IF(ISERROR(V133/'Test Info'!$I$6*100), "", V133/'Test Info'!$I$6*100))) ->  | X133: =IF(OR(U133="NA", U133="FAILED"), U133, (IF(ISERROR(S133/U133/'Test Info'!$I$6*6000), "", S133/U133/'Test Info'!$I$6*6000))) -> 
A134: PS | B134: Color | C134: Turtle Island | D134: Photoshop | E134: 2 | H134: =IF(OR(G134="NA", G134="FAILED"), G134, (IF(ISERROR((E134-1)/(G134-F134)*60), "", (E134-1)/(G134-F134)*60))) ->  | I134: =IF(OR(G134="NA", G134="FAILED"), G134, (IF(ISERROR(H134/'Test Info'!$I$6*100), "", H134/'Test Info'!$I$6*100))) ->  | J134: =IF(OR(G134="NA", G134="FAILED"), G134, (IF(ISERROR(E134/G134/'Test Info'!$I$6*6000), "", E134/G134/'Test Info'!$I$6*6000))) ->  | O134: PS | P134: Color | Q134: Turtle Island | R134: Photoshop | S134: 2 | V134: =IF(OR(U134="NA", U134="FAILED"), U134, (IF(ISERROR((S134-1)/(U134-T134)*60), "", (S134-1)/(U134-T134)*60))) ->  | W134: =IF(OR(U134="NA", U134="FAILED"), U134, (IF(ISERROR(V134/'Test Info'!$I$6*100), "", V134/'Test Info'!$I$6*100))) ->  | X134: =IF(OR(U134="NA", U134="FAILED"), U134, (IF(ISERROR(S134/U134/'Test Info'!$I$6*6000), "", S134/U134/'Test Info'!$I$6*6000))) -> 
D135: Average | E135: =AVERAGE(E131:E134) -> 6.75 | F135: =IF(F134="NA", F134, (IF(ISERROR(AVERAGE(F131:F134)), "", AVERAGE(F131:F134)))) ->  | G135: =IF(G134="NA", G134, (IF(ISERROR(AVERAGE(G131:G134)), "", AVERAGE(G131:G134)))) ->  | H135: =IF(H134="NA", H134, (IF(ISERROR(AVERAGE(H131:H134)), "", AVERAGE(H131:H134)))) ->  | I135: =IF(I134="NA", I134, (IF(ISERROR(AVERAGE(I131:I134)), "", AVERAGE(I131:I134)))) ->  | J135: =IF(J134="NA", J134, (IF(ISERROR(AVERAGE(J131:J134)), "", AVERAGE(J131:J134)))) ->  | R135: Average | S135: =AVERAGE(S131:S134) -> 6.75 | T135: =IF(T134="NA", T134, (IF(ISERROR(AVERAGE(T131:T134)), "", AVERAGE(T131:T134)))) ->  | U135: =IF(U134="NA", U134, (IF(ISERROR(AVERAGE(U131:U134)), "", AVERAGE(U131:U134)))) ->  | V135: =IF(V134="NA", V134, (IF(ISERROR(AVERAGE(V131:V134)), "", AVERAGE(V131:V134)))) ->  | W135: =IF(W134="NA", W134, (IF(ISERROR(AVERAGE(W131:W134)), "", AVERAGE(W131:W134)))) ->  | X135: =IF(X134="NA", X134, (IF(ISERROR(AVERAGE(X131:X134)), "", AVERAGE(X131:X134)))) -> 
A137: PCL6- Banner | O137: PCL6- Banner
A138: Office Color- Banner | O138: Office Color- Banner
A139: Type | B139: Mode | C139: Job | D139: Application | E139: Pages | F139: FPOT Measured in Seconds | G139: C-C Measured in Seconds | H139: 2-N PPM Calculated | I139: 2-N % Rated Speed Calculated | J139: C-C % Rated Speed Calculated | O139: Type | P139: Mode | Q139: Job | R139: Application | S139: Pages | T139: FPOT Measured in Seconds | U139: C-C Measured in Seconds | V139: 2-N PPM Calculated | W139: 2-N % Rated Speed Calculated | X139: C-C % Rated Speed Calculated
A140: PCL6 | B140: Color | C140: The blue fairy book 4 | D140: Corel Draw | E140: 5 | H140: =IF(OR(G140="NA", G140="FAILED"), G140, (IF(ISERROR((E140-1)/(G140-F140)*60), "", (E140-1)/(G140-F140)*60))) ->  | I140: =IF(OR(G140="NA", G140="FAILED"), G140, (IF(ISERROR(H140/'Test Info'!$I$6*100), "", H140/'Test Info'!$I$6*100))) ->  | J140: =IF(OR(G140="NA", G140="FAILED"), G140, (IF(ISERROR(E140/G140/'Test Info'!$I$6*6000), "", E140/G140/'Test Info'!$I$6*6000))) ->  | O140: PCL6 | P140: Color | Q140: The blue fairy book 4 | R140: Corel Draw | S140: 5 | V140: =IF(OR(U140="NA", U140="FAILED"), U140, (IF(ISERROR((S140-1)/(U140-T140)*60), "", (S140-1)/(U140-T140)*60))) ->  | W140: =IF(OR(U140="NA", U140="FAILED"), U140, (IF(ISERROR(V140/'Test Info'!$I$6*100), "", V140/'Test Info'!$I$6*100))) ->  | X140: =IF(OR(U140="NA", U140="FAILED"), U140, (IF(ISERROR(S140/U140/'Test Info'!$I$6*6000), "", S140/U140/'Test Info'!$I$6*6000))) -> 
A141: PCL6 | B141: Color | C141: Contents | D141: Word | E141: 13 | H141: =IF(OR(G141="NA", G141="FAILED"), G141, (IF(ISERROR((E141-1)/(G141-F141)*60), "", (E141-1)/(G141-F141)*60))) ->  | I141: =IF(OR(G141="NA", G141="FAILED"), G141, (IF(ISERROR(H141/'Test Info'!$I$6*100), "", H141/'Test Info'!$I$6*100))) ->  | J141: =IF(OR(G141="NA", G141="FAILED"), G141, (IF(ISERROR(E141/G141/'Test Info'!$I$6*6000), "", E141/G141/'Test Info'!$I$6*6000))) ->  | O141: PCL6 | P141: Color | Q141: Contents | R141: Word | S141: 13 | V141: =IF(OR(U141="NA", U141="FAILED"), U141, (IF(ISERROR((S141-1)/(U141-T141)*60), "", (S141-1)/(U141-T141)*60))) ->  | W141: =IF(OR(U141="NA", U141="FAILED"), U141, (IF(ISERROR(V141/'Test Info'!$I$6*100), "", V141/'Test Info'!$I$6*100))) ->  | X141: =IF(OR(U141="NA", U141="FAILED"), U141, (IF(ISERROR(S141/U141/'Test Info'!$I$6*6000), "", S141/U141/'Test Info'!$I$6*6000))) -> 
A142: PCL6 | B142: Color | C142: Jewelry | D142: Powerpoint | E142: 13 | H142: =IF(OR(G142="NA", G142="FAILED"), G142, (IF(ISERROR((E142-1)/(G142-F142)*60), "", (E142-1)/(G142-F142)*60))) ->  | I142: =IF(OR(G142="NA", G142="FAILED"), G142, (IF(ISERROR(H142/'Test Info'!$I$6*100), "", H142/'Test Info'!$I$6*100))) ->  | J142: =IF(OR(G142="NA", G142="FAILED"), G142, (IF(ISERROR(E142/G142/'Test Info'!$I$6*6000), "", E142/G142/'Test Info'!$I$6*6000))) ->  | O142: PCL6 | P142: Color | Q142: Jewelry | R142: Powerpoint | S142: 13 | V142: =IF(OR(U142="NA", U142="FAILED"), U142, (IF(ISERROR((S142-1)/(U142-T142)*60), "", (S142-1)/(U142-T142)*60))) ->  | W142: =IF(OR(U142="NA", U142="FAILED"), U142, (IF(ISERROR(V142/'Test Info'!$I$6*100), "", V142/'Test Info'!$I$6*100))) ->  | X142: =IF(OR(U142="NA", U142="FAILED"), U142, (IF(ISERROR(S142/U142/'Test Info'!$I$6*6000), "", S142/U142/'Test Info'!$I$6*6000))) -> 
A143: PCL6 | B143: Color | C143: Rain year | D143: Excel | E143: 3 | H143: =IF(OR(G143="NA", G143="FAILED"), G143, (IF(ISERROR((E143-1)/(G143-F143)*60), "", (E143-1)/(G143-F143)*60))) ->  | I143: =IF(OR(G143="NA", G143="FAILED"), G143, (IF(ISERROR(H143/'Test Info'!$I$6*100), "", H143/'Test Info'!$I$6*100))) ->  | J143: =IF(OR(G143="NA", G143="FAILED"), G143, (IF(ISERROR(E143/G143/'Test Info'!$I$6*6000), "", E143/G143/'Test Info'!$I$6*6000))) ->  | O143: PCL6 | P143: Color | Q143: Rain year | R143: Excel | S143: 3 | V143: =IF(OR(U143="NA", U143="FAILED"), U143, (IF(ISERROR((S143-1)/(U143-T143)*60), "", (S143-1)/(U143-T143)*60))) ->  | W143: =IF(OR(U143="NA", U143="FAILED"), U143, (IF(ISERROR(V143/'Test Info'!$I$6*100), "", V143/'Test Info'!$I$6*100))) ->  | X143: =IF(OR(U143="NA", U143="FAILED"), U143, (IF(ISERROR(S143/U143/'Test Info'!$I$6*6000), "", S143/U143/'Test Info'!$I$6*6000))) -> 
D144: Average | E144: =AVERAGE(E140:E143) -> 8.5 | F144: =IF(F143="NA", F143, (IF(ISERROR(AVERAGE(F140:F143)), "", AVERAGE(F140:F143)))) ->  | G144: =IF(G143="NA", G143, (IF(ISERROR(AVERAGE(G140:G143)), "", AVERAGE(G140:G143)))) ->  | H144: =IF(H143="NA", H143, (IF(ISERROR(AVERAGE(H140:H143)), "", AVERAGE(H140:H143)))) ->  | I144: =IF(I143="NA", I143, (IF(ISERROR(AVERAGE(I140:I143)), "", AVERAGE(I140:I143)))) ->  | J144: =IF(J143="NA", J143, (IF(ISERROR(AVERAGE(J140:J143)), "", AVERAGE(J140:J143)))) ->  | R144: Average | S144: =AVERAGE(S140:S143) -> 8.5 | T144: =IF(T143="NA", T143, (IF(ISERROR(AVERAGE(T140:T143)), "", AVERAGE(T140:T143)))) ->  | U144: =IF(U143="NA", U143, (IF(ISERROR(AVERAGE(U140:U143)), "", AVERAGE(U140:U143)))) ->  | V144: =IF(V143="NA", V143, (IF(ISERROR(AVERAGE(V140:V143)), "", AVERAGE(V140:V143)))) ->  | W144: =IF(W143="NA", W143, (IF(ISERROR(AVERAGE(W140:W143)), "", AVERAGE(W140:W143)))) ->  | X144: =IF(X143="NA", X143, (IF(ISERROR(AVERAGE(X140:X143)), "", AVERAGE(X140:X143)))) -> 
A146: Office Mono- Banner | O146: Office Mono- Banner
A147: PCL6 | B147: Mono | C147: Gold | D147: Powerpoint | E147: 9 | H147: =IF(OR(G147="NA",G147="FAILED"),G147,(IF(ISERROR((E147-1)/(G147-F147)*60),"",(E147-1)/(G147-F147)*60))) ->  | I147: =IF(OR(G147="NA",G147="FAILED"),G147, (IF(ISERROR(H147/'Test Info'!$J$6*100), "", H147/'Test Info'!$J$6*100))) ->  | J147: =IF(OR(G147="NA",G147="FAILED"),G147, (IF(ISERROR(E147/G147/'Test Info'!$J$6*6000), "", E147/G147/'Test Info'!$J$6*6000))) ->  | O147: PCL6 | P147: Mono | Q147: Gold | R147: Powerpoint | S147: 9 | V147: =IF(OR(U147="NA",U147="FAILED"),U147,(IF(ISERROR((S147-1)/(U147-T147)*60),"",(S147-1)/(U147-T147)*60))) ->  | W147: =IF(OR(U147="NA",U147="FAILED"),U147, (IF(ISERROR(V147/'Test Info'!$J$6*100), "", V147/'Test Info'!$J$6*100))) ->  | X147: =IF(OR(U147="NA",U147="FAILED"),U147, (IF(ISERROR(S147/U147/'Test Info'!$J$6*6000), "", S147/U147/'Test Info'!$J$6*6000))) -> 
A148: PCL6 | B148: Mono | C148: Pain at the pump | D148: Chrome | E148: 4 | H148: =IF(OR(G148="NA",G148="FAILED"),G148,(IF(ISERROR((E148-1)/(G148-F148)*60),"",(E148-1)/(G148-F148)*60))) ->  | I148: =IF(OR(G148="NA",G148="FAILED"),G148, (IF(ISERROR(H148/'Test Info'!$J$6*100), "", H148/'Test Info'!$J$6*100))) ->  | J148: =IF(OR(G148="NA",G148="FAILED"),G148, (IF(ISERROR(E148/G148/'Test Info'!$J$6*6000), "", E148/G148/'Test Info'!$J$6*6000))) ->  | O148: PCL6 | P148: Mono | Q148: Pain at the pump | R148: Chrome | S148: 4 | V148: =IF(OR(U148="NA",U148="FAILED"),U148,(IF(ISERROR((S148-1)/(U148-T148)*60),"",(S148-1)/(U148-T148)*60))) ->  | W148: =IF(OR(U148="NA",U148="FAILED"),U148, (IF(ISERROR(V148/'Test Info'!$J$6*100), "", V148/'Test Info'!$J$6*100))) ->  | X148: =IF(OR(U148="NA",U148="FAILED"),U148, (IF(ISERROR(S148/U148/'Test Info'!$J$6*6000), "", S148/U148/'Test Info'!$J$6*6000))) -> 
A149: PCL6 | B149: Mono | C149: Lincoln 2 | D149: Word | E149: 3 | H149: =IF(OR(G149="NA",G149="FAILED"),G149,(IF(ISERROR((E149-1)/(G149-F149)*60),"",(E149-1)/(G149-F149)*60))) ->  | I149: =IF(OR(G149="NA",G149="FAILED"),G149, (IF(ISERROR(H149/'Test Info'!$J$6*100), "", H149/'Test Info'!$J$6*100))) ->  | J149: =IF(OR(G149="NA",G149="FAILED"),G149, (IF(ISERROR(E149/G149/'Test Info'!$J$6*6000), "", E149/G149/'Test Info'!$J$6*6000))) ->  | O149: PCL6 | P149: Mono | Q149: Lincoln 2 | R149: Word | S149: 3 | V149: =IF(OR(U149="NA",U149="FAILED"),U149,(IF(ISERROR((S149-1)/(U149-T149)*60),"",(S149-1)/(U149-T149)*60))) ->  | W149: =IF(OR(U149="NA",U149="FAILED"),U149, (IF(ISERROR(V149/'Test Info'!$J$6*100), "", V149/'Test Info'!$J$6*100))) ->  | X149: =IF(OR(U149="NA",U149="FAILED"),U149, (IF(ISERROR(S149/U149/'Test Info'!$J$6*6000), "", S149/U149/'Test Info'!$J$6*6000))) -> 
A150: PCL6 | B150: Mono | C150: Budget | D150: Excel | E150: 2 | H150: =IF(OR(G150="NA",G150="FAILED"),G150,(IF(ISERROR((E150-1)/(G150-F150)*60),"",(E150-1)/(G150-F150)*60))) ->  | I150: =IF(OR(G150="NA",G150="FAILED"),G150, (IF(ISERROR(H150/'Test Info'!$J$6*100), "", H150/'Test Info'!$J$6*100))) ->  | J150: =IF(OR(G150="NA",G150="FAILED"),G150, (IF(ISERROR(E150/G150/'Test Info'!$J$6*6000), "", E150/G150/'Test Info'!$J$6*6000))) ->  | O150: PCL6 | P150: Mono | Q150: Budget | R150: Excel | S150: 2 | V150: =IF(OR(U150="NA",U150="FAILED"),U150,(IF(ISERROR((S150-1)/(U150-T150)*60),"",(S150-1)/(U150-T150)*60))) ->  | W150: =IF(OR(U150="NA",U150="FAILED"),U150, (IF(ISERROR(V150/'Test Info'!$J$6*100), "", V150/'Test Info'!$J$6*100))) ->  | X150: =IF(OR(U150="NA",U150="FAILED"),U150, (IF(ISERROR(S150/U150/'Test Info'!$J$6*6000), "", S150/U150/'Test Info'!$J$6*6000))) -> 
D151: Average | E151: =AVERAGE(E147:E150) -> 4.5 | F151: =IF(F150="NA", F150, (IF(ISERROR(AVERAGE(F147:F150)), "", AVERAGE(F147:F150)))) ->  | G151: =IF(G150="NA", G150, (IF(ISERROR(AVERAGE(G147:G150)), "", AVERAGE(G147:G150)))) ->  | H151: =IF(H150="NA", H150, (IF(ISERROR(AVERAGE(H147:H150)), "", AVERAGE(H147:H150)))) ->  | I151: =IF(I150="NA", I150, (IF(ISERROR(AVERAGE(I147:I150)), "", AVERAGE(I147:I150)))) ->  | J151: =IF(J150="NA", J150, (IF(ISERROR(AVERAGE(J147:J150)), "", AVERAGE(J147:J150)))) ->  | R151: Average | S151: =AVERAGE(S147:S150) -> 4.5 | T151: =IF(T150="NA", T150, (IF(ISERROR(AVERAGE(T147:T150)), "", AVERAGE(T147:T150)))) ->  | U151: =IF(U150="NA", U150, (IF(ISERROR(AVERAGE(U147:U150)), "", AVERAGE(U147:U150)))) ->  | V151: =IF(V150="NA", V150, (IF(ISERROR(AVERAGE(V147:V150)), "", AVERAGE(V147:V150)))) ->  | W151: =IF(W150="NA", W150, (IF(ISERROR(AVERAGE(W147:W150)), "", AVERAGE(W147:W150)))) ->  | X151: =IF(X150="NA", X150, (IF(ISERROR(AVERAGE(X147:X150)), "", AVERAGE(X147:X150)))) -> 
A154: Graphic- Banner | O154: Graphic- Banner
A155: PCL6 | B155: Color | C155: Architectural | D155: Chrome | E155: 6 | H155: =IF(OR(G155="NA", G155="FAILED"), G155, (IF(ISERROR((E155-1)/(G155-F155)*60), "", (E155-1)/(G155-F155)*60))) ->  | I155: =IF(OR(G155="NA", G155="FAILED"), G155, (IF(ISERROR(H155/'Test Info'!$I$6*100), "", H155/'Test Info'!$I$6*100))) ->  | J155: =IF(OR(G155="NA", G155="FAILED"), G155, (IF(ISERROR(E155/G155/'Test Info'!$I$6*6000), "", E155/G155/'Test Info'!$I$6*6000))) ->  | O155: PCL6 | P155: Color | Q155: Architectural | R155: Chrome | S155: 6 | V155: =IF(OR(U155="NA", U155="FAILED"), U155, (IF(ISERROR((S155-1)/(U155-T155)*60), "", (S155-1)/(U155-T155)*60))) ->  | W155: =IF(OR(U155="NA", U155="FAILED"), U155, (IF(ISERROR(V155/'Test Info'!$I$6*100), "", V155/'Test Info'!$I$6*100))) ->  | X155: =IF(OR(U155="NA", U155="FAILED"), U155, (IF(ISERROR(S155/U155/'Test Info'!$I$6*6000), "", S155/U155/'Test Info'!$I$6*6000))) -> 
A156: PCL6 | B156: Color | C156: Outcast | D156: Acrobat | E156: 13 | H156: =IF(OR(G156="NA", G156="FAILED"), G156, (IF(ISERROR((E156-1)/(G156-F156)*60), "", (E156-1)/(G156-F156)*60))) ->  | I156: =IF(OR(G156="NA", G156="FAILED"), G156, (IF(ISERROR(H156/'Test Info'!$I$6*100), "", H156/'Test Info'!$I$6*100))) ->  | J156: =IF(OR(G156="NA", G156="FAILED"), G156, (IF(ISERROR(E156/G156/'Test Info'!$I$6*6000), "", E156/G156/'Test Info'!$I$6*6000))) ->  | O156: PCL6 | P156: Color | Q156: Outcast | R156: Acrobat | S156: 13 | V156: =IF(OR(U156="NA", U156="FAILED"), U156, (IF(ISERROR((S156-1)/(U156-T156)*60), "", (S156-1)/(U156-T156)*60))) ->  | W156: =IF(OR(U156="NA", U156="FAILED"), U156, (IF(ISERROR(V156/'Test Info'!$I$6*100), "", V156/'Test Info'!$I$6*100))) ->  | X156: =IF(OR(U156="NA", U156="FAILED"), U156, (IF(ISERROR(S156/U156/'Test Info'!$I$6*6000), "", S156/U156/'Test Info'!$I$6*6000))) -> 
A157: PCL6 | B157: Color | C157: Valentines day | D157: Powerpoint | E157: 41 | H157: =IF(OR(G157="NA", G157="FAILED"), G157, (IF(ISERROR((E157-1)/(G157-F157)*60), "", (E157-1)/(G157-F157)*60))) ->  | I157: =IF(OR(G157="NA", G157="FAILED"), G157, (IF(ISERROR(H157/'Test Info'!$I$6*100), "", H157/'Test Info'!$I$6*100))) ->  | J157: =IF(OR(G157="NA", G157="FAILED"), G157, (IF(ISERROR(E157/G157/'Test Info'!$I$6*6000), "", E157/G157/'Test Info'!$I$6*6000))) ->  | O157: PCL6 | P157: Color | Q157: Valentines day | R157: Powerpoint | S157: 41 | V157: =IF(OR(U157="NA", U157="FAILED"), U157, (IF(ISERROR((S157-1)/(U157-T157)*60), "", (S157-1)/(U157-T157)*60))) ->  | W157: =IF(OR(U157="NA", U157="FAILED"), U157, (IF(ISERROR(V157/'Test Info'!$I$6*100), "", V157/'Test Info'!$I$6*100))) ->  | X157: =IF(OR(U157="NA", U157="FAILED"), U157, (IF(ISERROR(S157/U157/'Test Info'!$I$6*6000), "", S157/U157/'Test Info'!$I$6*6000))) -> 
A158: PCL6 | B158: Color | C158: Rainfall | D158: Excel | E158: 8 | H158: =IF(OR(G158="NA", G158="FAILED"), G158, (IF(ISERROR((E158-1)/(G158-F158)*60), "", (E158-1)/(G158-F158)*60))) ->  | I158: =IF(OR(G158="NA", G158="FAILED"), G158, (IF(ISERROR(H158/'Test Info'!$I$6*100), "", H158/'Test Info'!$I$6*100))) ->  | J158: =IF(OR(G158="NA", G158="FAILED"), G158, (IF(ISERROR(E158/G158/'Test Info'!$I$6*6000), "", E158/G158/'Test Info'!$I$6*6000))) ->  | O158: PCL6 | P158: Color | Q158: Rainfall | R158: Excel | S158: 8 | V158: =IF(OR(U158="NA", U158="FAILED"), U158, (IF(ISERROR((S158-1)/(U158-T158)*60), "", (S158-1)/(U158-T158)*60))) ->  | W158: =IF(OR(U158="NA", U158="FAILED"), U158, (IF(ISERROR(V158/'Test Info'!$I$6*100), "", V158/'Test Info'!$I$6*100))) ->  | X158: =IF(OR(U158="NA", U158="FAILED"), U158, (IF(ISERROR(S158/U158/'Test Info'!$I$6*6000), "", S158/U158/'Test Info'!$I$6*6000))) -> 
D159: Average | E159: =AVERAGE(E155:E158) -> 17 | F159: =IF(F158="NA", F158, (IF(ISERROR(AVERAGE(F155:F158)), "", AVERAGE(F155:F158)))) ->  | G159: =IF(G158="NA", G158, (IF(ISERROR(AVERAGE(G155:G158)), "", AVERAGE(G155:G158)))) ->  | H159: =IF(H158="NA", H158, (IF(ISERROR(AVERAGE(H155:H158)), "", AVERAGE(H155:H158)))) ->  | I159: =IF(I158="NA", I158, (IF(ISERROR(AVERAGE(I155:I158)), "", AVERAGE(I155:I158)))) ->  | J159: =IF(J158="NA", J158, (IF(ISERROR(AVERAGE(J155:J158)), "", AVERAGE(J155:J158)))) ->  | R159: Average | S159: =AVERAGE(S155:S158) -> 17 | T159: =IF(T158="NA", T158, (IF(ISERROR(AVERAGE(T155:T158)), "", AVERAGE(T155:T158)))) ->  | U159: =IF(U158="NA", U158, (IF(ISERROR(AVERAGE(U155:U158)), "", AVERAGE(U155:U158)))) ->  | V159: =IF(V158="NA", V158, (IF(ISERROR(AVERAGE(V155:V158)), "", AVERAGE(V155:V158)))) ->  | W159: =IF(W158="NA", W158, (IF(ISERROR(AVERAGE(W155:W158)), "", AVERAGE(W155:W158)))) ->  | X159: =IF(X158="NA", X158, (IF(ISERROR(AVERAGE(X155:X158)), "", AVERAGE(X155:X158)))) -> 
A161: Stress- Banner | O161: Stress- Banner
A162: PCL6 | B162: Color | C162: Begin with things | D162: Corel Draw | E162: 5 | H162: =IF(OR(G162="NA", G162="FAILED"), G162, (IF(ISERROR((E162-1)/(G162-F162)*60), "", (E162-1)/(G162-F162)*60))) ->  | I162: =IF(OR(G162="NA", G162="FAILED"), G162, (IF(ISERROR(H162/'Test Info'!$I$6*100), "", H162/'Test Info'!$I$6*100))) ->  | J162: =IF(OR(G162="NA", G162="FAILED"), G162, (IF(ISERROR(E162/G162/'Test Info'!$I$6*6000), "", E162/G162/'Test Info'!$I$6*6000))) ->  | O162: PCL6 | P162: Color | Q162: Begin with things | R162: Corel Draw | S162: 5 | V162: =IF(OR(U162="NA", U162="FAILED"), U162, (IF(ISERROR((S162-1)/(U162-T162)*60), "", (S162-1)/(U162-T162)*60))) ->  | W162: =IF(OR(U162="NA", U162="FAILED"), U162, (IF(ISERROR(V162/'Test Info'!$I$6*100), "", V162/'Test Info'!$I$6*100))) ->  | X162: =IF(OR(U162="NA", U162="FAILED"), U162, (IF(ISERROR(S162/U162/'Test Info'!$I$6*6000), "", S162/U162/'Test Info'!$I$6*6000))) -> 
A163: PCL6 | B163: Color | C163: Lincoln 6 | D163: Word | E163: 7 | H163: =IF(OR(G163="NA", G163="FAILED"), G163, (IF(ISERROR((E163-1)/(G163-F163)*60), "", (E163-1)/(G163-F163)*60))) ->  | I163: =IF(OR(G163="NA", G163="FAILED"), G163, (IF(ISERROR(H163/'Test Info'!$I$6*100), "", H163/'Test Info'!$I$6*100))) ->  | J163: =IF(OR(G163="NA", G163="FAILED"), G163, (IF(ISERROR(E163/G163/'Test Info'!$I$6*6000), "", E163/G163/'Test Info'!$I$6*6000))) ->  | O163: PCL6 | P163: Color | Q163: Lincoln 6 | R163: Word | S163: 7 | V163: =IF(OR(U163="NA", U163="FAILED"), U163, (IF(ISERROR((S163-1)/(U163-T163)*60), "", (S163-1)/(U163-T163)*60))) ->  | W163: =IF(OR(U163="NA", U163="FAILED"), U163, (IF(ISERROR(V163/'Test Info'!$I$6*100), "", V163/'Test Info'!$I$6*100))) ->  | X163: =IF(OR(U163="NA", U163="FAILED"), U163, (IF(ISERROR(S163/U163/'Test Info'!$I$6*6000), "", S163/U163/'Test Info'!$I$6*6000))) -> 
A164: PCL6 | B164: Color | C164: Sisters | D164: Corel Draw | E164: 13 | H164: =IF(OR(G164="NA", G164="FAILED"), G164, (IF(ISERROR((E164-1)/(G164-F164)*60), "", (E164-1)/(G164-F164)*60))) ->  | I164: =IF(OR(G164="NA", G164="FAILED"), G164, (IF(ISERROR(H164/'Test Info'!$I$6*100), "", H164/'Test Info'!$I$6*100))) ->  | J164: =IF(OR(G164="NA", G164="FAILED"), G164, (IF(ISERROR(E164/G164/'Test Info'!$I$6*6000), "", E164/G164/'Test Info'!$I$6*6000))) ->  | O164: PCL6 | P164: Color | Q164: Sisters | R164: Corel Draw | S164: 13 | V164: =IF(OR(U164="NA", U164="FAILED"), U164, (IF(ISERROR((S164-1)/(U164-T164)*60), "", (S164-1)/(U164-T164)*60))) ->  | W164: =IF(OR(U164="NA", U164="FAILED"), U164, (IF(ISERROR(V164/'Test Info'!$I$6*100), "", V164/'Test Info'!$I$6*100))) ->  | X164: =IF(OR(U164="NA", U164="FAILED"), U164, (IF(ISERROR(S164/U164/'Test Info'!$I$6*6000), "", S164/U164/'Test Info'!$I$6*6000))) -> 
A165: PCL6 | B165: Color | C165: Turtle Island | D165: Photoshop | E165: 2 | H165: =IF(OR(G165="NA", G165="FAILED"), G165, (IF(ISERROR((E165-1)/(G165-F165)*60), "", (E165-1)/(G165-F165)*60))) ->  | I165: =IF(OR(G165="NA", G165="FAILED"), G165, (IF(ISERROR(H165/'Test Info'!$I$6*100), "", H165/'Test Info'!$I$6*100))) ->  | J165: =IF(OR(G165="NA", G165="FAILED"), G165, (IF(ISERROR(E165/G165/'Test Info'!$I$6*6000), "", E165/G165/'Test Info'!$I$6*6000))) ->  | O165: PCL6 | P165: Color | Q165: Turtle Island | R165: Photoshop | S165: 2 | V165: =IF(OR(U165="NA", U165="FAILED"), U165, (IF(ISERROR((S165-1)/(U165-T165)*60), "", (S165-1)/(U165-T165)*60))) ->  | W165: =IF(OR(U165="NA", U165="FAILED"), U165, (IF(ISERROR(V165/'Test Info'!$I$6*100), "", V165/'Test Info'!$I$6*100))) ->  | X165: =IF(OR(U165="NA", U165="FAILED"), U165, (IF(ISERROR(S165/U165/'Test Info'!$I$6*6000), "", S165/U165/'Test Info'!$I$6*6000))) -> 
D166: Average | E166: =AVERAGE(E162:E165) -> 6.75 | F166: =IF(F165="NA", F165, (IF(ISERROR(AVERAGE(F162:F165)), "", AVERAGE(F162:F165)))) ->  | G166: =IF(G165="NA", G165, (IF(ISERROR(AVERAGE(G162:G165)), "", AVERAGE(G162:G165)))) ->  | H166: =IF(H165="NA", H165, (IF(ISERROR(AVERAGE(H162:H165)), "", AVERAGE(H162:H165)))) ->  | I166: =IF(I165="NA", I165, (IF(ISERROR(AVERAGE(I162:I165)), "", AVERAGE(I162:I165)))) ->  | J166: =IF(J165="NA", J165, (IF(ISERROR(AVERAGE(J162:J165)), "", AVERAGE(J162:J165)))) ->  | R166: Average | S166: =AVERAGE(S162:S165) -> 6.75 | T166: =IF(T165="NA", T165, (IF(ISERROR(AVERAGE(T162:T165)), "", AVERAGE(T162:T165)))) ->  | U166: =IF(U165="NA", U165, (IF(ISERROR(AVERAGE(U162:U165)), "", AVERAGE(U162:U165)))) ->  | V166: =IF(V165="NA", V165, (IF(ISERROR(AVERAGE(V162:V165)), "", AVERAGE(V162:V165)))) ->  | W166: =IF(W165="NA", W165, (IF(ISERROR(AVERAGE(W162:W165)), "", AVERAGE(W162:W165)))) ->  | X166: =IF(X165="NA", X165, (IF(ISERROR(AVERAGE(X162:X165)), "", AVERAGE(X162:X165)))) -> 
A170: Print Duplex | O170: Print Duplex
A171: PS- No Banner | O171: PS- No Banner
A172: Color- No Banner | O172: Color- No Banner
A173: Type | B173: Mode | C173: Job | D173: Application | E173: Pages Printed | F173: FPOT Measured in Seconds | G173: C-C Measured in Seconds | H173: 2-N PPM Calculated | I173: 2-N % Rated Speed Calculated | J173: C-C % Rated Speed Calculated | O173: Type | P173: Mode | Q173: Job | R173: Application | S173: Pages Printed | T173: FPOT Measured in Seconds | U173: C-C Measured in Seconds | V173: 2-N PPM Calculated | W173: 2-N % Rated Speed Calculated | X173: C-C % Rated Speed Calculated
A174: PS | B174: Color | C174: Jewelry | D174: Powerpoint | E174: 6 | H174: =IF(OR(G174="NA", G174="FAILED"), G174, (IF(ISERROR((E174-1)/(G174-F174)*60), "", (E174-1)/(G174-F174)*60))) ->  | I174: =IF(OR(G174="NA", G174="FAILED"), G174, (IF(ISERROR(H174/'Test Info'!$I$6*100), "", H174/'Test Info'!$I$6*100))) ->  | J174: =IF(OR(G174="NA", G174="FAILED"), G174, (IF(ISERROR(E174/G174/'Test Info'!$I$6*6000), "", E174/G174/'Test Info'!$I$6*6000))) ->  | O174: PS | P174: Color | Q174: Jewelry | R174: Powerpoint | S174: 6 | V174: =IF(OR(U174="NA", U174="FAILED"), U174, (IF(ISERROR((S174-1)/(U174-T174)*60), "", (S174-1)/(U174-T174)*60))) ->  | W174: =IF(OR(U174="NA", U174="FAILED"), U174, (IF(ISERROR(V174/'Test Info'!$I$6*100), "", V174/'Test Info'!$I$6*100))) ->  | X174: =IF(OR(U174="NA", U174="FAILED"), U174, (IF(ISERROR(S174/U174/'Test Info'!$I$6*6000), "", S174/U174/'Test Info'!$I$6*6000))) -> 
A175: PS | B175: Color | C175: Inpatient | D175: Excel | E175: 2 | I175: =IF(OR(G175="NA", G175="FAILED"), G175, (IF(ISERROR(H175/'Test Info'!$I$6*100), "", H175/'Test Info'!$I$6*100))) ->  | J175: =IF(OR(G175="NA", G175="FAILED"), G175, (IF(ISERROR(E175/G175/'Test Info'!$I$6*6000), "", E175/G175/'Test Info'!$I$6*6000))) ->  | O175: PS | P175: Color | Q175: Inpatient | R175: Excel | S175: 2 | V175: =IF(OR(U175="NA", U175="FAILED"), U175, (IF(ISERROR((S175-1)/(U175-T175)*60), "", (S175-1)/(U175-T175)*60))) ->  | W175: =IF(OR(U175="NA", U175="FAILED"), U175, (IF(ISERROR(V175/'Test Info'!$I$6*100), "", V175/'Test Info'!$I$6*100))) ->  | X175: =IF(OR(U175="NA", U175="FAILED"), U175, (IF(ISERROR(S175/U175/'Test Info'!$I$6*6000), "", S175/U175/'Test Info'!$I$6*6000))) -> 
A176: PS | B176: Color | C176: Rain year | D176: Excel | E176: 1 | J176: =IF(OR(G176="NA", G176="FAILED"), G176, (IF(ISERROR(E176/G176/'Test Info'!$I$6*6000), "", E176/G176/'Test Info'!$I$6*6000))) ->  | O176: PS | P176: Color | Q176: Rain year | R176: Excel | S176: 1 | X176: =IF(OR(U176="NA", U176="FAILED"), U176, (IF(ISERROR(S176/U176/'Test Info'!$I$6*6000), "", S176/U176/'Test Info'!$I$6*6000))) -> 
A177: PS | B177: Color | C177: Troutman | D177: Quark | E177: 2 | I177: =IF(OR(G177="NA", G177="FAILED"), G177, (IF(ISERROR(H177/'Test Info'!$I$6*100), "", H177/'Test Info'!$I$6*100))) ->  | J177: =IF(OR(G177="NA", G177="FAILED"), G177, (IF(ISERROR(E177/G177/'Test Info'!$I$6*6000), "", E177/G177/'Test Info'!$I$6*6000))) ->  | O177: PS | P177: Color | Q177: Troutman | R177: Quark | S177: 2 | V177: =IF(OR(U177="NA", U177="FAILED"), U177, (IF(ISERROR((S177-1)/(U177-T177)*60), "", (S177-1)/(U177-T177)*60))) ->  | W177: =IF(OR(U177="NA", U177="FAILED"), U177, (IF(ISERROR(V177/'Test Info'!$I$6*100), "", V177/'Test Info'!$I$6*100))) ->  | X177: =IF(OR(U177="NA", U177="FAILED"), U177, (IF(ISERROR(S177/U177/'Test Info'!$I$6*6000), "", S177/U177/'Test Info'!$I$6*6000))) -> 
A178: PS | B178: Color | C178: Volcanoes | D178: Access | E178: 4 | I178: =IF(OR(G178="NA", G178="FAILED"), G178, (IF(ISERROR(H178/'Test Info'!$I$6*100), "", H178/'Test Info'!$I$6*100))) ->  | J178: =IF(OR(G178="NA", G178="FAILED"), G178, (IF(ISERROR(E178/G178/'Test Info'!$I$6*6000), "", E178/G178/'Test Info'!$I$6*6000))) ->  | O178: PS | P178: Color | Q178: Volcanoes | R178: Access | S178: 4 | W178: =IF(OR(U178="NA", U178="FAILED"), U178, (IF(ISERROR(V178/'Test Info'!$I$6*100), "", V178/'Test Info'!$I$6*100))) ->  | X178: =IF(OR(U178="NA", U178="FAILED"), U178, (IF(ISERROR(S178/U178/'Test Info'!$I$6*6000), "", S178/U178/'Test Info'!$I$6*6000))) -> 
A179: PS | B179: Color | C179: Progress | D179: Powerpoint | E179: 2 | I179: =IF(OR(G179="NA", G179="FAILED"), G179, (IF(ISERROR(H179/'Test Info'!$I$6*100), "", H179/'Test Info'!$I$6*100))) ->  | J179: =IF(OR(G179="NA", G179="FAILED"), G179, (IF(ISERROR(E179/G179/'Test Info'!$I$6*6000), "", E179/G179/'Test Info'!$I$6*6000))) ->  | O179: PS | P179: Color | Q179: Progress | R179: Powerpoint | S179: 2 | W179: =IF(OR(U179="NA", U179="FAILED"), U179, (IF(ISERROR(V179/'Test Info'!$I$6*100), "", V179/'Test Info'!$I$6*100))) ->  | X179: =IF(OR(U179="NA", U179="FAILED"), U179, (IF(ISERROR(S179/U179/'Test Info'!$I$6*6000), "", S179/U179/'Test Info'!$I$6*6000))) -> 
A180: PS | B180: Color | C180: Contents | D180: Word | E180: 6 | I180: =IF(OR(G180="NA", G180="FAILED"), G180, (IF(ISERROR(H180/'Test Info'!$I$6*100), "", H180/'Test Info'!$I$6*100))) ->  | J180: =IF(OR(G180="NA", G180="FAILED"), G180, (IF(ISERROR(E180/G180/'Test Info'!$I$6*6000), "", E180/G180/'Test Info'!$I$6*6000))) ->  | O180: PS | P180: Color | Q180: Contents | R180: Word | S180: 6 | W180: =IF(OR(U180="NA", U180="FAILED"), U180, (IF(ISERROR(V180/'Test Info'!$I$6*100), "", V180/'Test Info'!$I$6*100))) ->  | X180: =IF(OR(U180="NA", U180="FAILED"), U180, (IF(ISERROR(S180/U180/'Test Info'!$I$6*6000), "", S180/U180/'Test Info'!$I$6*6000))) -> 
A181: PS | B181: Color | C181: Blue sky | D181: Quark | E181: 6 | I181: =IF(OR(G181="NA", G181="FAILED"), G181, (IF(ISERROR(H181/'Test Info'!$I$6*100), "", H181/'Test Info'!$I$6*100))) ->  | J181: =IF(OR(G181="NA", G181="FAILED"), G181, (IF(ISERROR(E181/G181/'Test Info'!$I$6*6000), "", E181/G181/'Test Info'!$I$6*6000))) ->  | O181: PS | P181: Color | Q181: Blue sky | R181: Quark | S181: 6 | W181: =IF(OR(U181="NA", U181="FAILED"), U181, (IF(ISERROR(V181/'Test Info'!$I$6*100), "", V181/'Test Info'!$I$6*100))) ->  | X181: =IF(OR(U181="NA", U181="FAILED"), U181, (IF(ISERROR(S181/U181/'Test Info'!$I$6*6000), "", S181/U181/'Test Info'!$I$6*6000))) -> 
A182: PS | B182: Color | C182: The blue fairy book 4 | D182: Corel Draw | E182: 2 | I182: =IF(OR(G182="NA", G182="FAILED"), G182, (IF(ISERROR(H182/'Test Info'!$I$6*100), "", H182/'Test Info'!$I$6*100))) ->  | J182: =IF(OR(G182="NA", G182="FAILED"), G182, (IF(ISERROR(E182/G182/'Test Info'!$I$6*6000), "", E182/G182/'Test Info'!$I$6*6000))) ->  | O182: PS | P182: Color | Q182: The blue fairy book 4 | R182: Corel Draw | S182: 2 | W182: =IF(OR(U182="NA", U182="FAILED"), U182, (IF(ISERROR(V182/'Test Info'!$I$6*100), "", V182/'Test Info'!$I$6*100))) ->  | X182: =IF(OR(U182="NA", U182="FAILED"), U182, (IF(ISERROR(S182/U182/'Test Info'!$I$6*6000), "", S182/U182/'Test Info'!$I$6*6000))) -> 
A183: PS | B183: Color | C183: Salary | D183: Excel | E183: 6 | I183: =IF(OR(G183="NA", G183="FAILED"), G183, (IF(ISERROR(H183/'Test Info'!$I$6*100), "", H183/'Test Info'!$I$6*100))) ->  | J183: =IF(OR(G183="NA", G183="FAILED"), G183, (IF(ISERROR(E183/G183/'Test Info'!$I$6*6000), "", E183/G183/'Test Info'!$I$6*6000))) ->  | O183: PS | P183: Color | Q183: Salary | R183: Excel | S183: 6 | W183: =IF(OR(U183="NA", U183="FAILED"), U183, (IF(ISERROR(V183/'Test Info'!$I$6*100), "", V183/'Test Info'!$I$6*100))) ->  | X183: =IF(OR(U183="NA", U183="FAILED"), U183, (IF(ISERROR(S183/U183/'Test Info'!$I$6*6000), "", S183/U183/'Test Info'!$I$6*6000))) -> 
D184: Average | E184: =AVERAGE(E174:E183) -> 3.7 | F184: =IF(F183="NA", F183, (IF(ISERROR(AVERAGE(F174:F183)), "", AVERAGE(F174:F183)))) ->  | G184: =IF(G183="NA", G183, (IF(ISERROR(AVERAGE(G174:G183)), "", AVERAGE(G174:G183)))) ->  | H184: =IF(H183="NA", H183, (IF(ISERROR(AVERAGE(H174:H183)), "", AVERAGE(H174:H183)))) ->  | I184: =IF(I183="NA", I183, (IF(ISERROR(AVERAGE(I174:I183)), "", AVERAGE(I174:I183)))) ->  | J184: =IF(J183="NA", J183, (IF(ISERROR(AVERAGE(J174:J183)), "", AVERAGE(J174:J183)))) ->  | R184: Average | S184: =AVERAGE(S174:S183) -> 3.7 | T184: =IF(T183="NA", T183, (IF(ISERROR(AVERAGE(T174:T183)), "", AVERAGE(T174:T183)))) ->  | U184: =IF(U183="NA", U183, (IF(ISERROR(AVERAGE(U174:U183)), "", AVERAGE(U174:U183)))) ->  | V184: =IF(V183="NA", V183, (IF(ISERROR(AVERAGE(V174:V183)), "", AVERAGE(V174:V183)))) ->  | W184: =IF(W183="NA", W183, (IF(ISERROR(AVERAGE(W174:W183)), "", AVERAGE(W174:W183)))) ->  | X184: =IF(X183="NA", X183, (IF(ISERROR(AVERAGE(X174:X183)), "", AVERAGE(X174:X183)))) -> 
A186: Mono- No Banner | O186: Mono- No Banner
A187: PS | B187: Mono | C187: Classifieds | D187: Chrome | E187: 7 | H187: =IF(OR(G187="NA",G187="FAILED"),G187,(IF(ISERROR((E187-1)/(G187-F187)*60),"",(E187-1)/(G187-F187)*60))) ->  | I187: =IF(OR(G187="NA",G187="FAILED"),G187, (IF(ISERROR(H187/'Test Info'!$J$6*100), "", H187/'Test Info'!$J$6*100))) ->  | J187: =IF(OR(G187="NA",G187="FAILED"),G187, (IF(ISERROR(E187/G187/'Test Info'!$J$6*6000), "", E187/G187/'Test Info'!$J$6*6000))) ->  | O187: PS | P187: Mono | Q187: Classifieds | R187: Chrome | S187: 7 | V187: =IF(OR(U187="NA",U187="FAILED"),U187,(IF(ISERROR((S187-1)/(U187-T187)*60),"",(S187-1)/(U187-T187)*60))) ->  | W187: =IF(OR(U187="NA",U187="FAILED"),U187, (IF(ISERROR(V187/'Test Info'!$J$6*100), "", V187/'Test Info'!$J$6*100))) ->  | X187: =IF(OR(U187="NA",U187="FAILED"),U187, (IF(ISERROR(S187/U187/'Test Info'!$J$6*6000), "", S187/U187/'Test Info'!$J$6*6000))) -> 
A188: PS | B188: Mono | C188: Gold | D188: Powerpoint | E188: 4 | H188: =IF(OR(G188="NA",G188="FAILED"),G188,(IF(ISERROR((E188-1)/(G188-F188)*60),"",(E188-1)/(G188-F188)*60))) ->  | I188: =IF(OR(G188="NA",G188="FAILED"),G188, (IF(ISERROR(H188/'Test Info'!$J$6*100), "", H188/'Test Info'!$J$6*100))) ->  | J188: =IF(OR(G188="NA",G188="FAILED"),G188, (IF(ISERROR(E188/G188/'Test Info'!$J$6*6000), "", E188/G188/'Test Info'!$J$6*6000))) ->  | O188: PS | P188: Mono | Q188: Gold | R188: Powerpoint | S188: 4 | V188: =IF(OR(U188="NA",U188="FAILED"),U188,(IF(ISERROR((S188-1)/(U188-T188)*60),"",(S188-1)/(U188-T188)*60))) ->  | W188: =IF(OR(U188="NA",U188="FAILED"),U188, (IF(ISERROR(V188/'Test Info'!$J$6*100), "", V188/'Test Info'!$J$6*100))) ->  | X188: =IF(OR(U188="NA",U188="FAILED"),U188, (IF(ISERROR(S188/U188/'Test Info'!$J$6*6000), "", S188/U188/'Test Info'!$J$6*6000))) -> 
A189: PS | B189: Mono | C189: Pain at the pump | D189: Chrome | E189: 2 | H189: =IF(OR(G189="NA",G189="FAILED"),G189,(IF(ISERROR((E189-1)/(G189-F189)*60),"",(E189-1)/(G189-F189)*60))) ->  | I189: =IF(OR(G189="NA",G189="FAILED"),G189, (IF(ISERROR(H189/'Test Info'!$J$6*100), "", H189/'Test Info'!$J$6*100))) ->  | J189: =IF(OR(G189="NA",G189="FAILED"),G189, (IF(ISERROR(E189/G189/'Test Info'!$J$6*6000), "", E189/G189/'Test Info'!$J$6*6000))) ->  | O189: PS | P189: Mono | Q189: Pain at the pump | R189: Chrome | S189: 2 | V189: =IF(OR(U189="NA",U189="FAILED"),U189,(IF(ISERROR((S189-1)/(U189-T189)*60),"",(S189-1)/(U189-T189)*60))) ->  | W189: =IF(OR(U189="NA",U189="FAILED"),U189, (IF(ISERROR(V189/'Test Info'!$J$6*100), "", V189/'Test Info'!$J$6*100))) ->  | X189: =IF(OR(U189="NA",U189="FAILED"),U189, (IF(ISERROR(S189/U189/'Test Info'!$J$6*6000), "", S189/U189/'Test Info'!$J$6*6000))) -> 
A190: PS | B190: Mono | C190: Lincoln 2 | D190: Word | E190: 1 | J190: =IF(OR(G190="NA",G190="FAILED"),G190, (IF(ISERROR(E190/G190/'Test Info'!$J$6*6000), "", E190/G190/'Test Info'!$J$6*6000))) ->  | O190: PS | P190: Mono | Q190: Lincoln 2 | R190: Word | S190: 1 | X190: =IF(OR(U190="NA",U190="FAILED"),U190, (IF(ISERROR(S190/U190/'Test Info'!$J$6*6000), "", S190/U190/'Test Info'!$J$6*6000))) -> 
A191: PS | B191: Mono | C191: Mountains | D191: Word | E191: 13 | H191: =IF(OR(G191="NA",G191="FAILED"),G191,(IF(ISERROR((E191-1)/(G191-F191)*60),"",(E191-1)/(G191-F191)*60))) ->  | I191: =IF(OR(G191="NA",G191="FAILED"),G191, (IF(ISERROR(H191/'Test Info'!$J$6*100), "", H191/'Test Info'!$J$6*100))) ->  | J191: =IF(OR(G191="NA",G191="FAILED"),G191, (IF(ISERROR(E191/G191/'Test Info'!$J$6*6000), "", E191/G191/'Test Info'!$J$6*6000))) ->  | O191: PS | P191: Mono | Q191: Mountains | R191: Word | S191: 13 | V191: =IF(OR(U191="NA",U191="FAILED"),U191,(IF(ISERROR((S191-1)/(U191-T191)*60),"",(S191-1)/(U191-T191)*60))) ->  | W191: =IF(OR(U191="NA",U191="FAILED"),U191, (IF(ISERROR(V191/'Test Info'!$J$6*100), "", V191/'Test Info'!$J$6*100))) ->  | X191: =IF(OR(U191="NA",U191="FAILED"),U191, (IF(ISERROR(S191/U191/'Test Info'!$J$6*6000), "", S191/U191/'Test Info'!$J$6*6000))) -> 
A192: PS | B192: Mono | C192: Oberan 1 | D192: Illustrator | E192: 1 | J192: =IF(OR(G192="NA",G192="FAILED"),G192, (IF(ISERROR(E192/G192/'Test Info'!$J$6*6000), "", E192/G192/'Test Info'!$J$6*6000))) ->  | O192: PS | P192: Mono | Q192: Oberan 1 | R192: Illustrator | S192: 1 | X192: =IF(OR(U192="NA",U192="FAILED"),U192, (IF(ISERROR(S192/U192/'Test Info'!$J$6*6000), "", S192/U192/'Test Info'!$J$6*6000))) -> 
A193: PS | B193: Mono | C193: Budget | D193: Excel | E193: 1 | J193: =IF(OR(G193="NA",G193="FAILED"),G193, (IF(ISERROR(E193/G193/'Test Info'!$J$6*6000), "", E193/G193/'Test Info'!$J$6*6000))) ->  | O193: PS | P193: Mono | Q193: Budget | R193: Excel | S193: 1 | X193: =IF(OR(U193="NA",U193="FAILED"),U193, (IF(ISERROR(S193/U193/'Test Info'!$J$6*6000), "", S193/U193/'Test Info'!$J$6*6000))) -> 
D194: Average | E194: =AVERAGE(E187:E193) -> 4.142857143 | F194: =IF(F193="NA", F193, (IF(ISERROR(AVERAGE(F187:F193)), "", AVERAGE(F187:F193)))) ->  | G194: =IF(G193="NA", G193, (IF(ISERROR(AVERAGE(G187:G193)), "", AVERAGE(G187:G193)))) ->  | H194: =IF(H193="NA", H193, (IF(ISERROR(AVERAGE(H187:H193)), "", AVERAGE(H187:H193)))) ->  | I194: =IF(I193="NA", I193, (IF(ISERROR(AVERAGE(I187:I193)), "", AVERAGE(I187:I193)))) ->  | J194: =IF(J193="NA", J193, (IF(ISERROR(AVERAGE(J187:J193)), "", AVERAGE(J187:J193)))) ->  | R194: Average | S194: =AVERAGE(S187:S193) -> 4.142857143 | T194: =IF(T193="NA", T193, (IF(ISERROR(AVERAGE(T187:T193)), "", AVERAGE(T187:T193)))) ->  | U194: =IF(U193="NA", U193, (IF(ISERROR(AVERAGE(U187:U193)), "", AVERAGE(U187:U193)))) ->  | V194: =IF(V193="NA", V193, (IF(ISERROR(AVERAGE(V187:V193)), "", AVERAGE(V187:V193)))) ->  | W194: =IF(W193="NA", W193, (IF(ISERROR(AVERAGE(W187:W193)), "", AVERAGE(W187:W193)))) ->  | X194: =IF(X193="NA", X193, (IF(ISERROR(AVERAGE(X187:X193)), "", AVERAGE(X187:X193)))) -> 
A196: PCL6- No Banner | O196: PCL6- No Banner
A197: Color- No Banner | O197: Color- No Banner
A198: Type | B198: Mode | C198: Job | D198: Application | E198: Pages Printed | F198: FPOT Measured in Seconds | G198: C-C Measured in Seconds | H198: 2-N PPM Calculated | I198: 2-N % Rated Speed Calculated | J198: C-C % Rated Speed Calculated | O198: Type | P198: Mode | Q198: Job | R198: Application | S198: Pages Printed | T198: FPOT Measured in Seconds | U198: C-C Measured in Seconds | V198: 2-N PPM Calculated | W198: 2-N % Rated Speed Calculated | X198: C-C % Rated Speed Calculated
A199: PCL6 | B199: Color | C199: Jewelry | D199: Powerpoint | E199: 6 | H199: =IF(OR(G199="NA", G199="FAILED"), G199, (IF(ISERROR((E199-1)/(G199-F199)*60), "", (E199-1)/(G199-F199)*60))) ->  | I199: =IF(OR(G199="NA", G199="FAILED"), G199, (IF(ISERROR(H199/'Test Info'!$I$6*100), "", H199/'Test Info'!$I$6*100))) ->  | J199: =IF(OR(G199="NA", G199="FAILED"), G199, (IF(ISERROR(E199/G199/'Test Info'!$I$6*6000), "", E199/G199/'Test Info'!$I$6*6000))) ->  | O199: PCL6 | P199: Color | Q199: Jewelry | R199: Powerpoint | S199: 6 | V199: =IF(OR(U199="NA", U199="FAILED"), U199, (IF(ISERROR((S199-1)/(U199-T199)*60), "", (S199-1)/(U199-T199)*60))) ->  | W199: =IF(OR(U199="NA", U199="FAILED"), U199, (IF(ISERROR(V199/'Test Info'!$I$6*100), "", V199/'Test Info'!$I$6*100))) ->  | X199: =IF(OR(U199="NA", U199="FAILED"), U199, (IF(ISERROR(S199/U199/'Test Info'!$I$6*6000), "", S199/U199/'Test Info'!$I$6*6000))) -> 
A200: PCL6 | B200: Color | C200: Inpatient | D200: Excel | E200: 2 | I200: =IF(OR(G200="NA", G200="FAILED"), G200, (IF(ISERROR(H200/'Test Info'!$I$6*100), "", H200/'Test Info'!$I$6*100))) ->  | J200: =IF(OR(G200="NA", G200="FAILED"), G200, (IF(ISERROR(E200/G200/'Test Info'!$I$6*6000), "", E200/G200/'Test Info'!$I$6*6000))) ->  | O200: PCL6 | P200: Color | Q200: Inpatient | R200: Excel | S200: 2 | V200: =IF(OR(U200="NA", U200="FAILED"), U200, (IF(ISERROR((S200-1)/(U200-T200)*60), "", (S200-1)/(U200-T200)*60))) ->  | W200: =IF(OR(U200="NA", U200="FAILED"), U200, (IF(ISERROR(V200/'Test Info'!$I$6*100), "", V200/'Test Info'!$I$6*100))) ->  | X200: =IF(OR(U200="NA", U200="FAILED"), U200, (IF(ISERROR(S200/U200/'Test Info'!$I$6*6000), "", S200/U200/'Test Info'!$I$6*6000))) -> 
A201: PCL6 | B201: Color | C201: Rain year | D201: Excel | E201: 1 | J201: =IF(OR(G201="NA", G201="FAILED"), G201, (IF(ISERROR(E201/G201/'Test Info'!$I$6*6000), "", E201/G201/'Test Info'!$I$6*6000))) ->  | O201: PCL6 | P201: Color | Q201: Rain year | R201: Excel | S201: 1 | X201: =IF(OR(U201="NA", U201="FAILED"), U201, (IF(ISERROR(S201/U201/'Test Info'!$I$6*6000), "", S201/U201/'Test Info'!$I$6*6000))) -> 
A202: PCL6 | B202: Color | C202: Troutman | D202: Quark | E202: 2 | I202: =IF(OR(G202="NA", G202="FAILED"), G202, (IF(ISERROR(H202/'Test Info'!$I$6*100), "", H202/'Test Info'!$I$6*100))) ->  | J202: =IF(OR(G202="NA", G202="FAILED"), G202, (IF(ISERROR(E202/G202/'Test Info'!$I$6*6000), "", E202/G202/'Test Info'!$I$6*6000))) ->  | O202: PCL6 | P202: Color | Q202: Troutman | R202: Quark | S202: 2 | V202: =IF(OR(U202="NA", U202="FAILED"), U202, (IF(ISERROR((S202-1)/(U202-T202)*60), "", (S202-1)/(U202-T202)*60))) ->  | W202: =IF(OR(U202="NA", U202="FAILED"), U202, (IF(ISERROR(V202/'Test Info'!$I$6*100), "", V202/'Test Info'!$I$6*100))) ->  | X202: =IF(OR(U202="NA", U202="FAILED"), U202, (IF(ISERROR(S202/U202/'Test Info'!$I$6*6000), "", S202/U202/'Test Info'!$I$6*6000))) -> 
A203: PCL6 | B203: Color | C203: Volcanoes | D203: Access | E203: 4 | I203: =IF(OR(G203="NA", G203="FAILED"), G203, (IF(ISERROR(H203/'Test Info'!$I$6*100), "", H203/'Test Info'!$I$6*100))) ->  | J203: =IF(OR(G203="NA", G203="FAILED"), G203, (IF(ISERROR(E203/G203/'Test Info'!$I$6*6000), "", E203/G203/'Test Info'!$I$6*6000))) ->  | O203: PCL6 | P203: Color | Q203: Volcanoes | R203: Access | S203: 4 | W203: =IF(OR(U203="NA", U203="FAILED"), U203, (IF(ISERROR(V203/'Test Info'!$I$6*100), "", V203/'Test Info'!$I$6*100))) ->  | X203: =IF(OR(U203="NA", U203="FAILED"), U203, (IF(ISERROR(S203/U203/'Test Info'!$I$6*6000), "", S203/U203/'Test Info'!$I$6*6000))) -> 
A204: PCL6 | B204: Color | C204: Progress | D204: Powerpoint | E204: 2 | I204: =IF(OR(G204="NA", G204="FAILED"), G204, (IF(ISERROR(H204/'Test Info'!$I$6*100), "", H204/'Test Info'!$I$6*100))) ->  | J204: =IF(OR(G204="NA", G204="FAILED"), G204, (IF(ISERROR(E204/G204/'Test Info'!$I$6*6000), "", E204/G204/'Test Info'!$I$6*6000))) ->  | O204: PCL6 | P204: Color | Q204: Progress | R204: Powerpoint | S204: 2 | W204: =IF(OR(U204="NA", U204="FAILED"), U204, (IF(ISERROR(V204/'Test Info'!$I$6*100), "", V204/'Test Info'!$I$6*100))) ->  | X204: =IF(OR(U204="NA", U204="FAILED"), U204, (IF(ISERROR(S204/U204/'Test Info'!$I$6*6000), "", S204/U204/'Test Info'!$I$6*6000))) -> 
A205: PCL6 | B205: Color | C205: Contents | D205: Word | E205: 6 | I205: =IF(OR(G205="NA", G205="FAILED"), G205, (IF(ISERROR(H205/'Test Info'!$I$6*100), "", H205/'Test Info'!$I$6*100))) ->  | J205: =IF(OR(G205="NA", G205="FAILED"), G205, (IF(ISERROR(E205/G205/'Test Info'!$I$6*6000), "", E205/G205/'Test Info'!$I$6*6000))) ->  | O205: PCL6 | P205: Color | Q205: Contents | R205: Word | S205: 6 | W205: =IF(OR(U205="NA", U205="FAILED"), U205, (IF(ISERROR(V205/'Test Info'!$I$6*100), "", V205/'Test Info'!$I$6*100))) ->  | X205: =IF(OR(U205="NA", U205="FAILED"), U205, (IF(ISERROR(S205/U205/'Test Info'!$I$6*6000), "", S205/U205/'Test Info'!$I$6*6000))) -> 
A206: PCL6 | B206: Color | C206: Blue sky | D206: Quark | E206: 6 | I206: =IF(OR(G206="NA", G206="FAILED"), G206, (IF(ISERROR(H206/'Test Info'!$I$6*100), "", H206/'Test Info'!$I$6*100))) ->  | J206: =IF(OR(G206="NA", G206="FAILED"), G206, (IF(ISERROR(E206/G206/'Test Info'!$I$6*6000), "", E206/G206/'Test Info'!$I$6*6000))) ->  | O206: PCL6 | P206: Color | Q206: Blue sky | R206: Quark | S206: 6 | W206: =IF(OR(U206="NA", U206="FAILED"), U206, (IF(ISERROR(V206/'Test Info'!$I$6*100), "", V206/'Test Info'!$I$6*100))) ->  | X206: =IF(OR(U206="NA", U206="FAILED"), U206, (IF(ISERROR(S206/U206/'Test Info'!$I$6*6000), "", S206/U206/'Test Info'!$I$6*6000))) -> 
A207: PCL6 | B207: Color | C207: The blue fairy book 4 | D207: Corel Draw | E207: 2 | I207: =IF(OR(G207="NA", G207="FAILED"), G207, (IF(ISERROR(H207/'Test Info'!$I$6*100), "", H207/'Test Info'!$I$6*100))) ->  | J207: =IF(OR(G207="NA", G207="FAILED"), G207, (IF(ISERROR(E207/G207/'Test Info'!$I$6*6000), "", E207/G207/'Test Info'!$I$6*6000))) ->  | O207: PCL6 | P207: Color | Q207: The blue fairy book 4 | R207: Corel Draw | S207: 2 | W207: =IF(OR(U207="NA", U207="FAILED"), U207, (IF(ISERROR(V207/'Test Info'!$I$6*100), "", V207/'Test Info'!$I$6*100))) ->  | X207: =IF(OR(U207="NA", U207="FAILED"), U207, (IF(ISERROR(S207/U207/'Test Info'!$I$6*6000), "", S207/U207/'Test Info'!$I$6*6000))) -> 
A208: PCL6 | B208: Color | C208: Salary | D208: Excel | E208: 6 | I208: =IF(OR(G208="NA", G208="FAILED"), G208, (IF(ISERROR(H208/'Test Info'!$I$6*100), "", H208/'Test Info'!$I$6*100))) ->  | J208: =IF(OR(G208="NA", G208="FAILED"), G208, (IF(ISERROR(E208/G208/'Test Info'!$I$6*6000), "", E208/G208/'Test Info'!$I$6*6000))) ->  | O208: PCL6 | P208: Color | Q208: Salary | R208: Excel | S208: 6 | W208: =IF(OR(U208="NA", U208="FAILED"), U208, (IF(ISERROR(V208/'Test Info'!$I$6*100), "", V208/'Test Info'!$I$6*100))) ->  | X208: =IF(OR(U208="NA", U208="FAILED"), U208, (IF(ISERROR(S208/U208/'Test Info'!$I$6*6000), "", S208/U208/'Test Info'!$I$6*6000))) -> 
D209: Average | E209: =AVERAGE(E199:E208) -> 3.7 | F209: =IF(F208="NA", F208, (IF(ISERROR(AVERAGE(F199:F208)), "", AVERAGE(F199:F208)))) ->  | G209: =IF(G208="NA", G208, (IF(ISERROR(AVERAGE(G199:G208)), "", AVERAGE(G199:G208)))) ->  | H209: =IF(H208="NA", H208, (IF(ISERROR(AVERAGE(H199:H208)), "", AVERAGE(H199:H208)))) ->  | I209: =IF(I208="NA", I208, (IF(ISERROR(AVERAGE(I199:I208)), "", AVERAGE(I199:I208)))) ->  | J209: =IF(J208="NA", J208, (IF(ISERROR(AVERAGE(J199:J208)), "", AVERAGE(J199:J208)))) ->  | R209: Average | S209: =AVERAGE(S199:S208) -> 3.7 | T209: =IF(T208="NA", T208, (IF(ISERROR(AVERAGE(T199:T208)), "", AVERAGE(T199:T208)))) ->  | U209: =IF(U208="NA", U208, (IF(ISERROR(AVERAGE(U199:U208)), "", AVERAGE(U199:U208)))) ->  | V209: =IF(V208="NA", V208, (IF(ISERROR(AVERAGE(V199:V208)), "", AVERAGE(V199:V208)))) ->  | W209: =IF(W208="NA", W208, (IF(ISERROR(AVERAGE(W199:W208)), "", AVERAGE(W199:W208)))) ->  | X209: =IF(X208="NA", X208, (IF(ISERROR(AVERAGE(X199:X208)), "", AVERAGE(X199:X208)))) -> 
A211: Mono- No Banner | O211: Mono- No Banner
A212: PCL6 | B212: Mono | C212: Classifieds | D212: Chrome | E212: 7 | H212: =IF(OR(G212="NA",G212="FAILED"),G212,(IF(ISERROR((E212-1)/(G212-F212)*60),"",(E212-1)/(G212-F212)*60))) ->  | I212: =IF(OR(G212="NA",G212="FAILED"),G212, (IF(ISERROR(H212/'Test Info'!$J$6*100), "", H212/'Test Info'!$J$6*100))) ->  | J212: =IF(OR(G212="NA",G212="FAILED"),G212, (IF(ISERROR(E212/G212/'Test Info'!$J$6*6000), "", E212/G212/'Test Info'!$J$6*6000))) ->  | O212: PCL6 | P212: Mono | Q212: Classifieds | R212: Chrome | S212: 7 | V212: =IF(OR(U212="NA",U212="FAILED"),U212,(IF(ISERROR((S212-1)/(U212-T212)*60),"",(S212-1)/(U212-T212)*60))) ->  | W212: =IF(OR(U212="NA",U212="FAILED"),U212, (IF(ISERROR(V212/'Test Info'!$J$6*100), "", V212/'Test Info'!$J$6*100))) ->  | X212: =IF(OR(U212="NA",U212="FAILED"),U212, (IF(ISERROR(S212/U212/'Test Info'!$J$6*6000), "", S212/U212/'Test Info'!$J$6*6000))) -> 
A213: PCL6 | B213: Mono | C213: Gold | D213: Powerpoint | E213: 4 | H213: =IF(OR(G213="NA",G213="FAILED"),G213,(IF(ISERROR((E213-1)/(G213-F213)*60),"",(E213-1)/(G213-F213)*60))) ->  | I213: =IF(OR(G213="NA",G213="FAILED"),G213, (IF(ISERROR(H213/'Test Info'!$J$6*100), "", H213/'Test Info'!$J$6*100))) ->  | J213: =IF(OR(G213="NA",G213="FAILED"),G213, (IF(ISERROR(E213/G213/'Test Info'!$J$6*6000), "", E213/G213/'Test Info'!$J$6*6000))) ->  | O213: PCL6 | P213: Mono | Q213: Gold | R213: Powerpoint | S213: 4 | V213: =IF(OR(U213="NA",U213="FAILED"),U213,(IF(ISERROR((S213-1)/(U213-T213)*60),"",(S213-1)/(U213-T213)*60))) ->  | W213: =IF(OR(U213="NA",U213="FAILED"),U213, (IF(ISERROR(V213/'Test Info'!$J$6*100), "", V213/'Test Info'!$J$6*100))) ->  | X213: =IF(OR(U213="NA",U213="FAILED"),U213, (IF(ISERROR(S213/U213/'Test Info'!$J$6*6000), "", S213/U213/'Test Info'!$J$6*6000))) -> 
A214: PCL6 | B214: Mono | C214: Pain at the pump | D214: Chrome | E214: 2 | H214: =IF(OR(G214="NA",G214="FAILED"),G214,(IF(ISERROR((E214-1)/(G214-F214)*60),"",(E214-1)/(G214-F214)*60))) ->  | I214: =IF(OR(G214="NA",G214="FAILED"),G214, (IF(ISERROR(H214/'Test Info'!$J$6*100), "", H214/'Test Info'!$J$6*100))) ->  | J214: =IF(OR(G214="NA",G214="FAILED"),G214, (IF(ISERROR(E214/G214/'Test Info'!$J$6*6000), "", E214/G214/'Test Info'!$J$6*6000))) ->  | O214: PCL6 | P214: Mono | Q214: Pain at the pump | R214: Chrome | S214: 2 | V214: =IF(OR(U214="NA",U214="FAILED"),U214,(IF(ISERROR((S214-1)/(U214-T214)*60),"",(S214-1)/(U214-T214)*60))) ->  | W214: =IF(OR(U214="NA",U214="FAILED"),U214, (IF(ISERROR(V214/'Test Info'!$J$6*100), "", V214/'Test Info'!$J$6*100))) ->  | X214: =IF(OR(U214="NA",U214="FAILED"),U214, (IF(ISERROR(S214/U214/'Test Info'!$J$6*6000), "", S214/U214/'Test Info'!$J$6*6000))) -> 
A215: PCL6 | B215: Mono | C215: Lincoln 2 | D215: Word | E215: 1 | J215: =IF(OR(G215="NA",G215="FAILED"),G215, (IF(ISERROR(E215/G215/'Test Info'!$J$6*6000), "", E215/G215/'Test Info'!$J$6*6000))) ->  | O215: PCL6 | P215: Mono | Q215: Lincoln 2 | R215: Word | S215: 1 | X215: =IF(OR(U215="NA",U215="FAILED"),U215, (IF(ISERROR(S215/U215/'Test Info'!$J$6*6000), "", S215/U215/'Test Info'!$J$6*6000))) -> 
A216: PCL6 | B216: Mono | C216: Mountains | D216: Word | E216: 13 | H216: =IF(OR(G216="NA",G216="FAILED"),G216,(IF(ISERROR((E216-1)/(G216-F216)*60),"",(E216-1)/(G216-F216)*60))) ->  | I216: =IF(OR(G216="NA",G216="FAILED"),G216, (IF(ISERROR(H216/'Test Info'!$J$6*100), "", H216/'Test Info'!$J$6*100))) ->  | J216: =IF(OR(G216="NA",G216="FAILED"),G216, (IF(ISERROR(E216/G216/'Test Info'!$J$6*6000), "", E216/G216/'Test Info'!$J$6*6000))) ->  | O216: PCL6 | P216: Mono | Q216: Mountains | R216: Word | S216: 13 | V216: =IF(OR(U216="NA",U216="FAILED"),U216,(IF(ISERROR((S216-1)/(U216-T216)*60),"",(S216-1)/(U216-T216)*60))) ->  | W216: =IF(OR(U216="NA",U216="FAILED"),U216, (IF(ISERROR(V216/'Test Info'!$J$6*100), "", V216/'Test Info'!$J$6*100))) ->  | X216: =IF(OR(U216="NA",U216="FAILED"),U216, (IF(ISERROR(S216/U216/'Test Info'!$J$6*6000), "", S216/U216/'Test Info'!$J$6*6000))) -> 
A217: PCL6 | B217: Mono | C217: Oberan 1 | D217: Illustrator | E217: 1 | J217: =IF(OR(G217="NA",G217="FAILED"),G217, (IF(ISERROR(E217/G217/'Test Info'!$J$6*6000), "", E217/G217/'Test Info'!$J$6*6000))) ->  | O217: PCL6 | P217: Mono | Q217: Oberan 1 | R217: Illustrator | S217: 1 | X217: =IF(OR(U217="NA",U217="FAILED"),U217, (IF(ISERROR(S217/U217/'Test Info'!$J$6*6000), "", S217/U217/'Test Info'!$J$6*6000))) -> 
A218: PCL6 | B218: Mono | C218: Budget | D218: Excel | E218: 1 | J218: =IF(OR(G218="NA",G218="FAILED"),G218, (IF(ISERROR(E218/G218/'Test Info'!$J$6*6000), "", E218/G218/'Test Info'!$J$6*6000))) ->  | O218: PCL6 | P218: Mono | Q218: Budget | R218: Excel | S218: 1 | X218: =IF(OR(U218="NA",U218="FAILED"),U218, (IF(ISERROR(S218/U218/'Test Info'!$J$6*6000), "", S218/U218/'Test Info'!$J$6*6000))) -> 
D219: Average | E219: =AVERAGE(E212:E218) -> 4.142857143 | F219: =IF(F218="NA", F218, (IF(ISERROR(AVERAGE(F212:F218)), "", AVERAGE(F212:F218)))) ->  | G219: =IF(G218="NA", G218, (IF(ISERROR(AVERAGE(G212:G218)), "", AVERAGE(G212:G218)))) ->  | H219: =IF(H218="NA", H218, (IF(ISERROR(AVERAGE(H212:H218)), "", AVERAGE(H212:H218)))) ->  | I219: =IF(I218="NA", I218, (IF(ISERROR(AVERAGE(I212:I218)), "", AVERAGE(I212:I218)))) ->  | J219: =IF(J218="NA", J218, (IF(ISERROR(AVERAGE(J212:J218)), "", AVERAGE(J212:J218)))) ->  | R219: Average | S219: =AVERAGE(S212:S218) -> 4.142857143 | T219: =IF(T218="NA", T218, (IF(ISERROR(AVERAGE(T212:T218)), "", AVERAGE(T212:T218)))) ->  | U219: =IF(U218="NA", U218, (IF(ISERROR(AVERAGE(U212:U218)), "", AVERAGE(U212:U218)))) ->  | V219: =IF(V218="NA", V218, (IF(ISERROR(AVERAGE(V212:V218)), "", AVERAGE(V212:V218)))) ->  | W219: =IF(W218="NA", W218, (IF(ISERROR(AVERAGE(W212:W218)), "", AVERAGE(W212:W218)))) ->  | X219: =IF(X218="NA", X218, (IF(ISERROR(AVERAGE(X212:X218)), "", AVERAGE(X212:X218)))) -> 
A223: Print 14 and 17 inch Output | O223: Print 14 and 17 inch Output
A224: PS- No Banner | O224: PS- No Banner
A225: 14 inch Color- No Banner | O225: 14 inch Color- No Banner
A226: Type | B226: Mode | C226: Job | D226: Application | E226: Images | F226: FPOT Measured in Seconds | G226: C-C Measured in Seconds | H226: 2-N PPM Calculated | I226: 2-N % Rated Speed Calculated | J226: C-C % Rated Speed Calculated | O226: Type | P226: Mode | Q226: Job | R226: Application | S226: Images | T226: FPOT Measured in Seconds | U226: C-C Measured in Seconds | V226: 2-N PPM Calculated | W226: 2-N % Rated Speed Calculated | X226: C-C % Rated Speed Calculated
A227: PS | B227: Color | C227: Blue sky-14 | D227: Quark | E227: 12 | H227: =IF(OR(G227="NA", G227="FAILED"), G227, (IF(ISERROR((E227-1)/(G227-F227)*60), "", (E227-1)/(G227-F227)*60))) ->  | I227: =IF(OR(G227="NA", G227="FAILED"), G227, (IF(ISERROR(H227/'Test Info'!$I$6*100), "", H227/'Test Info'!$I$6*100))) ->  | J227: =IF(OR(G227="NA", G227="FAILED"), G227, (IF(ISERROR(E227/G227/'Test Info'!$I$6*6000), "", E227/G227/'Test Info'!$I$6*6000))) ->  | O227: PS | P227: Color | Q227: Blue sky-14 | R227: Quark | S227: 12 | V227: =IF(OR(U227="NA", U227="FAILED"), U227, (IF(ISERROR((S227-1)/(U227-T227)*60), "", (S227-1)/(U227-T227)*60))) ->  | W227: =IF(OR(U227="NA", U227="FAILED"), U227, (IF(ISERROR(V227/'Test Info'!$I$6*100), "", V227/'Test Info'!$I$6*100))) ->  | X227: =IF(OR(U227="NA", U227="FAILED"), U227, (IF(ISERROR(S227/U227/'Test Info'!$I$6*6000), "", S227/U227/'Test Info'!$I$6*6000))) -> 
A228: PS | B228: Color | C228: Classifieds-14 | D228: Chrome | E228: 13 | H228: =IF(OR(G228="NA", G228="FAILED"), G228, (IF(ISERROR((E228-1)/(G228-F228)*60), "", (E228-1)/(G228-F228)*60))) ->  | I228: =IF(OR(G228="NA", G228="FAILED"), G228, (IF(ISERROR(H228/'Test Info'!$I$6*100), "", H228/'Test Info'!$I$6*100))) ->  | J228: =IF(OR(G228="NA", G228="FAILED"), G228, (IF(ISERROR(E228/G228/'Test Info'!$I$6*6000), "", E228/G228/'Test Info'!$I$6*6000))) ->  | O228: PS | P228: Color | Q228: Classifieds-14 | R228: Chrome | S228: 13 | V228: =IF(OR(U228="NA", U228="FAILED"), U228, (IF(ISERROR((S228-1)/(U228-T228)*60), "", (S228-1)/(U228-T228)*60))) ->  | W228: =IF(OR(U228="NA", U228="FAILED"), U228, (IF(ISERROR(V228/'Test Info'!$I$6*100), "", V228/'Test Info'!$I$6*100))) ->  | X228: =IF(OR(U228="NA", U228="FAILED"), U228, (IF(ISERROR(S228/U228/'Test Info'!$I$6*6000), "", S228/U228/'Test Info'!$I$6*6000))) -> 
... 121 more rows

Sheet Print To Default Tray Subset (hidden)
A1: This is a condensed version of Print To Default Tray for a quick check
A2: ='Test Info'!A1:G1 -> Samudra MFP High B0 | R2: ='Test Info'!B16 -> Samudra Low MFP
A3: Default Driver | C3: Enter | R3: Default Driver | T3: Enter
A4: Alternative Driver | C4: Enter | R4: Alternative Driver | T4: Enter
A6: Note: Both Color & Mono jobs need to be printed on Mono device. | R6: Note: Both Color & Mono jobs need to be printed on Mono device.
A8: SPT Print to Default Tray Subset (Test Device) | R8: SPT Print to Default Tray Subset (Benchmark)
A9: No Banner Regular Submission | C9: Driver | D9: Mode | E9: Job Type | F9: Application | G9: Size | H9: Side | I9: File | J9: Collation | K9: Pages Printed | L9: FPOT Measured in Seconds | M9: C-C Measured in Seconds | N9: 2-N PPM Calculated | O9: 2-N % Rated Speed Calculated | P9: C-C % Rated Speed Calculated | R9: No Banner Regular Submission | T9: Driver | U9: Mode | V9: Job Type | W9: Application | X9: Size | Y9: Side | Z9: File | AA9: Collation | AB9: Pages Printed | AC9: FPOT Measured in Seconds | AD9: C-C Measured in Seconds | AE9: 2-N PPM Calculated | AF9: 2-N % Rated Speed Calculated | AG9: C-C % Rated Speed Calculated
B10: Case 1 | C10: Default | D10: Color | E10: Stress | F10: Word | G10: Letter | H10: Simplex | I10: Lincoln 6 | J10: NA | K10: 6 | N10: =IF(OR(M10="NA", M10="FAILED"), M10, (IF(ISERROR((K10-1)/(M10-L10)*60), "", (K10-1)/(M10-L10)*60))) ->  | O10: =IF(OR(M10="NA", M10="FAILED"), M10, (IF(ISERROR(N10/'Test Info'!$I$6*100), "", N10/'Test Info'!$I$6*100))) ->  | P10: =IF(OR(M10="NA", M10="FAILED"), M10, (IF(ISERROR(K10/M10/'Test Info'!$I$6*6000), "", K10/M10/'Test Info'!$I$6*6000))) ->  | S10: Case 1 | T10: Default | U10: Color | V10: Stress | W10: Word | X10: Letter | Y10: Simplex | Z10: Lincoln 6 | AA10: NA | AB10: 6 | AE10: =IF(OR(AD10="NA", AD10="FAILED"), AD10, (IF(ISERROR((AB10-1)/(AD10-AC10)*60), "", (AB10-1)/(AD10-AC10)*60))) ->  | AF10: =IF(OR(AD10="NA", AD10="FAILED"), AD10, (IF(ISERROR(AE10/'Test Info'!$I$6*100), "", AE10/'Test Info'!$I$6*100))) ->  | AG10: =IF(OR(AD10="NA", AD10="FAILED"), AD10, (IF(ISERROR(AB10/AD10/'Test Info'!$I$6*6000), "", AB10/AD10/'Test Info'!$I$6*6000))) -> 
B11: Case 2 | C11: Default | D11: Color | E11: Graphic | F11: Excel | G11: Letter | H11: Simplex | I11: Rainfall | J11: NA | K11: 7 | O11: =IF(OR(M11="NA", M11="FAILED"), M11, (IF(ISERROR(N11/'Test Info'!$I$6*100), "", N11/'Test Info'!$I$6*100))) ->  | P11: =IF(OR(M11="NA", M11="FAILED"), M11, (IF(ISERROR(K11/M11/'Test Info'!$I$6*6000), "", K11/M11/'Test Info'!$I$6*6000))) ->  | S11: Case 2 | T11: Default | U11: Color | V11: Graphic | W11: Excel | X11: Letter | Y11: Simplex | Z11: Rainfall | AA11: NA | AB11: 7 | AE11: =IF(OR(AD11="NA", AD11="FAILED"), AD11, (IF(ISERROR((AB11-1)/(AD11-AC11)*60), "", (AB11-1)/(AD11-AC11)*60))) ->  | AF11: =IF(OR(AD11="NA", AD11="FAILED"), AD11, (IF(ISERROR(AE11/'Test Info'!$I$6*100), "", AE11/'Test Info'!$I$6*100))) ->  | AG11: =IF(OR(AD11="NA", AD11="FAILED"), AD11, (IF(ISERROR(AB11/AD11/'Test Info'!$I$6*6000), "", AB11/AD11/'Test Info'!$I$6*6000))) -> 
B12: Case 3 | C12: Default | D12: Color | E12: Graphic | F12: Corel Draw | G12: Letter | H12: Simplex | I12: The blue fairy book 40 | J12: NA | K12: 40 | O12: =IF(OR(M12="NA", M12="FAILED"), M12, (IF(ISERROR(N12/'Test Info'!$I$6*100), "", N12/'Test Info'!$I$6*100))) ->  | P12: =IF(OR(M12="NA", M12="FAILED"), M12, (IF(ISERROR(K12/M12/'Test Info'!$I$6*6000), "", K12/M12/'Test Info'!$I$6*6000))) ->  | S12: Case 3 | T12: Default | U12: Color | V12: Graphic | W12: Corel Draw | X12: Letter | Y12: Simplex | Z12: The blue fairy book 40 | AA12: NA | AB12: 40 | AF12: =IF(OR(AD12="NA", AD12="FAILED"), AD12, (IF(ISERROR(AE12/'Test Info'!$I$6*100), "", AE12/'Test Info'!$I$6*100))) ->  | AG12: =IF(OR(AD12="NA", AD12="FAILED"), AD12, (IF(ISERROR(AB12/AD12/'Test Info'!$I$6*6000), "", AB12/AD12/'Test Info'!$I$6*6000))) -> 
B13: Case 4 | C13: Default | D13: Color | E13: Graphic | F13: Illustrator | G13: Letter | H13: Simplex | I13: Oberan 4 | J13: NA | K13: 4 | O13: =IF(OR(M13="NA", M13="FAILED"), M13, (IF(ISERROR(N13/'Test Info'!$I$6*100), "", N13/'Test Info'!$I$6*100))) ->  | P13: =IF(OR(M13="NA", M13="FAILED"), M13, (IF(ISERROR(K13/M13/'Test Info'!$I$6*6000), "", K13/M13/'Test Info'!$I$6*6000))) ->  | S13: Case 4 | T13: Default | U13: Color | V13: Graphic | W13: Illustrator | X13: Letter | Y13: Simplex | Z13: Oberan 4 | AA13: NA | AB13: 4 | AF13: =IF(OR(AD13="NA", AD13="FAILED"), AD13, (IF(ISERROR(AE13/'Test Info'!$I$6*100), "", AE13/'Test Info'!$I$6*100))) ->  | AG13: =IF(OR(AD13="NA", AD13="FAILED"), AD13, (IF(ISERROR(AB13/AD13/'Test Info'!$I$6*6000), "", AB13/AD13/'Test Info'!$I$6*6000))) -> 
B14: Case 5 | C14: Default | D14: Color | E14: Graphic | F14: Publisher | G14: Letter | H14: Simplex | I14: Calendar | J14: NA | K14: 12 | O14: =IF(OR(M14="NA", M14="FAILED"), M14, (IF(ISERROR(N14/'Test Info'!$I$6*100), "", N14/'Test Info'!$I$6*100))) ->  | P14: =IF(OR(M14="NA", M14="FAILED"), M14, (IF(ISERROR(K14/M14/'Test Info'!$I$6*6000), "", K14/M14/'Test Info'!$I$6*6000))) ->  | S14: Case 5 | T14: Default | U14: Color | V14: Graphic | W14: Publisher | X14: Letter | Y14: Simplex | Z14: Calendar | AA14: NA | AB14: 12 | AF14: =IF(OR(AD14="NA", AD14="FAILED"), AD14, (IF(ISERROR(AE14/'Test Info'!$I$6*100), "", AE14/'Test Info'!$I$6*100))) ->  | AG14: =IF(OR(AD14="NA", AD14="FAILED"), AD14, (IF(ISERROR(AB14/AD14/'Test Info'!$I$6*6000), "", AB14/AD14/'Test Info'!$I$6*6000))) -> 
B15: Case 6 | C15: Default | D15: Color | E15: Stress | F15: Photoshop | G15: Letter | H15: Simplex | I15: Turtle Island | J15: NA | K15: 1 | O15: =IF(OR(M15="NA", M15="FAILED"), M15, (IF(ISERROR(N15/'Test Info'!$I$6*100), "", N15/'Test Info'!$I$6*100))) ->  | P15: =IF(OR(M15="NA", M15="FAILED"), M15, (IF(ISERROR(K15/M15/'Test Info'!$I$6*6000), "", K15/M15/'Test Info'!$I$6*6000))) ->  | S15: Case 6 | T15: Default | U15: Color | V15: Stress | W15: Photoshop | X15: Letter | Y15: Simplex | Z15: Turtle Island | AA15: NA | AB15: 1 | AF15: =IF(OR(AD15="NA", AD15="FAILED"), AD15, (IF(ISERROR(AE15/'Test Info'!$I$6*100), "", AE15/'Test Info'!$I$6*100))) ->  | AG15: =IF(OR(AD15="NA", AD15="FAILED"), AD15, (IF(ISERROR(AB15/AD15/'Test Info'!$I$6*6000), "", AB15/AD15/'Test Info'!$I$6*6000))) -> 
B16: Case 7 | C16: Default | D16: Color | E16: Graphic | F16: Acrobat | G16: Letter | H16: Simplex | I16: Outcast | J16: NA | K16: 12 | O16: =IF(OR(M16="NA", M16="FAILED"), M16, (IF(ISERROR(N16/'Test Info'!$I$6*100), "", N16/'Test Info'!$I$6*100))) ->  | P16: =IF(OR(M16="NA", M16="FAILED"), M16, (IF(ISERROR(K16/M16/'Test Info'!$I$6*6000), "", K16/M16/'Test Info'!$I$6*6000))) ->  | S16: Case 7 | T16: Default | U16: Color | V16: Graphic | W16: Acrobat | X16: Letter | Y16: Simplex | Z16: Outcast | AA16: NA | AB16: 12 | AF16: =IF(OR(AD16="NA", AD16="FAILED"), AD16, (IF(ISERROR(AE16/'Test Info'!$I$6*100), "", AE16/'Test Info'!$I$6*100))) ->  | AG16: =IF(OR(AD16="NA", AD16="FAILED"), AD16, (IF(ISERROR(AB16/AD16/'Test Info'!$I$6*6000), "", AB16/AD16/'Test Info'!$I$6*6000))) -> 
B17: Case 8 | C17: Default | D17: Color | E17: Office | F17: Access | G17: Letter | H17: Duplex | I17: Volcanoes | J17: NA | K17: 4 | O17: =IF(OR(M17="NA", M17="FAILED"), M17, (IF(ISERROR(N17/'Test Info'!$I$6*100), "", N17/'Test Info'!$I$6*100))) ->  | P17: =IF(OR(M17="NA", M17="FAILED"), M17, (IF(ISERROR(K17/M17/'Test Info'!$I$6*6000), "", K17/M17/'Test Info'!$I$6*6000))) ->  | S17: Case 8 | T17: Default | U17: Color | V17: Office | W17: Access | X17: Letter | Y17: Duplex | Z17: Volcanoes | AA17: NA | AB17: 4 | AF17: =IF(OR(AD17="NA", AD17="FAILED"), AD17, (IF(ISERROR(AE17/'Test Info'!$I$6*100), "", AE17/'Test Info'!$I$6*100))) ->  | AG17: =IF(OR(AD17="NA", AD17="FAILED"), AD17, (IF(ISERROR(AB17/AD17/'Test Info'!$I$6*6000), "", AB17/AD17/'Test Info'!$I$6*6000))) -> 
B18: Case 9 | C18: Default | D18: Color | E18: Office | F18: Excel | G18: Letter | H18: Duplex | I18: Salary | J18: NA | K18: 6 | O18: =IF(OR(M18="NA", M18="FAILED"), M18, (IF(ISERROR(N18/'Test Info'!$I$6*100), "", N18/'Test Info'!$I$6*100))) ->  | P18: =IF(OR(M18="NA", M18="FAILED"), M18, (IF(ISERROR(K18/M18/'Test Info'!$I$6*6000), "", K18/M18/'Test Info'!$I$6*6000))) ->  | S18: Case 9 | T18: Default | U18: Color | V18: Office | W18: Excel | X18: Letter | Y18: Duplex | Z18: Salary | AA18: NA | AB18: 6 | AF18: =IF(OR(AD18="NA", AD18="FAILED"), AD18, (IF(ISERROR(AE18/'Test Info'!$I$6*100), "", AE18/'Test Info'!$I$6*100))) ->  | AG18: =IF(OR(AD18="NA", AD18="FAILED"), AD18, (IF(ISERROR(AB18/AD18/'Test Info'!$I$6*6000), "", AB18/AD18/'Test Info'!$I$6*6000))) -> 
B19: Case 10 | C19: Default | D19: Mono | E19: Office | F19: Word | G19: Letter | H19: Duplex | I19: Mountains | J19: NA | K19: 13 | O19: =IF(OR(M19="NA", M19="FAILED"), M19, (IF(ISERROR(N19/'Test Info'!$I$6*100), "", N19/'Test Info'!$I$6*100))) ->  | P19: =IF(OR(M19="NA", M19="FAILED"), M19, (IF(ISERROR(K19/M19/'Test Info'!$I$6*6000), "", K19/M19/'Test Info'!$I$6*6000))) ->  | S19: Case 10 | T19: Default | U19: Mono | V19: Office | W19: Word | X19: Letter | Y19: Duplex | Z19: Mountains | AA19: NA | AB19: 13 | AE19: =IF(OR(AD19="NA", AD19="FAILED"), AD19, (IF(ISERROR((AB19-1)/(AD19-AC19)*60), "", (AB19-1)/(AD19-AC19)*60))) ->  | AF19: =IF(OR(AD19="NA", AD19="FAILED"), AD19, (IF(ISERROR(AE19/'Test Info'!$I$6*100), "", AE19/'Test Info'!$I$6*100))) ->  | AG19: =IF(OR(AD19="NA", AD19="FAILED"), AD19, (IF(ISERROR(AB19/AD19/'Test Info'!$I$6*6000), "", AB19/AD19/'Test Info'!$I$6*6000))) -> 
B20: Case 11 | C20: Default | D20: Mono | E20: Office | F20: Powerpoint | G20: Letter | H20: Duplex | I20: Gold | J20: NA | K20: 4 | O20: =IF(OR(M20="NA", M20="FAILED"), M20, (IF(ISERROR(N20/'Test Info'!$I$6*100), "", N20/'Test Info'!$I$6*100))) ->  | P20: =IF(OR(M20="NA", M20="FAILED"), M20, (IF(ISERROR(K20/M20/'Test Info'!$I$6*6000), "", K20/M20/'Test Info'!$I$6*6000))) ->  | S20: Case 11 | T20: Default | U20: Mono | V20: Office | W20: Powerpoint | X20: Letter | Y20: Duplex | Z20: Gold | AA20: NA | AB20: 4 | AF20: =IF(OR(AD20="NA", AD20="FAILED"), AD20, (IF(ISERROR(AE20/'Test Info'!$I$6*100), "", AE20/'Test Info'!$I$6*100))) ->  | AG20: =IF(OR(AD20="NA", AD20="FAILED"), AD20, (IF(ISERROR(AB20/AD20/'Test Info'!$I$6*6000), "", AB20/AD20/'Test Info'!$I$6*6000))) -> 
B21: Case 12 | C21: Alternative | D21: Color | E21: Graphic | F21: Publisher | G21: Letter | H21: Simplex | I21: Calendar | J21: NA | K21: 12 | O21: =IF(OR(M21="NA", M21="FAILED"), M21, (IF(ISERROR(N21/'Test Info'!$I$6*100), "", N21/'Test Info'!$I$6*100))) ->  | P21: =IF(OR(M21="NA", M21="FAILED"), M21, (IF(ISERROR(K21/M21/'Test Info'!$I$6*6000), "", K21/M21/'Test Info'!$I$6*6000))) ->  | S21: Case 12 | T21: Alternative | U21: Color | V21: Graphic | W21: Publisher | X21: Letter | Y21: Simplex | Z21: Calendar | AA21: NA | AB21: 12 | AF21: =IF(OR(AD21="NA", AD21="FAILED"), AD21, (IF(ISERROR(AE21/'Test Info'!$I$6*100), "", AE21/'Test Info'!$I$6*100))) ->  | AG21: =IF(OR(AD21="NA", AD21="FAILED"), AD21, (IF(ISERROR(AB21/AD21/'Test Info'!$I$6*6000), "", AB21/AD21/'Test Info'!$I$6*6000))) -> 
B22: Case 13 | C22: Alternative | D22: Color | E22: Stress | F22: Photoshop | G22: Letter | H22: Simplex | I22: Turtle Island | J22: NA | K22: 1 | O22: =IF(OR(M22="NA", M22="FAILED"), M22, (IF(ISERROR(N22/'Test Info'!$I$6*100), "", N22/'Test Info'!$I$6*100))) ->  | P22: =IF(OR(M22="NA", M22="FAILED"), M22, (IF(ISERROR(K22/M22/'Test Info'!$I$6*6000), "", K22/M22/'Test Info'!$I$6*6000))) ->  | S22: Case 13 | T22: Alternative | U22: Color | V22: Stress | W22: Photoshop | X22: Letter | Y22: Simplex | Z22: Turtle Island | AA22: NA | AB22: 1 | AF22: =IF(OR(AD22="NA", AD22="FAILED"), AD22, (IF(ISERROR(AE22/'Test Info'!$I$6*100), "", AE22/'Test Info'!$I$6*100))) ->  | AG22: =IF(OR(AD22="NA", AD22="FAILED"), AD22, (IF(ISERROR(AB22/AD22/'Test Info'!$I$6*6000), "", AB22/AD22/'Test Info'!$I$6*6000))) -> 
B23: Case 14 | C23: Alternative | D23: Color | E23: Office | F23: Access | G23: Letter | H23: Simplex | I23: Volcanoes | J23: NA | K23: 7 | O23: =IF(OR(M23="NA", M23="FAILED"), M23, (IF(ISERROR(N23/'Test Info'!$I$6*100), "", N23/'Test Info'!$I$6*100))) ->  | P23: =IF(OR(M23="NA", M23="FAILED"), M23, (IF(ISERROR(K23/M23/'Test Info'!$I$6*6000), "", K23/M23/'Test Info'!$I$6*6000))) ->  | S23: Case 14 | T23: Alternative | U23: Color | V23: Office | W23: Access | X23: Letter | Y23: Simplex | Z23: Volcanoes | AA23: NA | AB23: 7 | AF23: =IF(OR(AD23="NA", AD23="FAILED"), AD23, (IF(ISERROR(AE23/'Test Info'!$I$6*100), "", AE23/'Test Info'!$I$6*100))) ->  | AG23: =IF(OR(AD23="NA", AD23="FAILED"), AD23, (IF(ISERROR(AB23/AD23/'Test Info'!$I$6*6000), "", AB23/AD23/'Test Info'!$I$6*6000))) -> 
B24: Case 15 | C24: Alternative | D24: Color | E24: Graphic | F24: Acrobat | G24: Letter | H24: Simplex | I24: Outcast | J24: NA | K24: 12 | O24: =IF(OR(M24="NA", M24="FAILED"), M24, (IF(ISERROR(N24/'Test Info'!$I$6*100), "", N24/'Test Info'!$I$6*100))) ->  | P24: =IF(OR(M24="NA", M24="FAILED"), M24, (IF(ISERROR(K24/M24/'Test Info'!$I$6*6000), "", K24/M24/'Test Info'!$I$6*6000))) ->  | S24: Case 15 | T24: Alternative | U24: Color | V24: Graphic | W24: Acrobat | X24: Letter | Y24: Simplex | Z24: Outcast | AA24: NA | AB24: 12 | AE24: =IF(OR(AD24="NA", AD24="FAILED"), AD24, (IF(ISERROR((AB24-1)/(AD24-AC24)*60), "", (AB24-1)/(AD24-AC24)*60))) ->  | AF24: =IF(OR(AD24="NA", AD24="FAILED"), AD24, (IF(ISERROR(AE24/'Test Info'!$I$6*100), "", AE24/'Test Info'!$I$6*100))) ->  | AG24: =IF(OR(AD24="NA", AD24="FAILED"), AD24, (IF(ISERROR(AB24/AD24/'Test Info'!$I$6*6000), "", AB24/AD24/'Test Info'!$I$6*6000))) -> 
B25: Case 16 | C25: Alternative | D25: Mono | E25: Office | F25: Chrome | G25: Letter | H25: Duplex | I25: Classifieds | J25: NA | K25: 7 | O25: =IF(OR(M25="NA", M25="FAILED"), M25, (IF(ISERROR(N25/'Test Info'!$I$6*100), "", N25/'Test Info'!$I$6*100))) ->  | P25: =IF(OR(M25="NA", M25="FAILED"), M25, (IF(ISERROR(K25/M25/'Test Info'!$I$6*6000), "", K25/M25/'Test Info'!$I$6*6000))) ->  | S25: Case 16 | T25: Alternative | U25: Mono | V25: Office | W25: Chrome | X25: Letter | Y25: Duplex | Z25: Classifieds | AA25: NA | AB25: 7 | AF25: =IF(OR(AD25="NA", AD25="FAILED"), AD25, (IF(ISERROR(AE25/'Test Info'!$I$6*100), "", AE25/'Test Info'!$I$6*100))) ->  | AG25: =IF(OR(AD25="NA", AD25="FAILED"), AD25, (IF(ISERROR(AB25/AD25/'Test Info'!$I$6*6000), "", AB25/AD25/'Test Info'!$I$6*6000))) -> 
B26: Case 17 | C26: Alternative | D26: Color | E26: Office | F26: Quark | G26: Letter | H26: Duplex | I26: Blue sky | J26: NA | K26: 6 | O26: =IF(OR(M26="NA", M26="FAILED"), M26, (IF(ISERROR(N26/'Test Info'!$I$6*100), "", N26/'Test Info'!$I$6*100))) ->  | P26: =IF(OR(M26="NA", M26="FAILED"), M26, (IF(ISERROR(K26/M26/'Test Info'!$I$6*6000), "", K26/M26/'Test Info'!$I$6*6000))) ->  | S26: Case 17 | T26: Alternative | U26: Color | V26: Office | W26: Quark | X26: Letter | Y26: Duplex | Z26: Blue sky | AA26: NA | AB26: 6 | AF26: =IF(OR(AD26="NA", AD26="FAILED"), AD26, (IF(ISERROR(AE26/'Test Info'!$I$6*100), "", AE26/'Test Info'!$I$6*100))) ->  | AG26: =IF(OR(AD26="NA", AD26="FAILED"), AD26, (IF(ISERROR(AB26/AD26/'Test Info'!$I$6*6000), "", AB26/AD26/'Test Info'!$I$6*6000))) -> 
B27: Case 18 | C27: Alternative | D27: Mono | E27: Office | F27: Powerpoint | G27: Letter | H27: Duplex | I27: Gold | J27: NA | K27: 4 | O27: =IF(OR(M27="NA", M27="FAILED"), M27, (IF(ISERROR(N27/'Test Info'!$I$6*100), "", N27/'Test Info'!$I$6*100))) ->  | P27: =IF(OR(M27="NA", M27="FAILED"), M27, (IF(ISERROR(K27/M27/'Test Info'!$I$6*6000), "", K27/M27/'Test Info'!$I$6*6000))) ->  | S27: Case 18 | T27: Alternative | U27: Mono | V27: Office | W27: Powerpoint | X27: Letter | Y27: Duplex | Z27: Gold | AA27: NA | AB27: 4 | AF27: =IF(OR(AD27="NA", AD27="FAILED"), AD27, (IF(ISERROR(AE27/'Test Info'!$I$6*100), "", AE27/'Test Info'!$I$6*100))) ->  | AG27: =IF(OR(AD27="NA", AD27="FAILED"), AD27, (IF(ISERROR(AB27/AD27/'Test Info'!$I$6*6000), "", AB27/AD27/'Test Info'!$I$6*6000))) -> 
B28: Case 19 | C28: Alternative | D28: Mono | E28: Office | F28: Illustrator | G28: Letter | H28: Duplex | I28: Oberan 1 | J28: NA | K28: 1 | O28: =IF(OR(M28="NA", M28="FAILED"), M28, (IF(ISERROR(N28/'Test Info'!$I$6*100), "", N28/'Test Info'!$I$6*100))) ->  | P28: =IF(OR(M28="NA", M28="FAILED"), M28, (IF(ISERROR(K28/M28/'Test Info'!$I$6*6000), "", K28/M28/'Test Info'!$I$6*6000))) ->  | S28: Case 19 | T28: Alternative | U28: Mono | V28: Office | W28: Illustrator | X28: Letter | Y28: Duplex | Z28: Oberan 1 | AA28: NA | AB28: 1 | AF28: =IF(OR(AD28="NA", AD28="FAILED"), AD28, (IF(ISERROR(AE28/'Test Info'!$I$6*100), "", AE28/'Test Info'!$I$6*100))) ->  | AG28: =IF(OR(AD28="NA", AD28="FAILED"), AD28, (IF(ISERROR(AB28/AD28/'Test Info'!$I$6*6000), "", AB28/AD28/'Test Info'!$I$6*6000))) -> 
B29: Case 20 | C29: Default | D29: Mono | E29: Office | F29: Excel | G29: A4 | H29: Simplex | I29: Budget | J29: NA | K29: 1 | O29: =IF(OR(M29="NA", M29="FAILED"), M29, (IF(ISERROR(N29/'Test Info'!$I$6*100), "", N29/'Test Info'!$I$6*100))) ->  | P29: =IF(OR(M29="NA", M29="FAILED"), M29, (IF(ISERROR(K29/M29/'Test Info'!$I$6*6000), "", K29/M29/'Test Info'!$I$6*6000))) ->  | S29: Case 20 | T29: Default | U29: Mono | V29: Office | W29: Excel | X29: A4 | Y29: Simplex | Z29: Budget | AA29: NA | AB29: 1 | AF29: =IF(OR(AD29="NA", AD29="FAILED"), AD29, (IF(ISERROR(AE29/'Test Info'!$I$6*100), "", AE29/'Test Info'!$I$6*100))) ->  | AG29: =IF(OR(AD29="NA", AD29="FAILED"), AD29, (IF(ISERROR(AB29/AD29/'Test Info'!$I$6*6000), "", AB29/AD29/'Test Info'!$I$6*6000))) -> 
B30: Case 21 | C30: Default | D30: Mono | E30: Office | F30: Outlook | G30: A4 | H30: Simplex | I30: TestFile11 | J30: NA | K30: 1 | O30: =IF(OR(M30="NA", M30="FAILED"), M30, (IF(ISERROR(N30/'Test Info'!$I$6*100), "", N30/'Test Info'!$I$6*100))) ->  | P30: =IF(OR(M30="NA", M30="FAILED"), M30, (IF(ISERROR(K30/M30/'Test Info'!$I$6*6000), "", K30/M30/'Test Info'!$I$6*6000))) ->  | S30: Case 21 | T30: Default | U30: Mono | V30: Office | W30: Outlook | X30: A4 | Y30: Simplex | Z30: TestFile11 | AA30: NA | AB30: 1 | AF30: =IF(OR(AD30="NA", AD30="FAILED"), AD30, (IF(ISERROR(AE30/'Test Info'!$I$6*100), "", AE30/'Test Info'!$I$6*100))) ->  | AG30: =IF(OR(AD30="NA", AD30="FAILED"), AD30, (IF(ISERROR(AB30/AD30/'Test Info'!$I$6*6000), "", AB30/AD30/'Test Info'!$I$6*6000))) -> 
B31: Case 22 | C31: Default | D31: Color | E31: Office | F31: Word | G31: A4 | H31: Simplex | I31: Contents | J31: NA | K31: 12 | O31: =IF(OR(M31="NA", M31="FAILED"), M31, (IF(ISERROR(N31/'Test Info'!$I$6*100), "", N31/'Test Info'!$I$6*100))) ->  | P31: =IF(OR(M31="NA", M31="FAILED"), M31, (IF(ISERROR(K31/M31/'Test Info'!$I$6*6000), "", K31/M31/'Test Info'!$I$6*6000))) ->  | S31: Case 22 | T31: Default | U31: Color | V31: Office | W31: Word | X31: A4 | Y31: Simplex | Z31: Contents | AA31: NA | AB31: 12 | AF31: =IF(OR(AD31="NA", AD31="FAILED"), AD31, (IF(ISERROR(AE31/'Test Info'!$I$6*100), "", AE31/'Test Info'!$I$6*100))) ->  | AG31: =IF(OR(AD31="NA", AD31="FAILED"), AD31, (IF(ISERROR(AB31/AD31/'Test Info'!$I$6*6000), "", AB31/AD31/'Test Info'!$I$6*6000))) -> 
B32: Case 23 | C32: Default | D32: Color | E32: Office | F32: Powerpoint | G32: A4 | H32: Simplex | I32: Jewelry | J32: NA | K32: 12 | O32: =IF(OR(M32="NA", M32="FAILED"), M32, (IF(ISERROR(N32/'Test Info'!$I$6*100), "", N32/'Test Info'!$I$6*100))) ->  | P32: =IF(OR(M32="NA", M32="FAILED"), M32, (IF(ISERROR(K32/M32/'Test Info'!$I$6*6000), "", K32/M32/'Test Info'!$I$6*6000))) ->  | S32: Case 23 | T32: Default | U32: Color | V32: Office | W32: Powerpoint | X32: A4 | Y32: Simplex | Z32: Jewelry | AA32: NA | AB32: 12 | AE32: =IF(OR(AD32="NA", AD32="FAILED"), AD32, (IF(ISERROR((AB32-1)/(AD32-AC32)*60), "", (AB32-1)/(AD32-AC32)*60))) ->  | AF32: =IF(OR(AD32="NA", AD32="FAILED"), AD32, (IF(ISERROR(AE32/'Test Info'!$I$6*100), "", AE32/'Test Info'!$I$6*100))) ->  | AG32: =IF(OR(AD32="NA", AD32="FAILED"), AD32, (IF(ISERROR(AB32/AD32/'Test Info'!$I$6*6000), "", AB32/AD32/'Test Info'!$I$6*6000))) -> 
B33: Case 24 | C33: Default | D33: Color | E33: Office | F33: Chrome | G33: Legal | H33: Simplex | I33: Classifieds-14 | J33: NA | K33: 13 | O33: =IF(OR(M33="NA", M33="FAILED"), M33, (IF(ISERROR(N33/'Test Info'!$I$6*100), "", N33/'Test Info'!$I$6*100))) ->  | P33: =IF(OR(M33="NA", M33="FAILED"), M33, (IF(ISERROR(K33/M33/'Test Info'!$I$6*6000), "", K33/M33/'Test Info'!$I$6*6000))) ->  | S33: Case 24 | T33: Default | U33: Color | V33: Office | W33: Chrome | X33: Legal | Y33: Simplex | Z33: Classifieds-14 | AA33: NA | AB33: 13 | AF33: =IF(OR(AD33="NA", AD33="FAILED"), AD33, (IF(ISERROR(AE33/'Test Info'!$I$6*100), "", AE33/'Test Info'!$I$6*100))) ->  | AG33: =IF(OR(AD33="NA", AD33="FAILED"), AD33, (IF(ISERROR(AB33/AD33/'Test Info'!$I$6*6000), "", AB33/AD33/'Test Info'!$I$6*6000))) -> 
B34: Case 25 | C34: Alternative | D34: Mono | E34: Office | F34: Excel | G34: Legal | H34: Simplex | I34: Salary-14 | J34: NA | K34: 5 | O34: =IF(OR(M34="NA", M34="FAILED"), M34, (IF(ISERROR(N34/'Test Info'!$I$6*100), "", N34/'Test Info'!$I$6*100))) ->  | P34: =IF(OR(M34="NA", M34="FAILED"), M34, (IF(ISERROR(K34/M34/'Test Info'!$I$6*6000), "", K34/M34/'Test Info'!$I$6*6000))) ->  | S34: Case 25 | T34: Alternative | U34: Mono | V34: Office | W34: Excel | X34: Legal | Y34: Simplex | Z34: Salary-14 | AA34: NA | AB34: 5 | AF34: =IF(OR(AD34="NA", AD34="FAILED"), AD34, (IF(ISERROR(AE34/'Test Info'!$I$6*100), "", AE34/'Test Info'!$I$6*100))) ->  | AG34: =IF(OR(AD34="NA", AD34="FAILED"), AD34, (IF(ISERROR(AB34/AD34/'Test Info'!$I$6*6000), "", AB34/AD34/'Test Info'!$I$6*6000))) -> 
B35: Case 26 | C35: Default | D35: Color | E35: Graphic | F35: Powerpoint | G35: Tabloid | H35: Simplex | I35: Valentines day -17 | J35: NA | K35: 40 | O35: =IF(OR(M35="NA", M35="FAILED"), M35, (IF(ISERROR(N35/'Test Info'!$I$6*100), "", N35/'Test Info'!$I$6*100))) ->  | P35: =IF(OR(M35="NA", M35="FAILED"), M35, (IF(ISERROR(K35/M35/'Test Info'!$I$6*6000), "", K35/M35/'Test Info'!$I$6*6000))) ->  | S35: Case 26 | T35: Default | U35: Color | V35: Graphic | W35: Powerpoint | X35: Tabloid | Y35: Simplex | Z35: Valentines day -17 | AA35: NA | AB35: 40 | AF35: =IF(OR(AD35="NA", AD35="FAILED"), AD35, (IF(ISERROR(AE35/'Test Info'!$I$6*100), "", AE35/'Test Info'!$I$6*100))) ->  | AG35: =IF(OR(AD35="NA", AD35="FAILED"), AD35, (IF(ISERROR(AB35/AD35/'Test Info'!$I$6*6000), "", AB35/AD35/'Test Info'!$I$6*6000))) -> 
B36: Case 27 | C36: Alternative | D36: Mono | E36: Office | F36: Word | G36: Tabloid | H36: Simplex | I36: Contents-17 | J36: NA | K36: 7 | O36: =IF(OR(M36="NA", M36="FAILED"), M36, (IF(ISERROR(N36/'Test Info'!$I$6*100), "", N36/'Test Info'!$I$6*100))) ->  | P36: =IF(OR(M36="NA", M36="FAILED"), M36, (IF(ISERROR(K36/M36/'Test Info'!$I$6*6000), "", K36/M36/'Test Info'!$I$6*6000))) ->  | S36: Case 27 | T36: Alternative | U36: Mono | V36: Office | W36: Word | X36: Tabloid | Y36: Simplex | Z36: Contents-17 | AA36: NA | AB36: 7 | AF36: =IF(OR(AD36="NA", AD36="FAILED"), AD36, (IF(ISERROR(AE36/'Test Info'!$I$6*100), "", AE36/'Test Info'!$I$6*100))) ->  | AG36: =IF(OR(AD36="NA", AD36="FAILED"), AD36, (IF(ISERROR(AB36/AD36/'Test Info'!$I$6*6000), "", AB36/AD36/'Test Info'!$I$6*6000))) -> 
A37: Web/PRN Submission | B37: Case 28 | C37: Web | D37: Color | E37: Graphic | F37: Acrobat | G37: Letter | H37: Simplex | I37: Outcast | J37: NA | K37: 12 | O37: =IF(OR(M37="NA", M37="FAILED"), M37, (IF(ISERROR(N37/'Test Info'!$I$6*100), "", N37/'Test Info'!$I$6*100))) ->  | P37: =IF(OR(M37="NA", M37="FAILED"), M37, (IF(ISERROR(K37/M37/'Test Info'!$I$6*6000), "", K37/M37/'Test Info'!$I$6*6000))) ->  | R37: Web/PRN Submission | S37: Case 28 | T37: Web | U37: Color | V37: Graphic | W37: Acrobat | X37: Letter | Y37: Simplex | Z37: Outcast | AA37: NA | AB37: 12 | AF37: =IF(OR(AD37="NA", AD37="FAILED"), AD37, (IF(ISERROR(AE37/'Test Info'!$I$6*100), "", AE37/'Test Info'!$I$6*100))) ->  | AG37: =IF(OR(AD37="NA", AD37="FAILED"), AD37, (IF(ISERROR(AB37/AD37/'Test Info'!$I$6*6000), "", AB37/AD37/'Test Info'!$I$6*6000))) -> 
B38: Case 29 | C38: PRN-Default Driver | D38: Mono | E38: Office | F38: Word | G38: Letter | H38: Simplex | I38: WordDoc-10pgs | J38: 10 times | K38: 100 | O38: =IF(OR(M38="NA", M38="FAILED"), M38, (IF(ISERROR(N38/'Test Info'!$I$6*100), "", N38/'Test Info'!$I$6*100))) ->  | P38: =IF(OR(M38="NA", M38="FAILED"), M38, (IF(ISERROR(K38/M38/'Test Info'!$I$6*6000), "", K38/M38/'Test Info'!$I$6*6000))) ->  | S38: Case 29 | T38: PRN-Default Driver | U38: Mono | V38: Office | W38: Word | X38: Letter | Y38: Simplex | Z38: WordDoc-10pgs | AA38: 10 times | AB38: 100 | AF38: =IF(OR(AD38="NA", AD38="FAILED"), AD38, (IF(ISERROR(AE38/'Test Info'!$I$6*100), "", AE38/'Test Info'!$I$6*100))) ->  | AG38: =IF(OR(AD38="NA", AD38="FAILED"), AD38, (IF(ISERROR(AB38/AD38/'Test Info'!$I$6*6000), "", AB38/AD38/'Test Info'!$I$6*6000))) -> 
B39: Case 30 | C39: PRN-Alternative Driver | D39: Color | E39: Banner | F39: Excel | G39: Letter | H39: Simplex | I39: Salary | J39: NA | K39: 13 | O39: =IF(OR(M39="NA", M39="FAILED"), M39, (IF(ISERROR(N39/'Test Info'!$I$6*100), "", N39/'Test Info'!$I$6*100))) ->  | P39: =IF(OR(M39="NA", M39="FAILED"), M39, (IF(ISERROR(K39/M39/'Test Info'!$I$6*6000), "", K39/M39/'Test Info'!$I$6*6000))) ->  | S39: Case 30 | T39: PRN-Alternative Driver | U39: Color | V39: Banner | W39: Excel | X39: Letter | Y39: Simplex | Z39: Salary | AA39: NA | AB39: 13 | AF39: =IF(OR(AD39="NA", AD39="FAILED"), AD39, (IF(ISERROR(AE39/'Test Info'!$I$6*100), "", AE39/'Test Info'!$I$6*100))) ->  | AG39: =IF(OR(AD39="NA", AD39="FAILED"), AD39, (IF(ISERROR(AB39/AD39/'Test Info'!$I$6*6000), "", AB39/AD39/'Test Info'!$I$6*6000))) -> 
A45: Average of FPOT Measured | B45: Column Labels | R45: Average of FPOT Measured | S45: Column Labels
B46: B | C46: B Total | D46: Legal | E46: Legal Total | F46: Letter | H46: Letter Total | I46: Grand Total | S46: B | T46: B Total | U46: Legal | V46: Legal Total | W46: Letter | Y46: Letter Total | Z46: Grand Total
A47: Row Labels | B47: Simplex | D47: Simplex | F47: Duplex | G47: Simplex | R47: Row Labels | S47: Simplex | U47: Simplex | W47: Duplex | X47: Simplex
A48: PCL6 | R48: PCL6
A49: PRN-PS | R49: PRN-PS
A50: PS | R50: PS
A51: Web | R51: Web
A52: Grand Total | R52: Grand Total
A58: Average of 2-N % Rated Speed Calculated | B58: Column Labels | R58: Average of 2-N % Rated Speed Calculated | S58: Column Labels
B59: B | C59: B Total | D59: Legal | E59: Legal Total | F59: Letter | H59: Letter Total | I59: Grand Total | S59: B | T59: B Total | U59: Legal | V59: Legal Total | W59: Letter | Y59: Letter Total | Z59: Grand Total
A60: Row Labels | B60: Simplex | D60: Simplex | F60: Duplex | G60: Simplex | R60: Row Labels | S60: Simplex | U60: Simplex | W60: Duplex | X60: Simplex
A61: PCL6 | R61: PCL6
A62: PRN-PS | R62: PRN-PS
A63: PS | R63: PS
A64: Web | R64: Web
A65: Grand Total | R65: Grand Total
A75: Precondition:
A76: Tester have to create the .prn file each time when the Driver version is changed ;
A78: Device Settings
A79: Mono Device Settings:
A80: Priority Mode set for BW Plain,White Letter LEF Tray 1
A81: Color Device Settings:
A82: Priority Mode set for Color Plain, White Letter LEF Tray 1 .
A83: Mode settings-Login-->admin-->machine status-->tools-->device settings-->general-->output speed-->color for color settings and mono for B\W settings.
A84: Types of Papers used for No Banner Regular submission:
A85: Letter,Legal,Tabloid,legal.
A86: Side:simples/duplex
A88: Procedure:
A89: No Banner Regular Submission Jobs from Print driver
A91: 1.Set the driver type as default "PS/PCL " mentioned in driver column with Banner sheet disabled
A92: 2.Open the Test File in application mentioned in the Laptop
A93: 3.Go to File/Print and Perform the "Size" ,"Side","Collation" settings as mentioned in table and Click Print buton; and Start timer in Stopwatch together
A94: 4. Use Lap funtion in the stop watch as
A95: FPOT (lap 1): Time from “Print” button selected until the TRAIL EDGE of the 1st sheet exits to the default tray
A96: C-C (lap 2): Time from “Print” button selected until the TRAIL EDGE of the last sheet exits to the default tray
A97: 5.Record the time then and repeat the above steps for conseqent readings
A99: Web/PRN Submission jobs from WebUI
A101: PS Driver
A103: 1.Open the "Internet Explorer 10"/chrome
A104: 2.Give the ip address of machine to open the webui
A105: 3.go to "Print " tab in the webui
A106: 4.Browse to the file mentioned in "Test File Name column"
A107: 5.Perform the "Size" ,"Side","Collation" settings , disable/enable job id sheet as Mentioned in table and click "Submit Job" button and Start timer in Stopwatch together
A108: 6. Use Lap funtion in the stop watch as
A109: FPOT (lap 1): Time from “Submit Job” button selected until the TRAIL EDGE of the 1st sheet exits to the default tray
A110: C-C (lap 2): Time from “Submit Job” button selected until the TRAIL EDGE of the last sheet exits to the default tray
A111: 7.Record the time then and repeat the above steps for conseqent readings.
A113: Creating PRN Files
A114: It is recommended to create all PRN files need for the PRN sections before beginning Web Submission.
A116: Note: PS PRN files have the extension “.ps” and PCL6 PRN files have the extension “.prn”.
A118: 1. Create the New Folder “PRN-Files” on C:\
A119: 2. Create a new Local PS Printer Port for printing to file (Printer Properties > Ports > Add Port > Local Port > Port Name: C:\PRN-Files\file.ps)
A120: 3. Create a new Local PCL6 Printer Port for printing to file (Printer Properties > Ports > Add Port > Local Port > Port Name: C:\PRN-Files\file.prn)
A121: 4. Change the PS and PCL6 Printer Default Settings to Automatic Color/Color and Banner Sheet Off.
A122: 5. Create PS and PCL6 Color PRN files
A123: a. Open applications found in the PRN folder and print like a normal job
A124: b. In C:\PRN-Files and rename file.ps/file.prn before submitting next(e.g. Patient_PS_Color.ps)
A125: 6. Change the PS and PCL6 Printer Default Settings to Black and White and Banner Sheet Off.
A126: 7. Create PS and PCL6 Mono PRN files
A127: a. Open applications found in the PRN folder and print like a normal job
A128: b. In C:\PRN-Files and rename file.ps/file.prn before submitting next(e.g. Patient_PCL6_Mono.prn)
A129: 8. Remember to set the PS and PCL6 Print Ports back

Sheet Copy (hidden)
A1: ='Test Info'!A1 -> Samudra MFP High B0 | M1: ='Test Info'!B16 -> Samudra Low MFP
A2: ='Test Info'!A2 -> Release: | C2: ='Test Info'!B2 -> 0.123.0 | M2: Release | O2: ='Test Info'!B17 -> V 1.10.4N
A3: Test Duration: | C3: =CONCATENATE(TEXT('Test Info'!B3, "m/d/yyyy"), " - ", TEXT(EndDate, "m/d/yyyy")) -> 9/11/2017 - 13/11/2017 | M3: Test Duration: | O3: =CONCATENATE(TEXT('Test Info'!B5, "d/m/yyyy"),"-", TEXT('Test Info'!F5,"d/m/yyyy")) -> Enter-Enter at End of Test
J4: Time Conversion Tool
J5: Enter | K5: Enter | L5: Calculated
J6: Minutes | K6: Seconds | L6: Seconds
A7: Copy to Default Tray | L7: =J7*60+K7 -> 0 | M7: Copy to Default Tray
A9: Copy 1 Page FCOT (Not Needed if Mkt FPOT-FCOT done) | M9: Copy 1 Page FCOT (Not Needed if Mkt FPOT-FCOT done)
A11: Platen Tests | M11: Platen Tests
A13: Select Output Color - COLOR or MONO | E13: Select Output Color - AUTO | M13: Select Output Color - COLOR or MONO | Q13: Select Output Color - AUTO
A14: Platen FCOT | E14: Platen FCOT | M14: Platen FCOT | Q14: Platen FCOT
A15: Job Number | B15: Mono | C15: Color | E15: Job Number | F15: Mono | G15: Color | M15: Job Number | N15: Mono | O15: Color | Q15: Job Number | R15: Mono | S15: Color
A16: 1 | E16: 1 | M16: 1 | Q16: 1
A17: 2 | E17: 2 | M17: 2 | Q17: 2
A18: 3 | E18: 3 | M18: 3 | Q18: 3
A19: 4 | E19: 4 | M19: 4 | Q19: 4
A20: 5 | E20: 5 | M20: 5 | Q20: 5
A21: 6 | E21: 6 | M21: 6 | Q21: 6
A22: Min | B22: =IF(OR(B21="NA", B21="Failed"), B21, (IF((MIN(B17:B21)) = 0, "", MIN(B17:B21)))) ->  | C22: =IF(OR(C21="NA", C21="Failed"), C21, (IF((MIN(C17:C21)) = 0, "", MIN(C17:C21)))) ->  | E22: Min | F22: =IF(OR(F21="NA", F21="Failed"), F21, (IF((MIN(F17:F21)) = 0, "", MIN(F17:F21)))) ->  | G22: =IF(OR(G21="NA", G21="Failed"), G21, (IF((MIN(G17:G21)) = 0, "", MIN(G17:G21)))) ->  | M22: Min | N22: =IF(OR(N21="NA", N21="Failed"), N21, (IF((MIN(N17:N21)) = 0, "", MIN(N17:N21)))) ->  | O22: =IF(OR(O21="NA", O21="Failed"), O21, (IF((MIN(O17:O21)) = 0, "", MIN(O17:O21)))) ->  | Q22: Min | R22: =IF(OR(R21="NA", R21="Failed"), R21, (IF((MIN(R17:R21)) = 0, "", MIN(R17:R21)))) ->  | S22: =IF(OR(S21="NA", S21="Failed"), S21, (IF((MIN(S17:S21)) = 0, "", MIN(S17:S21)))) -> 
A23: Max | B23: =IF(OR(B21="NA", B21="Failed"), B21, (IF((MAX(B17:B21)) = 0, "", MAX(B17:B21)))) ->  | C23: =IF(OR(C21="NA", C21="Failed"), C21, (IF((MAX(C17:C21)) = 0, "", MAX(C17:C21)))) ->  | E23: Max | F23: =IF(OR(F21="NA", F21="Failed"), F21, (IF((MAX(F17:F21)) = 0, "", MAX(F17:F21)))) ->  | G23: =IF(OR(G21="NA", G21="Failed"), G21, (IF((MAX(G17:G21)) = 0, "", MAX(G17:G21)))) ->  | M23: Max | N23: =IF(OR(N21="NA", N21="Failed"), N21, (IF((MAX(N17:N21)) = 0, "", MAX(N17:N21)))) ->  | O23: =IF(OR(O21="NA", O21="Failed"), O21, (IF((MAX(O17:O21)) = 0, "", MAX(O17:O21)))) ->  | Q23: Max | R23: =IF(OR(R21="NA", R21="Failed"), R21, (IF((MAX(R17:R21)) = 0, "", MAX(R17:R21)))) ->  | S23: =IF(OR(S21="NA", S21="Failed"), S21, (IF((MAX(S17:S21)) = 0, "", MAX(S17:S21)))) -> 
A24: Delta | B24: =IF(OR(B21="NA", B21="Failed"), B21, (IF(ISERROR(B23-B22), "", B23-B22))) ->  | C24: =IF(OR(C21="NA", C21="Failed"), C21, (IF(ISERROR(C23-C22), "", C23-C22))) ->  | E24: Delta | F24: =IF(OR(F21="NA", F21="Failed"), F21, (IF(ISERROR(F23-F22), "", F23-F22))) ->  | G24: =IF(OR(G21="NA", G21="Failed"), G21, (IF(ISERROR(G23-G22), "", G23-G22))) ->  | M24: Delta | N24: =IF(OR(N21="NA", N21="Failed"), N21, (IF(ISERROR(N23-N22), "", N23-N22))) ->  | O24: =IF(OR(O21="NA", O21="Failed"), O21, (IF(ISERROR(O23-O22), "", O23-O22))) ->  | Q24: Delta | R24: =IF(OR(R21="NA", R21="Failed"), R21, (IF(ISERROR(R23-R22), "", R23-R22))) ->  | S24: =IF(OR(S21="NA", S21="Failed"), S21, (IF(ISERROR(S23-S22), "", S23-S22))) -> 
A25: Average | B25: =IF(OR(B21="NA", B21="Failed"), B21, (IF((SUM(B16:B21)-MAX(B16:B21)-MIN(B16:B21))/(COUNT(B16:B21)-2) = 0, "", (SUM(B16:B21)-MAX(B16:B21)-MIN(B16:B21))/(COUNT(B16:B21)-2)))) ->  | C25: =IF(OR(C21="NA", C21="Failed"), C21, (IF((SUM(C16:C21)-MAX(C16:C21)-MIN(C16:C21))/(COUNT(C16:C21)-2) = 0, "", (SUM(C16:C21)-MAX(C16:C21)-MIN(C16:C21))/(COUNT(C16:C21)-2)))) ->  | E25: Average | F25: =IF(OR(F21="NA", F21="Failed"), F21, (IF((SUM(F16:F21)-MAX(F16:F21)-MIN(F16:F21))/(COUNT(F16:F21)-2) = 0, "", (SUM(F16:F21)-MAX(F16:F21)-MIN(F16:F21))/(COUNT(F16:F21)-2)))) ->  | G25: =IF(OR(G21="NA", G21="Failed"), G21, (IF((SUM(G16:G21)-MAX(G16:G21)-MIN(G16:G21))/(COUNT(G16:G21)-2) = 0, "", (SUM(G16:G21)-MAX(G16:G21)-MIN(G16:G21))/(COUNT(G16:G21)-2)))) ->  | M25: Average | N25: =IF(OR(N21="NA", N21="Failed"), N21, (IF((SUM(N16:N21)-MAX(N16:N21)-MIN(N16:N21))/(COUNT(N16:N21)-2) = 0, "", (SUM(N16:N21)-MAX(N16:N21)-MIN(N16:N21))/(COUNT(N16:N21)-2)))) ->  | O25: =IF(OR(O21="NA", O21="Failed"), O21, (IF((SUM(O16:O21)-MAX(O16:O21)-MIN(O16:O21))/(COUNT(O16:O21)-2) = 0, "", (SUM(O16:O21)-MAX(O16:O21)-MIN(O16:O21))/(COUNT(O16:O21)-2)))) ->  | Q25: Average | R25: =IF(OR(R21="NA", R21="Failed"), R21, (IF((SUM(R16:R21)-MAX(R16:R21)-MIN(R16:R21))/(COUNT(R16:R21)-2) = 0, "", (SUM(R16:R21)-MAX(R16:R21)-MIN(R16:R21))/(COUNT(R16:R21)-2)))) ->  | S25: =IF(OR(S21="NA", S21="Failed"), S21, (IF((SUM(S16:S21)-MAX(S16:S21)-MIN(S16:S21))/(COUNT(S16:S21)-2) = 0, "", (SUM(S16:S21)-MAX(S16:S21)-MIN(S16:S21))/(COUNT(S16:S21)-2)))) -> 
A27: DADF Tests | M27: DADF Tests
A29: Select Output Color - COLOR or MONO | E29: Select Output Color - AUTO | M29: Select Output Color - COLOR or MONO | Q29: Select Output Color - AUTO
A30: DADF FCOT | E30: DADF FCOT | M30: DADF FCOT | Q30: DADF FCOT
A31: Job Number | B31: Mono | C31: Color | E31: Job Number | F31: Mono | G31: Color | M31: Job Number | N31: Mono | O31: Color | Q31: Job Number | R31: Mono | S31: Color
A32: 1 | E32: 1 | M32: 1 | Q32: 1
A33: 2 | E33: 2 | M33: 2 | Q33: 2
A34: 3 | E34: 3 | M34: 3 | Q34: 3
A35: 4 | E35: 4 | M35: 4 | Q35: 4
A36: 5 | E36: 5 | M36: 5 | Q36: 5
A37: 6 | E37: 6 | M37: 6 | Q37: 6
A38: Min | B38: =IF(OR(B37="NA", B37="Failed"), B37, (IF((MIN(B33:B37)) = 0, "", MIN(B33:B37)))) ->  | C38: =IF(OR(C37="NA", C37="Failed"), C37, (IF((MIN(C33:C37)) = 0, "", MIN(C33:C37)))) ->  | E38: Min | F38: =IF(OR(F37="NA", F37="Failed"), F37, (IF((MIN(F33:F37)) = 0, "", MIN(F33:F37)))) ->  | G38: =IF(OR(G37="NA", G37="Failed"), G37, (IF((MIN(G33:G37)) = 0, "", MIN(G33:G37)))) ->  | M38: Min | N38: =IF(OR(N37="NA", N37="Failed"), N37, (IF((MIN(N33:N37)) = 0, "", MIN(N33:N37)))) ->  | O38: =IF(OR(O37="NA", O37="Failed"), O37, (IF((MIN(O33:O37)) = 0, "", MIN(O33:O37)))) ->  | Q38: Min | R38: =IF(OR(R37="NA", R37="Failed"), R37, (IF((MIN(R33:R37)) = 0, "", MIN(R33:R37)))) ->  | S38: =IF(OR(S37="NA", S37="Failed"), S37, (IF((MIN(S33:S37)) = 0, "", MIN(S33:S37)))) -> 
A39: Max | B39: =IF(OR(B37="NA", B37="Failed"), B37, (IF((MAX(B33:B37)) = 0, "", MAX(B33:B37)))) ->  | C39: =IF(OR(C37="NA", C37="Failed"), C37, (IF((MAX(C33:C37)) = 0, "", MAX(C33:C37)))) ->  | E39: Max | F39: =IF(OR(F37="NA", F37="Failed"), F37, (IF((MAX(F33:F37)) = 0, "", MAX(F33:F37)))) ->  | G39: =IF(OR(G37="NA", G37="Failed"), G37, (IF((MAX(G33:G37)) = 0, "", MAX(G33:G37)))) ->  | M39: Max | N39: =IF(OR(N37="NA", N37="Failed"), N37, (IF((MAX(N33:N37)) = 0, "", MAX(N33:N37)))) ->  | O39: =IF(OR(O37="NA", O37="Failed"), O37, (IF((MAX(O33:O37)) = 0, "", MAX(O33:O37)))) ->  | Q39: Max | R39: =IF(OR(R37="NA", R37="Failed"), R37, (IF((MAX(R33:R37)) = 0, "", MAX(R33:R37)))) ->  | S39: =IF(OR(S37="NA", S37="Failed"), S37, (IF((MAX(S33:S37)) = 0, "", MAX(S33:S37)))) -> 
A40: Delta | B40: =IF(OR(B37="NA", B37="Failed"), B37, (IF(ISERROR(B39-B38), "", B39-B38))) ->  | C40: =IF(OR(C37="NA", C37="Failed"), C37, (IF(ISERROR(C39-C38), "", C39-C38))) ->  | E40: Delta | F40: =IF(OR(F37="NA", F37="Failed"), F37, (IF(ISERROR(F39-F38), "", F39-F38))) ->  | G40: =IF(OR(G37="NA", G37="Failed"), G37, (IF(ISERROR(G39-G38), "", G39-G38))) ->  | M40: Delta | N40: =IF(OR(N37="NA", N37="Failed"), N37, (IF(ISERROR(N39-N38), "", N39-N38))) ->  | O40: =IF(OR(O37="NA", O37="Failed"), O37, (IF(ISERROR(O39-O38), "", O39-O38))) ->  | Q40: Delta | R40: =IF(OR(R37="NA", R37="Failed"), R37, (IF(ISERROR(R39-R38), "", R39-R38))) ->  | S40: =IF(OR(S37="NA", S37="Failed"), S37, (IF(ISERROR(S39-S38), "", S39-S38))) -> 
A41: Average | B41: =IF(OR(B37="NA", B37="Failed"), B37, (IF((SUM(B32:B37)-MAX(B32:B37)-MIN(B32:B37))/(COUNT(B32:B37)-2) = 0, "", (SUM(B32:B37)-MAX(B32:B37)-MIN(B32:B37))/(COUNT(B32:B37)-2)))) ->  | C41: =IF(OR(C37="NA", C37="Failed"), C37, (IF((SUM(C32:C37)-MAX(C32:C37)-MIN(C32:C37))/(COUNT(C32:C37)-2) = 0, "", (SUM(C32:C37)-MAX(C32:C37)-MIN(C32:C37))/(COUNT(C32:C37)-2)))) ->  | E41: Average | F41: =IF(OR(F37="NA", F37="Failed"), F37, (IF((SUM(F32:F37)-MAX(F32:F37)-MIN(F32:F37))/(COUNT(F32:F37)-2) = 0, "", (SUM(F32:F37)-MAX(F32:F37)-MIN(F32:F37))/(COUNT(F32:F37)-2)))) ->  | G41: =IF(OR(G37="NA", G37="Failed"), G37, (IF((SUM(G32:G37)-MAX(G32:G37)-MIN(G32:G37))/(COUNT(G32:G37)-2) = 0, "", (SUM(G32:G37)-MAX(G32:G37)-MIN(G32:G37))/(COUNT(G32:G37)-2)))) ->  | M41: Average | N41: =IF(OR(N37="NA", N37="Failed"), N37, (IF((SUM(N32:N37)-MAX(N32:N37)-MIN(N32:N37))/(COUNT(N32:N37)-2) = 0, "", (SUM(N32:N37)-MAX(N32:N37)-MIN(N32:N37))/(COUNT(N32:N37)-2)))) ->  | O41: =IF(OR(O37="NA", O37="Failed"), O37, (IF((SUM(O32:O37)-MAX(O32:O37)-MIN(O32:O37))/(COUNT(O32:O37)-2) = 0, "", (SUM(O32:O37)-MAX(O32:O37)-MIN(O32:O37))/(COUNT(O32:O37)-2)))) ->  | Q41: Average | R41: =IF(OR(R37="NA", R37="Failed"), R37, (IF((SUM(R32:R37)-MAX(R32:R37)-MIN(R32:R37))/(COUNT(R32:R37)-2) = 0, "", (SUM(R32:R37)-MAX(R32:R37)-MIN(R32:R37))/(COUNT(R32:R37)-2)))) ->  | S41: =IF(OR(S37="NA", S37="Failed"), S37, (IF((SUM(S32:S37)-MAX(S32:S37)-MIN(S32:S37))/(COUNT(S32:S37)-2) = 0, "", (SUM(S32:S37)-MAX(S32:S37)-MIN(S32:S37))/(COUNT(S32:S37)-2)))) -> 
A43: DADF Duplex Tests | M43: DADF Duplex Tests
A45: Select Output Color - COLOR or MONO | E45: Select Output Color - AUTO | M45: Select Output Color - COLOR or MONO | Q45: Select Output Color - AUTO
A46: DADF FCOT | E46: DADF FCOT | M46: DADF FCOT | Q46: DADF FCOT
A47: Job Number | B47: Mono | C47: Color | E47: Job Number | F47: Mono | G47: Color | M47: Job Number | N47: Mono | O47: Color | Q47: Job Number | R47: Mono | S47: Color
A48: 1 | E48: 1 | M48: 1 | Q48: 1
A49: 2 | E49: 2 | M49: 2 | Q49: 2
A50: 3 | E50: 3 | M50: 3 | Q50: 3
A51: 4 | E51: 4 | M51: 4 | Q51: 4
A52: 5 | E52: 5 | M52: 5 | Q52: 5
A53: 6 | E53: 6 | M53: 6 | Q53: 6
A54: Min | B54: =IF(OR(B53="NA", B53="Failed"), B53, (IF((MIN(B49:B53)) = 0, "", MIN(B49:B53)))) ->  | C54: =IF(OR(C53="NA", C53="Failed"), C53, (IF((MIN(C49:C53)) = 0, "", MIN(C49:C53)))) ->  | E54: Min | F54: =IF(OR(F53="NA", F53="Failed"), F53, (IF((MIN(F49:F53)) = 0, "", MIN(F49:F53)))) ->  | G54: =IF(OR(G53="NA", G53="Failed"), G53, (IF((MIN(G49:G53)) = 0, "", MIN(G49:G53)))) ->  | M54: Min | N54: =IF(OR(N53="NA", N53="Failed"), N53, (IF((MIN(N49:N53)) = 0, "", MIN(N49:N53)))) ->  | O54: =IF(OR(O53="NA", O53="Failed"), O53, (IF((MIN(O49:O53)) = 0, "", MIN(O49:O53)))) ->  | Q54: Min | R54: =IF(OR(R53="NA", R53="Failed"), R53, (IF((MIN(R49:R53)) = 0, "", MIN(R49:R53)))) ->  | S54: =IF(OR(S53="NA", S53="Failed"), S53, (IF((MIN(S49:S53)) = 0, "", MIN(S49:S53)))) -> 
A55: Max | B55: =IF(OR(B53="NA", B53="Failed"), B53, (IF((MAX(B49:B53)) = 0, "", MAX(B49:B53)))) ->  | C55: =IF(OR(C53="NA", C53="Failed"), C53, (IF((MAX(C49:C53)) = 0, "", MAX(C49:C53)))) ->  | E55: Max | F55: =IF(OR(F53="NA", F53="Failed"), F53, (IF((MAX(F49:F53)) = 0, "", MAX(F49:F53)))) ->  | G55: =IF(OR(G53="NA", G53="Failed"), G53, (IF((MAX(G49:G53)) = 0, "", MAX(G49:G53)))) ->  | M55: Max | N55: =IF(OR(N53="NA", N53="Failed"), N53, (IF((MAX(N49:N53)) = 0, "", MAX(N49:N53)))) ->  | O55: =IF(OR(O53="NA", O53="Failed"), O53, (IF((MAX(O49:O53)) = 0, "", MAX(O49:O53)))) ->  | Q55: Max | R55: =IF(OR(R53="NA", R53="Failed"), R53, (IF((MAX(R49:R53)) = 0, "", MAX(R49:R53)))) ->  | S55: =IF(OR(S53="NA", S53="Failed"), S53, (IF((MAX(S49:S53)) = 0, "", MAX(S49:S53)))) -> 
A56: Delta | B56: =IF(OR(B53="NA", B53="Failed"), B53, (IF(ISERROR(B55-B54), "", B55-B54))) ->  | C56: =IF(OR(C53="NA", C53="Failed"), C53, (IF(ISERROR(C55-C54), "", C55-C54))) ->  | E56: Delta | F56: =IF(OR(F53="NA", F53="Failed"), F53, (IF(ISERROR(F55-F54), "", F55-F54))) ->  | G56: =IF(OR(G53="NA", G53="Failed"), G53, (IF(ISERROR(G55-G54), "", G55-G54))) ->  | M56: Delta | N56: =IF(OR(N53="NA", N53="Failed"), N53, (IF(ISERROR(N55-N54), "", N55-N54))) ->  | O56: =IF(OR(O53="NA", O53="Failed"), O53, (IF(ISERROR(O55-O54), "", O55-O54))) ->  | Q56: Delta | R56: =IF(OR(R53="NA", R53="Failed"), R53, (IF(ISERROR(R55-R54), "", R55-R54))) ->  | S56: =IF(OR(S53="NA", S53="Failed"), S53, (IF(ISERROR(S55-S54), "", S55-S54))) -> 
A57: Average | B57: =IF(OR(B53="NA", B53="Failed"), B53, (IF((SUM(B48:B53)-MAX(B48:B53)-MIN(B48:B53))/(COUNT(B48:B53)-2) = 0, "", (SUM(B48:B53)-MAX(B48:B53)-MIN(B48:B53))/(COUNT(B48:B53)-2)))) ->  | C57: =IF(OR(C53="NA", C53="Failed"), C53, (IF((SUM(C48:C53)-MAX(C48:C53)-MIN(C48:C53))/(COUNT(C48:C53)-2) = 0, "", (SUM(C48:C53)-MAX(C48:C53)-MIN(C48:C53))/(COUNT(C48:C53)-2)))) ->  | E57: Average | F57: =IF(OR(F53="NA", F53="Failed"), F53, (IF((SUM(F48:F53)-MAX(F48:F53)-MIN(F48:F53))/(COUNT(F48:F53)-2) = 0, "", (SUM(F48:F53)-MAX(F48:F53)-MIN(F48:F53))/(COUNT(F48:F53)-2)))) ->  | G57: =IF(OR(G53="NA", G53="Failed"), G53, (IF((SUM(G48:G53)-MAX(G48:G53)-MIN(G48:G53))/(COUNT(G48:G53)-2) = 0, "", (SUM(G48:G53)-MAX(G48:G53)-MIN(G48:G53))/(COUNT(G48:G53)-2)))) ->  | M57: Average | N57: =IF(OR(N53="NA", N53="Failed"), N53, (IF((SUM(N48:N53)-MAX(N48:N53)-MIN(N48:N53))/(COUNT(N48:N53)-2) = 0, "", (SUM(N48:N53)-MAX(N48:N53)-MIN(N48:N53))/(COUNT(N48:N53)-2)))) ->  | O57: =IF(OR(O53="NA", O53="Failed"), O53, (IF((SUM(O48:O53)-MAX(O48:O53)-MIN(O48:O53))/(COUNT(O48:O53)-2) = 0, "", (SUM(O48:O53)-MAX(O48:O53)-MIN(O48:O53))/(COUNT(O48:O53)-2)))) ->  | Q57: Average | R57: =IF(OR(R53="NA", R53="Failed"), R53, (IF((SUM(R48:R53)-MAX(R48:R53)-MIN(R48:R53))/(COUNT(R48:R53)-2) = 0, "", (SUM(R48:R53)-MAX(R48:R53)-MIN(R48:R53))/(COUNT(R48:R53)-2)))) ->  | S57: =IF(OR(S53="NA", S53="Failed"), S53, (IF((SUM(S48:S53)-MAX(S48:S53)-MIN(S48:S53))/(COUNT(S48:S53)-2) = 0, "", (SUM(S48:S53)-MAX(S48:S53)-MIN(S48:S53))/(COUNT(S48:S53)-2)))) -> 
A61: Copy Multiple Page 11", 14", 17" and Duplex | M61: Copy Multiple Page 11", 14", 17" and Duplex
A63: Mode | B63: Paper Size | C63: Output Color | D63: Document | E63: Pages Printed | F63: FCOT Measured in Seconds | G63: C-C Measured in Seconds | H63: 2-N PPM Calculated | I63: 2-N % Rated Speed Calculated | J63: C-C % Rated Speed Calculated | M63: Mode | N63: Paper Size | O63: Output Color | P63: Document | Q63: Pages Printed | R63: FCOT Measured in Seconds | S63: C-C Measured in Seconds | T63: 2-N PPM Calculated | U63: 2-N % Rated Speed Calculated | V63: C-C % Rated Speed Calculated
A65: 1-1 Sided | B65: 11" | C65: Color | D65: ISO Copy | E65: 12 | H65: =IF(OR(G65="NA", G65="FAILED"), G65, (IF(ISERROR((E65-1)/(G65-F65)*60), "", (E65-1)/(G65-F65)*60))) ->  | I65: =IF(OR(G65="NA", G65="FAILED"), G65, (IF(ISERROR(H65/'Test Info'!$I$6*100), "", H65/'Test Info'!$I$6*100))) ->  | J65: =IF(OR(G65="NA", G65="FAILED"), G65, (IF(ISERROR(E65/G65/'Test Info'!$I$6*6000), "", E65/G65/'Test Info'!$I$6*6000))) ->  | M65: 1-1 Sided | N65: 11" | O65: Color | P65: ISO Copy | Q65: 12 | T65: =IF(OR(S65="NA", S65="FAILED"), S65, (IF(ISERROR((Q65-1)/(S65-R65)*60), "", (Q65-1)/(S65-R65)*60))) ->  | U65: =IF(OR(S65="NA", S65="FAILED"), S65, (IF(ISERROR(T65/'Test Info'!$L$6*100), "", T65/'Test Info'!$L$6*100))) ->  | V65: =IF(OR(S65="NA", S65="FAILED"), S65, (IF(ISERROR(Q65/S65/'Test Info'!$L$6*6000), "", Q65/S65/'Test Info'!$L$6*6000))) -> 
A66: 1-1 Sided | B66: 11" | C66: Mono | D66: ISO Copy | E66: 12 | H66: =IF(OR(G66="NA",G66="FAILED"),G66,(IF(ISERROR((E66-1)/(G66-F66)*60),"",(E66-1)/(G66-F66)*60))) ->  | I66: =IF(OR(G66="NA",G66="FAILED"),G66, (IF(ISERROR(H66/'Test Info'!$J$6*100), "", H66/'Test Info'!$J$6*100))) ->  | J66: =IF(OR(G66="NA",G66="FAILED"),G66, (IF(ISERROR(E66/G66/'Test Info'!$J$6*6000), "", E66/G66/'Test Info'!$J$6*6000))) ->  | M66: 1-1 Sided | N66: 11" | O66: Mono | P66: ISO Copy | Q66: 12 | T66: =IF(OR(S66="NA",S66="FAILED"),S66,(IF(ISERROR((Q66-1)/(S66-R66)*60),"",(Q66-1)/(S66-R66)*60))) ->  | U66: =IF(OR(S66="NA",S66="FAILED"),S66, (IF(ISERROR(T66/'Test Info'!$M$6*100), "", T66/'Test Info'!$M$6*100))) ->  | V66: =IF(OR(S66="NA",S66="FAILED"),S66, (IF(ISERROR(Q66/S66/'Test Info'!$M$6*6000), "", Q66/S66/'Test Info'!$M$6*6000))) -> 
A67: 1-1 Sided | B67: 14" | C67: Color | D67: ISO Copy | E67: 8 | H67: =IF(OR(G67="NA", G67="FAILED"), G67, (IF(ISERROR((E67-1)/(G67-F67)*60), "", (E67-1)/(G67-F67)*60))) ->  | I67: =IF(OR(G67="NA", G67="FAILED"), G67, (IF(ISERROR(H67/'Test Info'!$I$6*100), "", H67/'Test Info'!$I$6*100))) ->  | J67: =IF(OR(G67="NA", G67="FAILED"), G67, (IF(ISERROR(E67/G67/'Test Info'!$I$6*6000), "", E67/G67/'Test Info'!$I$6*6000))) ->  | M67: 1-1 Sided | N67: 14" | O67: Color | P67: ISO Copy | Q67: 8 | T67: =IF(OR(S67="NA", S67="FAILED"), S67, (IF(ISERROR((Q67-1)/(S67-R67)*60), "", (Q67-1)/(S67-R67)*60))) ->  | U67: =IF(OR(S67="NA", S67="FAILED"), S67, (IF(ISERROR(T67/'Test Info'!$L$6*100), "", T67/'Test Info'!$L$6*100))) ->  | V67: =IF(OR(S67="NA", S67="FAILED"), S67, (IF(ISERROR(Q67/S67/'Test Info'!$L$6*6000), "", Q67/S67/'Test Info'!$L$6*6000))) -> 
A68: 1-1 Sided | B68: 17" | C68: Color | D68: ISO Copy | E68: 4 | H68: =IF(OR(G68="NA", G68="FAILED"), G68, (IF(ISERROR((E68-1)/(G68-F68)*60), "", (E68-1)/(G68-F68)*60))) ->  | I68: =IF(OR(G68="NA", G68="FAILED"), G68, (IF(ISERROR(H68/'Test Info'!$I$6*100), "", H68/'Test Info'!$I$6*100))) ->  | J68: =IF(OR(G68="NA", G68="FAILED"), G68, (IF(ISERROR(E68/G68/'Test Info'!$I$6*6000), "", E68/G68/'Test Info'!$I$6*6000))) ->  | M68: 1-1 Sided | N68: 17" | O68: Color | P68: ISO Copy | Q68: 4 | T68: =IF(OR(S68="NA", S68="FAILED"), S68, (IF(ISERROR((Q68-1)/(S68-R68)*60), "", (Q68-1)/(S68-R68)*60))) ->  | U68: =IF(OR(S68="NA", S68="FAILED"), S68, (IF(ISERROR(T68/'Test Info'!$L$6*100), "", T68/'Test Info'!$L$6*100))) ->  | V68: =IF(OR(S68="NA", S68="FAILED"), S68, (IF(ISERROR(Q68/S68/'Test Info'!$L$6*6000), "", Q68/S68/'Test Info'!$L$6*6000))) -> 
A70: 1-2 Sided | B70: 11" | C70: Color | D70: ISO Copy | E70: 6 | H70: =IF(OR(G70="NA", G70="FAILED"), G70, (IF(ISERROR((E70-1)/(G70-F70)*60), "", (E70-1)/(G70-F70)*60))) ->  | I70: =IF(OR(G70="NA", G70="FAILED"), G70, (IF(ISERROR(H70/'Test Info'!$I$6*100), "", H70/'Test Info'!$I$6*100))) ->  | J70: =IF(OR(G70="NA", G70="FAILED"), G70, (IF(ISERROR(E70/G70/'Test Info'!$I$6*6000), "", E70/G70/'Test Info'!$I$6*6000))) ->  | M70: 1-2 Sided | N70: 11" | O70: Color | P70: ISO Copy | Q70: 6 | T70: =IF(OR(S70="NA", S70="FAILED"), S70, (IF(ISERROR((Q70-1)/(S70-R70)*60), "", (Q70-1)/(S70-R70)*60))) ->  | U70: =IF(OR(S70="NA", S70="FAILED"), S70, (IF(ISERROR(T70/'Test Info'!$L$6*100), "", T70/'Test Info'!$L$6*100))) ->  | V70: =IF(OR(S70="NA", S70="FAILED"), S70, (IF(ISERROR(Q70/S70/'Test Info'!$L$6*6000), "", Q70/S70/'Test Info'!$L$6*6000))) -> 
A71: 1-2 Sided | B71: 11" | C71: Mono | D71: ISO Copy | E71: 6 | H71: =IF(OR(G71="NA",G71="FAILED"),G71,(IF(ISERROR((E71-1)/(G71-F71)*60),"",(E71-1)/(G71-F71)*60))) ->  | I71: =IF(OR(G71="NA",G71="FAILED"),G71, (IF(ISERROR(H71/'Test Info'!$J$6*100), "", H71/'Test Info'!$J$6*100))) ->  | J71: =IF(OR(G71="NA",G71="FAILED"),G71, (IF(ISERROR(E71/G71/'Test Info'!$J$6*6000), "", E71/G71/'Test Info'!$J$6*6000))) ->  | M71: 1-2 Sided | N71: 11" | O71: Mono | P71: ISO Copy | Q71: 6 | T71: =IF(OR(S71="NA",S71="FAILED"),S71,(IF(ISERROR((Q71-1)/(S71-R71)*60),"",(Q71-1)/(S71-R71)*60))) ->  | U71: =IF(OR(S71="NA",S71="FAILED"),S71, (IF(ISERROR(T71/'Test Info'!$M$6*100), "", T71/'Test Info'!$M$6*100))) ->  | V71: =IF(OR(S71="NA",S71="FAILED"),S71, (IF(ISERROR(Q71/S71/'Test Info'!$M$6*6000), "", Q71/S71/'Test Info'!$M$6*6000))) -> 
A72: 1-2 Sided | B72: 14" | C72: Color | D72: ISO Copy | E72: 4 | H72: =IF(OR(G72="NA", G72="FAILED"), G72, (IF(ISERROR((E72-1)/(G72-F72)*60), "", (E72-1)/(G72-F72)*60))) ->  | I72: =IF(OR(G72="NA", G72="FAILED"), G72, (IF(ISERROR(H72/'Test Info'!$I$6*100), "", H72/'Test Info'!$I$6*100))) ->  | J72: =IF(OR(G72="NA", G72="FAILED"), G72, (IF(ISERROR(E72/G72/'Test Info'!$I$6*6000), "", E72/G72/'Test Info'!$I$6*6000))) ->  | M72: 1-2 Sided | N72: 14" | O72: Color | P72: ISO Copy | Q72: 4 | T72: =IF(OR(S72="NA", S72="FAILED"), S72, (IF(ISERROR((Q72-1)/(S72-R72)*60), "", (Q72-1)/(S72-R72)*60))) ->  | U72: =IF(OR(S72="NA", S72="FAILED"), S72, (IF(ISERROR(T72/'Test Info'!$L$6*100), "", T72/'Test Info'!$L$6*100))) ->  | V72: =IF(OR(S72="NA", S72="FAILED"), S72, (IF(ISERROR(Q72/S72/'Test Info'!$L$6*6000), "", Q72/S72/'Test Info'!$L$6*6000))) -> 
A73: 1-2 Sided | B73: 14" | C73: Mono | D73: ISO Copy | E73: 4 | H73: =IF(OR(G73="NA",G73="FAILED"),G73,(IF(ISERROR((E73-1)/(G73-F73)*60),"",(E73-1)/(G73-F73)*60))) ->  | I73: =IF(OR(G73="NA",G73="FAILED"),G73, (IF(ISERROR(H73/'Test Info'!$J$6*100), "", H73/'Test Info'!$J$6*100))) ->  | J73: =IF(OR(G73="NA",G73="FAILED"),G73, (IF(ISERROR(E73/G73/'Test Info'!$J$6*6000), "", E73/G73/'Test Info'!$J$6*6000))) ->  | M73: 1-2 Sided | N73: 14" | O73: Mono | P73: ISO Copy | Q73: 4 | T73: =IF(OR(S73="NA",S73="FAILED"),S73,(IF(ISERROR((Q73-1)/(S73-R73)*60),"",(Q73-1)/(S73-R73)*60))) ->  | U73: =IF(OR(S73="NA",S73="FAILED"),S73, (IF(ISERROR(T73/'Test Info'!$M$6*100), "", T73/'Test Info'!$M$6*100))) ->  | V73: =IF(OR(S73="NA",S73="FAILED"),S73, (IF(ISERROR(Q73/S73/'Test Info'!$M$6*6000), "", Q73/S73/'Test Info'!$M$6*6000))) -> 
A74: 1-2 Sided | B74: 17" | C74: Color | D74: ISO Copy | E74: 2 | H74: =IF(OR(G74="NA", G74="FAILED"), G74, (IF(ISERROR((E74-1)/(G74-F74)*60), "", (E74-1)/(G74-F74)*60))) ->  | I74: =IF(OR(G74="NA", G74="FAILED"), G74, (IF(ISERROR(H74/'Test Info'!$I$6*100), "", H74/'Test Info'!$I$6*100))) ->  | J74: =IF(OR(G74="NA", G74="FAILED"), G74, (IF(ISERROR(E74/G74/'Test Info'!$I$6*6000), "", E74/G74/'Test Info'!$I$6*6000))) ->  | M74: 1-2 Sided | N74: 17" | O74: Color | P74: ISO Copy | Q74: 2 | T74: =IF(OR(S74="NA", S74="FAILED"), S74, (IF(ISERROR((Q74-1)/(S74-R74)*60), "", (Q74-1)/(S74-R74)*60))) ->  | U74: =IF(OR(S74="NA", S74="FAILED"), S74, (IF(ISERROR(T74/'Test Info'!$L$6*100), "", T74/'Test Info'!$L$6*100))) ->  | V74: =IF(OR(S74="NA", S74="FAILED"), S74, (IF(ISERROR(Q74/S74/'Test Info'!$L$6*6000), "", Q74/S74/'Test Info'!$L$6*6000))) -> 
A75: 1-2 Sided | B75: 17" | C75: Mono | D75: ISO Copy | E75: 2 | H75: =IF(OR(G75="NA",G75="FAILED"),G75,(IF(ISERROR((E75-1)/(G75-F75)*60),"",(E75-1)/(G75-F75)*60))) ->  | I75: =IF(OR(G75="NA",G75="FAILED"),G75, (IF(ISERROR(H75/'Test Info'!$J$6*100), "", H75/'Test Info'!$J$6*100))) ->  | J75: =IF(OR(G75="NA",G75="FAILED"),G75, (IF(ISERROR(E75/G75/'Test Info'!$J$6*6000), "", E75/G75/'Test Info'!$J$6*6000))) ->  | M75: 1-2 Sided | N75: 17" | O75: Mono | P75: ISO Copy | Q75: 2 | T75: =IF(OR(S75="NA",S75="FAILED"),S75,(IF(ISERROR((Q75-1)/(S75-R75)*60),"",(Q75-1)/(S75-R75)*60))) ->  | U75: =IF(OR(S75="NA",S75="FAILED"),S75, (IF(ISERROR(T75/'Test Info'!$M$6*100), "", T75/'Test Info'!$M$6*100))) ->  | V75: =IF(OR(S75="NA",S75="FAILED"),S75, (IF(ISERROR(Q75/S75/'Test Info'!$M$6*6000), "", Q75/S75/'Test Info'!$M$6*6000))) -> 
A77: 2-2 Sided | B77: 11" | C77: Color | D77: ISO Copy | E77: 6 | H77: =IF(OR(G77="NA", G77="FAILED"), G77, (IF(ISERROR((E77-1)/(G77-F77)*60), "", (E77-1)/(G77-F77)*60))) ->  | I77: =IF(OR(G77="NA", G77="FAILED"), G77, (IF(ISERROR(H77/'Test Info'!$I$6*100), "", H77/'Test Info'!$I$6*100))) ->  | J77: =IF(OR(G77="NA", G77="FAILED"), G77, (IF(ISERROR(E77/G77/'Test Info'!$I$6*6000), "", E77/G77/'Test Info'!$I$6*6000))) ->  | M77: 2-2 Sided | N77: 11" | O77: Color | P77: ISO Copy | Q77: 6 | T77: =IF(OR(S77="NA", S77="FAILED"), S77, (IF(ISERROR((Q77-1)/(S77-R77)*60), "", (Q77-1)/(S77-R77)*60))) ->  | U77: =IF(OR(S77="NA", S77="FAILED"), S77, (IF(ISERROR(T77/'Test Info'!$L$6*100), "", T77/'Test Info'!$L$6*100))) ->  | V77: =IF(OR(S77="NA", S77="FAILED"), S77, (IF(ISERROR(Q77/S77/'Test Info'!$L$6*6000), "", Q77/S77/'Test Info'!$L$6*6000))) -> 
A78: 2-2 Sided | B78: 11" | C78: Mono | D78: ISO Copy | E78: 6 | H78: =IF(OR(G78="NA",G78="FAILED"),G78,(IF(ISERROR((E78-1)/(G78-F78)*60),"",(E78-1)/(G78-F78)*60))) ->  | I78: =IF(OR(G78="NA",G78="FAILED"),G78, (IF(ISERROR(H78/'Test Info'!$J$6*100), "", H78/'Test Info'!$J$6*100))) ->  | J78: =IF(OR(G78="NA",G78="FAILED"),G78, (IF(ISERROR(E78/G78/'Test Info'!$J$6*6000), "", E78/G78/'Test Info'!$J$6*6000))) ->  | M78: 2-2 Sided | N78: 11" | O78: Mono | P78: ISO Copy | Q78: 6 | T78: =IF(OR(S78="NA",S78="FAILED"),S78,(IF(ISERROR((Q78-1)/(S78-R78)*60),"",(Q78-1)/(S78-R78)*60))) ->  | U78: =IF(OR(S78="NA",S78="FAILED"),S78, (IF(ISERROR(T78/'Test Info'!$M$6*100), "", T78/'Test Info'!$M$6*100))) ->  | V78: =IF(OR(S78="NA",S78="FAILED"),S78, (IF(ISERROR(Q78/S78/'Test Info'!$M$6*6000), "", Q78/S78/'Test Info'!$M$6*6000))) -> 
A79: 2-2 Sided | B79: 14" | C79: Color | D79: ISO Copy | E79: 4 | H79: =IF(OR(G79="NA", G79="FAILED"), G79, (IF(ISERROR((E79-1)/(G79-F79)*60), "", (E79-1)/(G79-F79)*60))) ->  | I79: =IF(OR(G79="NA", G79="FAILED"), G79, (IF(ISERROR(H79/'Test Info'!$I$6*100), "", H79/'Test Info'!$I$6*100))) ->  | J79: =IF(OR(G79="NA", G79="FAILED"), G79, (IF(ISERROR(E79/G79/'Test Info'!$I$6*6000), "", E79/G79/'Test Info'!$I$6*6000))) ->  | M79: 2-2 Sided | N79: 14" | O79: Color | P79: ISO Copy | Q79: 4 | T79: =IF(OR(S79="NA", S79="FAILED"), S79, (IF(ISERROR((Q79-1)/(S79-R79)*60), "", (Q79-1)/(S79-R79)*60))) ->  | U79: =IF(OR(S79="NA", S79="FAILED"), S79, (IF(ISERROR(T79/'Test Info'!$L$6*100), "", T79/'Test Info'!$L$6*100))) ->  | V79: =IF(OR(S79="NA", S79="FAILED"), S79, (IF(ISERROR(Q79/S79/'Test Info'!$L$6*6000), "", Q79/S79/'Test Info'!$L$6*6000))) -> 
A80: 2-2 Sided | B80: 17" | C80: Color | D80: ISO Copy | E80: 2 | H80: =IF(OR(G80="NA", G80="FAILED"), G80, (IF(ISERROR((E80-1)/(G80-F80)*60), "", (E80-1)/(G80-F80)*60))) ->  | I80: =IF(OR(G80="NA", G80="FAILED"), G80, (IF(ISERROR(H80/'Test Info'!$I$6*100), "", H80/'Test Info'!$I$6*100))) ->  | J80: =IF(OR(G80="NA", G80="FAILED"), G80, (IF(ISERROR(E80/G80/'Test Info'!$I$6*6000), "", E80/G80/'Test Info'!$I$6*6000))) ->  | M80: 2-2 Sided | N80: 17" | O80: Color | P80: ISO Copy | Q80: 2 | T80: =IF(OR(S80="NA", S80="FAILED"), S80, (IF(ISERROR((Q80-1)/(S80-R80)*60), "", (Q80-1)/(S80-R80)*60))) ->  | U80: =IF(OR(S80="NA", S80="FAILED"), S80, (IF(ISERROR(T80/'Test Info'!$L$6*100), "", T80/'Test Info'!$L$6*100))) ->  | V80: =IF(OR(S80="NA", S80="FAILED"), S80, (IF(ISERROR(Q80/S80/'Test Info'!$L$6*6000), "", Q80/S80/'Test Info'!$L$6*6000))) -> 

Sheet Scan
A1: ='Test Info'!A1 -> Samudra MFP High B0 | Q1: ='Test Info'!B16 -> Samudra Low MFP
A2: ='Test Info'!A2 -> Release: | C2: ='Test Info'!B2 -> 0.123.0 | Q2: Release: | S2: ='Test Info'!B17 -> V 1.10.4N
A3: Test Duration: | C3: =CONCATENATE(TEXT('Test Info'!B3, "m/d/yyyy"), " - ", TEXT(EndDate, "m/d/yyyy")) -> 9/11/2017 - 13/11/2017 | Q3: Test Duration: | S3: =CONCATENATE(TEXT('Test Info'!B5, "d/m/yyyy"),"-", TEXT('Test Info'!F5,"d/m/yyyy")) -> Enter-Enter at End of Test
M4: Time Conversion Tool
M5: Enter | N5: Enter | O5: Calculated
M6: Minutes | N6: Seconds | O6: Seconds
A7: Scan to Server | O7: =M7*60+N7 -> 0 | Q7: Scan to Server
A9: Scan - FTP to Server -- Test Device Data (Not Required for Personal Class Products) | Q9: Scan - FTP to Server -- Benchmark Device Data (Not Required for Personal Class Products)
A11: SETUP CHECKLIST | N11: Bytes Conversion Tool | Q11: SETUP CHECKLIST
A12: Device WebUI (Properties > Services > Workflow Scanning) | N12: Enter | O12: Calculated | Q12: Device WebUI (Properties > Services > Workflow Scanning)
A13: Heading | C13: Item | E13: Test Setting | H13: ✔ | I13: NA | N13: KB | O13: Bytes | Q13: Heading | S13: Item | U13: Test Setting | X13: ✔ | Y13: NA
A14: General > Settings | C14: Confirmation Sheet | E14: On | H14: 0 | I14: =H14 -> 0 | O14: =N14*1024 -> 0 | Q14: General > Settings | S14: Confirmation Sheet | U14: On | X14: 0 | Y14: =X14 -> 0
A15: File Repository Setup | C15: Default | E15: [Set to Location of Server] | H15: 0 | Q15: File Repository Setup | S15: Default | U15: [Set to Location of Server] | X15: 0
A17: PDF | Q17: PDF
A18: Mode Resolution Options | D18: Resolution | E18: Color Mode Selected for Job | F18: Original | G18: Images | H18: DADF scan First sheet out time measured in seconds | I18: DADF scan Finish time measured in seconds | J18: TOTAL time of scan feed and processing - files on server | K18: TOTAL time of scan feed and processing - confirmation sheet printed | L18: File size measured in Bytes | M18: DADF Speed PPM Calculated | Q18: Mode Resolution Options | T18: Resolution | U18: Color Mode Selected for Job | V18: Original | W18: Images | X18: DADF scan First sheet out time measured in seconds | Y18: DADF scan Finish time measured in seconds | Z18: TOTAL time of scan feed and processing - files on server | AA18: TOTAL time of scan feed and processing - confirmation sheet printed | AB18: File size measured in Bytes | AC18: DADF Speed PPM Calculated
A19: Mono: 200 dpi | D19: 200 | E19: Mono | F19: PScan10 | G19: 10 | M19: =IF(OR(L19="NA", L19="FAILED"), L19, (IF(ISERROR((G19-1)/(I19-H19)*60), "",(G19-1)/(I19-H19)*60))) ->  | Q19: Mono: 200 dpi | T19: 200 | U19: Mono | V19: PScan10 | W19: 10 | AC19: =IF(OR(AB19="NA", AB19="FAILED"), AB19, (IF(ISERROR((W19-1)/(Y19-X19)*60), "",(W19-1)/(Y19-X19)*60))) -> 
A20: Grayscale: 200 dpi | B20: 200 | D20: 200 | E20: Grayscale | F20: PScan10 | G20: 10 | M20: =IF(OR(L20="NA", L20="FAILED"), L20, (IF(ISERROR((G20-1)/(I20-H20)*60), "",(G20-1)/(I20-H20)*60))) ->  | Q20: Grayscale: 200 dpi | R20: 200 | T20: 200 | U20: Grayscale | V20: PScan10 | W20: 10 | AC20: =IF(OR(AB20="NA", AB20="FAILED"), AB20, (IF(ISERROR((W20-1)/(Y20-X20)*60), "",(W20-1)/(Y20-X20)*60))) -> 
A21: Color: 200 dpi | B21: 200 | D21: 200 | E21: Color | F21: PScan10 | G21: 10 | M21: =IF(OR(L21="NA", L21="FAILED"), L21, (IF(ISERROR((G21-1)/(I21-H21)*60), "",(G21-1)/(I21-H21)*60))) ->  | Q21: Color: 200 dpi | R21: 200 | T21: 200 | U21: Color | V21: PScan10 | W21: 10 | AC21: =IF(OR(AB21="NA", AB21="FAILED"), AB21, (IF(ISERROR((W21-1)/(Y21-X21)*60), "",(W21-1)/(Y21-X21)*60))) -> 
A22: Auto: 200 dpi | D22: 200 | E22: Auto | F22: PScan10 | G22: 10 | M22: =IF(OR(L22="NA", L22="FAILED"), L22, (IF(ISERROR((G22-1)/(I22-H22)*60), "",(G22-1)/(I22-H22)*60))) ->  | Q22: Auto: 200 dpi | T22: 200 | U22: Auto | V22: PScan10 | W22: 10 | AC22: =IF(OR(AB22="NA", AB22="FAILED"), AB22, (IF(ISERROR((W22-1)/(Y22-X22)*60), "",(W22-1)/(Y22-X22)*60))) -> 
F23: Average | G23: =AVERAGE(G19:G22) -> 10 | H23: =IF(H19="NA", H19, (IF(ISERROR(AVERAGE(H19:H22)), "", AVERAGE(H19:H22)))) ->  | V23: Average | W23: =AVERAGE(W19:W22) -> 10 | X23: =IF(X19="NA", X19, (IF(ISERROR(AVERAGE(X19:X22)), "", AVERAGE(X19:X22)))) -> 
A25: Mono: 300 dpi | B25: 300 | D25: 300 | E25: Mono | F25: PScan10 | G25: 10 | M25: =IF(OR(L25="NA", L25="FAILED"), L25, (IF(ISERROR((G25-1)/(I25-H25)*60), "",(G25-1)/(I25-H25)*60))) ->  | Q25: Mono: 300 dpi | R25: 300 | T25: 300 | U25: Mono | V25: PScan10 | W25: 10 | AC25: =IF(OR(AB25="NA", AB25="FAILED"), AB25, (IF(ISERROR((W25-1)/(Y25-X25)*60), "",(W25-1)/(Y25-X25)*60))) -> 
A26: Grayscale: 300 dpi | B26: 300 | D26: 300 | E26: Grayscale | F26: PScan10 | G26: 10 | M26: =IF(OR(L26="NA", L26="FAILED"), L26, (IF(ISERROR((G26-1)/(I26-H26)*60), "",(G26-1)/(I26-H26)*60))) ->  | Q26: Grayscale: 300 dpi | R26: 300 | T26: 300 | U26: Grayscale | V26: PScan10 | W26: 10 | AC26: =IF(OR(AB26="NA", AB26="FAILED"), AB26, (IF(ISERROR((W26-1)/(Y26-X26)*60), "",(W26-1)/(Y26-X26)*60))) -> 
A27: Color: 300 dpi | B27: 300 | C27: N Layer MRC | D27: 300 | E27: Color | F27: PScan10 | G27: 10 | M27: =IF(OR(L27="NA", L27="FAILED"), L27, (IF(ISERROR((G27-1)/(I27-H27)*60), "",(G27-1)/(I27-H27)*60))) ->  | Q27: Color: 300 dpi | R27: 300 | S27: N Layer MRC | T27: 300 | U27: Color | V27: PScan10 | W27: 10 | AC27: =IF(OR(AB27="NA", AB27="FAILED"), AB27, (IF(ISERROR((W27-1)/(Y27-X27)*60), "",(W27-1)/(Y27-X27)*60))) -> 
A28: Auto: 300 dpi | D28: 300 | E28: Auto | F28: PScan10 | G28: 10 | M28: =IF(OR(L28="NA", L28="FAILED"), L28, (IF(ISERROR((G28-1)/(I28-H28)*60), "",(G28-1)/(I28-H28)*60))) ->  | Q28: Auto: 300 dpi | T28: 300 | U28: Auto | V28: PScan10 | W28: 10 | AC28: =IF(OR(AB28="NA", AB28="FAILED"), AB28, (IF(ISERROR((W28-1)/(Y28-X28)*60), "",(W28-1)/(Y28-X28)*60))) -> 
F29: Average | G29: =AVERAGE(G25:G28) -> 10 | H29: =IF(H25="NA", H25, (IF(ISERROR(AVERAGE(H25:H28)), "", AVERAGE(H25:H28)))) ->  | V29: Average | W29: =AVERAGE(W25:W28) -> 10 | X29: =IF(X25="NA", X25, (IF(ISERROR(AVERAGE(X25:X28)), "", AVERAGE(X25:X28)))) -> 
A31: Mono: 600 dpi | D31: 600 | E31: Mono | F31: PScan10 | G31: 10 | M31: =IF(OR(L31="NA", L31="FAILED"), L31, (IF(ISERROR((G31-1)/(I31-H31)*60), "",(G31-1)/(I31-H31)*60))) ->  | Q31: Mono: 600 dpi | T31: 600 | U31: Mono | V31: PScan10 | W31: 10 | AC31: =IF(OR(AB31="NA", AB31="FAILED"), AB31, (IF(ISERROR((W31-1)/(Y31-X31)*60), "",(W31-1)/(Y31-X31)*60))) -> 
A32: Grayscale: 600 dpi | B32: 600 | D32: 600 | E32: Grayscale | F32: PScan10 | G32: 10 | M32: =IF(OR(L32="NA", L32="FAILED"), L32, (IF(ISERROR((G32-1)/(I32-H32)*60), "",(G32-1)/(I32-H32)*60))) ->  | Q32: Grayscale: 600 dpi | R32: 600 | T32: 600 | U32: Grayscale | V32: PScan10 | W32: 10 | AC32: =IF(OR(AB32="NA", AB32="FAILED"), AB32, (IF(ISERROR((W32-1)/(Y32-X32)*60), "",(W32-1)/(Y32-X32)*60))) -> 
A33: Color: 600 dpi | B33: 600 | C33: N Layer MRC | D33: 600 | E33: Color | F33: PScan10 | G33: 10 | M33: =IF(OR(L33="NA", L33="FAILED"), L33, (IF(ISERROR((G33-1)/(I33-H33)*60), "",(G33-1)/(I33-H33)*60))) ->  | Q33: Color: 600 dpi | R33: 600 | S33: N Layer MRC | T33: 600 | U33: Color | V33: PScan10 | W33: 10 | AC33: =IF(OR(AB33="NA", AB33="FAILED"), AB33, (IF(ISERROR((W33-1)/(Y33-X33)*60), "",(W33-1)/(Y33-X33)*60))) -> 
A34: Auto: 600 dpi | D34: 600 | E34: Auto | F34: PScan10 | G34: 10 | M34: =IF(OR(L34="NA", L34="FAILED"), L34, (IF(ISERROR((G34-1)/(I34-H34)*60), "",(G34-1)/(I34-H34)*60))) ->  | Q34: Auto: 600 dpi | T34: 600 | U34: Auto | V34: PScan10 | W34: 10 | AC34: =IF(OR(AB34="NA", AB34="FAILED"), AB34, (IF(ISERROR((W34-1)/(Y34-X34)*60), "",(W34-1)/(Y34-X34)*60))) -> 
F35: Average | G35: =AVERAGE(G31:G34) -> 10 | H35: =IF(H31="NA", H31, (IF(ISERROR(AVERAGE(H31:H34)), "", AVERAGE(H31:H34)))) ->  | V35: Average | W35: =AVERAGE(W31:W34) -> 10 | X35: =IF(X31="NA", X31, (IF(ISERROR(AVERAGE(X31:X34)), "", AVERAGE(X31:X34)))) -> 
A37: PDF/ OCR | Q37: PDF/ OCR
A38: Mode Resolution Options | D38: Resolution | E38: Color Mode Selected for Job | F38: Original | G38: Images | H38: DADF scan First sheet out time measured in seconds | I38: DADF scan Finish time measured in seconds | J38: TOTAL time of scan feed and processing - files on server | K38: TOTAL time of scan feed and processing - confirmation sheet printed | L38: File size measured in Bytes | M38: OCR Word Count | N38: DADF Speed PPM Calculated | Q38: Mode Resolution Options | T38: Resolution | U38: Color Mode Selected for Job | V38: Original | W38: Images | X38: DADF scan First sheet out time measured in seconds | Y38: DADF scan Finish time measured in seconds | Z38: TOTAL time of scan feed and processing - files on server | AA38: TOTAL time of scan feed and processing - confirmation sheet printed | AB38: File size measured in Bytes | AC38: OCR Word Count | AD38: DADF Speed PPM Calculated
A39: Mono: 200 dpi: OCR | D39: 200 | E39: Mono | F39: PScan10 | G39: 10 | N39: =IF(OR(L39="NA", L39="FAILED"), L39, (IF(ISERROR((G39-1)/(I39-H39)*60), "",(G39-1)/(I39-H39)*60))) ->  | Q39: Mono: 200 dpi: OCR | T39: 200 | U39: Mono | V39: PScan10 | W39: 10 | AD39: =IF(OR(AB39="NA", AB39="FAILED"), AB39, (IF(ISERROR((W39-1)/(Y39-X39)*60), "",(W39-1)/(Y39-X39)*60))) -> 
A40: Color: 200 dpi: OCR | B40: 200 | D40: 200 | E40: Color | F40: PScan10 | G40: 10 | N40: =IF(OR(L40="NA", L40="FAILED"), L40, (IF(ISERROR((G40-1)/(I40-H40)*60), "",(G40-1)/(I40-H40)*60))) ->  | Q40: Color: 200 dpi: OCR | R40: 200 | T40: 200 | U40: Color | V40: PScan10 | W40: 10 | AD40: =IF(OR(AB40="NA", AB40="FAILED"), AB40, (IF(ISERROR((W40-1)/(Y40-X40)*60), "",(W40-1)/(Y40-X40)*60))) -> 
F41: Average | G41: =AVERAGE(G39:G40) -> 10 | H41: =IF(H39="NA", H39, (IF(ISERROR(AVERAGE(H39:H40)), "", AVERAGE(H39:H40)))) ->  | V41: Average | W41: =AVERAGE(W39:W40) -> 10 | X41: =IF(X39="NA", X39, (IF(ISERROR(AVERAGE(X39:X40)), "", AVERAGE(X39:X40)))) -> 
A43: Mono: 300 dpi: OCR | B43: 300 | D43: 300 | E43: Mono | F43: PScan10 | G43: 10 | N43: =IF(OR(L43="NA", L43="FAILED"), L43, (IF(ISERROR((G43-1)/(I43-H43)*60), "",(G43-1)/(I43-H43)*60))) ->  | Q43: Mono: 300 dpi: OCR | R43: 300 | T43: 300 | U43: Mono | V43: PScan10 | W43: 10 | AD43: =IF(OR(AB43="NA", AB43="FAILED"), AB43, (IF(ISERROR((W43-1)/(Y43-X43)*60), "",(W43-1)/(Y43-X43)*60))) -> 
A44: Color: 300 dpi: OCR | B44: 300 | C44: N Layer MRC | D44: 300 | E44: Color | F44: PScan10 | G44: 10 | N44: =IF(OR(L44="NA", L44="FAILED"), L44, (IF(ISERROR((G44-1)/(I44-H44)*60), "",(G44-1)/(I44-H44)*60))) ->  | Q44: Color: 300 dpi: OCR | R44: 300 | S44: N Layer MRC | T44: 300 | U44: Color | V44: PScan10 | W44: 10 | AD44: =IF(OR(AB44="NA", AB44="FAILED"), AB44, (IF(ISERROR((W44-1)/(Y44-X44)*60), "",(W44-1)/(Y44-X44)*60))) -> 
F45: Average | G45: =AVERAGE(G43:G44) -> 10 | H45: =IF(H43="NA", H43, (IF(ISERROR(AVERAGE(H43:H44)), "", AVERAGE(H43:H44)))) ->  | V45: Average | W45: =AVERAGE(W43:W44) -> 10 | X45: =IF(X43="NA", X43, (IF(ISERROR(AVERAGE(X43:X44)), "", AVERAGE(X43:X44)))) -> 
A47: MTIFF | Q47: MTIFF
A48: Mode Resolution Options | D48: Resolution | E48: Color Mode Selected for Job | F48: Original | G48: Images | H48: DADF scan First sheet out time measured in seconds | I48: DADF scan Finish time measured in seconds | J48: TOTAL time of scan feed and processing - files on server | K48: TOTAL time of scan feed and processing - confirmation sheet printed | L48: File size measured in Bytes | M48: DADF Speed PPM Calculated | Q48: Mode Resolution Options | T48: Resolution | U48: Color Mode Selected for Job | V48: Original | W48: Images | X48: DADF scan First sheet out time measured in seconds | Y48: DADF scan Finish time measured in seconds | Z48: TOTAL time of scan feed and processing - files on server | AA48: TOTAL time of scan feed and processing - confirmation sheet printed | AB48: File size measured in Bytes | AC48: DADF Speed PPM Calculated
A49: Mono: 200 dpi | D49: 200 | E49: Mono | F49: PScan10 | G49: 10 | M49: =IF(OR(L49="NA", L49="FAILED"), L49, (IF(ISERROR((G49-1)/(I49-H49)*60), "",(G49-1)/(I49-H49)*60))) ->  | Q49: Mono: 200 dpi | T49: 200 | U49: Mono | V49: PScan10 | W49: 10 | AC49: =IF(OR(AB49="NA", AB49="FAILED"), AB49, (IF(ISERROR((W49-1)/(Y49-X49)*60), "",(W49-1)/(Y49-X49)*60))) -> 
A50: Grayscale: 200 dpi | B50: 200 | D50: 200 | E50: Grayscale | F50: PScan10 | G50: 10 | M50: =IF(OR(L50="NA", L50="FAILED"), L50, (IF(ISERROR((G50-1)/(I50-H50)*60), "",(G50-1)/(I50-H50)*60))) ->  | Q50: Grayscale: 200 dpi | R50: 200 | T50: 200 | U50: Grayscale | V50: PScan10 | W50: 10 | AC50: =IF(OR(AB50="NA", AB50="FAILED"), AB50, (IF(ISERROR((W50-1)/(Y50-X50)*60), "",(W50-1)/(Y50-X50)*60))) -> 
A51: Color: 200 dpi | B51: 200 | D51: 200 | E51: Color | F51: PScan10 | G51: 10 | M51: =IF(OR(L51="NA", L51="FAILED"), L51, (IF(ISERROR((G51-1)/(I51-H51)*60), "",(G51-1)/(I51-H51)*60))) ->  | Q51: Color: 200 dpi | R51: 200 | T51: 200 | U51: Color | V51: PScan10 | W51: 10 | AC51: =IF(OR(AB51="NA", AB51="FAILED"), AB51, (IF(ISERROR((W51-1)/(Y51-X51)*60), "",(W51-1)/(Y51-X51)*60))) -> 
F52: Average | G52: =AVERAGE(G49:G51) -> 10 | H52: =IF(H49="NA", H49, (IF(ISERROR(AVERAGE(H49:H51)), "", AVERAGE(H49:H51)))) ->  | V52: Average | W52: =AVERAGE(W49:W51) -> 10 | X52: =IF(X49="NA", X49, (IF(ISERROR(AVERAGE(X49:X51)), "", AVERAGE(X49:X51)))) -> 
A54: Mono: 600 dpi | D54: 600 | E54: Mono | F54: PScan10 | G54: 10 | M54: =IF(OR(L54="NA", L54="FAILED"), L54, (IF(ISERROR((G54-1)/(I54-H54)*60), "",(G54-1)/(I54-H54)*60))) ->  | Q54: Mono: 600 dpi | T54: 600 | U54: Mono | V54: PScan10 | W54: 10 | AC54: =IF(OR(AB54="NA", AB54="FAILED"), AB54, (IF(ISERROR((W54-1)/(Y54-X54)*60), "",(W54-1)/(Y54-X54)*60))) -> 
A55: Grayscale: 600 dpi | B55: 600 | D55: 600 | E55: Grayscale | F55: PScan10 | G55: 10 | M55: =IF(OR(L55="NA", L55="FAILED"), L55, (IF(ISERROR((G55-1)/(I55-H55)*60), "",(G55-1)/(I55-H55)*60))) ->  | Q55: Grayscale: 600 dpi | R55: 600 | T55: 600 | U55: Grayscale | V55: PScan10 | W55: 10 | AC55: =IF(OR(AB55="NA", AB55="FAILED"), AB55, (IF(ISERROR((W55-1)/(Y55-X55)*60), "",(W55-1)/(Y55-X55)*60))) -> 
A56: Color: 600 dpi | B56: 600 | C56: N Layer MRC | D56: 600 | E56: Color | F56: PScan10 | G56: 10 | M56: =IF(OR(L56="NA", L56="FAILED"), L56, (IF(ISERROR((G56-1)/(I56-H56)*60), "",(G56-1)/(I56-H56)*60))) ->  | Q56: Color: 600 dpi | R56: 600 | S56: N Layer MRC | T56: 600 | U56: Color | V56: PScan10 | W56: 10 | AC56: =IF(OR(AB56="NA", AB56="FAILED"), AB56, (IF(ISERROR((W56-1)/(Y56-X56)*60), "",(W56-1)/(Y56-X56)*60))) -> 
F57: Average | G57: =AVERAGE(G54:G56) -> 10 | H57: =IF(H54="NA", H54, (IF(ISERROR(AVERAGE(H54:H56)), "", AVERAGE(H54:H56)))) ->  | V57: Average | W57: =AVERAGE(W54:W56) -> 10 | X57: =IF(X54="NA", X54, (IF(ISERROR(AVERAGE(X54:X56)), "", AVERAGE(X54:X56)))) -> 
A59: Color: 600 dpi Quality Highest | B59: 601 | C59: N Layer MRC | D59: 600 | E59: Color | F59: PScan10 | G59: 10 | M59: =IF(OR(L59="NA", L59="FAILED"), L59, (IF(ISERROR((G59-1)/(I59-H59)*60), "",(G59-1)/(I59-H59)*60))) ->  | Q59: Color: 600 dpi Quality Highest | R59: 601 | S59: N Layer MRC | T59: 600 | U59: Color | V59: PScan10 | W59: 10 | AC59: =IF(OR(AB59="NA", AB59="FAILED"), AB59, (IF(ISERROR((W59-1)/(Y59-X59)*60), "",(W59-1)/(Y59-X59)*60))) -> 
A61: JPG | Q61: JPG
A62: Mode Resolution Options | D62: Resolution | E62: Color Mode Selected for Job | F62: Original | G62: Images | H62: TOTAL time of scan and processing - files on server | I62: TOTAL time of scan and processing - confirmation sheet printed | J62: File size measured in Bytes | Q62: Mode Resolution Options | T62: Resolution | U62: Color Mode Selected for Job | V62: Original | W62: Images | X62: TOTAL time of scan and processing - files on server | Y62: TOTAL time of scan and processing - confirmation sheet printed | Z62: File size measured in Bytes
A63: Auto: 200 dpi | B63: 200 | D63: 200 | E63: Auto | F63: FlowerGirl | G63: 1 | Q63: Auto: 200 dpi | R63: 200 | T63: 200 | U63: Auto | V63: FlowerGirl | W63: 1
A64: Auto: 300 dpi | B64: 201 | D64: 300 | E64: Auto | F64: FlowerGirl | G64: 1 | Q64: Auto: 300 dpi | R64: 201 | T64: 300 | U64: Auto | V64: FlowerGirl | W64: 1
A65: Auto: 600 dpi | B65: 202 | D65: 600 | E65: Auto | F65: FlowerGirl | G65: 1 | Q65: Auto: 600 dpi | R65: 202 | T65: 600 | U65: Auto | V65: FlowerGirl | W65: 1
A69: PDF Duplex | Q69: PDF Duplex
A70: Print Mountains (25 pages) in duplex mode, all default settings, and scan in duplex mode. | Q70: Print Mountains (25 pages) in duplex mode, all default settings, and scan in duplex mode.
A71: Mode Resolution Options | D71: Resolution | E71: Color Mode Selected for Job | F71: Original | G71: Pages | H71: DADF scan First sheet out time measured in seconds | I71: DADF scan Finish time measured in seconds | J71: TOTAL time of scan feed and processing - files on server | K71: TOTAL time of scan feed and processing - confirmation sheet printed | L71: File size measured in Bytes | M71: DADF Speed PPM Calculated | Q71: Mode Resolution Options | T71: Resolution | U71: Color Mode Selected for Job | V71: Original | W71: Pages | X71: DADF scan First sheet out time measured in seconds | Y71: DADF scan Finish time measured in seconds | Z71: TOTAL time of scan feed and processing - files on server | AA71: TOTAL time of scan feed and processing - confirmation sheet printed | AB71: File size measured in Bytes | AC71: DADF Speed PPM Calculated
A72: Mono: 200 dpi | D72: 200 | E72: Color | F72: Mountains | G72: 13 | M72: =IF(OR(L72="NA", L72="FAILED"), L72, (IF(ISERROR((G72-1)/(I72-H72)*60), "",(G72-1)/(I72-H72)*60))) ->  | Q72: Mono: 200 dpi | T72: 200 | U72: Color | V72: Mountains | W72: 13 | AC72: =IF(OR(AB72="NA", AB72="FAILED"), AB72, (IF(ISERROR((W72-1)/(Y72-X72)*60), "",(W72-1)/(Y72-X72)*60))) -> 
A73: Grayscale: 300 dpi | B73: 200 | D73: 300 | E73: Color | F73: Mountains | G73: 13 | M73: =IF(OR(L73="NA", L73="FAILED"), L73, (IF(ISERROR((G73-1)/(I73-H73)*60), "",(G73-1)/(I73-H73)*60))) ->  | Q73: Grayscale: 300 dpi | R73: 200 | T73: 300 | U73: Color | V73: Mountains | W73: 13 | AC73: =IF(OR(AB73="NA", AB73="FAILED"), AB73, (IF(ISERROR((W73-1)/(Y73-X73)*60), "",(W73-1)/(Y73-X73)*60))) -> 
A74: Color: 600 dpi | B74: 200 | D74: 600 | E74: Color | F74: Mountains | G74: 13 | M74: =IF(OR(L74="NA", L74="FAILED"), L74, (IF(ISERROR((G74-1)/(I74-H74)*60), "",(G74-1)/(I74-H74)*60))) ->  | Q74: Color: 600 dpi | R74: 200 | T74: 600 | U74: Color | V74: Mountains | W74: 13 | AC74: =IF(OR(AB74="NA", AB74="FAILED"), AB74, (IF(ISERROR((W74-1)/(Y74-X74)*60), "",(W74-1)/(Y74-X74)*60))) -> 
F75: Average | G75: =AVERAGE(G72:G74) -> 13 | H75: =IF(H72="NA", H72, (IF(ISERROR(AVERAGE(H72:H74)), "", AVERAGE(H72:H74)))) ->  | V75: Average | W75: =AVERAGE(W72:W74) -> 13 | X75: =IF(X72="NA", X72, (IF(ISERROR(AVERAGE(X72:X74)), "", AVERAGE(X72:X74)))) -> 
A79: Scan - USB Thumb Drive, Email and PC (via USB and Network) - Test Device | Q79: Scan - USB Thumb Drive, Email and PC (via USB and Network) Benchmark
A81: Enter Test Device & SW Release: | J81: Input: Platen | Q81: Enter Benchmark & SW Release: | Z81: Input: Platen
A82: Scan Type | D82: Default Color Mode | E82: Default Resolution | F82: Default File Format | G82: Original Size | H82: Original File name | I82: Page of Original | J82: TOTAL time of scan and processing - files displayed | K82: TOTAL time of scan and processing - confirmation sheet printed | L82: File size measured in Bytes | Q82: Scan Type | T82: Default Color Mode | U82: Default Resolution | V82: Default File Format | W82: Original Size | X82: Original File name | Y82: Page of Original | Z82: TOTAL time of scan and processing - files displayed | AA82: TOTAL time of scan and processing - confirmation sheet printed | AB82: File size measured in Bytes
A83: USB Thumbdrive | B83: 200 | D83: Color | E83: 200 | F83: PDF | G83: Letter | H83: Flowergirl | I83: 1 | J83: NA | K83: 29.63 | L83: 402066 | Q83: USB Thumbdrive | R83: 200 | T83: Color | U83: 200 | V83: PDF | W83: Letter | X83: Flowergirl | Y83: 1 | AA83: 23.91 | AB83: 454879
A84: Email | B84: 201 | G84: Letter | H84: Flowergirl | I84: 1 | J84: 11.75 | K84: 27.08 | L84: 402139 | Q84: Email | R84: 201 | W84: Letter | X84: Flowergirl | Y84: 1 | Z84: 12.96 | AA84: 21.63 | AB84: 445382
A85: PC via USB | B85: 202 | G85: Letter | H85: Flowergirl | I85: 1 | J85: NA | K85: NA | L85: NA | Q85: PC via USB | R85: 202 | W85: Letter | X85: Flowergirl | Y85: 1 | Z85: NA | AA85: NA | AB85: NA
A86: PC via network | B86: 202 | G86: Letter | H86: Flowergirl | I86: 1 | J86: NA | K86: NA | L86: NA | Q86: PC via network | R86: 202 | W86: Letter | X86: Flowergirl | Y86: 1 | Z86: 12.46 | AA86: 21.93 | AB86: 451960
A88: =A81 -> Enter Test Device & SW Release: | J88: Input: DADF | Q88: =Q81 -> Enter Benchmark & SW Release: | Z88: Input: DADF
A89: Scan Type | D89: Default Color Mode | E89: Default Resolution | F89: Default File Format | G89: Original Size | H89: Original File name | I89: Page of Original | J89: DADF scan First sheet out time measured in seconds | K89: DADF scan Finish time measured in seconds | L89: TOTAL time of scan feed and processing - files displayed | M89: TOTAL time of scan feed and processing - confirmation sheet printed | N89: File size measured in Bytes | O89: DADF Speed PPM Calculated | Q89: Scan Type | T89: Default Color Mode | U89: Default Resolution | V89: Default File Format | W89: Original Size | X89: Original File name | Y89: Page of Original | Z89: DADF scan First sheet out time measured in seconds | AA89: DADF scan Finish time measured in seconds | AB89: TOTAL time of scan feed and processing - files displayed | AC89: TOTAL time of scan feed and processing - confirmation sheet printed | AD89: File size measured in Bytes | AE89: DADF Speed PPM Calculated
A90: USB Thumbdrive | B90: 200 | D90: =D83 -> Color | E90: =E83 -> 200 | F90: =F83 -> PDF | G90: Letter | H90: Pscan10 | I90: 10 | J90: 3.05 | K90: 13.73 | L90: NA | M90: 52.99 | N90: 3956614 | O90: =IF(OR(N90="NA", N90="FAILED"), N90, (IF(ISERROR((I90-1)/(K90-J90)*60), "",(I90-1)/(K90-J90)*60))) -> 50.56179775 | Q90: USB Thumbdrive | R90: 200 | T90: Color | U90: 200 | V90: PDF | W90: Letter | X90: Pscan10 | Y90: 10 | Z90: 3.3 | AA90: 14.92 | AC90: 52.91 | AD90: 4004614 | AE90: =IF(OR(AD90="NA", AD90="FAILED"), AD90, (IF(ISERROR((Y90-1)/(AA90-Z90)*60), "",(Y90-1)/(AA90-Z90)*60))) -> 46.47160069
A91: Email | B91: 201 | G91: Letter | H91: Pscan10 | I91: 10 | J91: 3.1 | K91: 12.86 | L91: 24.97 | M91: 38.54 | N91: 3702774 | O91: =IF(OR(N91="NA", N91="FAILED"), N91, (IF(ISERROR((I91-1)/(K91-J91)*60), "",(I91-1)/(K91-J91)*60))) -> 55.32786885 | Q91: Email | R91: 201 | W91: Letter | X91: Pscan10 | Y91: 10 | Z91: 3.12 | AA91: 12.84 | AB91: 26.59 | AC91: 38.22 | AD91: 3965271 | AE91: =IF(OR(AD91="NA", AD91="FAILED"), AD91, (IF(ISERROR((Y91-1)/(AA91-Z91)*60), "",(Y91-1)/(AA91-Z91)*60))) -> 55.55555556
A92: PC via USB | B92: 202 | G92: Letter | H92: Pscan10 | I92: 10 | J92: NA | K92: NA | L92: NA | M92: NA | N92: NA | O92: =IF(OR(N92="NA", N92="FAILED"), N92, (IF(ISERROR((I92-1)/(K92-J92)*60), "",(I92-1)/(K92-J92)*60))) -> NA | Q92: PC via USB | R92: 202 | W92: Letter | X92: Pscan10 | Y92: 10 | Z92: NA | AA92: NA | AB92: NA | AC92: NA | AD92: NA | AE92: =IF(OR(AD92="NA", AD92="FAILED"), AD92, (IF(ISERROR((Y92-1)/(AA92-Z92)*60), "",(Y92-1)/(AA92-Z92)*60))) -> NA
A93: PC via network | B93: 202 | G93: Letter | H93: Pscan10 | I93: 10 | J93: NA | K93: NA | L93: NA | M93: NA | N93: NA | O93: =IF(OR(N93="NA", N93="FAILED"), N93, (IF(ISERROR((I93-1)/(K93-J93)*60), "",(I93-1)/(K93-J93)*60))) -> NA | Q93: PC via network | R93: 202 | W93: Letter | X93: Pscan10 | Y93: 10 | Z93: 3.42 | AA93: 15.02 | AB93: 22.61 | AC93: 34.32 | AD93: 3936396 | AE93: =IF(OR(AD93="NA", AD93="FAILED"), AD93, (IF(ISERROR((Y93-1)/(AA93-Z93)*60), "",(Y93-1)/(AA93-Z93)*60))) -> 46.55172414
E99: Scan To-Procedure
A103: Precondition:
A104: Tester Shall format 4GB Pendrive - the USB 3.0 with FAT32 filesystem and allocation unit size 4096 only
A106: Device Setup
A107: Before starting the job set the device mode as mentioned in table.
A108: login-->admin-->machine status-->tools-->device settings-->general-->output speed
A109: Select color mode for color settings and B\W for mono settings.
A110: For scan to USB Thumb drive, insert a Thumb drive into the USB port.
A111: For scan to PC via USB, PC and device needs to be connected via a USB cable, product unique Scanner Driver needs to be installed on PC
A112: For scan to PC via network, the destination IP address needs to be inputted into device webUI
A113: In WebUI -> Properties > Services > Workflow Scanning -General Settings ; ensure "Confirmation sheet "is set to ON
A114: Procedure:
A115: Platen Job
A116: 1. Ensure the following setting are made default in SAKO setting for Scan feature
A117: Output Color: Auto
A118: Resolution: 600dpi
A119: Quality/File Size: Medium compression /Medium File size
A120: File Format: pdf
A121: 2. Then Go to "Workflow scanning /Scan to.." from services home screen as mentioned in "Scan type"
A122: 3.Load the "Flowergirl" -document mentioned in Platen
A123: File Name: Default <Do not modify File Name : by default it would be displayed as DOC>
A124: Original Size: Auto
A125: 3.Press "Start" button in MFD and start timer - Lap function in stopwatch then ,
A126: Lap1: Total scan time (scan feed + processing) : In LUI watch for "Scanning..." "Processing .." Message then "Completed" message is Lap1 and timer continuess to run
A127: Lap2: Exit of Confirmation Sheet (lap 2): watch for the TRAIL EDGE of the Confirmation Sheet print exits to the default tray and stop the timer for Lap2
A128: Record the times respectively in seconds
A129: 4. Check for the file size and use file size converter tool to convert,then record the measurement in table
A130: File Size in Bytes: File Size in Bytes as seen in the FTP Directory (use the template’s Bytes Conversion Tool)
A131: 5.Repeat the above steps for consequent jobs
A132: SPDH Job
A133: 1.Go to "Workflow scanning /Scan to.." from services home screen as mentioned in "Scan type"
A134: 2.Load the "Pscan10 "-document mentioned in SPDH
A135: File Name: Default <Do not modify File Name : by default it would be displayed as DOC>
A136: Original Size: Auto
A137: 3.Press "Start" button in MFD and start timer - Lap function in stopwatch then ,
A138: Lap1: SPDH 1st sheet out : Time from “Start” button selected until the TRAIL EDGE of the 1st sheet of the Original exits the Document Handler is Lap1 and timer continues ..
A139: Lap2: SPDH Finish time : Watch for until the TRAIL EDGE of the last sheet of the Original exits the document handler is Lap2 and timer continues ..
A140: Lap3:Total time (scan feed + processing) : Then in LUI watch for "Scanning.." "Processing.. " then "Completed " displayed is Lap3 acheived and timer continues to run..
A141: Lap4:Exit of Confirmation Sheet : Watch for until the TRAIL EDGE of the Confirmation Sheet print exits to the default tray is Lap4 time .
A142: Record the times respectively in seconds.
A143: 4. Check for the file size and use file size converter tool to convert,then record the measurement in table
A144: File Size in Bytes: File Size in Bytes as seen in the destination (use the template’s Bytes Conversion Tool)
A145: 5.Repeat the above steps for consequent jobs

Sheet Mkt FPOT-FCOT
E1: The embeded FPOT/FCOT documents are from EPDG A4 product planing/marketing. PDT TPM needs to check with corresponding program marketing for approval.
E2: Please note not to include the job runs with print quality adjustment; No banner
E3: Not all driver/connection/power modes combinations are required. For low power and sleep mode, recommend to run only default driver with recommended connection method only. Please check with PDT TPM for the settings required including preferred way to set up mono output for color device. | K3: FPOT/FCOT Document | L3: Enter Input Tray & Output Tray | M3: Enter Print Resolution | N3: Color or Mono Priority Mode
L4: Connection method | N4: Driver | O4: Power Mode
E5: Marketing FPOT/FCOT
E6: Print | M6: Copy
D7: Driver | E7: ='Print To Default Tray Subset'!C3 -> Enter | H7: ='Print To Default Tray Subset'!C4 -> Enter | K7: Enter Alternative Driver | M7: Platen | N7: ADF
D8: Connection | E8: LAN | F8: USB | G8: PRN | H8: =E8 -> LAN | I8: =F8 -> USB | J8: PRN | K8: =E8 -> LAN | L8: =F8 -> USB
E9: FPOT (sec) | F9: FPOT (sec) | G9: FPOT (sec) | H9: FPOT (sec) | I9: FPOT (sec) | J9: FPOT (sec) | K9: FPOT (sec) | L9: FPOT (sec) | M9: FCOT (sec) | N9: FCOT (sec)
A10: Mode | C10: File | D10: Size
A11: Ready | B11: Color (not needed for Mono Device) | D11: Reading 1 | E11: NA | F11: NA | G11: 5.22 | H11: NA | I11: NA | J11: 5.26 | K11: NA | L11: NA | M11: 5.61 | N11: 6.8
D12: Reading 2 | E12: NA | F12: NA | G12: 5.12 | H12: NA | I12: NA | J12: 5.32 | K12: NA | L12: NA | M12: 5.67 | N12: 6.75
D13: Reading 3 | E13: NA | F13: NA | G13: 5.25 | H13: NA | I13: NA | J13: 5.32 | K13: NA | L13: NA | M13: 5.66 | N13: 6.66
D14: Average | E14: =AVERAGE(E11:E13) ->  | G14: 5.196666667 | J14: 5.3 | M14: 5.646666667 | N14: 6.736666667
B15: Mono | D15: Reading 1 | E15: NA | F15: NA | G15: 4.66 | H15: NA | I15: NA | J15: 5 | K15: NA | L15: NA | M15: 4.25 | N15: 6.28
D16: Reading 2 | E16: NA | F16: NA | G16: 4.63 | H16: NA | I16: NA | J16: 5.1 | K16: NA | L16: NA | M16: 4.66 | N16: 6.06
D17: Reading 3 | E17: NA | F17: NA | G17: 4.72 | H17: NA | I17: NA | J17: 5.09 | K17: NA | L17: NA | M17: 4.25 | N17: 6.28
D18: Average | E18: =AVERAGE(E15:E17) ->  | G18: 4.67 | J18: 5.063333333 | M18: 4.386666667 | N18: 6.206666667
A19: Low Power (Job to be sent right after device enters low power mode unless specified otherwise by PDT TPM) | E19: Unless specified by PDT TPM, only default driver & recommended connection method combination needed | M19: Check with PDT TPM for method
B20: Color (not needed for Mono Device) | D20: Reading 1 | E20: NA | F20: NA | G20: 7.18 | H20: NA | I20: NA | J20: 7.78 | K20: NA | L20: NA | M20: NA | N20: NA
D21: Reading 2 | E21: NA | F21: NA | G21: NA | H21: NA | I21: NA | J21: NA | K21: NA | L21: NA | M21: NA | N21: NA
D22: Reading 3 | E22: NA | F22: NA | G22: NA | H22: NA | I22: NA | J22: NA | K22: NA | L22: NA | M22: NA | N22: NA
D23: Average | E23: =AVERAGE(E20:E22) ->  | G23: 7.18 | J23: 7.78
B24: Mono | D24: Reading 1 | E24: NA | F24: NA | G24: 7.09 | H24: NA | I24: NA | J24: 7.31 | K24: NA | L24: NA | M24: NA | N24: NA
D25: Reading 2 | E25: NA | F25: NA | G25: NA | H25: NA | I25: NA | J25: NA | K25: NA | L25: NA | M25: NA | N25: NA
D26: Reading 3 | E26: NA | F26: NA | G26: NA | H26: NA | I26: NA | J26: NA | K26: NA | L26: NA | M26: NA | N26: NA
D27: Average | E27: =AVERAGE(E24:E26) ->  | G27: 7.09 | J27: 7.31
A28: Sleep (Job to be sent right after device enters sleep mode unless specified otherwise by PDT TPM) | E28: Unless specified by PDT TPM, only default driver & recommended connection method combination needed | M28: Check with PDT TPM for method
B29: Color (not needed for Mono Device) | D29: Reading 1 | E29: NA | F29: NA | G29: 14.18 | H29: NA | I29: NA | J29: 14.25 | K29: NA | L29: NA | M29: NA | N29: NA
D30: Reading 2 | E30: NA | F30: NA | G30: NA | H30: NA | I30: NA | J30: NA | K30: NA | L30: NA | M30: NA | N30: NA
D31: Reading 3 | E31: NA | F31: NA | G31: NA | H31: NA | I31: NA | J31: NA | K31: NA | L31: NA | M31: NA | N31: NA
D32: Average | E32: =AVERAGE(E29:E31) ->  | G32: 14.18 | J32: =AVERAGE(J29:J31) -> 14.25
B33: Mono | D33: Reading 1 | E33: NA | F33: NA | G33: 13.89 | H33: NA | I33: NA | J33: 13.85 | K33: NA | L33: NA | M33: NA | N33: NA
D34: Reading 2 | E34: NA | F34: NA | G34: NA | H34: NA | I34: NA | J34: NA | K34: NA | L34: NA | M34: NA | N34: NA
D35: Reading 3 | E35: NA | F35: NA | G35: NA | H35: NA | I35: NA | J35: NA | K35: NA | L35: NA | M35: NA | N35: NA
D36: Average | E36: =AVERAGE(E33:E35) ->  | G36: 13.89 | J36: 13.85
A41: Mkt FPOT-FCOT
A43: Device Setup:
A44: Device is fully ready to print
A45: Sufficient Media loaded in Tray1
A46: Before starting the test enter into Admin-->Machine status-->Tools-->General settings-->Output Speed( Priority Mode)--> Color/Mono
A48: Procedure:
A49: Mkt FPOT-FCOT PRINT-- Ready Mode
A51: Mkt FPOT-FCOT Jobs for PS Print Driver -Default Resolution
A52: Mkt FPOT-FCOT for PCL6 Print Driver -Default Resolution
A54: 1.Set the driver type as default "PS/ PCL 6" with Banner sheet disabled accordingly
A55: 2.Open the Test File in application mentioned in the Laptop
A56: 3.Go to File/Print ->Properties and Settings are " Color / Mono" ,print quality "Default Resolution" and Click Print buton; and Start timer in Stopwatch together
A57: 4.C-C : Time from “Print” button selected until the TRAIL EDGE of the last sheet exits to the default tray
A58: 5.Record the time then and repeat the above steps for conseqent readings
A60: Mkt FPOT-FCOT COPY-- Ready Mode
A61: Procedure:
A62: (Before submitting the job give some warmup jobs)
A64: 1.Place letter media in tray1 as LEF and remove all paper from other trays.
A65: 2.Take a printout of test document (in letter) which is emedded in test template under Mkt FPOT/FCOT,for both color and mono.
A66: 3.Ensure device is in ready mode.
A67: 4. Set the copy service as color/mono via Platen / ADF.
A68: 5.Place color documents on platen/dadf(place mono document on platen or dadf for mono jobs).
A69: 6.Hit start to make 3 copies now start timing copies
A70: 7. After given the settings while press the start button and start the timer together.
A71: 8. The TRAIL EDGE of the last sheet exits to the default tray and stop the timer.
A72: 9.Record the time then and repeat the above steps for conseqent readings.
A74: Mkt FPOT-FCOT PRINT-- Low Power
A75: Configure the device in energy saver Low power as 2minutes
A77: Mkt FPOT-FCOT Jobs for PS Print Driver -Default Resolution
A78: Mkt FPOT-FCOT for PCL6 Print Driver -Default Resolution
A80: Procedure: | B80: :
A81: 1.Observe the back channel trace / Tera Term logs
A82: 2.Once u observe the "Power saver level 1" command.
A83: 3..After pressing enter start the timer and stop the timer when the output page comes to trail edge .
A84: 4.Calculate the timings as we did for ready mode.
A86: Mkt FPOT-FCOT PRINT-- sleep mode
A87: Configure the device should be in sleep mode less than or equal to 1 hour.
A88: Before submitting the job want to create prn files to submit the job
A90: Procedure:
A91: 1.Once device enters into low power mode,Observe the 7 segment display.
A92: 2.when you are observing "r" submit the job at once .
A93: 3.Submit the print job through command prompt as "lpr -P -S ip address and drag the required document and hit enter .
A94: 4.Calculate the timings as we did for ready mode.

Sheet Complex Print Jobs
A1: Setting: Default Driver, Default Connection method and Default Image Resolution as specified by PDT TPM. No Banner. | O1: Setting: Default Driver, Default Connection method and High Image Resolution as specified by PDT TPM. No Banner.
A3: Complex Print Jobs for default driver | F3: Benchmark Data | I3: Test Device Data | L3: Delta | O3: Complex Print Jobs for default driver | T3: Benchmark Data | W3: Test Device Data | Z3: Delta
F4: ='[3]Test Info'!B16 -> Enter Benchmark Name | I4: ='[3]Test Info'!B8 -> Enter Specific Details Below | L4: Test Device vs. Benchmark % | T4: =F4 -> Enter Benchmark Name | W4: =I4 -> Enter Specific Details Below | Z4: Test Device vs. Benchmark %
F5: ='[3]Test Info'!B17 -> 1.10.4 N | I5: ='[3]Test Info'!B9 -> 0.123.0 | T5: =F5 -> 1.10.4 N | W5: =I5 -> 0.123.0
F6: =CONCATENATE("PS", "-", '[3]Test Info'!B18) -> PS-5.528.2 | I6: =CONCATENATE("PS", "-", '[3]Test Info'!B10) -> PS-5.588.0 | T6: =F6 -> PS-5.528.2 | W6: =I6 -> PS-5.588.0
F7: STANDARD | I7: STANDARD | T7: ENHANCED | W7: ENHANCED
A8: Sides | B8: Print Quality | C8: Job | D8: Application | E8: Total Pages | F8: FPOT Measured in Seconds | G8: C-C Measured in Seconds | H8: 2-N PPM aka ESAT (ipm) | I8: FPOT Measured in Seconds | J8: C-C Measured in Seconds | K8: 2-N PPM aka ESAT (ipm) | L8: FPOT | M8: C-C | O8: Sides | P8: Print Quality | Q8: Job | R8: Application | S8: Total Pages | T8: FPOT Measured in Seconds | U8: C-C Measured in Seconds | V8: 2-N PPM aka ESAT (ipm) | W8: FPOT Measured in Seconds | X8: C-C Measured in Seconds | Y8: 2-N PPM aka ESAT (ipm) | Z8: FPOT | AA8: C-C
A9: Simplex | B9: Default | C9: AdGraphics-Powerpoint(LTR) | D9: Powerpoint | E9: 4 | F9: 25.7 | G9: 44.1 | H9: =($E9-1)/(((G9-F9)/60)) -> 9.782608696 | I9: 25.2 | J9: 44.04 | K9: =($E9-1)/(((J9-I9)/60)) -> 9.554140127 | L9: =(I9-F9)/F9 -> -0.01945525292 | M9: =(J9-G9)/G9 -> -0.001360544218 | O9: Simplex | P9: High | Q9: AdGraphics-Powerpoint(LTR) | R9: Powerpoint | S9: 4 | T9: 28.76 | U9: 52.81 | V9: =($E9-1)/(((U9-T9)/60)) -> 7.484407484 | W9: 29.29 | X9: 56.09 | Y9: =($E9-1)/(((X9-W9)/60)) -> 6.71641791 | Z9: =(W9-T9)/T9 -> 0.01842837274 | AA9: =(X9-U9)/U9 -> 0.06210944897
B10: Default | C10: Advertising_InDesign_8-1 | D10: Adobe | E10: 4 | F10: 19.98 | G10: 31.66 | H10: =($E10-1)/(((G10-F10)/60)) -> 15.4109589 | I10: 16.98 | J10: 30.09 | K10: =($E10-1)/(((J10-I10)/60)) -> 13.72997712 | L10: =(I10-F10)/F10 -> -0.1501501502 | M10: =(J10-G10)/G10 -> -0.04958938724 | P10: High | Q10: Advertising_InDesign_8-1 | R10: Adobe | S10: 4 | T10: 20.54 | U10: 31.84 | V10: =($E10-1)/(((U10-T10)/60)) -> 15.92920354 | W10: 19.92 | X10: 30.47 | Y10: =($E10-1)/(((X10-W10)/60)) -> 17.06161137 | Z10: =(W10-T10)/T10 -> -0.03018500487 | AA10: =(X10-U10)/U10 -> -0.04302763819
B11: Default | C11: Introducing Powerpoint 2010 | D11: Powerpoint | E11: 20 | F11: 32.01 | G11: 86.47 | H11: 20.93279471 | I11: 30.54 | J11: 61.59 | K11: 36.71497585 | L11: =(I11-F11)/F11 -> -0.04592314902 | M11: -0.2877298485 | P11: High | Q11: Introducing Powerpoint 2010 | R11: Powerpoint | S11: 20 | T11: 34.41 | U11: 138.65 | V11: =($E11-1)/(((U11-T11)/60)) -> 10.93630084 | W11: 33.66 | X11: 113.62 | Y11: =($E11-1)/(((X11-W11)/60)) -> 14.25712856 | Z11: =(W11-T11)/T11 -> -0.02179598954 | AA11: -0.1805265056
B12: Default | C12: HAC Proposal w/ Getty | D12: Word | E12: 5 | F12: 31.2 | G12: 45.54 | H12: 16.73640167 | I12: 26.98 | J12: 39.69 | K12: 18.88276947 | L12: -0.1352564103 | M12: -0.128458498 | P12: High | Q12: HAC Proposal w/ Getty | R12: Word | S12: 5 | T12: 33.01 | U12: 53.03 | V12: =($E12-1)/(((U12-T12)/60)) -> 11.98801199 | W12: 31.42 | X12: 52.94 | Y12: =($E12-1)/(((X12-W12)/60)) -> 11.15241636 | Z12: -0.04816722205 | AA12: -0.001697152555
B13: Default | C13: Future of Colors | D13: Adobe | E13: 1 | F13: 30.57 | I13: 29.95 | L13: -0.02028132156 | P13: High | Q13: Future of Colors | R13: Adobe | S13: 1 | T13: 24.76 | W13: 24.1 | Z13: -0.02665589661
B14: Default | C14: Picking Flower RGB | D14: Tiff | E14: 1 | F14: 10.08 | I14: 10.06 | L14: -0.001984126984 | P14: High | Q14: Picking Flower RGB | R14: Tiff | S14: 1 | T14: 10.2 | W14: 9.89 | Z14: -0.03039215686
B15: Default | C15: Flowerserve (x 3 times with Collation) | D15: Powerpoint | E15: 30 | F15: 40.91 | G15: 194.72 | H15: 11.31265847 | I15: 32.76 | J15: 186.66 | K15: 11.30604288 | L15: -0.1992177952 | M15: -0.0413927691 | P15: High | Q15: Flowerserve (x 3 times with Collation) | R15: Powerpoint | S15: 30 | T15: 38.66 | U15: 188.87 | V15: =($E15-1)/(((U15-T15)/60)) -> 11.5837827 | W15: 31.07 | X15: 189.87 | Y15: =($E15-1)/(((X15-W15)/60)) -> 10.95717884 | Z15: -0.1963269529 | AA15: 0.005294647112
D16: Average | E16: =AVERAGE(E9:E15) -> 9.285714286 | F16: =AVERAGE(F9:F15) -> 27.20714286 | G16: =AVERAGE(G9:G15) -> 80.498 | H16: =AVERAGE(H9:H12,H15) -> 14.83508449 | I16: =AVERAGE(I9:I15) -> 24.63857143 | J16: =AVERAGE(J9:J15) -> 72.414 | K16: =AVERAGE(K9:K12,K15) -> 18.03758109 | L16: -0.0944079811 | M16: -0.1004248553 | R16: Average | S16: =AVERAGE(S9:S15) -> 9.285714286 | T16: =AVERAGE(T9:T15) -> 27.19142857 | U16: =AVERAGE(U9:U15) -> 93.04 | V16: =AVERAGE(V9:V12,V15) -> 11.58434131 | W16: =AVERAGE(W9:W15) -> 25.62142857 | X16: =AVERAGE(X9:X15) -> 88.598 | Y16: =AVERAGE(Y9:Y12,Y15) -> 12.02895061 | Z16: -0.05773878323 | AA16: -0.04774290628
A20: Complex Print Jobs for alternative driver | F20: Benchmark Data | I20: Test Device Data | L20: Delta | O20: Complex Print Jobs for alternative driver | T20: Benchmark Data | W20: Test Device Data | Z20: Delta
F21: =F4 -> Enter Benchmark Name | I21: =I4 -> Enter Specific Details Below | L21: Test Device vs. Benchmark % | T21: =F21 -> Enter Benchmark Name | W21: =I21 -> Enter Specific Details Below | Z21: Test Device vs. Benchmark %
F22: =F5 -> 1.10.4 N | I22: =I5 -> 0.123.0 | T22: =F22 -> 1.10.4 N | W22: =I22 -> 0.123.0
F23: =CONCATENATE("PCL6","-", '[3]Test Info'!B19) -> PCL6-5.528.2 | I23: =CONCATENATE("PCL6", "-", '[3]Test Info'!B11) -> PCL6-5.588.0 | T23: =F23 -> PCL6-5.528.2 | W23: =I23 -> PCL6-5.588.0
F24: Enter Default Resolution (dpi) | I24: Enter Default Resolution (dpi) | T24: ENHANCED | W24: ENHANCED
A25: Sides | B25: Print Quality | C25: Job | D25: Application | E25: Pages | F25: FPOT Measured in Seconds | G25: C-C Measured in Seconds | H25: 2-N PPM aka ESAT (ipm) | I25: FPOT Measured in Seconds | J25: C-C Measured in Seconds | K25: 2-N PPM aka ESAT (ipm) | L25: FPOT | M25: C-C | O25: Sides | P25: Print Quality | Q25: Job | R25: Application | S25: Pages | T25: FPOT Measured in Seconds | U25: C-C Measured in Seconds | V25: 2-N PPM aka ESAT (ipm) | W25: FPOT Measured in Seconds | X25: C-C Measured in Seconds | Y25: 2-N PPM aka ESAT (ipm) | Z25: FPOT | AA25: C-C
A26: Simplex | B26: Default | C26: AdGraphics-Powerpoint(LTR) | D26: Powerpoint | E26: 4 | F26: NA | G26: NA | H26: =($E26-1)/(((G26-F26)/60)) ->  | I26: NA | J26: NA | K26: =($E26-1)/(((J26-I26)/60)) ->  | L26: =(I26-F26)/F26 ->  | M26: =(J26-G26)/G26 ->  | O26: Simplex | P26: High | Q26: AdGraphics-Powerpoint(LTR) | R26: Powerpoint | S26: 4 | T26: 19.39 | U26: 38.34 | V26: =($E26-1)/(((U26-T26)/60)) -> 9.498680739 | W26: 20.98 | X26: 39.66 | Y26: =($E26-1)/(((X26-W26)/60)) -> 9.635974304 | Z26: =(W26-T26)/T26 -> 0.08200103146 | AA26: =(X26-U26)/U26 -> 0.03442879499
B27: Default | C27: Advertising_InDesign_8-1 | D27: Adobe | E27: 4 | F27: NA | G27: NA | H27: =($E27-1)/(((G27-F27)/60)) ->  | I27: NA | J27: NA | K27: =($E27-1)/(((J27-I27)/60)) ->  | L27: =(I27-F27)/F27 ->  | M27: =(J27-G27)/G27 ->  | P27: High | Q27: Advertising_InDesign_8-1 | R27: Adobe | S27: 4 | T27: 15.96 | U27: 22.81 | V27: =($E27-1)/(((U27-T27)/60)) -> 26.27737226 | W27: 17.33 | X27: 24.6 | Y27: =($E27-1)/(((X27-W27)/60)) -> 24.75928473 | Z27: =(W27-T27)/T27 -> 0.085839599 | AA27: =(X27-U27)/U27 -> 0.07847435335
B28: Default | C28: Introducing Powerpoint 2010 | D28: Powerpoint | E28: 20 | F28: NA | G28: NA | H28: =($E28-1)/(((G28-F28)/60)) ->  | I28: NA | J28: NA | K28: =($E28-1)/(((J28-I28)/60)) ->  | L28: =(I28-F28)/F28 ->  | P28: High | Q28: Introducing Powerpoint 2010 | R28: Powerpoint | S28: 20 | T28: 25.05 | U28: 98.72 | V28: =($E28-1)/(((U28-T28)/60)) -> 15.47441292 | W28: 21.85 | X28: 88.84 | Y28: =($E28-1)/(((X28-W28)/60)) -> 17.01746529 | Z28: =(W28-T28)/T28 -> -0.127744511 | AA28: -0.1000810373
B29: Default | C29: HAC Proposal w/ Getty | D29: Word | E29: 5 | F29: NA | G29: NA | H29: =($E29-1)/(((G29-F29)/60)) ->  | I29: NA | J29: NA | K29: =($E29-1)/(((J29-I29)/60)) ->  | P29: High | Q29: HAC Proposal w/ Getty | R29: Word | S29: 5 | T29: 14.77 | U29: 26.53 | V29: =($E29-1)/(((U29-T29)/60)) -> 20.40816327 | W29: 13.98 | X29: 26.06 | Y29: =($E29-1)/(((X29-W29)/60)) -> 19.86754967 | Z29: -0.05348679756 | AA29: -0.01771579344
B30: Default | C30: Future of Colors | D30: Adobe | E30: 1 | F30: NA | G30: NA | I30: NA | J30: NA | P30: High | Q30: Future of Colors | R30: Adobe | S30: 1 | T30: 68.87 | W30: 68.95 | Z30: 0.001161608828
B31: Default | C31: Picking Flower RGB | D31: Tiff | E31: 1 | F31: NA | G31: NA | I31: NA | J31: NA | P31: High | Q31: Picking Flower RGB | R31: Tiff | S31: 1 | T31: 10.19 | W31: 10.05 | Z31: -0.01373895976
B32: Default | C32: Flowerserve (x 3 times with Collation) | D32: Powerpoint | E32: 30 | F32: NA | G32: NA | H32: =($E32-1)/(((G32-F32)/60)) ->  | I32: NA | J32: NA | K32: =($E32-1)/(((J32-I32)/60)) ->  | P32: High | Q32: Flowerserve (x 3 times with Collation) | R32: Powerpoint | S32: 30 | T32: 24.17 | U32: 108.62 | V32: =($E32-1)/(((U32-T32)/60)) -> 20.60390764 | W32: 21.45 | X32: 119 | Y32: =($E32-1)/(((X32-W32)/60)) -> 17.83700666 | Z32: -0.1125362019 | AA32: 0.09556251151
D33: Average | E33: =AVERAGE(E26:E32) -> 9.285714286 | F33: =AVERAGE(F26:F32) ->  | G33: =AVERAGE(G26:G32) ->  | H33: =AVERAGE(H26:H29,H32) ->  | I33: =AVERAGE(I26:I32) ->  | J33: =AVERAGE(J26:J32) ->  | K33: =AVERAGE(K26:K29,K32) ->  | R33: Average | S33: =AVERAGE(S26:S32) -> 9.285714286 | T33: =AVERAGE(T26:T32) -> 25.48571429 | U33: =AVERAGE(U26:U32) -> 59.004 | V33: =AVERAGE(V26:V29,V32) -> 18.45250737 | W33: =AVERAGE(W26:W32) -> 24.94142857 | X33: =AVERAGE(X26:X32) -> 59.632 | Y33: =AVERAGE(Y26:Y29,Y32) -> 17.82345613 | Z33: -0.02135650224 | AA33: 0.01064334621
A36: Complex Print Jobs for alternative driver | F36: Benchmark Data | I36: Test Device Data | L36: Delta | O36: Complex Print Jobs for alternative driver | T36: Benchmark Data | W36: Test Device Data | Z36: Delta
F37: =F21 -> Enter Benchmark Name | I37: =I21 -> Enter Specific Details Below | L37: Test Device vs. Benchmark % | T37: =F37 -> Enter Benchmark Name | W37: =I37 -> Enter Specific Details Below | Z37: Test Device vs. Benchmark %
F38: =F22 -> 1.10.4 N | I38: =I22 -> 0.123.0 | T38: =F38 -> 1.10.4 N | W38: =I38 -> 0.123.0
F39: Enter Driver Name & Version | I39: Enter Driver Name & Version | T39: =F39 -> Enter Driver Name & Version | W39: =I39 -> Enter Driver Name & Version
F40: Enter Default Resolution (dpi) | I40: Enter Default Resolution (dpi) | T40: Enter Default Resolution (dpi) | W40: Enter Default Resolution (dpi)
A41: Sides | B41: Print Quality | C41: Job | D41: Application | E41: Pages | F41: FPOT Measured in Seconds | G41: C-C Measured in Seconds | H41: 2-N PPM aka ESAT (ipm) | I41: FPOT Measured in Seconds | J41: C-C Measured in Seconds | K41: 2-N PPM aka ESAT (ipm) | L41: FPOT | M41: C-C | O41: Sides | P41: Print Quality | Q41: Job | R41: Application | S41: Pages | T41: FPOT Measured in Seconds | U41: C-C Measured in Seconds | V41: 2-N PPM aka ESAT (ipm) | W41: FPOT Measured in Seconds | X41: C-C Measured in Seconds | Y41: 2-N PPM aka ESAT (ipm) | Z41: FPOT | AA41: C-C
A42: Simplex | B42: Default | C42: AdGraphics-Powerpoint(LTR) | D42: Powerpoint | E42: 4 | H42: =($E42-1)/(((G42-F42)/60)) ->  | K42: =($E42-1)/(((J42-I42)/60)) ->  | L42: =(I42-F42)/F42 ->  | M42: =(J42-G42)/G42 ->  | O42: Simplex | P42: High | Q42: AdGraphics-Powerpoint(LTR) | R42: Powerpoint | S42: 4 | V42: =($E42-1)/(((U42-T42)/60)) ->  | Y42: =($E42-1)/(((X42-W42)/60)) ->  | Z42: =(W42-T42)/T42 ->  | AA42: =(X42-U42)/U42 -> 
B43: Default | C43: Advertising_InDesign_8-1 | D43: Adobe | E43: 4 | H43: =($E43-1)/(((G43-F43)/60)) ->  | K43: =($E43-1)/(((J43-I43)/60)) ->  | L43: =(I43-F43)/F43 ->  | M43: =(J43-G43)/G43 ->  | P43: High | Q43: Advertising_InDesign_8-1 | R43: Adobe | S43: 4 | V43: =($E43-1)/(((U43-T43)/60)) ->  | Y43: =($E43-1)/(((X43-W43)/60)) ->  | Z43: =(W43-T43)/T43 ->  | AA43: =(X43-U43)/U43 -> 
B44: Default | C44: Introducing Powerpoint 2010 | D44: Powerpoint | E44: 20 | H44: =($E44-1)/(((G44-F44)/60)) ->  | K44: =($E44-1)/(((J44-I44)/60)) ->  | L44: =(I44-F44)/F44 ->  | P44: High | Q44: Introducing Powerpoint 2010 | R44: Powerpoint | S44: 20 | V44: =($E44-1)/(((U44-T44)/60)) ->  | Y44: =($E44-1)/(((X44-W44)/60)) ->  | Z44: =(W44-T44)/T44 -> 
B45: Default | C45: HAC Proposal w/ Getty | D45: Word | E45: 5 | H45: =($E45-1)/(((G45-F45)/60)) ->  | K45: =($E45-1)/(((J45-I45)/60)) ->  | P45: High | Q45: HAC Proposal w/ Getty | R45: Word | S45: 5 | V45: =($E45-1)/(((U45-T45)/60)) ->  | Y45: =($E45-1)/(((X45-W45)/60)) -> 
B46: Default | C46: Future of Colors | D46: Adobe | E46: 1 | P46: High | Q46: Future of Colors | R46: Adobe | S46: 1
B47: Default | C47: Picking Flower RGB | D47: Tiff | E47: 1 | P47: High | Q47: Picking Flower RGB | R47: Tiff | S47: 1
B48: Default | C48: Flowerserve (x 3 times with Collation) | D48: Powerpoint | E48: 30 | H48: =($E48-1)/(((G48-F48)/60)) ->  | K48: =($E48-1)/(((J48-I48)/60)) ->  | P48: High | Q48: Flowerserve (x 3 times with Collation) | R48: Powerpoint | S48: 30 | V48: =($E48-1)/(((U48-T48)/60)) ->  | Y48: =($E48-1)/(((X48-W48)/60)) -> 
D49: Average | E49: =AVERAGE(E42:E48) -> 9.285714286 | F49: =AVERAGE(F42:F48) ->  | G49: =AVERAGE(G42:G48) ->  | H49: =AVERAGE(H42:H45,H48) ->  | I49: =AVERAGE(I42:I48) ->  | J49: =AVERAGE(J42:J48) ->  | K49: =AVERAGE(K42:K45,K48) ->  | R49: Average | S49: =AVERAGE(S42:S48) -> 9.285714286 | T49: =AVERAGE(T42:T48) ->  | U49: =AVERAGE(U42:U48) ->  | V49: =AVERAGE(V42:V45,V48) ->  | W49: =AVERAGE(W42:W48) ->  | X49: =AVERAGE(X42:X48) ->  | Y49: =AVERAGE(Y42:Y45,Y48) -> 
A53: Complex Print Jobs -Procedure
B57: Device Setup: Device is fully ready to print Sufficient Media loaded in Tray1 Procedure: Complex Print Jobs for PCL6 Print Driver -Default Resolution Complex Print Jobs for PS Print Driver -Default Resolution 1.Set the driver type as default "PS/ PCL 6" with Banner sheet disabled accordingly 2.Open the Test File in application mentioned in the Laptop 3.Go to File/Print ->Properties and Settings are "Simplex " ,print quality "Default Resolution" and Click Print buton; and Start timer in Stopwatch together 4. Use Lap funtion in the stop watch as FPOT (lap 1): Time from “Print” button selected until the TRAIL EDGE of the 1st sheet exits to the default tray C-C (lap 2): Time from “Print” button selected until the TRAIL EDGE of the last sheet exits to the default tray 5.Record the time then and repeat the above steps for conseqent readings Complex Print Jobs for PCL6 Print Driver -High Resolution Complex Print Jobs for PS Print Driver -High Resolution 1.Set the driver type as default "PS/ PCL 6" with Banner sheet disabled accordingly 2.Open the Test File in application mentioned in the Laptop 3.Go to File/Print ->Properties and Settings are "Simplex " ,print quality "Default Resolution" and Click Print buton; and Start timer in Stopwatch together 4. Use Lap funtion in the stop watch as FPOT (lap 1): Time from “Print” button selected until the TRAIL EDGE of the 1st sheet exits to the default tray C-C (lap 2): Time from “Print” button selected until the TRAIL EDGE of the last sheet exits to the default tray 5.Record the time then and repeat the above steps for conseqent readings

Sheet XPS (hidden)
A1: XPS - No Banner, Simplex (Test Device; Default Connection Method) | M1: XPS - No Banner, Simplex (Benchmark Device; Default Connection Method)
A2: Type | B2: Mode | C2: Job | D2: Application | E2: Pages | F2: FPOT Measured in Seconds | G2: C-C Measured in Seconds | H2: 2-N PPM aka ESAT (ipm) | I2: 2-N % Rated Speed Calculated | J2: C-C % Rated Speed Calculated | M2: Type | N2: Mode | O2: Job | P2: Application | Q2: Pages | R2: FPOT Measured in Seconds | S2: C-C Measured in Seconds | T2: 2-N PPM aka ESAT (ipm) | U2: 2-N % Rated Speed Calculated | V2: C-C % Rated Speed Calculated
A3: XPS | B3: Color | C3: Contents | D3: Word | E3: 12 | H3: =IF(OR(G3="NA", G3="FAILED"), G3, (IF(ISERROR((E3-1)/(G3-F3)*60), "", (E3-1)/(G3-F3)*60))) ->  | I3: =IF(OR(G3="NA", G3="FAILED"), G3, (IF(ISERROR(H3/'Test Info'!$I$6*100), "", H3/'Test Info'!$I$6*100))) ->  | J3: =IF(OR(G3="NA", G3="FAILED"), G3, (IF(ISERROR(E3/G3/'Test Info'!$I$6*6000), "", E3/G3/'Test Info'!$I$6*6000))) ->  | M3: XPS | N3: Color | O3: Contents | P3: Word | Q3: 12 | T3: =IF(OR(S3="NA", S3="FAILED"), S3, (IF(ISERROR((Q3-1)/(S3-R3)*60), "", (Q3-1)/(S3-R3)*60))) ->  | U3: =IF(OR(S3="NA", S3="FAILED"), S3, (IF(ISERROR(T3/'Test Info'!$I$6*100), "", T3/'Test Info'!$I$6*100))) ->  | V3: =IF(OR(S3="NA", S3="FAILED"), S3, (IF(ISERROR(Q3/S3/'Test Info'!$I$6*6000), "", Q3/S3/'Test Info'!$I$6*6000))) -> 
B4: Color | C4: Jewelry | D4: Powerpoint | E4: 12 | H4: =IF(OR(G4="NA", G4="FAILED"), G4, (IF(ISERROR((E4-1)/(G4-F4)*60), "", (E4-1)/(G4-F4)*60))) ->  | I4: =IF(OR(G4="NA", G4="FAILED"), G4, (IF(ISERROR(H4/'Test Info'!$I$6*100), "", H4/'Test Info'!$I$6*100))) ->  | J4: =IF(OR(G4="NA", G4="FAILED"), G4, (IF(ISERROR(E4/G4/'Test Info'!$I$6*6000), "", E4/G4/'Test Info'!$I$6*6000))) ->  | N4: Color | O4: Jewelry | P4: Powerpoint | Q4: 12 | T4: =IF(OR(S4="NA", S4="FAILED"), S4, (IF(ISERROR((Q4-1)/(S4-R4)*60), "", (Q4-1)/(S4-R4)*60))) ->  | U4: =IF(OR(S4="NA", S4="FAILED"), S4, (IF(ISERROR(T4/'Test Info'!$I$6*100), "", T4/'Test Info'!$I$6*100))) ->  | V4: =IF(OR(S4="NA", S4="FAILED"), S4, (IF(ISERROR(Q4/S4/'Test Info'!$I$6*6000), "", Q4/S4/'Test Info'!$I$6*6000))) -> 
B5: Color | C5: Rain year | D5: Excel | E5: 2 | H5: =IF(OR(G5="NA", G5="FAILED"), G5, (IF(ISERROR((E5-1)/(G5-F5)*60), "", (E5-1)/(G5-F5)*60))) ->  | I5: =IF(OR(G5="NA", G5="FAILED"), G5, (IF(ISERROR(H5/'Test Info'!$I$6*100), "", H5/'Test Info'!$I$6*100))) ->  | J5: =IF(OR(G5="NA", G5="FAILED"), G5, (IF(ISERROR(E5/G5/'Test Info'!$I$6*6000), "", E5/G5/'Test Info'!$I$6*6000))) ->  | N5: Color | O5: Rain year | P5: Excel | Q5: 2 | T5: =IF(OR(S5="NA", S5="FAILED"), S5, (IF(ISERROR((Q5-1)/(S5-R5)*60), "", (Q5-1)/(S5-R5)*60))) ->  | U5: =IF(OR(S5="NA", S5="FAILED"), S5, (IF(ISERROR(T5/'Test Info'!$I$6*100), "", T5/'Test Info'!$I$6*100))) ->  | V5: =IF(OR(S5="NA", S5="FAILED"), S5, (IF(ISERROR(Q5/S5/'Test Info'!$I$6*6000), "", Q5/S5/'Test Info'!$I$6*6000))) -> 
B6: Mono | C6: Gold | D6: Powerpoint | E6: 8 | H6: =IF(OR(G6="NA",G6="FAILED"),G6,(IF(ISERROR((E6-1)/(G6-F6)*60),"",(E6-1)/(G6-F6)*60))) ->  | I6: =IF(OR(G6="NA", G6="FAILED"), G6, (IF(ISERROR(H6/'Test Info'!$I$6*100), "", H6/'Test Info'!$I$6*100))) ->  | J6: =IF(OR(G6="NA", G6="FAILED"), G6, (IF(ISERROR(E6/G6/'Test Info'!$I$6*6000), "", E6/G6/'Test Info'!$I$6*6000))) ->  | N6: Mono | O6: Gold | P6: Powerpoint | Q6: 8 | T6: =IF(OR(S6="NA",S6="FAILED"),S6,(IF(ISERROR((Q6-1)/(S6-R6)*60),"",(Q6-1)/(S6-R6)*60))) ->  | U6: =IF(OR(S6="NA", S6="FAILED"), S6, (IF(ISERROR(T6/'Test Info'!$I$6*100), "", T6/'Test Info'!$I$6*100))) ->  | V6: =IF(OR(S6="NA", S6="FAILED"), S6, (IF(ISERROR(Q6/S6/'Test Info'!$I$6*6000), "", Q6/S6/'Test Info'!$I$6*6000))) -> 
B7: Mono | C7: Pain at the pump | D7: Chrome | E7: 3 | H7: =IF(OR(G7="NA",G7="FAILED"),G7,(IF(ISERROR((E7-1)/(G7-F7)*60),"",(E7-1)/(G7-F7)*60))) ->  | I7: =IF(OR(G7="NA", G7="FAILED"), G7, (IF(ISERROR(H7/'Test Info'!$I$6*100), "", H7/'Test Info'!$I$6*100))) ->  | J7: =IF(OR(G7="NA", G7="FAILED"), G7, (IF(ISERROR(E7/G7/'Test Info'!$I$6*6000), "", E7/G7/'Test Info'!$I$6*6000))) ->  | N7: Mono | O7: Pain at the pump | P7: Chrome | Q7: 3 | T7: =IF(OR(S7="NA",S7="FAILED"),S7,(IF(ISERROR((Q7-1)/(S7-R7)*60),"",(Q7-1)/(S7-R7)*60))) ->  | U7: =IF(OR(S7="NA", S7="FAILED"), S7, (IF(ISERROR(T7/'Test Info'!$I$6*100), "", T7/'Test Info'!$I$6*100))) ->  | V7: =IF(OR(S7="NA", S7="FAILED"), S7, (IF(ISERROR(Q7/S7/'Test Info'!$I$6*6000), "", Q7/S7/'Test Info'!$I$6*6000))) -> 
B8: Mono | C8: Lincoln 2 | D8: Word | E8: 2 | H8: =IF(OR(G8="NA",G8="FAILED"),G8,(IF(ISERROR((E8-1)/(G8-F8)*60),"",(E8-1)/(G8-F8)*60))) ->  | I8: =IF(OR(G8="NA", G8="FAILED"), G8, (IF(ISERROR(H8/'Test Info'!$I$6*100), "", H8/'Test Info'!$I$6*100))) ->  | J8: =IF(OR(G8="NA", G8="FAILED"), G8, (IF(ISERROR(E8/G8/'Test Info'!$I$6*6000), "", E8/G8/'Test Info'!$I$6*6000))) ->  | N8: Mono | O8: Lincoln 2 | P8: Word | Q8: 2 | T8: =IF(OR(S8="NA",S8="FAILED"),S8,(IF(ISERROR((Q8-1)/(S8-R8)*60),"",(Q8-1)/(S8-R8)*60))) ->  | U8: =IF(OR(S8="NA", S8="FAILED"), S8, (IF(ISERROR(T8/'Test Info'!$I$6*100), "", T8/'Test Info'!$I$6*100))) ->  | V8: =IF(OR(S8="NA", S8="FAILED"), S8, (IF(ISERROR(Q8/S8/'Test Info'!$I$6*6000), "", Q8/S8/'Test Info'!$I$6*6000))) -> 
B9: Mono | C9: Budget | D9: Excel | E9: 1 | H9: =IF(OR(G9="NA",G9="FAILED"),G9,(IF(ISERROR((E9-1)/(G9-F9)*60),"",(E9-1)/(G9-F9)*60))) ->  | I9: =IF(OR(G9="NA", G9="FAILED"), G9, (IF(ISERROR(H9/'Test Info'!$I$6*100), "", H9/'Test Info'!$I$6*100))) ->  | J9: =IF(OR(G9="NA", G9="FAILED"), G9, (IF(ISERROR(E9/G9/'Test Info'!$I$6*6000), "", E9/G9/'Test Info'!$I$6*6000))) ->  | N9: Mono | O9: Budget | P9: Excel | Q9: 1 | T9: =IF(OR(S9="NA",S9="FAILED"),S9,(IF(ISERROR((Q9-1)/(S9-R9)*60),"",(Q9-1)/(S9-R9)*60))) ->  | U9: =IF(OR(S9="NA", S9="FAILED"), S9, (IF(ISERROR(T9/'Test Info'!$I$6*100), "", T9/'Test Info'!$I$6*100))) ->  | V9: =IF(OR(S9="NA", S9="FAILED"), S9, (IF(ISERROR(Q9/S9/'Test Info'!$I$6*6000), "", Q9/S9/'Test Info'!$I$6*6000))) -> 
B10: Color | C10: Begin with things | D10: Corel Draw | E10: 4 | H10: =IF(OR(G10="NA", G10="FAILED"), G10, (IF(ISERROR((E10-1)/(G10-F10)*60), "", (E10-1)/(G10-F10)*60))) ->  | I10: =IF(OR(G10="NA", G10="FAILED"), G10, (IF(ISERROR(H10/'Test Info'!$I$6*100), "", H10/'Test Info'!$I$6*100))) ->  | J10: =IF(OR(G10="NA", G10="FAILED"), G10, (IF(ISERROR(E10/G10/'Test Info'!$I$6*6000), "", E10/G10/'Test Info'!$I$6*6000))) ->  | N10: Color | O10: Begin with things | P10: Corel Draw | Q10: 4 | T10: =IF(OR(S10="NA", S10="FAILED"), S10, (IF(ISERROR((Q10-1)/(S10-R10)*60), "", (Q10-1)/(S10-R10)*60))) ->  | U10: =IF(OR(S10="NA", S10="FAILED"), S10, (IF(ISERROR(T10/'Test Info'!$I$6*100), "", T10/'Test Info'!$I$6*100))) ->  | V10: =IF(OR(S10="NA", S10="FAILED"), S10, (IF(ISERROR(Q10/S10/'Test Info'!$I$6*6000), "", Q10/S10/'Test Info'!$I$6*6000))) -> 
B11: Color | C11: Lincoln 6 | D11: Word | E11: 6 | H11: =IF(OR(G11="NA", G11="FAILED"), G11, (IF(ISERROR((E11-1)/(G11-F11)*60), "", (E11-1)/(G11-F11)*60))) ->  | I11: =IF(OR(G11="NA", G11="FAILED"), G11, (IF(ISERROR(H11/'Test Info'!$I$6*100), "", H11/'Test Info'!$I$6*100))) ->  | J11: =IF(OR(G11="NA", G11="FAILED"), G11, (IF(ISERROR(E11/G11/'Test Info'!$I$6*6000), "", E11/G11/'Test Info'!$I$6*6000))) ->  | N11: Color | O11: Lincoln 6 | P11: Word | Q11: 6 | T11: =IF(OR(S11="NA", S11="FAILED"), S11, (IF(ISERROR((Q11-1)/(S11-R11)*60), "", (Q11-1)/(S11-R11)*60))) ->  | U11: =IF(OR(S11="NA", S11="FAILED"), S11, (IF(ISERROR(T11/'Test Info'!$I$6*100), "", T11/'Test Info'!$I$6*100))) ->  | V11: =IF(OR(S11="NA", S11="FAILED"), S11, (IF(ISERROR(Q11/S11/'Test Info'!$I$6*6000), "", Q11/S11/'Test Info'!$I$6*6000))) -> 
B12: Color | C12: Turtle Island | D12: Photoshop | E12: 1 | H12: =IF(OR(G12="NA", G12="FAILED"), G12, (IF(ISERROR((E12-1)/(G12-F12)*60), "", (E12-1)/(G12-F12)*60))) ->  | I12: =IF(OR(G12="NA", G12="FAILED"), G12, (IF(ISERROR(H12/'Test Info'!$I$6*100), "", H12/'Test Info'!$I$6*100))) ->  | J12: =IF(OR(G12="NA", G12="FAILED"), G12, (IF(ISERROR(E12/G12/'Test Info'!$I$6*6000), "", E12/G12/'Test Info'!$I$6*6000))) ->  | N12: Color | O12: Turtle Island | P12: Photoshop | Q12: 1 | T12: =IF(OR(S12="NA", S12="FAILED"), S12, (IF(ISERROR((Q12-1)/(S12-R12)*60), "", (Q12-1)/(S12-R12)*60))) ->  | U12: =IF(OR(S12="NA", S12="FAILED"), S12, (IF(ISERROR(T12/'Test Info'!$I$6*100), "", T12/'Test Info'!$I$6*100))) ->  | V12: =IF(OR(S12="NA", S12="FAILED"), S12, (IF(ISERROR(Q12/S12/'Test Info'!$I$6*6000), "", Q12/S12/'Test Info'!$I$6*6000))) -> 
D13: Average | E13: =AVERAGE(E3:E12) -> 5.1 | F13: =IF(F12="NA", F12, (IF(ISERROR(AVERAGE(F3:F12)), "", AVERAGE(F3:F12)))) ->  | G13: =IF(G12="NA", G12, (IF(ISERROR(AVERAGE(G3:G12)), "", AVERAGE(G3:G12)))) ->  | H13: =IF(H12="NA", H12, (IF(ISERROR(AVERAGE(H3:H12)), "", AVERAGE(H3:H12)))) ->  | I13: =IF(I12="NA", I12, (IF(ISERROR(AVERAGE(I3:I12)), "", AVERAGE(I3:I12)))) ->  | J13: =IF(J12="NA", J12, (IF(ISERROR(AVERAGE(J3:J12)), "", AVERAGE(J3:J12)))) ->  | P13: Average | Q13: =AVERAGE(Q3:Q12) -> 5.1 | R13: =IF(R12="NA", R12, (IF(ISERROR(AVERAGE(R3:R12)), "", AVERAGE(R3:R12)))) ->  | S13: =IF(S12="NA", S12, (IF(ISERROR(AVERAGE(S3:S12)), "", AVERAGE(S3:S12)))) ->  | T13: =IF(T12="NA", T12, (IF(ISERROR(AVERAGE(T3:T12)), "", AVERAGE(T3:T12)))) ->  | U13: =IF(U12="NA", U12, (IF(ISERROR(AVERAGE(U3:U12)), "", AVERAGE(U3:U12)))) ->  | V13: =IF(V12="NA", V12, (IF(ISERROR(AVERAGE(V3:V12)), "", AVERAGE(V3:V12)))) -> 

Sheet Concurrency, Power (hidden)
A1: ='Test Info'!A1 -> Samudra MFP High B0
A2: ='Test Info'!A2 -> Release: | B2: ='Test Info'!B2 -> 0.123.0
A3: Test Duration: | B3: =CONCATENATE(TEXT('Test Info'!B3, "m/d/yyyy"), " - ", TEXT(EndDate, "m/d/yyyy")) -> 9/11/2017 - 13/11/2017
J4: Time Conversion Tool
J5: Enter | K5: Enter | L5: Calculated
J6: Minutes | K6: Seconds | L6: Seconds
L7: =J7*60+K7 -> 0
A9: Concurrent Operations to Default Tray (Test Device) | M9: Concurrent Operations to Default Tray (Benchmark)
A10: PCL6 - No Banner | M10: PCL6 - No Banner
A11: Action-Concurrency | B11: Job | C11: Pages | D11: C-C Time Measured in Seconds | E11: Delta % Calculated | F11: Notes | M11: Action-Concurrency | N11: Job | O11: Pages | P11: C-C Time Measured in Seconds | Q11: Delta % Calculated | R11: Notes
D12: Print Section | P12: Print Section
A13: Print-Solo | B13: Sisters | C13: 12 | F13: C-C print time of Sisters.cdr (12 pgs) | I13: 1 | M13: Print-Solo | N13: Sisters | O13: 12 | R13: C-C print time of Sisters.cdr (12 pgs) | U13: 1
A14: Print-Copy | B14: Sisters | C14: 12 | E14: =IF(OR(D14="NA", D14="Failed"), D14, (IF(D14=0, "", (D14-D13)/D13))) ->  | F14: C-C print time while copying America (15pgs) | M14: Print-Copy | N14: Sisters | O14: 12 | Q14: =IF(OR(P14="NA", P14="Failed"), P14, (IF(P14=0, "", (P14-P13)/P13))) ->  | R14: C-C print time while copying America (15pgs)
A15: Print-Scan | B15: Sisters | C15: 12 | E15: =IF(OR(D15="NA", D15="Failed"), D15, (IF(D15=0, "", (D15-D13)/D13))) ->  | F15: C-C print time while scanning PScan10 (10pgs) | M15: Print-Scan | N15: Sisters | O15: 12 | Q15: =IF(OR(P15="NA", P15="Failed"), P15, (IF(P15=0, "", (P15-P13)/P13))) ->  | R15: C-C print time while scanning PScan10 (10pgs)
A16: Print-Fax | B16: Sisters | C16: 12 | E16: =IF(OR(D16="NA", D16="Failed"), D16, (IF(D16=0, "", (D16-D13)/D13))) ->  | F16: C-C print time while faxing America (4pgs) | M16: Print-Fax | N16: Sisters | O16: 12 | Q16: =IF(OR(P16="NA", P16="Failed"), P16, (IF(P16=0, "", (P16-P13)/P13))) ->  | R16: C-C print time while faxing America (4pgs)
D17: Scan Section | P17: Scan Section
A18: Scan-Solo | B18: PScan10 | C18: 10 | F18: C-C scan time of PScan10 (10pgs) | M18: Scan-Solo | N18: PScan10 | O18: 10 | R18: C-C scan time of PScan10 (10pgs)
A19: Scan-Copy | B19: PScan10 | C19: 10 | E19: =IF(OR(D19="NA", D19="Failed"), D19, (IF(D19=0, "", (D19-D18)/D18))) ->  | F19: C-C scan time while copying America (15pgs) | M19: Scan-Copy | N19: PScan10 | O19: 10 | Q19: =IF(OR(P19="NA", P19="Failed"), P19, (IF(P19=0, "", (P19-P18)/P18))) ->  | R19: C-C scan time while copying America (15pgs)
A20: Scan-Fax | B20: PScan10 | C20: 10 | E20: =IF(OR(D20="NA", D20="Failed"), D20, (IF(D20=0, "", (D20-D18)/D18))) ->  | F20: C-C scan time while sending fax of America (4pgs) | M20: Scan-Fax | N20: PScan10 | O20: 10 | Q20: =IF(OR(P20="NA", P20="Failed"), P20, (IF(P20=0, "", (P20-P18)/P18))) ->  | R20: C-C scan time while sending fax of America (4pgs)
A21: Scan-Print | B21: PScan10 | C21: 10 | E21: =IF(OR(D21="NA", D21="Failed"), D21, (IF(D21=0, "", (D21-D18)/D18))) ->  | F21: C-C scan time while printing Sisters.cdr (12 pgs) | M21: Scan-Print | N21: PScan10 | O21: 10 | Q21: =IF(OR(P21="NA", P21="Failed"), P21, (IF(P21=0, "", (P21-P18)/P18))) ->  | R21: C-C scan time while printing Sisters.cdr (12 pgs)
D22: Copy Section | P22: Copy Section
A23: Copy-Solo | B23: America | C23: 15 | F23: C-C copy time of America (15pgs) | M23: Copy-Solo | N23: America | O23: 15 | R23: C-C copy time of America (15pgs)
A24: Copy-Print | B24: America | C24: 15 | E24: =IF(OR(D24="NA", D24="Failed"), D24, (IF(D24=0, "", (D24-D23)/D23))) ->  | F24: C-C copy time while printing Sisters.cdr (12 pgs) | M24: Copy-Print | N24: America | O24: 15 | Q24: =IF(OR(P24="NA", P24="Failed"), P24, (IF(P24=0, "", (P24-P23)/P23))) ->  | R24: C-C copy time while printing Sisters.cdr (12 pgs)
A26: Fax-Solo | B26: America | C26: 4 | F26: C-C Fax time of America (4pgs)
A27: Fax-Print | B27: America | C27: 4 | E27: =IF(OR(D27="NA", D27="Failed"), D27, (IF(D27=0, "", (D27-D26)/D26))) ->  | F27: C-C fax time while printing Sisters.cdr (12 pgs)
A28: Fax-Scan | B28: America | C28: 4 | E28: =IF(OR(D28="NA", D28="Failed"), D28, (IF(D28=0, "", (D28-D26)/D26))) ->  | F28: C-C fax time while scanning PScan10 (10pgs)
A29: Fax-Copy | B29: America | C29: 4 | E29: =IF(OR(D29="NA", D29="Failed"), D29, (IF(D29=0, "", (D29-D26)/D26))) ->  | F29: C-C fax time while copying America (15pgs)
A33: Fax send & Receive (TBD)
A35: SETUP CHECKLIST
A36: Check on Device (LocalUI > Embedded Fax)
A37: Heading | B37: Item | C37: Test Setting | D37: ✔ | E37: N/A
A38: Fax Options | B38: Confirmation Report | C38: Always Print | D38: 0 | E38: =D38 -> 0
A41: Mode | B41: Document | C41: Pages Faxed | D41: 1st Sheet Through DADF | E41: Last Sheet Exits DADF | F41: Fax Received by Test PC/Client | G41: Printing of Confirmation Report
A42: Standard (200x100 dpi) | B42: ISO Fax 11" Color | C42: 4
A43: Fine (200 dpi) | B43: ISO Fax 11" Color | C43: 4
A44: Super Fine (600 dpi) | B44: ISO Fax 11" Color | C44: 4
A48: Power On/Off - Low Power Mode, Sleep Mode Recovery | M48: Power On/Off - Low Power Mode, Sleep Mode Recovery
A49: Test Device | M49: Benchmark Device
A51: SETUP CHECKLIST | M51: SETUP CHECKLIST
A52: Check on Device (LocalUI) | M52: Check on Device (LocalUI)
A53: Heading | B53: Item | C53: Test Setting | D53: ✔ | E53: N/A | M53: Heading | N53: Item | O53: Test Setting | P53: ✔ | Q53: N/A
A54: Energy Saver | B54: Low Power Mode | C54: 1 min. | D54: 1 | E54: =D54 -> 1 | M54: Energy Saver | N54: Low Power Mode | O54: 1 min. | P54: 1 | Q54: =P54 -> 1
A55: Energy Saver | B55: Sleep Mode | C55: 8 min. | D55: 2 | E55: =D55 -> 2 | M55: Energy Saver | N55: Sleep Mode | O55: 8 min. | P55: 2 | Q55: =P55 -> 2
A57: Action | B57: Job | C57: State of Device | D57: # of Idle Minutes Before test | E57: Total Seconds | M57: Action | N57: Job | O57: State of Device | P57: # of Idle Minutes Before test | Q57: Total Seconds
A59: Power: Fax Received & Printed | B59: Page 1 of Progress | C59: Ready | D59: 0 | M59: Power: Fax Received & Printed | N59: Page 1 of Progress | O59: Ready | P59: 0
A60: Power: Fax Received & Printed | B60: Page 1 of Progress | C60: Low Power Mode | D60: 6 | M60: Power: Fax Received & Printed | N60: Page 1 of Progress | O60: Low Power Mode | P60: 6
A61: Power: Fax Received & Printed | B61: Page 1 of Progress | C61: Sleep Mode | D61: 13 | M61: Power: Fax Received & Printed | N61: Page 1 of Progress | O61: Sleep Mode | P61: 13
A63: Power: Print Received & Printed | B63: Inpatient (3pgs) | C63: Ready | D63: 0 | M63: Power: Print Received & Printed | N63: Inpatient (3pgs) | O63: Ready | P63: 0
A64: Power: Print Received & Printed | B64: Inpatient (3pgs) | C64: Low Power Mode | D64: 6 | M64: Power: Print Received & Printed | N64: Inpatient (3pgs) | O64: Low Power Mode | P64: 6
A65: Power: Print Received & Printed | B65: Inpatient (3pgs) | C65: Sleep Mode | D65: 13 | M65: Power: Print Received & Printed | N65: Inpatient (3pgs) | O65: Sleep Mode | P65: 13
A67: Wake Up | C67: Low Power Mode | D67: 6 | M67: Wake Up | O67: Low Power Mode | P67: 6
A68: Wake Up | C68: Sleep Mode | D68: 13 | M68: Wake Up | O68: Sleep Mode | P68: 13
A69: Wake Up | C69: Deep Sleep Mode | D69: Overnight | M69: Wake Up | O69: Deep Sleep Mode | P69: Overnight
A70: Power Off | C70: Ready | D70: 0 | M70: Power Off | O70: Ready | P70: 0
A71: Power Off | C71: Low Power Mode | D71: 6 | M71: Power Off | O71: Low Power Mode | P71: 6
A72: Power Off | C72: Sleep Mode | D72: 13 | M72: Power Off | O72: Sleep Mode | P72: 13
A73: Power On | C73: Cold | D73: Overnight | H73: =AVERAGE(E73:G73) ->  | M73: Power On | O73: Cold | P73: Overnight
A74: Power On | C74: Warm | D74: 0 | M74: Power On | O74: Warm | P74: 0
A75: Power on | C75: Warm-Config Sht | D75: 0 | M75: Power on | O75: Warm-Config Sht | P75: 0
D77: Please make sure to reset energy saver setting back to default after this segment test.
A79: Power on From Cold (Default Energy Saver setting)
A81: Shut down Device the night before
B82: Total Seconds
B83: Enter Test Device | C83: Enter Bench Mark
A84: Day 1
A85: Day 2
A86: Day 3
A87: Avg | B87: =AVERAGE(B84:B86) ->  | C87: =AVERAGE(C84:C86) -> 
